Workbook

Sheet Index
B1: Jemena Electricity Networks – Alternative Control Services Forecast model
B2: =IFERROR(MID(CELL("filename",A1),FIND("]",CELL("filename",A1))+1,255),"") -> Index | C2: Overall Check: | D2: ='Model Validation'!C4 -> 0
B5: Worksheet summary
B7: Worksheet name | C7: Check: | F7: Input required? | H7: Description
B8: ='Output|Fee Based'!B2 -> Output|Fee Based | C8: ='Model Validation'!C8 -> 0 | F8: N | H8: Contains caclulated price and X factors for fee based services.
B9: ='Output|Quoted'!B2 -> Output|Quoted | C9: ='Model Validation'!C9 -> 0 | F9: N | H9: Contains caclulated labour rates and X factors for quoted services.
B10: ='Input|Setup'!B2 -> Input|Setup | C10: ='Model Validation'!C10 -> 0 | F10: Y | H10: Sets up model with relevant years and output categories.
B11: ='Input|Escalations'!B2 -> Input|Escalations | C11: ='Model Validation'!C11 -> 0 | F11: Y | H11: Sets up the inflation and labour escalations.
B12: ='Input|Indirect Cost Rates'!B2 -> Input|Indirect Cost Rates | C12: ='Model Validation'!C12 -> NA | F12: Y | H12: Input for indirect cost rates.
B13: ='Input|Labour Rates'!B2 -> Input|Labour Rates | C13: ='Model Validation'!C13 -> 0 | F13: Y | H13: Input for labour cost components.
B14: ='Input|Fee Based'!B2 -> Input|Fee Based | C14: ='Model Validation'!C14 -> 0 | F14: Y | H14: Input for fee based costs and service information.
B15: ='Input|Fee Based Mapping'!B2 -> Input|Fee Based Mapping | C15: ='Model Validation'!C15 -> 0 | F15: Y | H15: Aligns historical and proposed fee based services information.
B16: Calc|Tax Recovery | C16: ='Input|Tax Recovery'!J1 -> 0 | F16: Y | H16: Input for tax recovery components.
B17: ='Calc|Labour Rates'!B2 -> Calc|Labour Rates | C17: ='Model Validation'!C16 -> NA | F17: N | H17: Calculation tables for labour rates.
B18: ='Calc|Fee Based'!B2 -> Calc|Fee Based | C18: ='Model Validation'!C17 -> 0 | F18: N | H18: Calculation tables for fee based services prices.
B19: ='Model Validation'!B2 -> Model Validation | C19: ='Model Validation'!C18 -> NA | F19: N | H19: Checks and traces possible input errors.
B20: ='Input|Labour Rates'!B87 -> ND1P | C20: ='Model Validation'!C19 -> 0 | F20: Y | H20: Cost Build Up
B21: ='Input|Labour Rates'!B88 -> ND3P | C21: ='Model Validation'!C20 -> 0 | F21: Y | H21: Cost Build Up
B22: ='Input|Labour Rates'!B89 -> BTSO | C22: ='Model Validation'!C21 -> 0 | F22: Y | H22: Cost Build Up
B23: ='Input|Labour Rates'!B90 -> BTSP | C23: ='Model Validation'!C22 -> 0 | F23: Y | H23: Cost Build Up
B24: ='Input|Labour Rates'!B91 -> SUTK | C24: ='Model Validation'!C23 -> 0 | F24: Y | H24: Cost Build Up
B25: ='Input|Labour Rates'!B92 -> RTK1 | C25: ='Model Validation'!C24 -> 0 | F25: Y | H25: Cost Build Up
B26: ='Input|Labour Rates'!B93 -> REEN | C26: ='Model Validation'!C25 -> 0 | F26: Y | H26: Cost Build Up
B27: ='Input|Labour Rates'!B94 -> DEEN | C27: ='Model Validation'!C26 -> 0 | F27: Y | H27: Cost Build Up
B28: ='Input|Labour Rates'!B95 -> DCTK | C28: ='Model Validation'!C27 -> 0 | F28: Y | H28: Cost Build Up
B29: ='Input|Labour Rates'!B96 -> RCTK | C29: ='Model Validation'!C28 -> 0 | F29: Y | H29: Cost Build Up
B30: ='Input|Labour Rates'!B97 -> SLOM | C30: ='Model Validation'!C29 -> 0 | F30: Y | H30: Cost Build Up
B31: ='Input|Labour Rates'!B99 -> RFOM | C31: ='Model Validation'!C30 -> 0 | F31: Y | H31: Cost Build Up
B32: ='Input|Labour Rates'!B100 -> REENRM | C32: ='Model Validation'!C31 -> 0 | F32: Y | H32: Cost Build Up
B33: ='Input|Labour Rates'!B101 -> DEENRM | C33: ='Model Validation'!C32 -> 0 | F33: Y | H33: Cost Build Up
B34: ='Input|Labour Rates'!B102 -> MCTK | C34: ='Model Validation'!C33 -> 0 | F34: Y | H34: Cost Build Up
B35: ='Input|Labour Rates'!B103 -> SPRDRM | C35: ='Model Validation'!C34 -> 0 | F35: Y | H35: Cost Build Up
B36: ='Input|Labour Rates'!B104 -> MECFRM | C36: ='Model Validation'!C35 -> 0 | F36: Y | H36: Cost Build Up
B37: ='Input|Labour Rates'!B105 -> SPRD | C37: ='Model Validation'!C36 -> 0 | F37: Y | H37: Cost Build Up
B38: ='Input|Labour Rates'!B106 -> MTAL | C38: ='Model Validation'!C37 -> 0 | F38: Y | H38: Cost Build Up
B39: ='Input|Labour Rates'!B107 -> MDCH | C39: ='Model Validation'!C38 -> 0 | F39: Y | H39: Cost Build Up
B40: ='Input|Labour Rates'!B108 -> NCUM | C40: ='Model Validation'!C39 -> 0 | F40: Y | H40: Cost Build Up
B41: ='Input|Labour Rates'!B109 -> WSVR | C41: ='Model Validation'!C40 -> 0 | F41: Y | H41: Cost Build Up
B42: ='Input|Labour Rates'!B110 -> RTK3 | C42: ='Model Validation'!C41 -> 0 | F42: Y | H42: Cost Build Up
B43: Template | C43: ='Model Validation'!C42 -> 0 | F43: N | H43: Cost Build Up
B45: Table summary
B47: Name | C47: Tab | F47: Input required? | H47: Description
B48: ='Output|Fee Based'!B5 -> 1.1 X-factors for each year of 2026-27 to 2030-31 regulatory period, (per cent) | C48: =B8 -> Output|Fee Based | F48: N | H48: Contains X-factors to apply to fee-based services for years 2-5 of the forthcoming regulatory control period.
B49: ='Output|Fee Based'!B10 -> 1.2 Fee based services for 2026-27 | C49: =$C$48 -> Output|Fee Based | F49: N | H49: Contains the calculated price for each fee based servce, in nominal terms, for year 1 of the forthcoming regulatory control period.
B50: ='Output|Quoted'!B5 -> 2.1 X-factors for each year of 2026-27 to 2030-31 regulatory period, (per cent) | C50: =B9 -> Output|Quoted | F50: N | H50: Contains X-factors to apply to the labour rates used to provide quoted services for years 2-5 of the forthcoming regulatory control period.
B51: ='Output|Quoted'!B10 -> 2.2 Labour rates for 2026-27, ($2026-27) | C51: =$C$50 -> Output|Quoted | F51: N | H51: Contains the calculated labour rate for each labour type used to provide quoted servces, in nominal terms, for year 1 of the forthcoming regulatory control period.
B52: ='Output|Quoted'!B34 -> 2.3 List of quoted services for 2026-27 to 2030-31 regulatory period | C52: =$C$50 -> Output|Quoted | F52: N | H52: Lists the quoted services the distributor proposes to provide in the forthcoming regulatory control period.
B53: ='Input|Setup'!A5 & " " & 'Input|Setup'!B5 -> 3.1 Years setup | C53: ='Input|Setup'!B2 -> Input|Setup | F53: Y | H53: Please choose the first year of the forthcoming regulatory period and the base year for inputs.
B54: ='Input|Setup'!A10 & " " & 'Input|Setup'!B10 -> 3.2 Current regulatory period | C54: =$C$53 -> Input|Setup | F54: N | H54: Contains the regulatory years of the current regulatory control period.
B55: ='Input|Setup'!D10 & " " & 'Input|Setup'!E10 -> 3.3 Forecast regulatory period | C55: =$C$53 -> Input|Setup | F55: N | H55: Contains the regulatory years of the forthcoming regulatory control period.
B56: ='Input|Setup'!A18 & " " & 'Input|Setup'!B18 -> 3.4 Used for quoted service? | C56: =$C$53 -> Input|Setup | F56: N | H56: Contains reference to drop down lists for use in 'Input|Labour rates' to denote whether the labour category is to be used in the provision of quoted services.
B57: ='Input|Setup'!D18 & " " & 'Input|Setup'!E18 -> 3.5 Conversions | C57: =$C$53 -> Input|Setup | F57: Optional | H57: Lists figures used for conversions in formulas.
B58: ='Input|Setup'!A24 & " " & 'Input|Setup'!B24 -> 3.6 Hours | C58: Input|Setup | F58: Y | H58: Please enter time periods that would result in different rates applied for the same service or labour type (e.g. business hours, after hours).
B59: ='Input|Setup'!A30 & " " & 'Input|Setup'!B30 -> 3.7 Labour type | C59: Input|Setup | F59: Y | H59: Please enter the specific labour types used to provide fee based and quoted services.
B60: ='Input|Setup'!D30 & " " & 'Input|Setup'!E30 -> 3.8 Service category | C60: Input|Setup | F60: Y | H60: Please enter the major service categories for fee based services (e.g. basic connection services, network safety services, auxiliary metering services).
B61: ='Input|Setup'!G30 & " " & 'Input|Setup'!H30 -> 3.9 Expense Type | C61: Input|Setup | F61: Optional | H61: Please enter distributor-specific categories for fee-based services, if required.
B62: ='Input|Setup'!G40 & " " & 'Input|Setup'!H40 -> 3.10 Control Mechanism | C62: Input|Setup | F62: Optional | H62: Please enter distributor-specific categories for fee-based services, if required.
B63: ='Input|Escalations'!A5 & " " & 'Input|Escalations'!B5 -> 4.1 Escalation setup | C63: ='Input|Escalations'!B2 -> Input|Escalations | F63: N | H63: Contains the first year of the forthcoming regulatory control period and the nominated base year. These are used in calculations in the 'Input|Escalation' sheet.
B64: ='Input|Escalations'!A13 & " " & 'Input|Escalations'!B13 -> 4.2 Inflation | C64: =$C$63 -> Input|Escalations | F64: Y | H64: Please enter ABS index, all groups CPI inflation series A2325846C, up to latest available December. Please enter forecast CPI, including source, for other years.
B65: ='Input|Escalations'!A24 & " " & 'Input|Escalations'!B24 -> 4.3 Real price escalation | C65: =$C$63 -> Input|Escalations | F65: Optional | H65: Calculates X factor (real wage price escalation). Other real escalators are set to equal X factor by default, but can be amended by distributors.
B66: ='Input|Escalations'!A34 & " " & 'Input|Escalations'!B34 -> 4.3.1 Real wage price escalation | C66: =$C$63 -> Input|Escalations | F66: Y | H66: Please enter sources and forecasts for real wage price escalation, including weightings for each source, in the green input cells. Grey cells will calculate the forecast real wage price escalation.
B67: ='Input|Escalations'!A54& " " & 'Input|Escalations'!B54 -> 4.3.2 Real price escalation (non-wage) | C67: =$C$63 -> Input|Escalations | F67: N | H67: Contains the calculated forecast real escalation for non-wage inputs.
B68: ='Input|Indirect Cost Rates'!A5 & " " & 'Input|Indirect Cost Rates'!B5 -> 5.1 On costs | C68: ='Input|Indirect Cost Rates'!B2 -> Input|Indirect Cost Rates | F68: Y | H68: Please enter relevant on-cost rates. Distributors may enter a total on-cost rate only. Alternatively, disaggregated on-cost rates may be provided with the total on-cost rate calculated in row 19, as required.
B69: ='Input|Indirect Cost Rates'!A22 & " " & 'Input|Indirect Cost Rates'!B22 -> 5.2 Overhead | C69: =$C$68 -> Input|Indirect Cost Rates | F69: Y | H69: Please enter rates for network overhead and corporate overhead. Where relevant, distributors may enter other overhead rates (e.g. a total overhead rate).
B70: ='Input|Indirect Cost Rates'!A32 & " " & 'Input|Indirect Cost Rates'!B32 -> 5.3 Margins | C70: =$C$68 -> Input|Indirect Cost Rates | F70: Y | H70: Please enter margin rates as required.
B71: ='Input|Indirect Cost Rates'!A41 & " " & 'Input|Indirect Cost Rates'!B41 -> 5.4 Tax recovery rate | C71: =$C$68 -> Input|Indirect Cost Rates | F71: Y | H71: Please enter tax recovery rates as required.
B72: ='Input|Labour Rates'!B7 -> 6.1 Labour rates | C72: ='Input|Labour Rates'!B2 -> Input|Labour Rates | F72: Y | H72: Please enter required information regarding labour rates (in base year dollar terms) used to provide ANS. For on-cost and overhead rates, please use formulas to reference tables 5.1 and 5.2, respectively.
B73: ='Input|Labour Rates'!K7 -> 6.2 Notes and sources for "Other costs" | C73: =$C$72 -> Input|Labour Rates | F73: Y | H73: Please describe "Other costs" used to derive total labour rates, where appropriate, and provide sources.
B74: ='Input|Labour Rates'!B32 -> 6.3 List of quoted services for 2026-27 to 2030-31 regulatory period | C74: =$C$72 -> Input|Labour Rates | F74: Y | H74: Please list the quoted services the distributor proposes to provide in the forthcoming regulatory control period.
B75: ='Input|Fee Based'!B6 -> 7.1 Fee based services | C75: ='Input|Fee Based'!B2 -> Input|Fee Based | F75: Y | H75: Please list the name and service code of the fee-based services, including hours provided and general service category.
B76: ='Input|Fee Based'!I6 -> 7.2 Service cost build up - DIRECT COSTS, $'s ($2024-25) | C76: =$C$75 -> Input|Fee Based | F76: Y | H76: Please input the direct costs in base year dollar terms incurred for providinng each fee based service, and other requested information such as the total time in minutes each labour type is required to provide the service.
B77: ='Input|Fee Based'!X6 -> 7.3 Service cost build - INDIRECT COSTS (per cent) | C77: =$C$75 -> Input|Fee Based | F77: Y | H77: Please use formulas to reference in the 'Input|Indirect Cost Rates' sheet as appropriate.
B78: ='Input|Fee Based'!AF6 -> 7.4 Notes and sources for "Other costs" | C78: =$C$75 -> Input|Fee Based | F78: Y | H78: Please describe "Other costs" used to derive the year 1 price for fee based services, where appropriate, and provide sources.
B79: ='Input|Fee Based Mapping'!B9 -> 8.1 Current regulatory period - Fee based services | C79: ='Input|Fee Based Mapping'!B2 -> Input|Fee Based Mapping | F79: Y | H79: Please enter approved fee based services and prices (in nominal dollar terms) for the current regulatory control perod (including the final decision prices in column K). Please align with the fee based services for the forthcoming regulatoru control period in table 8.2.
B80: ='Input|Fee Based Mapping'!U9 -> 8.2 Forecast regulatory period - Fee based services | C80: =$C$79 -> Input|Fee Based Mapping | F80: N | H80: Includes the year 1 price for fee based services (from 'Calc|Fee Based' sheet), then calculates prices for years 2 to 5 of the forthcoming regulatory control period using forecast inflation and X factors.
B81: ='Calc|Labour Rates'!B7 -> 9.1 Year 1 labour rates | C81: ='Calc|Labour Rates'!B2 -> Calc|Labour Rates | F81: N | H81: Calculates labour rate for each labour type used to provide quoted servces, in nominal terms, for year 1 of the forthcoming regulatory control period.
B82: ='Calc|Labour Rates'!H7 -> 9.2 Year 1 labour rates build up, $'s ($2026-27) | C82: =$C$81 -> Calc|Labour Rates | F82: N | H82: Calculates labour rate for each labour type used to provide quoted servces for year 1 of the forthcoming regulatory control period.
B83: ='Calc|Fee Based'!B6 -> 10.1 Fee based services | C83: ='Calc|Fee Based'!$B$2 -> Calc|Fee Based | F83: N | H83: Calculates price for each fee based servce, in nominal terms, for year 1 of the forthcoming regulatory control period.
B84: ='Calc|Fee Based'!J6 -> 10.2 Year 1 service cost build up - DIRECT COSTS, $'s ($2026-27) | C84: =$C$83 -> Calc|Fee Based | F84: N | H84: Calculates the direct costs for each fee based service, in base year dollar terms, for year 1 of the forthcoming regulatory control period.
B85: ='Calc|Fee Based'!AB6 -> 10.3 Year 1 Service cost build up - INDIRECT COSTS, $'s ($2026-27) | C85: =$C$83 -> Calc|Fee Based | F85: N | H85: Calculates the indirect costs for each fee based service, in base year dollar terms, for year 1 of the forthcoming regulatory control period.

Sheet Output|Fee Based
B1: =Index!B1 -> Jemena Electricity Networks – Alternative Control Services Forecast model | E1: Key: | F1: Input | H1: Sheet Validation | I1: ='Model Validation'!C8 -> 0
B2: =MID(CELL("filename",A1),FIND("]",CELL("filename",A1))+1,255) -> Output|Fee Based | F2: Formula
D4: =IF(D7='Input|Escalations'!J27,0,1) -> 0 | E4: =IF(E7='Input|Escalations'!K27,0,1) -> 0 | F4: =IF(F7='Input|Escalations'!L27,0,1) -> 0 | G4: =IF(G7='Input|Escalations'!M27,0,1) -> 0
B5: =IFERROR("1.1 X-factors for each year of "&'Input|Setup'!$E$11&" to "&'Input|Setup'!$E$15&" regulatory period, (per cent)","") -> 1.1 X-factors for each year of 2026-27 to 2030-31 regulatory period, (per cent) | H5: =IF(SUM(D4:G4)=0,0,1) -> 0
C6: ='Input|Setup'!$E$11 -> 2026-27 | D6: ='Input|Setup'!$E$12 -> 2027-28 | E6: ='Input|Setup'!$E$13 -> 2028-29 | F6: ='Input|Setup'!$E$14 -> 2029-30 | G6: ='Input|Setup'!$E$15 -> 2030-31
D7: ='Input|Escalations'!J27 -> -0.008358355629 | E7: ='Input|Escalations'!K27 -> -0.01025499053 | F7: ='Input|Escalations'!L27 -> -0.01224018808 | G7: ='Input|Escalations'!M27 -> -0.01148235304
B10: =IFERROR("1.2 Fee based services for "&'Input|Setup'!$E$11,"") -> 1.2 Fee based services for 2026-27 | I10: =IF(SUM(I12:I61)=0,0,1) -> 0
B11: ='Calc|Fee Based'!B11 -> Service code | C11: ='Calc|Fee Based'!C11 -> Service | D11: ='Input|Setup'!B24 -> Hours | E11: ='Input|Setup'!E30 -> Service category | F11: ='Input|Setup'!H30 -> Expense Type | G11: ='Input|Setup'!H40 -> Control Mechanism | H11: ="Price ($" & 'Input|Setup'!$E$8 & ")" -> Price ($2026-27)
A12: 1 | B12: ='Calc|Fee Based'!B12 -> ND1P | C12: ='Calc|Fee Based'!C12 -> Basic connection, single-phase BH | D12: ='Calc|Fee Based'!E12 -> Business Hours | E12: ='Calc|Fee Based'!D12 -> Basic connection services | F12: ='Calc|Fee Based'!F12 -> Capex | G12: ='Calc|Fee Based'!G12 -> Fee Based | H12: ='Calc|Fee Based'!H12 -> 872.3325042 | I12: =IF(AND(B12='Calc|Fee Based'!B12,C12='Calc|Fee Based'!C12,D12='Calc|Fee Based'!E12,E12='Calc|Fee Based'!D12, F12='Calc|Fee Based'!F12,G12='Calc|Fee Based'!G12, H12='Calc|Fee Based'!H12),0,1) -> 0
A13: 2 | B13: ='Calc|Fee Based'!B13 -> ND1P | C13: ='Calc|Fee Based'!C13 -> Basic connection, single-phase AH | D13: ='Calc|Fee Based'!E13 -> After Hours | E13: ='Calc|Fee Based'!D13 -> Basic connection services | F13: ='Calc|Fee Based'!F13 -> Capex | G13: ='Calc|Fee Based'!G13 -> Fee Based | H13: ='Calc|Fee Based'!H13 -> 1230.251239 | I13: =IF(AND(B13='Calc|Fee Based'!B13,C13='Calc|Fee Based'!C13,D13='Calc|Fee Based'!E13,E13='Calc|Fee Based'!D13, F13='Calc|Fee Based'!F13,G13='Calc|Fee Based'!G13, H13='Calc|Fee Based'!H13),0,1) -> 0
A14: 3 | B14: ='Calc|Fee Based'!B14 -> ND3P | C14: ='Calc|Fee Based'!C14 -> Basic connection, three-phase BH | D14: ='Calc|Fee Based'!E14 -> Business Hours | E14: ='Calc|Fee Based'!D14 -> Basic connection services | F14: ='Calc|Fee Based'!F14 -> Capex | G14: ='Calc|Fee Based'!G14 -> Fee Based | H14: ='Calc|Fee Based'!H14 -> 1195.347032 | I14: =IF(AND(B14='Calc|Fee Based'!B14,C14='Calc|Fee Based'!C14,D14='Calc|Fee Based'!E14,E14='Calc|Fee Based'!D14, F14='Calc|Fee Based'!F14,G14='Calc|Fee Based'!G14, H14='Calc|Fee Based'!H14),0,1) -> 0
A15: 4 | B15: ='Calc|Fee Based'!B15 -> ND3P | C15: ='Calc|Fee Based'!C15 -> Basic connection, three-phase AH | D15: ='Calc|Fee Based'!E15 -> After Hours | E15: ='Calc|Fee Based'!D15 -> Basic connection services | F15: ='Calc|Fee Based'!F15 -> Capex | G15: ='Calc|Fee Based'!G15 -> Fee Based | H15: ='Calc|Fee Based'!H15 -> 1553.265767 | I15: =IF(AND(B15='Calc|Fee Based'!B15,C15='Calc|Fee Based'!C15,D15='Calc|Fee Based'!E15,E15='Calc|Fee Based'!D15, F15='Calc|Fee Based'!F15,G15='Calc|Fee Based'!G15, H15='Calc|Fee Based'!H15),0,1) -> 0
A16: 5 | B16: ='Calc|Fee Based'!B16 -> BTSO | C16: ='Calc|Fee Based'!C16 -> Temporary connection, single-phase BH | D16: ='Calc|Fee Based'!E16 -> Business Hours | E16: ='Calc|Fee Based'!D16 -> Connection service | F16: ='Calc|Fee Based'!F16 -> Capex | G16: ='Calc|Fee Based'!G16 -> Fee Based | H16: ='Calc|Fee Based'!H16 -> 872.3325042 | I16: =IF(AND(B16='Calc|Fee Based'!B16,C16='Calc|Fee Based'!C16,D16='Calc|Fee Based'!E16,E16='Calc|Fee Based'!D16, F16='Calc|Fee Based'!F16,G16='Calc|Fee Based'!G16, H16='Calc|Fee Based'!H16),0,1) -> 0
A17: 6 | B17: ='Calc|Fee Based'!B17 -> BTSO | C17: ='Calc|Fee Based'!C17 -> Temporary connection, single-phase AH | D17: ='Calc|Fee Based'!E17 -> After Hours | E17: ='Calc|Fee Based'!D17 -> Connection service | F17: ='Calc|Fee Based'!F17 -> Capex | G17: ='Calc|Fee Based'!G17 -> Fee Based | H17: ='Calc|Fee Based'!H17 -> 1230.251239 | I17: =IF(AND(B17='Calc|Fee Based'!B17,C17='Calc|Fee Based'!C17,D17='Calc|Fee Based'!E17,E17='Calc|Fee Based'!D17, F17='Calc|Fee Based'!F17,G17='Calc|Fee Based'!G17, H17='Calc|Fee Based'!H17),0,1) -> 0
A18: 7 | B18: ='Calc|Fee Based'!B18 -> BTSP | C18: ='Calc|Fee Based'!C18 -> Temporary connection, three-phase BH | D18: ='Calc|Fee Based'!E18 -> Business Hours | E18: ='Calc|Fee Based'!D18 -> Connection service | F18: ='Calc|Fee Based'!F18 -> Capex | G18: ='Calc|Fee Based'!G18 -> Fee Based | H18: ='Calc|Fee Based'!H18 -> 1195.347032 | I18: =IF(AND(B18='Calc|Fee Based'!B18,C18='Calc|Fee Based'!C18,D18='Calc|Fee Based'!E18,E18='Calc|Fee Based'!D18, F18='Calc|Fee Based'!F18,G18='Calc|Fee Based'!G18, H18='Calc|Fee Based'!H18),0,1) -> 0
A19: 8 | B19: ='Calc|Fee Based'!B19 -> BTSP | C19: ='Calc|Fee Based'!C19 -> Temporary connection, three-phase AH | D19: ='Calc|Fee Based'!E19 -> After Hours | E19: ='Calc|Fee Based'!D19 -> Connection service | F19: ='Calc|Fee Based'!F19 -> Capex | G19: ='Calc|Fee Based'!G19 -> Fee Based | H19: ='Calc|Fee Based'!H19 -> 1553.265767 | I19: =IF(AND(B19='Calc|Fee Based'!B19,C19='Calc|Fee Based'!C19,D19='Calc|Fee Based'!E19,E19='Calc|Fee Based'!D19, F19='Calc|Fee Based'!F19,G19='Calc|Fee Based'!G19, H19='Calc|Fee Based'!H19),0,1) -> 0
A20: 9 | B20: ='Calc|Fee Based'!B20 -> SUTK | C20: ='Calc|Fee Based'!C20 -> Supply upgrade/enhancement (1ph to 3ph) BH | D20: ='Calc|Fee Based'!E20 -> Business Hours | E20: ='Calc|Fee Based'!D20 -> Connection service | F20: ='Calc|Fee Based'!F20 -> Capex | G20: ='Calc|Fee Based'!G20 -> Fee Based | H20: ='Calc|Fee Based'!H20 -> 1195.347032 | I20: =IF(AND(B20='Calc|Fee Based'!B20,C20='Calc|Fee Based'!C20,D20='Calc|Fee Based'!E20,E20='Calc|Fee Based'!D20, F20='Calc|Fee Based'!F20,G20='Calc|Fee Based'!G20, H20='Calc|Fee Based'!H20),0,1) -> 0
A21: 10 | B21: ='Calc|Fee Based'!B21 -> SUTK | C21: ='Calc|Fee Based'!C21 -> Supply upgrade/enhancement (1ph to 3ph) AH | D21: ='Calc|Fee Based'!E21 -> After Hours | E21: ='Calc|Fee Based'!D21 -> Connection service | F21: ='Calc|Fee Based'!F21 -> Capex | G21: ='Calc|Fee Based'!G21 -> Fee Based | H21: ='Calc|Fee Based'!H21 -> 1553.265767 | I21: =IF(AND(B21='Calc|Fee Based'!B21,C21='Calc|Fee Based'!C21,D21='Calc|Fee Based'!E21,E21='Calc|Fee Based'!D21, F21='Calc|Fee Based'!F21,G21='Calc|Fee Based'!G21, H21='Calc|Fee Based'!H21),0,1) -> 0
A22: 11 | B22: ='Calc|Fee Based'!B22 -> RTK1 | C22: ='Calc|Fee Based'!C22 -> Replacement of 1-phase overhead service line BH | D22: ='Calc|Fee Based'!E22 -> Business Hours | E22: ='Calc|Fee Based'!D22 -> Connection service | F22: ='Calc|Fee Based'!F22 -> Capex | G22: ='Calc|Fee Based'!G22 -> Fee Based | H22: ='Calc|Fee Based'!H22 -> 908.2569719 | I22: =IF(AND(B22='Calc|Fee Based'!B22,C22='Calc|Fee Based'!C22,D22='Calc|Fee Based'!E22,E22='Calc|Fee Based'!D22, F22='Calc|Fee Based'!F22,G22='Calc|Fee Based'!G22, H22='Calc|Fee Based'!H22),0,1) -> 0
A23: 12 | B23: ='Calc|Fee Based'!B23 -> RTK1 | C23: ='Calc|Fee Based'!C23 -> Replacement of 1-phase overhead service line AH | D23: ='Calc|Fee Based'!E23 -> After Hours | E23: ='Calc|Fee Based'!D23 -> Connection service | F23: ='Calc|Fee Based'!F23 -> Capex | G23: ='Calc|Fee Based'!G23 -> Fee Based | H23: ='Calc|Fee Based'!H23 -> 1266.175707 | I23: =IF(AND(B23='Calc|Fee Based'!B23,C23='Calc|Fee Based'!C23,D23='Calc|Fee Based'!E23,E23='Calc|Fee Based'!D23, F23='Calc|Fee Based'!F23,G23='Calc|Fee Based'!G23, H23='Calc|Fee Based'!H23),0,1) -> 0
A24: 13 | B24: ='Calc|Fee Based'!B24 -> REEN | C24: ='Calc|Fee Based'!C24 -> Field-based energisation BH | D24: ='Calc|Fee Based'!E24 -> Business Hours | E24: ='Calc|Fee Based'!D24 -> Connection service | F24: ='Calc|Fee Based'!F24 -> Opex | G24: ='Calc|Fee Based'!G24 -> Fee Based | H24: ='Calc|Fee Based'!H24 -> 159.823337 | I24: =IF(AND(B24='Calc|Fee Based'!B24,C24='Calc|Fee Based'!C24,D24='Calc|Fee Based'!E24,E24='Calc|Fee Based'!D24, F24='Calc|Fee Based'!F24,G24='Calc|Fee Based'!G24, H24='Calc|Fee Based'!H24),0,1) -> 0
A25: 14 | B25: ='Calc|Fee Based'!B25 -> REEN | C25: ='Calc|Fee Based'!C25 -> Field-based energisation AH | D25: ='Calc|Fee Based'!E25 -> After Hours | E25: ='Calc|Fee Based'!D25 -> Connection service | F25: ='Calc|Fee Based'!F25 -> Opex | G25: ='Calc|Fee Based'!G25 -> Fee Based | H25: ='Calc|Fee Based'!H25 -> 227.3885135 | I25: =IF(AND(B25='Calc|Fee Based'!B25,C25='Calc|Fee Based'!C25,D25='Calc|Fee Based'!E25,E25='Calc|Fee Based'!D25, F25='Calc|Fee Based'!F25,G25='Calc|Fee Based'!G25, H25='Calc|Fee Based'!H25),0,1) -> 0
A26: 15 | B26: ='Calc|Fee Based'!B26 -> DEEN | C26: ='Calc|Fee Based'!C26 -> Field-based de-energisation BH | D26: ='Calc|Fee Based'!E26 -> Business Hours | E26: ='Calc|Fee Based'!D26 -> Connection service | F26: ='Calc|Fee Based'!F26 -> Opex | G26: ='Calc|Fee Based'!G26 -> Fee Based | H26: ='Calc|Fee Based'!H26 -> 175.2382182 | I26: =IF(AND(B26='Calc|Fee Based'!B26,C26='Calc|Fee Based'!C26,D26='Calc|Fee Based'!E26,E26='Calc|Fee Based'!D26, F26='Calc|Fee Based'!F26,G26='Calc|Fee Based'!G26, H26='Calc|Fee Based'!H26),0,1) -> 0
A27: 16 | B27: ='Calc|Fee Based'!B27 -> DCTK | C27: ='Calc|Fee Based'!C27 -> Disconnection (temporary) BH | D27: ='Calc|Fee Based'!E27 -> Business Hours | E27: ='Calc|Fee Based'!D27 -> Customer requested supply outage | F27: ='Calc|Fee Based'!F27 -> Opex | G27: ='Calc|Fee Based'!G27 -> Fee Based | H27: ='Calc|Fee Based'!H27 -> 496.3128273 | I27: =IF(AND(B27='Calc|Fee Based'!B27,C27='Calc|Fee Based'!C27,D27='Calc|Fee Based'!E27,E27='Calc|Fee Based'!D27, F27='Calc|Fee Based'!F27,G27='Calc|Fee Based'!G27, H27='Calc|Fee Based'!H27),0,1) -> 0
A28: 17 | B28: ='Calc|Fee Based'!B28 -> DCTK | C28: ='Calc|Fee Based'!C28 -> Disconnection (temporary) AH | D28: ='Calc|Fee Based'!E28 -> After Hours | E28: ='Calc|Fee Based'!D28 -> Customer requested supply outage | F28: ='Calc|Fee Based'!F28 -> Opex | G28: ='Calc|Fee Based'!G28 -> Fee Based | H28: ='Calc|Fee Based'!H28 -> 793.5996035 | I28: =IF(AND(B28='Calc|Fee Based'!B28,C28='Calc|Fee Based'!C28,D28='Calc|Fee Based'!E28,E28='Calc|Fee Based'!D28, F28='Calc|Fee Based'!F28,G28='Calc|Fee Based'!G28, H28='Calc|Fee Based'!H28),0,1) -> 0
A29: 18 | B29: ='Calc|Fee Based'!B29 -> RCTK | C29: ='Calc|Fee Based'!C29 -> Reconnection after temp discon BH | D29: ='Calc|Fee Based'!E29 -> Business Hours | E29: ='Calc|Fee Based'!D29 -> Customer requested supply outage | F29: ='Calc|Fee Based'!F29 -> Opex | G29: ='Calc|Fee Based'!G29 -> Fee Based | H29: ='Calc|Fee Based'!H29 -> 575.3407005 | I29: =IF(AND(B29='Calc|Fee Based'!B29,C29='Calc|Fee Based'!C29,D29='Calc|Fee Based'!E29,E29='Calc|Fee Based'!D29, F29='Calc|Fee Based'!F29,G29='Calc|Fee Based'!G29, H29='Calc|Fee Based'!H29),0,1) -> 0
A30: 19 | B30: ='Calc|Fee Based'!B30 -> RCTK | C30: ='Calc|Fee Based'!C30 -> Reconnection after temp discon AH | D30: ='Calc|Fee Based'!E30 -> After Hours | E30: ='Calc|Fee Based'!D30 -> Customer requested supply outage | F30: ='Calc|Fee Based'!F30 -> Opex | G30: ='Calc|Fee Based'!G30 -> Fee Based | H30: ='Calc|Fee Based'!H30 -> 926.6796178 | I30: =IF(AND(B30='Calc|Fee Based'!B30,C30='Calc|Fee Based'!C30,D30='Calc|Fee Based'!E30,E30='Calc|Fee Based'!D30, F30='Calc|Fee Based'!F30,G30='Calc|Fee Based'!G30, H30='Calc|Fee Based'!H30),0,1) -> 0
A31: 20 | B31: ='Calc|Fee Based'!B31 -> SLOM | C31: ='Calc|Fee Based'!C31 -> Security Lighting - O&M | D31: ='Calc|Fee Based'!E31 -> Business Hours | E31: ='Calc|Fee Based'!D31 -> Security lights | F31: ='Calc|Fee Based'!F31 -> Capex | G31: ='Calc|Fee Based'!G31 -> Fee Based | H31: ='Calc|Fee Based'!H31 -> 173.0008115 | I31: =IF(AND(B31='Calc|Fee Based'!B31,C31='Calc|Fee Based'!C31,D31='Calc|Fee Based'!E31,E31='Calc|Fee Based'!D31, F31='Calc|Fee Based'!F31,G31='Calc|Fee Based'!G31, H31='Calc|Fee Based'!H31),0,1) -> 0
A32: 21 | B32: ='Calc|Fee Based'!B32 -> RFOM | C32: ='Calc|Fee Based'!C32 -> Enhanced Connection Operation and Maintenance | D32: ='Calc|Fee Based'!E32 -> Business Hours | E32: ='Calc|Fee Based'!D32 -> Enhanced connection services | F32: ='Calc|Fee Based'!F32 -> Opex | G32: ='Calc|Fee Based'!G32 -> Fee Based | H32: ='Calc|Fee Based'!H32 -> 16.174377 | I32: =IF(AND(B32='Calc|Fee Based'!B32,C32='Calc|Fee Based'!C32,D32='Calc|Fee Based'!E32,E32='Calc|Fee Based'!D32, F32='Calc|Fee Based'!F32,G32='Calc|Fee Based'!G32, H32='Calc|Fee Based'!H32),0,1) -> 0
A33: 22 | B33: ='Calc|Fee Based'!B33 -> REENRM | C33: ='Calc|Fee Based'!C33 -> Remote energisation | D33: ='Calc|Fee Based'!E33 -> Business Hours | E33: ='Calc|Fee Based'!D33 -> Auxiliary metering services | F33: ='Calc|Fee Based'!F33 -> Opex | G33: ='Calc|Fee Based'!G33 -> Fee Based | H33: ='Calc|Fee Based'!H33 -> 0 | I33: =IF(AND(B33='Calc|Fee Based'!B33,C33='Calc|Fee Based'!C33,D33='Calc|Fee Based'!E33,E33='Calc|Fee Based'!D33, F33='Calc|Fee Based'!F33,G33='Calc|Fee Based'!G33, H33='Calc|Fee Based'!H33),0,1) -> 0
A34: 23 | B34: ='Calc|Fee Based'!B34 -> DEENRM | C34: ='Calc|Fee Based'!C34 -> Remote de-energisation | D34: ='Calc|Fee Based'!E34 -> Business Hours | E34: ='Calc|Fee Based'!D34 -> Auxiliary metering services | F34: ='Calc|Fee Based'!F34 -> Opex | G34: ='Calc|Fee Based'!G34 -> Fee Based | H34: ='Calc|Fee Based'!H34 -> 0 | I34: =IF(AND(B34='Calc|Fee Based'!B34,C34='Calc|Fee Based'!C34,D34='Calc|Fee Based'!E34,E34='Calc|Fee Based'!D34, F34='Calc|Fee Based'!F34,G34='Calc|Fee Based'!G34, H34='Calc|Fee Based'!H34),0,1) -> 0
A35: 24 | B35: ='Calc|Fee Based'!B35 -> MCTK | C35: ='Calc|Fee Based'!C35 -> Meter Alteration BH | D35: ='Calc|Fee Based'!E35 -> Business Hours | E35: ='Calc|Fee Based'!D35 -> Auxiliary metering services | F35: ='Calc|Fee Based'!F35 -> Opex | G35: ='Calc|Fee Based'!G35 -> Fee Based | H35: ='Calc|Fee Based'!H35 -> 637.0002252 | I35: =IF(AND(B35='Calc|Fee Based'!B35,C35='Calc|Fee Based'!C35,D35='Calc|Fee Based'!E35,E35='Calc|Fee Based'!D35, F35='Calc|Fee Based'!F35,G35='Calc|Fee Based'!G35, H35='Calc|Fee Based'!H35),0,1) -> 0
A36: 25 | B36: ='Calc|Fee Based'!B36 -> MCTK | C36: ='Calc|Fee Based'!C36 -> Meter Alteration AH | D36: ='Calc|Fee Based'!E36 -> After Hours | E36: ='Calc|Fee Based'!D36 -> Auxiliary metering services | F36: ='Calc|Fee Based'!F36 -> Opex | G36: ='Calc|Fee Based'!G36 -> Fee Based | H36: ='Calc|Fee Based'!H36 -> 988.3391426 | I36: =IF(AND(B36='Calc|Fee Based'!B36,C36='Calc|Fee Based'!C36,D36='Calc|Fee Based'!E36,E36='Calc|Fee Based'!D36, F36='Calc|Fee Based'!F36,G36='Calc|Fee Based'!G36, H36='Calc|Fee Based'!H36),0,1) -> 0
A37: 26 | B37: ='Calc|Fee Based'!B37 -> SPRDRM | C37: ='Calc|Fee Based'!C37 -> Remote special meter read | D37: ='Calc|Fee Based'!E37 -> Business Hours | E37: ='Calc|Fee Based'!D37 -> Auxiliary metering services | F37: ='Calc|Fee Based'!F37 -> Opex | G37: ='Calc|Fee Based'!G37 -> Fee Based | H37: ='Calc|Fee Based'!H37 -> 0 | I37: =IF(AND(B37='Calc|Fee Based'!B37,C37='Calc|Fee Based'!C37,D37='Calc|Fee Based'!E37,E37='Calc|Fee Based'!D37, F37='Calc|Fee Based'!F37,G37='Calc|Fee Based'!G37, H37='Calc|Fee Based'!H37),0,1) -> 0
A38: 27 | B38: ='Calc|Fee Based'!B38 -> MECFRM | C38: ='Calc|Fee Based'!C38 -> Remote meter reconfiguration | D38: ='Calc|Fee Based'!E38 -> Business Hours | E38: ='Calc|Fee Based'!D38 -> Auxiliary metering services | F38: ='Calc|Fee Based'!F38 -> Opex | G38: ='Calc|Fee Based'!G38 -> Fee Based | H38: ='Calc|Fee Based'!H38 -> 65.77015975 | I38: =IF(AND(B38='Calc|Fee Based'!B38,C38='Calc|Fee Based'!C38,D38='Calc|Fee Based'!E38,E38='Calc|Fee Based'!D38, F38='Calc|Fee Based'!F38,G38='Calc|Fee Based'!G38, H38='Calc|Fee Based'!H38),0,1) -> 0
A39: 28 | B39: ='Calc|Fee Based'!B39 -> SPRD | C39: ='Calc|Fee Based'!C39 -> Field-based special meter reads | D39: ='Calc|Fee Based'!E39 -> Business Hours | E39: ='Calc|Fee Based'!D39 -> Auxiliary metering services | F39: ='Calc|Fee Based'!F39 -> Opex | G39: ='Calc|Fee Based'!G39 -> Fee Based | H39: ='Calc|Fee Based'!H39 -> 199.8300938 | I39: =IF(AND(B39='Calc|Fee Based'!B39,C39='Calc|Fee Based'!C39,D39='Calc|Fee Based'!E39,E39='Calc|Fee Based'!D39, F39='Calc|Fee Based'!F39,G39='Calc|Fee Based'!G39, H39='Calc|Fee Based'!H39),0,1) -> 0
A40: 29 | B40: ='Calc|Fee Based'!B40 -> MTAL | C40: ='Calc|Fee Based'!C40 -> Meter test of types 5, 6 and AMI smart metering installations BH | D40: ='Calc|Fee Based'!E40 -> Business Hours | E40: ='Calc|Fee Based'!D40 -> Auxiliary metering services | F40: ='Calc|Fee Based'!F40 -> Opex | G40: ='Calc|Fee Based'!G40 -> Fee Based | H40: ='Calc|Fee Based'!H40 -> 1336.08484 | I40: =IF(AND(B40='Calc|Fee Based'!B40,C40='Calc|Fee Based'!C40,D40='Calc|Fee Based'!E40,E40='Calc|Fee Based'!D40, F40='Calc|Fee Based'!F40,G40='Calc|Fee Based'!G40, H40='Calc|Fee Based'!H40),0,1) -> 0
A41: 30 | B41: ='Calc|Fee Based'!B41 -> MTAL | C41: ='Calc|Fee Based'!C41 -> Meter test of types 5, 6 and AMI smart metering installations AH | D41: ='Calc|Fee Based'!E41 -> After Hours | E41: ='Calc|Fee Based'!D41 -> Auxiliary metering services | F41: ='Calc|Fee Based'!F41 -> Opex | G41: ='Calc|Fee Based'!G41 -> Fee Based | H41: ='Calc|Fee Based'!H41 -> 2146.866957 | I41: =IF(AND(B41='Calc|Fee Based'!B41,C41='Calc|Fee Based'!C41,D41='Calc|Fee Based'!E41,E41='Calc|Fee Based'!D41, F41='Calc|Fee Based'!F41,G41='Calc|Fee Based'!G41, H41='Calc|Fee Based'!H41),0,1) -> 0
A42: 31 | B42: ='Calc|Fee Based'!B42 -> MDCH | C42: ='Calc|Fee Based'!C42 -> Type 7 metering | D42: ='Calc|Fee Based'!E42 -> Business Hours | E42: ='Calc|Fee Based'!D42 -> Type 7 metering services | F42: ='Calc|Fee Based'!F42 -> Opex | G42: ='Calc|Fee Based'!G42 -> Fee Based | H42: ='Calc|Fee Based'!H42 -> 0 | I42: =IF(AND(B42='Calc|Fee Based'!B42,C42='Calc|Fee Based'!C42,D42='Calc|Fee Based'!E42,E42='Calc|Fee Based'!D42, F42='Calc|Fee Based'!F42,G42='Calc|Fee Based'!G42, H42='Calc|Fee Based'!H42),0,1) -> 0
A43: 32 | B43: ='Calc|Fee Based'!B43 -> NCUM | C43: ='Calc|Fee Based'!C43 -> Non-contestable unmetered loads | D43: ='Calc|Fee Based'!E43 -> Business Hours | E43: ='Calc|Fee Based'!D43 -> Auxiliary metering services | F43: ='Calc|Fee Based'!F43 -> Capex | G43: ='Calc|Fee Based'!G43 -> Fee Based | H43: ='Calc|Fee Based'!H43 -> 0 | I43: =IF(AND(B43='Calc|Fee Based'!B43,C43='Calc|Fee Based'!C43,D43='Calc|Fee Based'!E43,E43='Calc|Fee Based'!D43, F43='Calc|Fee Based'!F43,G43='Calc|Fee Based'!G43, H43='Calc|Fee Based'!H43),0,1) -> 0
A44: 33 | B44: ='Calc|Fee Based'!B44 -> WSVR | C44: ='Calc|Fee Based'!C44 -> Wasted site attendance BH | D44: ='Calc|Fee Based'!E44 -> Business Hours | E44: ='Calc|Fee Based'!D44 -> Connection service | F44: ='Calc|Fee Based'!F44 -> Opex | G44: ='Calc|Fee Based'!G44 -> Fee Based | H44: ='Calc|Fee Based'!H44 -> 637.0002252 | I44: =IF(AND(B44='Calc|Fee Based'!B44,C44='Calc|Fee Based'!C44,D44='Calc|Fee Based'!E44,E44='Calc|Fee Based'!D44, F44='Calc|Fee Based'!F44,G44='Calc|Fee Based'!G44, H44='Calc|Fee Based'!H44),0,1) -> 0
A45: 34 | B45: ='Calc|Fee Based'!B45 -> WSVR | C45: ='Calc|Fee Based'!C45 -> Wasted site attendance AH | D45: ='Calc|Fee Based'!E45 -> After Hours | E45: ='Calc|Fee Based'!D45 -> Connection service | F45: ='Calc|Fee Based'!F45 -> Opex | G45: ='Calc|Fee Based'!G45 -> Fee Based | H45: ='Calc|Fee Based'!H45 -> 988.3391426 | I45: =IF(AND(B45='Calc|Fee Based'!B45,C45='Calc|Fee Based'!C45,D45='Calc|Fee Based'!E45,E45='Calc|Fee Based'!D45, F45='Calc|Fee Based'!F45,G45='Calc|Fee Based'!G45, H45='Calc|Fee Based'!H45),0,1) -> 0
A46: 35 | B46: ='Calc|Fee Based'!B46 -> RTK3 | C46: ='Calc|Fee Based'!C46 -> Replacement of 3-phase overhead service line BH | D46: ='Calc|Fee Based'!E46 -> Business Hours | E46: ='Calc|Fee Based'!D46 -> Connection service | F46: ='Calc|Fee Based'!F46 -> Capex | G46: ='Calc|Fee Based'!G46 -> Fee Based | H46: ='Calc|Fee Based'!H46 -> 970.8779713 | I46: =IF(AND(B46='Calc|Fee Based'!B46,C46='Calc|Fee Based'!C46,D46='Calc|Fee Based'!E46,E46='Calc|Fee Based'!D46, F46='Calc|Fee Based'!F46,G46='Calc|Fee Based'!G46, H46='Calc|Fee Based'!H46),0,1) -> 0
A47: 36 | B47: ='Calc|Fee Based'!B47 -> RTK3 | C47: ='Calc|Fee Based'!C47 -> Replacement of 3-phase overhead service line AH | D47: ='Calc|Fee Based'!E47 -> After Hours | E47: ='Calc|Fee Based'!D47 -> Connection service | F47: ='Calc|Fee Based'!F47 -> Capex | G47: ='Calc|Fee Based'!G47 -> Fee Based | H47: ='Calc|Fee Based'!H47 -> 1328.796706 | I47: =IF(AND(B47='Calc|Fee Based'!B47,C47='Calc|Fee Based'!C47,D47='Calc|Fee Based'!E47,E47='Calc|Fee Based'!D47, F47='Calc|Fee Based'!F47,G47='Calc|Fee Based'!G47, H47='Calc|Fee Based'!H47),0,1) -> 0
A48: 37 | B48: ='Calc|Fee Based'!B48 ->  | C48: ='Calc|Fee Based'!C48 ->  | D48: ='Calc|Fee Based'!E48 ->  | E48: ='Calc|Fee Based'!D48 ->  | F48: ='Calc|Fee Based'!F48 ->  | G48: ='Calc|Fee Based'!G48 ->  | H48: ='Calc|Fee Based'!H48 -> 0 | I48: =IF(AND(B48='Calc|Fee Based'!B48,C48='Calc|Fee Based'!C48,D48='Calc|Fee Based'!E48,E48='Calc|Fee Based'!D48, F48='Calc|Fee Based'!F48,G48='Calc|Fee Based'!G48, H48='Calc|Fee Based'!H48),0,1) -> 0
A49: 38 | B49: ='Calc|Fee Based'!B49 ->  | C49: ='Calc|Fee Based'!C49 ->  | D49: ='Calc|Fee Based'!E49 ->  | E49: ='Calc|Fee Based'!D49 ->  | F49: ='Calc|Fee Based'!F49 ->  | G49: ='Calc|Fee Based'!G49 ->  | H49: ='Calc|Fee Based'!H49 -> 0 | I49: =IF(AND(B49='Calc|Fee Based'!B49,C49='Calc|Fee Based'!C49,D49='Calc|Fee Based'!E49,E49='Calc|Fee Based'!D49, F49='Calc|Fee Based'!F49,G49='Calc|Fee Based'!G49, H49='Calc|Fee Based'!H49),0,1) -> 0
A50: 39 | B50: ='Calc|Fee Based'!B50 ->  | C50: ='Calc|Fee Based'!C50 ->  | D50: ='Calc|Fee Based'!E50 ->  | E50: ='Calc|Fee Based'!D50 ->  | F50: ='Calc|Fee Based'!F50 ->  | G50: ='Calc|Fee Based'!G50 ->  | H50: ='Calc|Fee Based'!H50 -> 0 | I50: =IF(AND(B50='Calc|Fee Based'!B50,C50='Calc|Fee Based'!C50,D50='Calc|Fee Based'!E50,E50='Calc|Fee Based'!D50, F50='Calc|Fee Based'!F50,G50='Calc|Fee Based'!G50, H50='Calc|Fee Based'!H50),0,1) -> 0
A51: 40 | B51: ='Calc|Fee Based'!B51 ->  | C51: ='Calc|Fee Based'!C51 ->  | D51: ='Calc|Fee Based'!E51 ->  | E51: ='Calc|Fee Based'!D51 ->  | F51: ='Calc|Fee Based'!F51 ->  | G51: ='Calc|Fee Based'!G51 ->  | H51: ='Calc|Fee Based'!H51 -> 0 | I51: =IF(AND(B51='Calc|Fee Based'!B51,C51='Calc|Fee Based'!C51,D51='Calc|Fee Based'!E51,E51='Calc|Fee Based'!D51, F51='Calc|Fee Based'!F51,G51='Calc|Fee Based'!G51, H51='Calc|Fee Based'!H51),0,1) -> 0
A52: 41 | B52: ='Calc|Fee Based'!B52 ->  | C52: ='Calc|Fee Based'!C52 ->  | D52: ='Calc|Fee Based'!E52 ->  | E52: ='Calc|Fee Based'!D52 ->  | F52: ='Calc|Fee Based'!F52 ->  | G52: ='Calc|Fee Based'!G52 ->  | H52: ='Calc|Fee Based'!H52 -> 0 | I52: =IF(AND(B52='Calc|Fee Based'!B52,C52='Calc|Fee Based'!C52,D52='Calc|Fee Based'!E52,E52='Calc|Fee Based'!D52, F52='Calc|Fee Based'!F52,G52='Calc|Fee Based'!G52, H52='Calc|Fee Based'!H52),0,1) -> 0
A53: 42 | B53: ='Calc|Fee Based'!B53 ->  | C53: ='Calc|Fee Based'!C53 ->  | D53: ='Calc|Fee Based'!E53 ->  | E53: ='Calc|Fee Based'!D53 ->  | F53: ='Calc|Fee Based'!F53 ->  | G53: ='Calc|Fee Based'!G53 ->  | H53: ='Calc|Fee Based'!H53 -> 0 | I53: =IF(AND(B53='Calc|Fee Based'!B53,C53='Calc|Fee Based'!C53,D53='Calc|Fee Based'!E53,E53='Calc|Fee Based'!D53, F53='Calc|Fee Based'!F53,G53='Calc|Fee Based'!G53, H53='Calc|Fee Based'!H53),0,1) -> 0
A54: 43 | B54: ='Calc|Fee Based'!B54 ->  | C54: ='Calc|Fee Based'!C54 ->  | D54: ='Calc|Fee Based'!E54 ->  | E54: ='Calc|Fee Based'!D54 ->  | F54: ='Calc|Fee Based'!F54 ->  | G54: ='Calc|Fee Based'!G54 ->  | H54: ='Calc|Fee Based'!H54 -> 0 | I54: =IF(AND(B54='Calc|Fee Based'!B54,C54='Calc|Fee Based'!C54,D54='Calc|Fee Based'!E54,E54='Calc|Fee Based'!D54, F54='Calc|Fee Based'!F54,G54='Calc|Fee Based'!G54, H54='Calc|Fee Based'!H54),0,1) -> 0
A55: 44 | B55: ='Calc|Fee Based'!B55 ->  | C55: ='Calc|Fee Based'!C55 ->  | D55: ='Calc|Fee Based'!E55 ->  | E55: ='Calc|Fee Based'!D55 ->  | F55: ='Calc|Fee Based'!F55 ->  | G55: ='Calc|Fee Based'!G55 ->  | H55: ='Calc|Fee Based'!H55 -> 0 | I55: =IF(AND(B55='Calc|Fee Based'!B55,C55='Calc|Fee Based'!C55,D55='Calc|Fee Based'!E55,E55='Calc|Fee Based'!D55, F55='Calc|Fee Based'!F55,G55='Calc|Fee Based'!G55, H55='Calc|Fee Based'!H55),0,1) -> 0
A56: 45 | B56: ='Calc|Fee Based'!B56 ->  | C56: ='Calc|Fee Based'!C56 ->  | D56: ='Calc|Fee Based'!E56 ->  | E56: ='Calc|Fee Based'!D56 ->  | F56: ='Calc|Fee Based'!F56 ->  | G56: ='Calc|Fee Based'!G56 ->  | H56: ='Calc|Fee Based'!H56 -> 0 | I56: =IF(AND(B56='Calc|Fee Based'!B56,C56='Calc|Fee Based'!C56,D56='Calc|Fee Based'!E56,E56='Calc|Fee Based'!D56, F56='Calc|Fee Based'!F56,G56='Calc|Fee Based'!G56, H56='Calc|Fee Based'!H56),0,1) -> 0
A57: 46 | B57: ='Calc|Fee Based'!B57 ->  | C57: ='Calc|Fee Based'!C57 ->  | D57: ='Calc|Fee Based'!E57 ->  | E57: ='Calc|Fee Based'!D57 ->  | F57: ='Calc|Fee Based'!F57 ->  | G57: ='Calc|Fee Based'!G57 ->  | H57: ='Calc|Fee Based'!H57 -> 0 | I57: =IF(AND(B57='Calc|Fee Based'!B57,C57='Calc|Fee Based'!C57,D57='Calc|Fee Based'!E57,E57='Calc|Fee Based'!D57, F57='Calc|Fee Based'!F57,G57='Calc|Fee Based'!G57, H57='Calc|Fee Based'!H57),0,1) -> 0
A58: 47 | B58: ='Calc|Fee Based'!B58 ->  | C58: ='Calc|Fee Based'!C58 ->  | D58: ='Calc|Fee Based'!E58 ->  | E58: ='Calc|Fee Based'!D58 ->  | F58: ='Calc|Fee Based'!F58 ->  | G58: ='Calc|Fee Based'!G58 ->  | H58: ='Calc|Fee Based'!H58 -> 0 | I58: =IF(AND(B58='Calc|Fee Based'!B58,C58='Calc|Fee Based'!C58,D58='Calc|Fee Based'!E58,E58='Calc|Fee Based'!D58, F58='Calc|Fee Based'!F58,G58='Calc|Fee Based'!G58, H58='Calc|Fee Based'!H58),0,1) -> 0
A59: 48 | B59: ='Calc|Fee Based'!B59 ->  | C59: ='Calc|Fee Based'!C59 ->  | D59: ='Calc|Fee Based'!E59 ->  | E59: ='Calc|Fee Based'!D59 ->  | F59: ='Calc|Fee Based'!F59 ->  | G59: ='Calc|Fee Based'!G59 ->  | H59: ='Calc|Fee Based'!H59 -> 0 | I59: =IF(AND(B59='Calc|Fee Based'!B59,C59='Calc|Fee Based'!C59,D59='Calc|Fee Based'!E59,E59='Calc|Fee Based'!D59, F59='Calc|Fee Based'!F59,G59='Calc|Fee Based'!G59, H59='Calc|Fee Based'!H59),0,1) -> 0
A60: 49 | B60: ='Calc|Fee Based'!B60 ->  | C60: ='Calc|Fee Based'!C60 ->  | D60: ='Calc|Fee Based'!E60 ->  | E60: ='Calc|Fee Based'!D60 ->  | F60: ='Calc|Fee Based'!F60 ->  | G60: ='Calc|Fee Based'!G60 ->  | H60: ='Calc|Fee Based'!H60 -> 0 | I60: =IF(AND(B60='Calc|Fee Based'!B60,C60='Calc|Fee Based'!C60,D60='Calc|Fee Based'!E60,E60='Calc|Fee Based'!D60, F60='Calc|Fee Based'!F60,G60='Calc|Fee Based'!G60, H60='Calc|Fee Based'!H60),0,1) -> 0
A61: 50 | B61: ='Calc|Fee Based'!B61 ->  | C61: ='Calc|Fee Based'!C61 ->  | D61: ='Calc|Fee Based'!E61 ->  | E61: ='Calc|Fee Based'!D61 ->  | F61: ='Calc|Fee Based'!F61 ->  | G61: ='Calc|Fee Based'!G61 ->  | H61: ='Calc|Fee Based'!H61 -> 0 | I61: =IF(AND(B61='Calc|Fee Based'!B61,C61='Calc|Fee Based'!C61,D61='Calc|Fee Based'!E61,E61='Calc|Fee Based'!D61, F61='Calc|Fee Based'!F61,G61='Calc|Fee Based'!G61, H61='Calc|Fee Based'!H61),0,1) -> 0
A62: 51 | B62: ='Calc|Fee Based'!B62 ->  | C62: ='Calc|Fee Based'!C62 ->  | D62: ='Calc|Fee Based'!E62 ->  | E62: ='Calc|Fee Based'!D62 ->  | F62: ='Calc|Fee Based'!F62 ->  | G62: ='Calc|Fee Based'!G62 ->  | H62: ='Calc|Fee Based'!H62 -> 0 | I62: =IF(AND(B62='Calc|Fee Based'!B62,C62='Calc|Fee Based'!C62,D62='Calc|Fee Based'!E62,E62='Calc|Fee Based'!D62, F62='Calc|Fee Based'!F62,G62='Calc|Fee Based'!G62, H62='Calc|Fee Based'!H62),0,1) -> 0
A63: 52 | B63: ='Calc|Fee Based'!B63 ->  | C63: ='Calc|Fee Based'!C63 ->  | D63: ='Calc|Fee Based'!E63 ->  | E63: ='Calc|Fee Based'!D63 ->  | F63: ='Calc|Fee Based'!F63 ->  | G63: ='Calc|Fee Based'!G63 ->  | H63: ='Calc|Fee Based'!H63 -> 0 | I63: =IF(AND(B63='Calc|Fee Based'!B63,C63='Calc|Fee Based'!C63,D63='Calc|Fee Based'!E63,E63='Calc|Fee Based'!D63, F63='Calc|Fee Based'!F63,G63='Calc|Fee Based'!G63, H63='Calc|Fee Based'!H63),0,1) -> 0
A64: 53 | B64: ='Calc|Fee Based'!B64 ->  | C64: ='Calc|Fee Based'!C64 ->  | D64: ='Calc|Fee Based'!E64 ->  | E64: ='Calc|Fee Based'!D64 ->  | F64: ='Calc|Fee Based'!F64 ->  | G64: ='Calc|Fee Based'!G64 ->  | H64: ='Calc|Fee Based'!H64 -> 0 | I64: =IF(AND(B64='Calc|Fee Based'!B64,C64='Calc|Fee Based'!C64,D64='Calc|Fee Based'!E64,E64='Calc|Fee Based'!D64, F64='Calc|Fee Based'!F64,G64='Calc|Fee Based'!G64, H64='Calc|Fee Based'!H64),0,1) -> 0
A65: 54 | B65: ='Calc|Fee Based'!B65 ->  | C65: ='Calc|Fee Based'!C65 ->  | D65: ='Calc|Fee Based'!E65 ->  | E65: ='Calc|Fee Based'!D65 ->  | F65: ='Calc|Fee Based'!F65 ->  | G65: ='Calc|Fee Based'!G65 ->  | H65: ='Calc|Fee Based'!H65 -> 0 | I65: =IF(AND(B65='Calc|Fee Based'!B65,C65='Calc|Fee Based'!C65,D65='Calc|Fee Based'!E65,E65='Calc|Fee Based'!D65, F65='Calc|Fee Based'!F65,G65='Calc|Fee Based'!G65, H65='Calc|Fee Based'!H65),0,1) -> 0
A66: 55 | B66: ='Calc|Fee Based'!B66 ->  | C66: ='Calc|Fee Based'!C66 ->  | D66: ='Calc|Fee Based'!E66 ->  | E66: ='Calc|Fee Based'!D66 ->  | F66: ='Calc|Fee Based'!F66 ->  | G66: ='Calc|Fee Based'!G66 ->  | H66: ='Calc|Fee Based'!H66 -> 0 | I66: =IF(AND(B66='Calc|Fee Based'!B66,C66='Calc|Fee Based'!C66,D66='Calc|Fee Based'!E66,E66='Calc|Fee Based'!D66, F66='Calc|Fee Based'!F66,G66='Calc|Fee Based'!G66, H66='Calc|Fee Based'!H66),0,1) -> 0
A67: 56 | B67: ='Calc|Fee Based'!B67 ->  | C67: ='Calc|Fee Based'!C67 ->  | D67: ='Calc|Fee Based'!E67 ->  | E67: ='Calc|Fee Based'!D67 ->  | F67: ='Calc|Fee Based'!F67 ->  | G67: ='Calc|Fee Based'!G67 ->  | H67: ='Calc|Fee Based'!H67 -> 0 | I67: =IF(AND(B67='Calc|Fee Based'!B67,C67='Calc|Fee Based'!C67,D67='Calc|Fee Based'!E67,E67='Calc|Fee Based'!D67, F67='Calc|Fee Based'!F67,G67='Calc|Fee Based'!G67, H67='Calc|Fee Based'!H67),0,1) -> 0
A68: 57 | B68: ='Calc|Fee Based'!B68 ->  | C68: ='Calc|Fee Based'!C68 ->  | D68: ='Calc|Fee Based'!E68 ->  | E68: ='Calc|Fee Based'!D68 ->  | F68: ='Calc|Fee Based'!F68 ->  | G68: ='Calc|Fee Based'!G68 ->  | H68: ='Calc|Fee Based'!H68 -> 0 | I68: =IF(AND(B68='Calc|Fee Based'!B68,C68='Calc|Fee Based'!C68,D68='Calc|Fee Based'!E68,E68='Calc|Fee Based'!D68, F68='Calc|Fee Based'!F68,G68='Calc|Fee Based'!G68, H68='Calc|Fee Based'!H68),0,1) -> 0
A69: 58 | B69: ='Calc|Fee Based'!B69 ->  | C69: ='Calc|Fee Based'!C69 ->  | D69: ='Calc|Fee Based'!E69 ->  | E69: ='Calc|Fee Based'!D69 ->  | F69: ='Calc|Fee Based'!F69 ->  | G69: ='Calc|Fee Based'!G69 ->  | H69: ='Calc|Fee Based'!H69 -> 0 | I69: =IF(AND(B69='Calc|Fee Based'!B69,C69='Calc|Fee Based'!C69,D69='Calc|Fee Based'!E69,E69='Calc|Fee Based'!D69, F69='Calc|Fee Based'!F69,G69='Calc|Fee Based'!G69, H69='Calc|Fee Based'!H69),0,1) -> 0
A70: 59 | B70: ='Calc|Fee Based'!B70 ->  | C70: ='Calc|Fee Based'!C70 ->  | D70: ='Calc|Fee Based'!E70 ->  | E70: ='Calc|Fee Based'!D70 ->  | F70: ='Calc|Fee Based'!F70 ->  | G70: ='Calc|Fee Based'!G70 ->  | H70: ='Calc|Fee Based'!H70 -> 0 | I70: =IF(AND(B70='Calc|Fee Based'!B70,C70='Calc|Fee Based'!C70,D70='Calc|Fee Based'!E70,E70='Calc|Fee Based'!D70, F70='Calc|Fee Based'!F70,G70='Calc|Fee Based'!G70, H70='Calc|Fee Based'!H70),0,1) -> 0
A71: 60 | B71: ='Calc|Fee Based'!B71 ->  | C71: ='Calc|Fee Based'!C71 ->  | D71: ='Calc|Fee Based'!E71 ->  | E71: ='Calc|Fee Based'!D71 ->  | F71: ='Calc|Fee Based'!F71 ->  | G71: ='Calc|Fee Based'!G71 ->  | H71: ='Calc|Fee Based'!H71 -> 0 | I71: =IF(AND(B71='Calc|Fee Based'!B71,C71='Calc|Fee Based'!C71,D71='Calc|Fee Based'!E71,E71='Calc|Fee Based'!D71, F71='Calc|Fee Based'!F71,G71='Calc|Fee Based'!G71, H71='Calc|Fee Based'!H71),0,1) -> 0

Sheet Output|Quoted
B1: =Index!B1 -> Jemena Electricity Networks – Alternative Control Services Forecast model | C1: Key: | D1: Input | F1: Sheet Validation | G1: ='Model Validation'!C9 -> 0
B2: =MID(CELL("filename",A1),FIND("]",CELL("filename",A1))+1,255) -> Output|Quoted | D2: Formula
D4: =IF(D7='Input|Escalations'!J27,0,1) -> 0 | E4: =IF(E7='Input|Escalations'!K27,0,1) -> 0 | F4: =IF(F7='Input|Escalations'!L27,0,1) -> 0 | G4: =IF(G7='Input|Escalations'!M27,0,1) -> 0
B5: =IFERROR("2.1 X-factors for each year of "&'Input|Setup'!$E$11&" to "&'Input|Setup'!$E$15&" regulatory period, (per cent)","") -> 2.1 X-factors for each year of 2026-27 to 2030-31 regulatory period, (per cent) | H5: =IF(SUM(D4:G4)=0,0,1) -> 0
C6: ='Output|Fee Based'!C6 -> 2026-27 | D6: ='Output|Fee Based'!D6 -> 2027-28 | E6: ='Output|Fee Based'!E6 -> 2028-29 | F6: ='Output|Fee Based'!F6 -> 2029-30 | G6: ='Output|Fee Based'!G6 -> 2030-31
D7: ='Output|Fee Based'!D7 -> -0.008358355629 | E7: ='Output|Fee Based'!E7 -> -0.01025499053 | F7: ='Output|Fee Based'!F7 -> -0.01224018808 | G7: ='Output|Fee Based'!G7 -> -0.01148235304
I9: For AER only
B10: =IFERROR("2.2 Labour rates for "&'Input|Setup'!$E$11&", ($"&'Input|Setup'!$E$8&")","") -> 2.2 Labour rates for 2026-27, ($2026-27) | I10: AER maximum rates | J10: AER decision
B11: Quoted service - Labour rates | C11: Hours | D11: Hourly rate ($) | I11: Hourly rate ($) | J11: Hourly rate ($)
A12: 1 | B12: ='Calc|Labour Rates'!B10 -> Administrative Officer | C12: ='Calc|Labour Rates'!C10 -> Business hours | D12: =IF('Calc|Labour Rates'!$D10="No","NA",IFERROR(LOOKUP(2, 1/('Calc|Labour Rates'!$B$10:$B$29='Output|Quoted'!$B12)/('Calc|Labour Rates'!$C$10:$C$29='Output|Quoted'!$C12),'Calc|Labour Rates'!$F$10:$F$29),0)) -> 121.4038624 | G12: =IF(OR($D12="NA",AND(B12='Calc|Labour Rates'!B10,'Output|Quoted'!C12='Calc|Labour Rates'!C10,'Output|Quoted'!D12='Calc|Labour Rates'!F10)),0,1) -> 0 | I12: 72 | J12: =MIN($I12,$D12) -> 72
A13: =IFERROR(A12+1,"") -> 2 | B13: ='Calc|Labour Rates'!B11 -> Field Worker | C13: ='Calc|Labour Rates'!C11 -> Business hours | D13: =IF('Calc|Labour Rates'!$D11="No","NA",IFERROR(LOOKUP(2, 1/('Calc|Labour Rates'!$B$10:$B$29='Output|Quoted'!$B13)/('Calc|Labour Rates'!$C$10:$C$29='Output|Quoted'!$C13),'Calc|Labour Rates'!$F$10:$F$29),0)) -> 210.8874625 | G13: =IF(OR($D13="NA",AND(B13='Calc|Labour Rates'!B11,'Output|Quoted'!C13='Calc|Labour Rates'!C11,'Output|Quoted'!D13='Calc|Labour Rates'!F11)),0,1) -> 0 | I13: 150 | J13: 150
A14: =IFERROR(A13+1,"") -> 3 | B14: ='Calc|Labour Rates'!B12 -> Technical Specialist | C14: ='Calc|Labour Rates'!C12 -> Business hours | D14: =IF('Calc|Labour Rates'!$D12="No","NA",IFERROR(LOOKUP(2, 1/('Calc|Labour Rates'!$B$10:$B$29='Output|Quoted'!$B14)/('Calc|Labour Rates'!$C$10:$C$29='Output|Quoted'!$C14),'Calc|Labour Rates'!$F$10:$F$29),0)) -> 225.0568414 | G14: =IF(OR($D14="NA",AND(B14='Calc|Labour Rates'!B12,'Output|Quoted'!C14='Calc|Labour Rates'!C12,'Output|Quoted'!D14='Calc|Labour Rates'!F12)),0,1) -> 0 | I14: 150 | J14: 150
A15: 4 | B15: ='Calc|Labour Rates'!B13 -> Engineer | C15: ='Calc|Labour Rates'!C13 -> Business hours | D15: =IF('Calc|Labour Rates'!$D13="No","NA",IFERROR(LOOKUP(2, 1/('Calc|Labour Rates'!$B$10:$B$29='Output|Quoted'!$B15)/('Calc|Labour Rates'!$C$10:$C$29='Output|Quoted'!$C15),'Calc|Labour Rates'!$F$10:$F$29),0)) -> 271.8290229 | G15: =IF(OR($D15="NA",AND(B15='Calc|Labour Rates'!B13,'Output|Quoted'!C15='Calc|Labour Rates'!C13,'Output|Quoted'!D15='Calc|Labour Rates'!F13)),0,1) -> 0 | I15: 205 | J15: 205
A16: 5 | B16: ='Calc|Labour Rates'!B14 -> Senior Engineer | C16: ='Calc|Labour Rates'!C14 -> Business hours | D16: =IF('Calc|Labour Rates'!$D14="No","NA",IFERROR(LOOKUP(2, 1/('Calc|Labour Rates'!$B$10:$B$29='Output|Quoted'!$B16)/('Calc|Labour Rates'!$C$10:$C$29='Output|Quoted'!$C16),'Calc|Labour Rates'!$F$10:$F$29),0)) -> 326.1948275 | G16: =IF(OR($D16="NA",AND(B16='Calc|Labour Rates'!B14,'Output|Quoted'!C16='Calc|Labour Rates'!C14,'Output|Quoted'!D16='Calc|Labour Rates'!F14)),0,1) -> 0 | I16: 300 | J16: 300
A17: 6 | B17: ='Calc|Labour Rates'!B15 -> Administrative Officer | C17: ='Calc|Labour Rates'!C15 -> After Hours | D17: =IF('Calc|Labour Rates'!$D15="No","NA",IFERROR(LOOKUP(2, 1/('Calc|Labour Rates'!$B$10:$B$29='Output|Quoted'!$B17)/('Calc|Labour Rates'!$C$10:$C$29='Output|Quoted'!$C17),'Calc|Labour Rates'!$F$10:$F$29),0)) -> NA | G17: =IF(OR($D17="NA",AND(B17='Calc|Labour Rates'!B15,'Output|Quoted'!C17='Calc|Labour Rates'!C15,'Output|Quoted'!D17='Calc|Labour Rates'!F15)),0,1) -> 0 | I17: =I12*1.69 -> 121.68 | J17: 121.68
A18: 7 | B18: ='Calc|Labour Rates'!B16 -> Field Worker | C18: ='Calc|Labour Rates'!C16 -> After Hours | D18: =IF('Calc|Labour Rates'!$D16="No","NA",IFERROR(LOOKUP(2, 1/('Calc|Labour Rates'!$B$10:$B$29='Output|Quoted'!$B18)/('Calc|Labour Rates'!$C$10:$C$29='Output|Quoted'!$C18),'Calc|Labour Rates'!$F$10:$F$29),0)) -> 370.525541 | G18: =IF(OR($D18="NA",AND(B18='Calc|Labour Rates'!B16,'Output|Quoted'!C18='Calc|Labour Rates'!C16,'Output|Quoted'!D18='Calc|Labour Rates'!F16)),0,1) -> 0 | I18: =I13*1.69 -> 253.5 | J18: 253.5
A19: 8 | B19: ='Calc|Labour Rates'!B17 -> Technical Specialist | C19: ='Calc|Labour Rates'!C17 -> After Hours | D19: =IF('Calc|Labour Rates'!$D17="No","NA",IFERROR(LOOKUP(2, 1/('Calc|Labour Rates'!$B$10:$B$29='Output|Quoted'!$B19)/('Calc|Labour Rates'!$C$10:$C$29='Output|Quoted'!$C19),'Calc|Labour Rates'!$F$10:$F$29),0)) -> NA | G19: =IF(OR($D19="NA",AND(B19='Calc|Labour Rates'!B17,'Output|Quoted'!C19='Calc|Labour Rates'!C17,'Output|Quoted'!D19='Calc|Labour Rates'!F17)),0,1) -> 0 | I19: =I14*1.69 -> 253.5 | J19: 253.5
A20: 9 | B20: ='Calc|Labour Rates'!B18 -> Engineer | C20: ='Calc|Labour Rates'!C18 -> After Hours | D20: =IF('Calc|Labour Rates'!$D18="No","NA",IFERROR(LOOKUP(2, 1/('Calc|Labour Rates'!$B$10:$B$29='Output|Quoted'!$B20)/('Calc|Labour Rates'!$C$10:$C$29='Output|Quoted'!$C20),'Calc|Labour Rates'!$F$10:$F$29),0)) -> NA | G20: =IF(OR($D20="NA",AND(B20='Calc|Labour Rates'!B18,'Output|Quoted'!C20='Calc|Labour Rates'!C18,'Output|Quoted'!D20='Calc|Labour Rates'!F18)),0,1) -> 0 | I20: =I15*1.69 -> 346.45 | J20: 346.45
A21: 10 | B21: ='Calc|Labour Rates'!B19 -> Senior Engineer | C21: ='Calc|Labour Rates'!C19 -> After Hours | D21: =IF('Calc|Labour Rates'!$D19="No","NA",IFERROR(LOOKUP(2, 1/('Calc|Labour Rates'!$B$10:$B$29='Output|Quoted'!$B21)/('Calc|Labour Rates'!$C$10:$C$29='Output|Quoted'!$C21),'Calc|Labour Rates'!$F$10:$F$29),0)) -> NA | G21: =IF(OR($D21="NA",AND(B21='Calc|Labour Rates'!B19,'Output|Quoted'!C21='Calc|Labour Rates'!C19,'Output|Quoted'!D21='Calc|Labour Rates'!F19)),0,1) -> 0 | I21: =I16*1.69 -> 507 | J21: 507
A22: 11 | B22: ='Calc|Labour Rates'!B20 ->  | C22: ='Calc|Labour Rates'!C20 ->  | D22: =IF('Calc|Labour Rates'!$D20="No","NA",IFERROR(LOOKUP(2, 1/('Calc|Labour Rates'!$B$10:$B$29='Output|Quoted'!$B22)/('Calc|Labour Rates'!$C$10:$C$29='Output|Quoted'!$C22),'Calc|Labour Rates'!$F$10:$F$29),0)) -> 0 | G22: =IF(OR($D22="NA",AND(B22='Calc|Labour Rates'!B20,'Output|Quoted'!C22='Calc|Labour Rates'!C20,'Output|Quoted'!D22='Calc|Labour Rates'!F20)),0,1) -> 0 | J22: 0
A23: 12 | B23: ='Calc|Labour Rates'!B21 ->  | C23: ='Calc|Labour Rates'!C21 ->  | D23: =IF('Calc|Labour Rates'!$D21="No","NA",IFERROR(LOOKUP(2, 1/('Calc|Labour Rates'!$B$10:$B$29='Output|Quoted'!$B23)/('Calc|Labour Rates'!$C$10:$C$29='Output|Quoted'!$C23),'Calc|Labour Rates'!$F$10:$F$29),0)) -> 0 | G23: =IF(OR($D23="NA",AND(B23='Calc|Labour Rates'!B21,'Output|Quoted'!C23='Calc|Labour Rates'!C21,'Output|Quoted'!D23='Calc|Labour Rates'!F21)),0,1) -> 0 | J23: 0
A24: 13 | B24: ='Calc|Labour Rates'!B22 ->  | C24: ='Calc|Labour Rates'!C22 ->  | D24: =IF('Calc|Labour Rates'!$D22="No","NA",IFERROR(LOOKUP(2, 1/('Calc|Labour Rates'!$B$10:$B$29='Output|Quoted'!$B24)/('Calc|Labour Rates'!$C$10:$C$29='Output|Quoted'!$C24),'Calc|Labour Rates'!$F$10:$F$29),0)) -> 0 | G24: =IF(OR($D24="NA",AND(B24='Calc|Labour Rates'!B22,'Output|Quoted'!C24='Calc|Labour Rates'!C22,'Output|Quoted'!D24='Calc|Labour Rates'!F22)),0,1) -> 0 | J24: 0
A25: 14 | B25: ='Calc|Labour Rates'!B23 ->  | C25: ='Calc|Labour Rates'!C23 ->  | D25: =IF('Calc|Labour Rates'!$D23="No","NA",IFERROR(LOOKUP(2, 1/('Calc|Labour Rates'!$B$10:$B$29='Output|Quoted'!$B25)/('Calc|Labour Rates'!$C$10:$C$29='Output|Quoted'!$C25),'Calc|Labour Rates'!$F$10:$F$29),0)) -> 0 | G25: =IF(OR($D25="NA",AND(B25='Calc|Labour Rates'!B23,'Output|Quoted'!C25='Calc|Labour Rates'!C23,'Output|Quoted'!D25='Calc|Labour Rates'!F23)),0,1) -> 0 | J25: 0
A26: 15 | B26: ='Calc|Labour Rates'!B24 ->  | C26: ='Calc|Labour Rates'!C24 ->  | D26: =IF('Calc|Labour Rates'!$D24="No","NA",IFERROR(LOOKUP(2, 1/('Calc|Labour Rates'!$B$10:$B$29='Output|Quoted'!$B26)/('Calc|Labour Rates'!$C$10:$C$29='Output|Quoted'!$C26),'Calc|Labour Rates'!$F$10:$F$29),0)) -> 0 | G26: =IF(OR($D26="NA",AND(B26='Calc|Labour Rates'!B24,'Output|Quoted'!C26='Calc|Labour Rates'!C24,'Output|Quoted'!D26='Calc|Labour Rates'!F24)),0,1) -> 0 | J26: 0
A27: 16 | B27: ='Calc|Labour Rates'!B25 ->  | C27: ='Calc|Labour Rates'!C25 ->  | D27: =IF('Calc|Labour Rates'!$D25="No","NA",IFERROR(LOOKUP(2, 1/('Calc|Labour Rates'!$B$10:$B$29='Output|Quoted'!$B27)/('Calc|Labour Rates'!$C$10:$C$29='Output|Quoted'!$C27),'Calc|Labour Rates'!$F$10:$F$29),0)) -> 0 | G27: =IF(OR($D27="NA",AND(B27='Calc|Labour Rates'!B25,'Output|Quoted'!C27='Calc|Labour Rates'!C25,'Output|Quoted'!D27='Calc|Labour Rates'!F25)),0,1) -> 0 | J27: 0
A28: 17 | B28: ='Calc|Labour Rates'!B26 ->  | C28: ='Calc|Labour Rates'!C26 ->  | D28: =IF('Calc|Labour Rates'!$D26="No","NA",IFERROR(LOOKUP(2, 1/('Calc|Labour Rates'!$B$10:$B$29='Output|Quoted'!$B28)/('Calc|Labour Rates'!$C$10:$C$29='Output|Quoted'!$C28),'Calc|Labour Rates'!$F$10:$F$29),0)) -> 0 | G28: =IF(OR($D28="NA",AND(B28='Calc|Labour Rates'!B26,'Output|Quoted'!C28='Calc|Labour Rates'!C26,'Output|Quoted'!D28='Calc|Labour Rates'!F26)),0,1) -> 0 | J28: 0
A29: 18 | B29: ='Calc|Labour Rates'!B27 ->  | C29: ='Calc|Labour Rates'!C27 ->  | D29: =IF('Calc|Labour Rates'!$D27="No","NA",IFERROR(LOOKUP(2, 1/('Calc|Labour Rates'!$B$10:$B$29='Output|Quoted'!$B29)/('Calc|Labour Rates'!$C$10:$C$29='Output|Quoted'!$C29),'Calc|Labour Rates'!$F$10:$F$29),0)) -> 0 | G29: =IF(OR($D29="NA",AND(B29='Calc|Labour Rates'!B27,'Output|Quoted'!C29='Calc|Labour Rates'!C27,'Output|Quoted'!D29='Calc|Labour Rates'!F27)),0,1) -> 0 | J29: 0
A30: 19 | B30: ='Calc|Labour Rates'!B28 ->  | C30: ='Calc|Labour Rates'!C28 ->  | D30: =IF('Calc|Labour Rates'!$D28="No","NA",IFERROR(LOOKUP(2, 1/('Calc|Labour Rates'!$B$10:$B$29='Output|Quoted'!$B30)/('Calc|Labour Rates'!$C$10:$C$29='Output|Quoted'!$C30),'Calc|Labour Rates'!$F$10:$F$29),0)) -> 0 | G30: =IF(OR($D30="NA",AND(B30='Calc|Labour Rates'!B28,'Output|Quoted'!C30='Calc|Labour Rates'!C28,'Output|Quoted'!D30='Calc|Labour Rates'!F28)),0,1) -> 0 | J30: 0
A31: 20 | B31: ='Calc|Labour Rates'!B29 ->  | C31: ='Calc|Labour Rates'!C29 ->  | D31: =IF('Calc|Labour Rates'!$D29="No","NA",IFERROR(LOOKUP(2, 1/('Calc|Labour Rates'!$B$10:$B$29='Output|Quoted'!$B31)/('Calc|Labour Rates'!$C$10:$C$29='Output|Quoted'!$C31),'Calc|Labour Rates'!$F$10:$F$29),0)) -> 0 | G31: =IF(OR($D31="NA",AND(B31='Calc|Labour Rates'!B29,'Output|Quoted'!C31='Calc|Labour Rates'!C29,'Output|Quoted'!D31='Calc|Labour Rates'!F29)),0,1) -> 0 | J31: 0
B34: =IFERROR("2.3 List of quoted services for "&'Input|Setup'!$E$11&" to "&'Input|Setup'!$E$15&" regulatory period","") -> 2.3 List of quoted services for 2026-27 to 2030-31 regulatory period
A36: 1 | B36: ='Input|Labour Rates'!B34 -> Supply abolishment (non-basic) | G36: =IF(B36='Input|Labour Rates'!B34,0,1) -> 0
A37: =IFERROR(A36+1,"") -> 2 | B37: ='Input|Labour Rates'!B35 -> Temporary covering of low voltage mains and service lines (fitting of tiger tails) | G37: =IF(B37='Input|Labour Rates'!B35,0,1) -> 0
A38: =IFERROR(A37+1,"") -> 3 | B38: ='Input|Labour Rates'!B36 -> Rearrangement of network assets at customer request, excluding alteration and relocation of public lighting assets | G38: =IF(B38='Input|Labour Rates'!B36,0,1) -> 0
A39: 4 | B39: ='Input|Labour Rates'!B37 -> Elective undergrounding | G39: =IF(B39='Input|Labour Rates'!B37,0,1) -> 0
A40: 5 | B40: ='Input|Labour Rates'!B38 -> Reserve feeder construction | G40: =IF(B40='Input|Labour Rates'!B38,0,1) -> 0
A41: 6 | B41: ='Input|Labour Rates'!B39 -> Access permits, oversight and facilitation | G41: =IF(B41='Input|Labour Rates'!B39,0,1) -> 0
A42: 7 | B42: ='Input|Labour Rates'!B40 -> Sale of approved materials or equipment | G42: =IF(B42='Input|Labour Rates'!B40,0,1) -> 0
A43: 8 | B43: ='Input|Labour Rates'!B41 -> Notices of arrangement and completion notices | G43: =IF(B43='Input|Labour Rates'!B41,0,1) -> 0
A44: 9 | B44: ='Input|Labour Rates'!B42 -> Network related property services | G44: =IF(B44='Input|Labour Rates'!B42,0,1) -> 0
A45: 10 | B45: ='Input|Labour Rates'!B43 -> Network safety services | G45: =IF(B45='Input|Labour Rates'!B43,0,1) -> 0
A46: 11 | B46: ='Input|Labour Rates'!B44 -> High load escorts | G46: =IF(B46='Input|Labour Rates'!B44,0,1) -> 0
A47: 12 | B47: ='Input|Labour Rates'!B45 -> Fitting of possum guards and aerial markers | G47: =IF(B47='Input|Labour Rates'!B45,0,1) -> 0
A48: 13 | B48: ='Input|Labour Rates'!B46 -> Site visit relating to location of underground cables/assets | G48: =IF(B48='Input|Labour Rates'!B46,0,1) -> 0
A49: 14 | B49: ='Input|Labour Rates'!B47 -> Third party request for de-energising wires for safe approach | G49: =IF(B49='Input|Labour Rates'!B47,0,1) -> 0
A50: 15 | B50: ='Input|Labour Rates'!B48 -> Provision of traffic control and safety observer services by the distributor where required | G50: =IF(B50='Input|Labour Rates'!B48,0,1) -> 0
A51: 16 | B51: ='Input|Labour Rates'!B49 -> Planned interruption – customer requested | G51: =IF(B51='Input|Labour Rates'!B49,0,1) -> 0
A52: 17 | B52: ='Input|Labour Rates'!B50 -> Customer requested supply interruption | G52: =IF(B52='Input|Labour Rates'!B50,0,1) -> 0
A53: 18 | B53: ='Input|Labour Rates'!B51 -> Inspection and auditing services | G53: =IF(B53='Input|Labour Rates'!B51,0,1) -> 0
A54: 19 | B54: ='Input|Labour Rates'!B52 -> Provision of training to third parties for network related access | G54: =IF(B54='Input|Labour Rates'!B52,0,1) -> 0
A55: 20 | B55: ='Input|Labour Rates'!B53 -> Authorisation and approval of third party service providers | G55: =IF(B55='Input|Labour Rates'!B53,0,1) -> 0
A56: 21 | B56: ='Input|Labour Rates'!B54 -> Replacement of security lights that are beyond repair | G56: =IF(B56='Input|Labour Rates'!B54,0,1) -> 0
A57: 22 | B57: ='Input|Labour Rates'!B55 -> Provision of electricity network data to customers or third parties outside of legislative obligations | G57: =IF(B57='Input|Labour Rates'!B55,0,1) -> 0
A58: 23 | B58: ='Input|Labour Rates'!B56 -> Third party requested network alterations or other improvements | G58: =IF(B58='Input|Labour Rates'!B56,0,1) -> 0
A59: 24 | B59: ='Input|Labour Rates'!B57 -> Community network upgrades | G59: =IF(B59='Input|Labour Rates'!B57,0,1) -> 0
A60: 25 | B60: ='Input|Labour Rates'!B58 -> Non-standard metering services (eg. initial setup of load and inventory table of non-contestable unmetered devices) | G60: =IF(B60='Input|Labour Rates'!B58,0,1) -> 0
A61: 26 | B61: ='Input|Labour Rates'!B59 -> Connection management services | G61: =IF(B61='Input|Labour Rates'!B59,0,1) -> 0
A62: 27 | B62: ='Input|Labour Rates'!B60 -> Temporary non-basic connections | G62: =IF(B62='Input|Labour Rates'!B60,0,1) -> 0
A63: 28 | B63: ='Input|Labour Rates'!B61 -> Temporary disconnection of non-basic connections | G63: =IF(B63='Input|Labour Rates'!B61,0,1) -> 0
A64: 29 | B64: ='Input|Labour Rates'!B62 -> Reconnection of non-basic connection after temporary disconnection | G64: =IF(B64='Input|Labour Rates'!B62,0,1) -> 0
A65: 30 | B65: ='Input|Labour Rates'!B63 -> Protection and power quality assessment | G65: =IF(B65='Input|Labour Rates'!B63,0,1) -> 0
A66: 31 | B66: ='Input|Labour Rates'!B64 -> Customer requested change requiring secondary and primary plant studies | G66: =IF(B66='Input|Labour Rates'!B64,0,1) -> 0 | H66: `
A67: 32 | B67: ='Input|Labour Rates'!B65 -> Calculation of a site-specific distribution loss factor on request | G67: =IF(B67='Input|Labour Rates'!B65,0,1) -> 0
A68: 33 | B68: ='Input|Labour Rates'!B66 -> Embedded network management | G68: =IF(B68='Input|Labour Rates'!B66,0,1) -> 0
A69: 34 | B69: ='Input|Labour Rates'!B67 -> Connection application related services | G69: =IF(B69='Input|Labour Rates'!B67,0,1) -> 0
A70: 35 | B70: ='Input|Labour Rates'!B68 -> Alteration and relocation of public lighting assets | G70: =IF(B70='Input|Labour Rates'!B68,0,1) -> 0
A71: 36 | B71: ='Input|Labour Rates'!B69 -> New public lighting services including greenfield sites and new light types (distributor provided) | G71: =IF(B71='Input|Labour Rates'!B69,0,1) -> 0
A72: 37 | B72: ='Input|Labour Rates'!B70 -> Provision, construction and maintenance of emerging public lighting technology | G72: =IF(B72='Input|Labour Rates'!B70,0,1) -> 0
A73: 38 | B73: ='Input|Labour Rates'!B71 -> 0 | G73: =IF(B73='Input|Labour Rates'!B71,0,1) -> 0
A74: 39 | B74: ='Input|Labour Rates'!B72 -> 0 | G74: =IF(B74='Input|Labour Rates'!B72,0,1) -> 0
A75: 40 | B75: ='Input|Labour Rates'!B73 -> 0 | G75: =IF(B75='Input|Labour Rates'!B73,0,1) -> 0
A76: 41 | B76: ='Input|Labour Rates'!B74 -> 0 | G76: =IF(B76='Input|Labour Rates'!B74,0,1) -> 0
A77: 42 | B77: ='Input|Labour Rates'!B75 -> 0 | G77: =IF(B77='Input|Labour Rates'!B75,0,1) -> 0
A78: 43 | B78: ='Input|Labour Rates'!B76 -> 0 | G78: =IF(B78='Input|Labour Rates'!B76,0,1) -> 0
A79: 44 | B79: ='Input|Labour Rates'!B77 -> 0 | G79: =IF(B79='Input|Labour Rates'!B77,0,1) -> 0
A80: 45 | B80: ='Input|Labour Rates'!B78 -> 0 | G80: =IF(B80='Input|Labour Rates'!B78,0,1) -> 0
A81: 46 | B81: ='Input|Labour Rates'!B79 -> 0 | G81: =IF(B81='Input|Labour Rates'!B79,0,1) -> 0
A82: 47 | B82: ='Input|Labour Rates'!B80 -> 0 | G82: =IF(B82='Input|Labour Rates'!B80,0,1) -> 0
A83: 48 | B83: ='Input|Labour Rates'!B81 -> 0 | G83: =IF(B83='Input|Labour Rates'!B81,0,1) -> 0
A84: 49 | B84: ='Input|Labour Rates'!B82 -> 0 | G84: =IF(B84='Input|Labour Rates'!B82,0,1) -> 0
A85: 50 | B85: ='Input|Labour Rates'!B83 -> 0 | G85: =IF(B85='Input|Labour Rates'!B83,0,1) -> 0

Sheet Output|RIN Expense
B2: 2.1.3 - ALTERNATIVE CONTROL SERVICES CAPEX
C3: EXPENDITURE
C4: ($, real June 2026)
C5: 2024-25 | D5: 2025-26 | E5: 2026-27 | F5: 2027-28 | G5: 2028-29 | H5: 2029-30 | I5: 2030-31
B6: Connections
B7: Metering
B8: Public lighting | C8: - | D8: - | E8: - | F8: - | G8: - | H8: - | I8: -
B9: Fee and quoted | C9: =SUM('Input|Volume, Revenue, Cost'!BC74) -> 1274497.693 | D9: =SUM('Input|Volume, Revenue, Cost'!BD74) -> 1301390.111 | E9: =SUM('Input|Volume, Revenue, Cost'!BE74) -> 1727732.69 | F9: =SUM('Input|Volume, Revenue, Cost'!BF74) -> 1773600.456 | G9: =SUM('Input|Volume, Revenue, Cost'!BG74) -> 1823420.233 | H9: =SUM('Input|Volume, Revenue, Cost'!BH74) -> 1877715.528 | I9: =SUM('Input|Volume, Revenue, Cost'!BI74) -> 1931636.911
B10: Network overheads | C10: =D10/(D9/C9) -> 156789.0511 | D10: =E10/(E9/D9) -> 160097.3636 | E10: ='Input|Volume, Revenue, Cost'!BU74 -> 212546.1429 | F10: ='Input|Volume, Revenue, Cost'!BV74 -> 218188.808 | G10: ='Input|Volume, Revenue, Cost'!BW74 -> 224317.6504 | H10: ='Input|Volume, Revenue, Cost'!BX74 -> 230997.0723 | I10: ='Input|Volume, Revenue, Cost'!BY74 -> 237630.4954
B11: Corporate overheads | C11: 0 | D11: 0 | E11: 0 | F11: 0 | G11: 0 | H11: 0 | I11: 0
B12: capital contributions (included in the above)
B13: Total | C13: - | D13: - | E13: - | F13: - | G13: - | H13: - | I13: -
B16: 2.1.4 - ALTERNATIVE CONTROL SERVICES OPEX
C17: EXPENDITURE
C18: ($, real June 2026)
C19: 2024-25 | D19: 2025-26 | E19: 2026-27 | F19: 2027-28 | G19: 2028-29 | H19: 2029-30 | I19: 2030-31
B20: Connections
B21: Metering
B22: Public lighting
B23: Fee and quoted | C23: ='Input|Volume, Revenue, Cost'!AU74 -> 9271461.467 | D23: ='Input|Volume, Revenue, Cost'!AV74 -> 9467093.063 | E23: ='Input|Volume, Revenue, Cost'!AW74 -> 11829893.32 | F23: ='Input|Volume, Revenue, Cost'!AX74 -> 12143952.77 | G23: ='Input|Volume, Revenue, Cost'!AY74 -> 12485071.88 | H23: ='Input|Volume, Revenue, Cost'!AZ74 -> 12856835.15 | I23: ='Input|Volume, Revenue, Cost'!BA74 -> 13226038.22
B24: Network overheads | C24: =D24/(D23/C23) -> 1149534.601 | D24: =E24/(E23/D23) -> 1173790.247 | E24: ='Input|Volume, Revenue, Cost'!CC74 -> 1466745.21 | F24: ='Input|Volume, Revenue, Cost'!CD74 -> 1505684.293 | G24: ='Input|Volume, Revenue, Cost'!CE74 -> 1547978.404 | H24: ='Input|Volume, Revenue, Cost'!CF74 -> 1594071.973 | I24: ='Input|Volume, Revenue, Cost'!CG74 -> 1639848.111
B25: Corporate overheads | C25: =D25/(D23/C23) -> 2521026.929 | D25: =E25/(E23/D23) -> 2574221.619 | E25: ='Input|Volume, Revenue, Cost'!CS74 -> 3216696.712 | F25: ='Input|Volume, Revenue, Cost'!CT74 -> 3302093.426 | G25: ='Input|Volume, Revenue, Cost'!CU74 -> 3394848.001 | H25: ='Input|Volume, Revenue, Cost'!CV74 -> 3495935.108 | I25: ='Input|Volume, Revenue, Cost'!CW74 -> 3596326.063
B26: Total | C26: - | D26: - | E26: - | F26: - | G26: - | H26: - | I26: -

Sheet Output|RIN Revenue
B1: REGULATORY REPORTING STATEMENT
B2: Australian Distribution Co. (Victoria)
B3: REGULATORY PERIOD FROM 2026-27 TO 2030-31
B4: 3.1 REVENUE
B5: TEMPLATE DATE - SEPTEMBER 2024 - FINAL RIN
B7: There are THREE tables on this worksheet. Each table has been 'grouped' (and 'sub-grouped') for easy navigation. See the Instructions sheet on how to group or ungroup data.
B9: 3.1.1 - REVENUE GROUPING BY CHARGEABLE QUANTITY
C10: Standard control services | K10: Alternative control services
C11: REVENUE FORECAST ($, real June 2026) | K11: REVENUE FORECAST ($, real June 2026)
C12: 2024-25 | D12: 2025-26 | E12: 2026-27 | F12: 2027-28 | G12: 2028-29 | H12: 2029-30 | I12: 2030-31 | K12: 2024-25 | L12: 2025-26 | M12: 2026-27 | N12: 2027-28 | O12: 2028-29 | P12: 2029-30 | Q12: 2030-31
A13: DREV0101 | B13: Revenue from Fixed Customer Charges
A14: DREV0102 | B14: Revenue from Energy Delivery charges where time of use is not a determinant
A15: DREV0103 | B15: Revenue from On–Peak Energy Delivery charges
A16: DREV0104 | B16: Revenue from Shoulder period Energy Delivery Charges
A17: DREV0105 | B17: Revenue from Off–Peak Energy Delivery charges
A18: DREV0106 | B18: Revenue from controlled load customer charges
A19: DREV0107 | B19: Revenue from unmetered supplies
A20: DREV0108 | B20: Revenue from Contracted Maximum Demand charges
A21: DREV0109 | B21: Revenue from Measured Maximum Demand charges
A22: DREV0110 | B22: Revenue from metering charges | K22: =SUM('Input|Volume, Revenue, Cost'!AG36:AG37,'Input|Volume, Revenue, Cost'!AG38:AG39,'Input|Volume, Revenue, Cost'!AG40:AG43) -> 1006035.791 | L22: =SUM('Input|Volume, Revenue, Cost'!AH36:AH37,'Input|Volume, Revenue, Cost'!AH38:AH39,'Input|Volume, Revenue, Cost'!AH40:AH43) -> 1027263.554 | M22: =SUM('Input|Volume, Revenue, Cost'!AI36:AI37,'Input|Volume, Revenue, Cost'!AI38:AI39,'Input|Volume, Revenue, Cost'!AI40:AI43) -> 1218184.508 | N22: =SUM('Input|Volume, Revenue, Cost'!AJ36:AJ37,'Input|Volume, Revenue, Cost'!AJ38:AJ39,'Input|Volume, Revenue, Cost'!AJ40:AJ43) -> 1250524.813 | O22: =SUM('Input|Volume, Revenue, Cost'!AK36:AK37,'Input|Volume, Revenue, Cost'!AK38:AK39,'Input|Volume, Revenue, Cost'!AK40:AK43) -> 1285651.59 | P22: =SUM('Input|Volume, Revenue, Cost'!AL36:AL37,'Input|Volume, Revenue, Cost'!AL38:AL39,'Input|Volume, Revenue, Cost'!AL40:AL43) -> 1323933.952 | Q22: =SUM('Input|Volume, Revenue, Cost'!AM36:AM37,'Input|Volume, Revenue, Cost'!AM38:AM39,'Input|Volume, Revenue, Cost'!AM40:AM43) -> 1361952.676
A23: DREV0111 | B23: Revenue from connection charges | K23: =SUM('Input|Volume, Revenue, Cost'!AG13:AG20) -> 5704163.358 | L23: =SUM('Input|Volume, Revenue, Cost'!AH13:AH20) -> 5824523.518 | M23: =SUM('Input|Volume, Revenue, Cost'!AI13:AI20) -> 7595661.796 | N23: =SUM('Input|Volume, Revenue, Cost'!AJ13:AJ20) -> 7797311.07 | O23: =SUM('Input|Volume, Revenue, Cost'!AK13:AK20) -> 8016334.634 | P23: =SUM('Input|Volume, Revenue, Cost'!AL13:AL20) -> 8255034.004 | Q23: =SUM('Input|Volume, Revenue, Cost'!AM13:AM20) -> 8492089.533
A24: DREV0112 | B24: Revenue from public lighting charges
A25: DREV0113 | B25: Revenue from other Sources | K25: ='Input|Volume, Revenue, Cost'!AG74-SUM('Output|RIN Revenue'!K22:K23) -> 3835760.011 | L25: ='Input|Volume, Revenue, Cost'!AH74-SUM('Output|RIN Revenue'!L22:L23) -> 3916696.103 | M25: ='Input|Volume, Revenue, Cost'!AI74-SUM('Output|RIN Revenue'!M22:M23) -> 4743779.703 | N25: ='Input|Volume, Revenue, Cost'!AJ74-SUM('Output|RIN Revenue'!N22:N23) -> 4869717.345 | O25: ='Input|Volume, Revenue, Cost'!AK74-SUM('Output|RIN Revenue'!O22:O23) -> 5006505.892 | P25: ='Input|Volume, Revenue, Cost'!AL74-SUM('Output|RIN Revenue'!P22:P23) -> 5155582.727 | Q25: ='Input|Volume, Revenue, Cost'!AM74-SUM('Output|RIN Revenue'!Q22:Q23) -> 5303632.922
A26: DREV01 | B26: Total revenue by chargeable quantity | C26: 0 | D26: 0 | E26: 0 | F26: 0 | G26: 0 | H26: 0 | I26: 0 | K26: =SUM(K22:K25) -> 10545959.16 | L26: =SUM(L22:L25) -> 10768483.17 | M26: 13557626.01 | N26: 13917553.23 | O26: 14308492.12 | P26: 14734550.68 | Q26: 15157675.13
K27: =IF(ROUND(K26-'Input|Volume, Revenue, Cost'!AG74,10)=0,"Ok","Error") -> Ok | L27: =IF(ROUND(L26-'Input|Volume, Revenue, Cost'!AH74,10)=0,"Ok","Error") -> Ok | M27: =IF(ROUND(M26-'Input|Volume, Revenue, Cost'!AI74,10)=0,"Ok","Error") -> Ok | N27: =IF(ROUND(N26-'Input|Volume, Revenue, Cost'!AJ74,10)=0,"Ok","Error") -> Ok | O27: =IF(ROUND(O26-'Input|Volume, Revenue, Cost'!AK74,10)=0,"Ok","Error") -> Ok | P27: =IF(ROUND(P26-'Input|Volume, Revenue, Cost'!AL74,10)=0,"Ok","Error") -> Ok | Q27: =IF(ROUND(Q26-'Input|Volume, Revenue, Cost'!AM74,10)=0,"Ok","Error") -> Ok
B29: 3.1.2 - REVENUE GROUPING BY CUSTOMER TYPE OR CLASS
C30: Standard control services | K30: Alternative control services
C31: REVENUE FORECAST ($, real June 2026) | K31: REVENUE FORECAST ($, real June 2026)
C32: 2024-25 | D32: 2025-26 | E32: 2026-27 | F32: 2027-28 | G32: 2028-29 | H32: 2029-30 | I32: 2030-31 | K32: 2024-25 | L32: 2025-26 | M32: 2026-27 | N32: 2027-28 | O32: 2028-29 | P32: 2029-30 | Q32: 2030-31
A33: DREV0201 | B33: Revenue from residential Customers
A34: DREV0202 | B34: Revenue from Non residential customers not on demand tariffs
A35: DREV0203 | B35: Revenue from Non-residential low voltage demand tariff customers
A36: DREV0204 | B36: Revenue from Non-residential high voltage demand tariff customers
A37: DREV0205 | B37: Revenue from unmetered supplies
A38: DREV0206 | B38: Revenue from Other Customers
A39: DREV02 | B39: Total revenue by customer class | C39: 0 | D39: 0 | E39: 0 | F39: 0 | G39: 0 | H39: 0 | I39: 0 | K39: 0 | L39: 0 | M39: 0 | N39: 0 | O39: 0 | P39: 0 | Q39: 0
B42: 3.1.3 - REVENUE (penalties) ALLOWED (deducted) THROUGH INCENTIVE SCHEMES
C43: Standard control services | K43: Alternative control services
C44: REVENUE FORECAST ($, real June 2026) | K44: REVENUE FORECAST ($, real June 2026)
C45: 2024-25 | D45: 2025-26 | E45: 2026-27 | F45: 2027-28 | G45: 2028-29 | H45: 2029-30 | I45: 2030-31 | K45: 2024-25 | L45: 2025-26 | M45: 2026-27 | N45: 2027-28 | O45: 2028-29 | P45: 2029-30 | Q45: 2030-31
A46: DREV0301 | B46: EBSS
A47: DREV0306 | B47: CESS
A48: DREV0302 | B48: STPIS
A49: DREV0307 | B49: CSIS
A50: DREV0308 | B50: ESIS
A51: DREV0309 | B51: DMIS/DMIA/DMIAM
A52: DREV0303 | B52: F-Factor
A53: DREV0305 | B53: Other
A54: DREV03 | B54: Total revenue rewards and penalties - incentive schemes | C54: 0 | D54: 0 | E54: 0 | F54: 0 | G54: 0 | H54: 0 | I54: 0 | K54: 0 | L54: 0 | M54: 0 | N54: 0 | O54: 0 | P54: 0 | Q54: 0

Sheet Input|Setup
B1: =IFERROR(Index!B1,"") -> Jemena Electricity Networks – Alternative Control Services Forecast model | E1: Key: | F1: Input | H1: Sheet Validation | I1: ='Model Validation'!C10 -> 0
B2: =IFERROR(MID(CELL("filename",A1),FIND("]",CELL("filename",A1))+1,255),"") -> Input|Setup | F2: Formula
Q4: For AER only
A5: 3.1 | B5: Years setup | E5: Year | F5: =IF(COUNTA(E6:E7)=0,1,0) -> 0 | Q5: Years
B6: First year of forecast regulatory control period | E6: 2026-27 | Q6: 2016-17
B7: Base year for inputs | E7: 2024-25 | Q7: =LEFT(Q6,4)+1&"-"&RIGHT(Q6,2)+1 -> 2017-18
B8: Base year for outputs | E8: =E6 -> 2026-27 | Q8: 2018-19
Q9: 2019-20
A10: 3.2 | B10: Current regulatory period | D10: 3.3 | E10: Forecast regulatory period | Q10: 2020-21
A11: 1 | B11: =LEFT(B12,4)-1&"-"&RIGHT(B12,2)-1 -> 2021-22 | D11: 1 | E11: =E6 -> 2026-27 | Q11: 2021-22
A12: =A11+1 -> 2 | B12: =LEFT(B13,4)-1&"-"&RIGHT(B13,2)-1 -> 2022-23 | D12: =D11+1 -> 2 | E12: =LEFT(E11,4)+1&"-"&RIGHT(E11,2)+1 -> 2027-28 | Q12: 2022-23
A13: =A12+1 -> 3 | B13: =LEFT(B14,4)-1&"-"&RIGHT(B14,2)-1 -> 2023-24 | D13: =D12+1 -> 3 | E13: =LEFT(E12,4)+1&"-"&RIGHT(E12,2)+1 -> 2028-29 | Q13: 2023-24
A14: =A13+1 -> 4 | B14: =LEFT(B15,4)-1&"-"&RIGHT(B15,2)-1 -> 2024-25 | D14: =D13+1 -> 4 | E14: =LEFT(E13,4)+1&"-"&RIGHT(E13,2)+1 -> 2029-30 | Q14: 2024-25
A15: =A14+1 -> 5 | B15: =LEFT(E11,4)-1&"-"&RIGHT(E11,2)-1 -> 2025-26 | D15: =D14+1 -> 5 | E15: =LEFT(E14,4)+1&"-"&RIGHT(E14,2)+1 -> 2030-31 | Q15: 2025-26
Q16: 2026-27
Q17: 2027-28
A18: 3.4 | B18: Used for quoted service? | D18: 3.5 | E18: Conversions | Q18: 2028-29
A19: 1 | B19: Yes | E19: 60 | F19: mins | Q19: 2029-30
A20: =A19+1 -> 2 | B20: No | Q20: 2030-31
Q21: 2031-32
Q22: 2032-33
Q23: 2033-34
A24: 3.6 | B24: Hours | C24: =IF(COUNTA(B25:B27)=0,1,0) -> 0 | Q24: 2034-35
B25: Business Hours
B26: After Hours
B27: Not Applicable
A30: 3.7 | B30: Labour type | C30: =IF(COUNTA(B31:B49)=0,1,0) -> 0 | D30: 3.8 | E30: Service category | F30: =IF(COUNTA(E31:E49)=0,1,0) -> 0 | G30: ="3.9" -> 3.9 | H30: Expense Type | I30: =IF(COUNTA(H31:H38)=0,1,0) -> 0
A31: 1 | B31: Administrative Officer | E31: Network safety services | H31: Capex
A32: =A31+1 -> 2 | B32: Field Worker | E32: Customer requested supply outage | H32: Opex
A33: =A32+1 -> 3 | B33: Technical Specialist | E33: Security lights
A34: =A33+1 -> 4 | B34: Engineer | E34: Customer requested electricity data
A35: 5 | B35: Senior Engineer | E35: Auxiliary metering services
A36: 6 | E36: Type 7 metering services
A37: 7 | E37: Basic connection services
A38: 8 | E38: Enhanced connection services
A39: 9 | E39: Connection management services
A40: 10 | E40: Wasted Site Attendance | G40: ="3.10" -> 3.10 | H40: Control Mechanism | I40: =IF(COUNTA(H41:H48)=0,1,0) -> 0
A41: 11 | E41: AMI Meter Charges (<160 MWh p.a.) | H41: Fee Based
A42: 12 | E42: Type 5 and 6 (incl. smart metering)
A43: 13
A44: 14
A45: 15
A46: 16
A47: 17
A48: 18
A49: 19

Sheet Input|Escalations
B1: =IFERROR(Index!B1,"") -> Jemena Electricity Networks – Alternative Control Services Forecast model | C1: Key: | D1: Input | F1: Sheet Validation | G1: ='Model Validation'!C11 -> 0
B2: =IFERROR(MID(CELL("filename",A1),FIND("]",CELL("filename",A1))+1,255),"") -> Input|Escalations | D2: Formula
A5: 4.1 | B5: Escalation setup
C7: Year
B8: First year of forecast regulatory control period | C8: ='Input|Setup'!E6 -> 2026-27
B9: Base year for inputs | C9: ='Input|Setup'!E7 -> 2024-25
B10: Base year for outputs | C10: ='Input|Setup'!E8 -> 2026-27
A13: 4.2 | B13: Inflation | D13: Current regulatory period | I13: Forecast regulatory period
D15: =IFERROR((LEFT(E15,4)-1&IF(MID(E15,5,1)="","","-"&TEXT(MOD(MID(E15,6,2)-1,100),"00"))),"") -> 2021-22 | E15: =IFERROR((LEFT(F15,4)-1&IF(MID(F15,5,1)="","","-"&TEXT(MOD(MID(F15,6,2)-1,100),"00"))),"") -> 2022-23 | F15: =IFERROR((LEFT(G15,4)-1&IF(MID(G15,5,1)="","","-"&TEXT(MOD(MID(G15,6,2)-1,100),"00"))),"") -> 2023-24 | G15: =IFERROR((LEFT(H15,4)-1&IF(MID(H15,5,1)="","","-"&TEXT(MOD(MID(H15,6,2)-1,100),"00"))),"") -> 2024-25 | H15: =IFERROR((LEFT(I15,4)-1&IF(MID(I15,5,1)="","","-"&TEXT(MOD(MID(I15,6,2)-1,100),"00"))),"") -> 2025-26 | I15: =$C$8 -> 2026-27 | J15: =IFERROR((LEFT(I15,4)+1&IF(MID(I15,5,1)="","","-"&TEXT(MOD(MID(I15,6,2)+1,100),"00"))),"") -> 2027-28 | K15: =IFERROR((LEFT(J15,4)+1&IF(MID(J15,5,1)="","","-"&TEXT(MOD(MID(J15,6,2)+1,100),"00"))),"") -> 2028-29 | L15: =IFERROR((LEFT(K15,4)+1&IF(MID(K15,5,1)="","","-"&TEXT(MOD(MID(K15,6,2)+1,100),"00"))),"") -> 2029-30 | M15: =IFERROR((LEFT(L15,4)+1&IF(MID(L15,5,1)="","","-"&TEXT(MOD(MID(L15,6,2)+1,100),"00"))),"") -> 2030-31
B16: CPI year on year change (%) - lagged one year (actual/estimate) | D16: 0.008605851979 | E16: =IFERROR(E20/D20-1,0) -> 0.03498293515 | F16: 0.07831821929 | G16: 0.04051987768 | H16: 0.026 | I16: 0.025 | J16: 0.025 | K16: 0.025 | L16: 0.025 | M16: 0.025
B17: Cumulative Inflation Index | D17: 1 | E17: =IFERROR(D17*(1+E16),"") -> 1.034982935 | F17: =E17*(1+F16) -> 1.116040956 | G17: 1.161262799 | H17: 1.191455631 | I17: 1.221242022 | J17: 1.251773073 | K17: 1.2830674 | L17: 1.315144085 | M17: 1.348022687
B18: =IFERROR("Real "&C9 &" "&LEFT(D9,9)&" to "& "Real "&C10 &" "&LEFT(D10,9),"") -> Real 2024-25 to Real 2026-27 | I18: =I$17/INDEX($D$15:$M$17,3, MATCH($C$9,$D$15:$M$15,0)) -> 1.05165
B19: ABS index, all groups CPI inflation series A2325846C, weighted average for the eight capital cities | D19: ="Dec-" & RIGHT(D15,2)-2 -> Dec-20 | E19: Dec-21 | F19: Dec-22 | G19: Dec-23 | H19: Dec-24 | I19: Dec-25 | J19: Dec-26 | K19: Dec-27 | L19: Dec-28 | M19: Dec-29
D20: 117.2 | E20: 121.3 | F20: 130.8 | G20: 136.1 | H20: =G20*(1+H21) -> 139.6386 | I20: 143.129565 | J20: 146.7078041 | K20: 150.3754992 | L20: 154.1348867 | M20: 157.9882589 | N20: =IF(COUNTA(D20:M20)=0,1,0) -> 0
B21: Source (where ABS index is not available. E.g. forecast CPI) | H21: 0.026 | I21: 0.025 | J21: 0.025 | K21: 0.025 | L21: 0.025 | M21: 0.025 | N21: =IF(COUNTA(G21:M21)=0,1,0) -> 0
A24: 4.3 | B24: Real price escalation | D24: Current regulatory period | I24: Forecast regulatory period
D26: =IFERROR((LEFT(E26,4)-1&IF(MID(E26,5,1)="","","-"&TEXT(MOD(MID(E26,6,2)-1,100),"00"))),"") -> 2021-22 | E26: =IFERROR((LEFT(F26,4)-1&IF(MID(F26,5,1)="","","-"&TEXT(MOD(MID(F26,6,2)-1,100),"00"))),"") -> 2022-23 | F26: =IFERROR((LEFT(G26,4)-1&IF(MID(G26,5,1)="","","-"&TEXT(MOD(MID(G26,6,2)-1,100),"00"))),"") -> 2023-24 | G26: =IFERROR((LEFT(H26,4)-1&IF(MID(H26,5,1)="","","-"&TEXT(MOD(MID(H26,6,2)-1,100),"00"))),"") -> 2024-25 | H26: =IFERROR((LEFT(I26,4)-1&IF(MID(I26,5,1)="","","-"&TEXT(MOD(MID(I26,6,2)-1,100),"00"))),"") -> 2025-26 | I26: =$C$8 -> 2026-27 | J26: =IFERROR((LEFT(I26,4)+1&IF(MID(I26,5,1)="","","-"&TEXT(MOD(MID(I26,6,2)+1,100),"00"))),"") -> 2027-28 | K26: =IFERROR((LEFT(J26,4)+1&IF(MID(J26,5,1)="","","-"&TEXT(MOD(MID(J26,6,2)+1,100),"00"))),"") -> 2028-29 | L26: =IFERROR((LEFT(K26,4)+1&IF(MID(K26,5,1)="","","-"&TEXT(MOD(MID(K26,6,2)+1,100),"00"))),"") -> 2029-30 | M26: =IFERROR((LEFT(L26,4)+1&IF(MID(L26,5,1)="","","-"&TEXT(MOD(MID(L26,6,2)+1,100),"00"))),"") -> 2030-31
B27: X-factor (real wage price escalation) | D27: =-D37 -> 0.02812040787 | E27: =-E37 -> 0.04374835876 | F27: 0.01509360982 | G27: -0.006536312907 | H27: -0.007201031134 | I27: -0.009313524394 | J27: -0.008358355629 | K27: -0.01025499053 | L27: -0.01224018808 | M27: -0.01148235304
B28: Materials | D28: 0 | E28: 0 | F28: 0 | G28: 0 | H28: 0 | I28: 0 | J28: 0 | K28: 0 | L28: 0 | M28: 0
B29: Contracts | D29: =D27 -> 0.02812040787 | E29: =E27 -> 0.04374835876 | F29: 0.01509360982 | G29: -0.006536312907 | H29: -0.007201031134 | I29: -0.009313524394 | J29: -0.008358355629 | K29: -0.01025499053 | L29: -0.01224018808 | M29: -0.01148235304
B30: Vehicles | D30: =D28 -> 0 | E30: =E28 -> 0 | F30: 0 | G30: 0 | H30: 0 | I30: 0 | J30: 0 | K30: 0 | L30: 0 | M30: 0
B31: Other | D31: =D28 -> 0 | E31: =E28 -> 0 | F31: 0 | G31: 0 | H31: 0 | I31: 0 | J31: 0 | K31: 0 | L31: 0 | M31: 0
A34: 4.3.1 | B34: Real wage price escalation | D34: Current regulatory period | I34: Forecast regulatory period
D36: =IFERROR((LEFT(E36,4)-1&IF(MID(E36,5,1)="","","-"&TEXT(MOD(MID(E36,6,2)-1,100),"00"))),"") -> 2021-22 | E36: =IFERROR((LEFT(F36,4)-1&IF(MID(F36,5,1)="","","-"&TEXT(MOD(MID(F36,6,2)-1,100),"00"))),"") -> 2022-23 | F36: =IFERROR((LEFT(G36,4)-1&IF(MID(G36,5,1)="","","-"&TEXT(MOD(MID(G36,6,2)-1,100),"00"))),"") -> 2023-24 | G36: =IFERROR((LEFT(H36,4)-1&IF(MID(H36,5,1)="","","-"&TEXT(MOD(MID(H36,6,2)-1,100),"00"))),"") -> 2024-25 | H36: =IFERROR((LEFT(I36,4)-1&IF(MID(I36,5,1)="","","-"&TEXT(MOD(MID(I36,6,2)-1,100),"00"))),"") -> 2025-26 | I36: =$C$8 -> 2026-27 | J36: =IFERROR((LEFT(I36,4)+1&IF(MID(I36,5,1)="","","-"&TEXT(MOD(MID(I36,6,2)+1,100),"00"))),"") -> 2027-28 | K36: =IFERROR((LEFT(J36,4)+1&IF(MID(J36,5,1)="","","-"&TEXT(MOD(MID(J36,6,2)+1,100),"00"))),"") -> 2028-29 | L36: =IFERROR((LEFT(K36,4)+1&IF(MID(K36,5,1)="","","-"&TEXT(MOD(MID(K36,6,2)+1,100),"00"))),"") -> 2029-30 | M36: =IFERROR((LEFT(L36,4)+1&IF(MID(L36,5,1)="","","-"&TEXT(MOD(MID(L36,6,2)+1,100),"00"))),"") -> 2030-31
B37: Labour - Real wage price growth | D37: =SUM((D42*D48),(D43*D49),(D44*D50),(D45*D51)) -> -0.02812040787 | E37: -0.04374835876 | F37: -0.01509360982 | G37: 0.006536312907 | H37: 0.007201031134 | I37: 0.009313524394 | J37: 0.008358355629 | K37: 0.01025499053 | L37: 0.01224018808 | M37: 0.01148235304
B38: Cumulative Labour - Wage price growth index | D38: =1+D37 -> 0.9718795921 | E38: =IFERROR(D38*(1+E37),"") -> 0.9293614551 | F38: 0.9153340359 | G38: 0.9213169456 | H38: 0.9279513776 | I38: 0.9365938754 | J38: 0.94442226 | K38: 0.9541073014 | L38: 0.9657857542 | M38: 0.9768752472
B39: ="Escalate from base year to " & C8 -> Escalate from base year to 2026-27 | I39: =I38/INDEX($D$36:$M$38,3,MATCH($C$9,$D$36:$M$36,0)) -> 1.016581623
B41: Forecast/Source | D41: =IFERROR((LEFT(E41,4)-1&IF(MID(E41,5,1)="","","-"&TEXT(MOD(MID(E41,6,2)-1,100),"00"))),"") -> 2021-22 | E41: =IFERROR((LEFT(F41,4)-1&IF(MID(F41,5,1)="","","-"&TEXT(MOD(MID(F41,6,2)-1,100),"00"))),"") -> 2022-23 | F41: =IFERROR((LEFT(G41,4)-1&IF(MID(G41,5,1)="","","-"&TEXT(MOD(MID(G41,6,2)-1,100),"00"))),"") -> 2023-24 | G41: =IFERROR((LEFT(H41,4)-1&IF(MID(H41,5,1)="","","-"&TEXT(MOD(MID(H41,6,2)-1,100),"00"))),"") -> 2024-25 | H41: =IFERROR((LEFT(I41,4)-1&IF(MID(I41,5,1)="","","-"&TEXT(MOD(MID(I41,6,2)-1,100),"00"))),"") -> 2025-26 | I41: =$C$8 -> 2026-27 | J41: =IFERROR((LEFT(I41,4)+1&IF(MID(I41,5,1)="","","-"&TEXT(MOD(MID(I41,6,2)+1,100),"00"))),"") -> 2027-28 | K41: =IFERROR((LEFT(J41,4)+1&IF(MID(J41,5,1)="","","-"&TEXT(MOD(MID(J41,6,2)+1,100),"00"))),"") -> 2028-29 | L41: =IFERROR((LEFT(K41,4)+1&IF(MID(K41,5,1)="","","-"&TEXT(MOD(MID(K41,6,2)+1,100),"00"))),"") -> 2029-30 | M41: =IFERROR((LEFT(L41,4)+1&IF(MID(L41,5,1)="","","-"&TEXT(MOD(MID(L41,6,2)+1,100),"00"))),"") -> 2030-31 | N41: =IF(COUNTA(B42:M45)=0,1,0) -> 0
B42: WPI - DAE forecast (placeholder from Ergon Report) AUS | I42: 0.007 | J42: 0.007 | K42: 0.008 | L42: 0.011 | M42: 0.011
B43: WPI - Oxford Economics actual and forecast October 2024 | D43: -0.02812040787 | E43: -0.04374835876 | F43: -0.01509360982 | G43: 0.006536312907 | H43: 0.007201031134 | I43: 0.01162704879 | J43: 0.009716711258 | K43: 0.01250998106 | L43: 0.01348037617 | M43: 0.01196470609
B47: Weights (per cent) | D47: =IFERROR((LEFT(E47,4)-1&IF(MID(E47,5,1)="","","-"&TEXT(MOD(MID(E47,6,2)-1,100),"00"))),"") -> 2021-22 | E47: =IFERROR((LEFT(F47,4)-1&IF(MID(F47,5,1)="","","-"&TEXT(MOD(MID(F47,6,2)-1,100),"00"))),"") -> 2022-23 | F47: =IFERROR((LEFT(G47,4)-1&IF(MID(G47,5,1)="","","-"&TEXT(MOD(MID(G47,6,2)-1,100),"00"))),"") -> 2023-24 | G47: =IFERROR((LEFT(H47,4)-1&IF(MID(H47,5,1)="","","-"&TEXT(MOD(MID(H47,6,2)-1,100),"00"))),"") -> 2024-25 | H47: =IFERROR((LEFT(I47,4)-1&IF(MID(I47,5,1)="","","-"&TEXT(MOD(MID(I47,6,2)-1,100),"00"))),"") -> 2025-26 | I47: =$C$8 -> 2026-27 | J47: =IFERROR((LEFT(I47,4)+1&IF(MID(I47,5,1)="","","-"&TEXT(MOD(MID(I47,6,2)+1,100),"00"))),"") -> 2027-28 | K47: =IFERROR((LEFT(J47,4)+1&IF(MID(J47,5,1)="","","-"&TEXT(MOD(MID(J47,6,2)+1,100),"00"))),"") -> 2028-29 | L47: =IFERROR((LEFT(K47,4)+1&IF(MID(K47,5,1)="","","-"&TEXT(MOD(MID(K47,6,2)+1,100),"00"))),"") -> 2029-30 | M47: =IFERROR((LEFT(L47,4)+1&IF(MID(L47,5,1)="","","-"&TEXT(MOD(MID(L47,6,2)+1,100),"00"))),"") -> 2030-31 | N47: =IF(COUNTA(D48:M51)=0,1,0) -> 0
B48: =B42 -> WPI - DAE forecast (placeholder from Ergon Report) AUS | I48: 0.5 | J48: 0.5 | K48: 0.5 | L48: 0.5 | M48: 0.5
B49: =B43 -> WPI - Oxford Economics actual and forecast October 2024 | D49: 1 | E49: 1 | F49: 1 | G49: 1 | H49: 1 | I49: 0.5 | J49: 0.5 | K49: 0.5 | L49: 0.5 | M49: 0.5
B50: =B44 -> 0
B51: =B45 -> 0
D52: =IF(OR(SUM(D48:D51)=0,SUM(D48:D51)=1),0,1) -> 0 | E52: 0 | F52: 0 | G52: 0 | H52: 0 | I52: =IF(OR(SUM(I48:I51)=0,SUM(I48:I51)=1),0,1) -> 0 | J52: 0 | K52: 0 | L52: 0 | M52: 0 | N52: =IF(SUM(D52:M52)=0,0,1) -> 0
A54: 4.3.2 | B54: Real price escalation (non-wage) | D54: Current regulatory period | I54: Forecast regulatory period
D56: =IFERROR((LEFT(E56,4)-1&IF(MID(E56,5,1)="","","-"&TEXT(MOD(MID(E56,6,2)-1,100),"00"))),"") -> 2021-22 | E56: =IFERROR((LEFT(F56,4)-1&IF(MID(F56,5,1)="","","-"&TEXT(MOD(MID(F56,6,2)-1,100),"00"))),"") -> 2022-23 | F56: =IFERROR((LEFT(G56,4)-1&IF(MID(G56,5,1)="","","-"&TEXT(MOD(MID(G56,6,2)-1,100),"00"))),"") -> 2023-24 | G56: =IFERROR((LEFT(H56,4)-1&IF(MID(H56,5,1)="","","-"&TEXT(MOD(MID(H56,6,2)-1,100),"00"))),"") -> 2024-25 | H56: =IFERROR((LEFT(I56,4)-1&IF(MID(I56,5,1)="","","-"&TEXT(MOD(MID(I56,6,2)-1,100),"00"))),"") -> 2025-26 | I56: =$C$8 -> 2026-27 | J56: =IFERROR((LEFT(I56,4)+1&IF(MID(I56,5,1)="","","-"&TEXT(MOD(MID(I56,6,2)+1,100),"00"))),"") -> 2027-28 | K56: =IFERROR((LEFT(J56,4)+1&IF(MID(J56,5,1)="","","-"&TEXT(MOD(MID(J56,6,2)+1,100),"00"))),"") -> 2028-29 | L56: =IFERROR((LEFT(K56,4)+1&IF(MID(K56,5,1)="","","-"&TEXT(MOD(MID(K56,6,2)+1,100),"00"))),"") -> 2029-30 | M56: =IFERROR((LEFT(L56,4)+1&IF(MID(L56,5,1)="","","-"&TEXT(MOD(MID(L56,6,2)+1,100),"00"))),"") -> 2030-31
B57: Materials - Real price growth | D57: =-D$28 -> 0 | E57: 0 | F57: 0 | G57: 0 | H57: 0 | I57: 0 | J57: 0 | K57: 0 | L57: 0 | M57: 0
B58: Cumulative Labour - Wage price growth index | D58: =1+D57 -> 1 | E58: =IFERROR(D58*(1+E57),"") -> 1 | F58: 1 | G58: 1 | H58: 1 | I58: 1 | J58: 1 | K58: 1 | L58: 1 | M58: 1
B59: ="Escalate from base year to " & C28 -> Escalate from base year to | I59: =I58/INDEX($D$56:$M$58,3,MATCH($C$9,$D$56:$M$56,0)) -> 1
D61: =IFERROR((LEFT(E61,4)-1&IF(MID(E61,5,1)="","","-"&TEXT(MOD(MID(E61,6,2)-1,100),"00"))),"") -> 2021-22 | E61: =IFERROR((LEFT(F61,4)-1&IF(MID(F61,5,1)="","","-"&TEXT(MOD(MID(F61,6,2)-1,100),"00"))),"") -> 2022-23 | F61: =IFERROR((LEFT(G61,4)-1&IF(MID(G61,5,1)="","","-"&TEXT(MOD(MID(G61,6,2)-1,100),"00"))),"") -> 2023-24 | G61: =IFERROR((LEFT(H61,4)-1&IF(MID(H61,5,1)="","","-"&TEXT(MOD(MID(H61,6,2)-1,100),"00"))),"") -> 2024-25 | H61: =IFERROR((LEFT(I61,4)-1&IF(MID(I61,5,1)="","","-"&TEXT(MOD(MID(I61,6,2)-1,100),"00"))),"") -> 2025-26 | I61: =$C$8 -> 2026-27 | J61: =IFERROR((LEFT(I61,4)+1&IF(MID(I61,5,1)="","","-"&TEXT(MOD(MID(I61,6,2)+1,100),"00"))),"") -> 2027-28 | K61: =IFERROR((LEFT(J61,4)+1&IF(MID(J61,5,1)="","","-"&TEXT(MOD(MID(J61,6,2)+1,100),"00"))),"") -> 2028-29 | L61: =IFERROR((LEFT(K61,4)+1&IF(MID(K61,5,1)="","","-"&TEXT(MOD(MID(K61,6,2)+1,100),"00"))),"") -> 2029-30 | M61: =IFERROR((LEFT(L61,4)+1&IF(MID(L61,5,1)="","","-"&TEXT(MOD(MID(L61,6,2)+1,100),"00"))),"") -> 2030-31
B62: Contracts - Real price growth | D62: =-D$29 -> -0.02812040787 | E62: -0.04374835876 | F62: -0.01509360982 | G62: 0.006536312907 | H62: 0.007201031134 | I62: 0.009313524394 | J62: 0.008358355629 | K62: 0.01025499053 | L62: 0.01224018808 | M62: 0.01148235304
B63: Cumulative Labour - Wage price growth index | D63: =1+D62 -> 0.9718795921 | E63: =IFERROR(D63*(1+E62),"") -> 0.9293614551 | F63: 0.9153340359 | G63: 0.9213169456 | H63: 0.9279513776 | I63: 0.9365938754 | J63: 0.94442226 | K63: 0.9541073014 | L63: 0.9657857542 | M63: 0.9768752472
B64: ="Escalate from base year to " & C33 -> Escalate from base year to | I64: =I63/INDEX($D$61:$M$63,3,MATCH($C$9,$D$61:$M$61,0)) -> 1.016581623
D66: =IFERROR((LEFT(E66,4)-1&IF(MID(E66,5,1)="","","-"&TEXT(MOD(MID(E66,6,2)-1,100),"00"))),"") -> 2021-22 | E66: =IFERROR((LEFT(F66,4)-1&IF(MID(F66,5,1)="","","-"&TEXT(MOD(MID(F66,6,2)-1,100),"00"))),"") -> 2022-23 | F66: =IFERROR((LEFT(G66,4)-1&IF(MID(G66,5,1)="","","-"&TEXT(MOD(MID(G66,6,2)-1,100),"00"))),"") -> 2023-24 | G66: =IFERROR((LEFT(H66,4)-1&IF(MID(H66,5,1)="","","-"&TEXT(MOD(MID(H66,6,2)-1,100),"00"))),"") -> 2024-25 | H66: =IFERROR((LEFT(I66,4)-1&IF(MID(I66,5,1)="","","-"&TEXT(MOD(MID(I66,6,2)-1,100),"00"))),"") -> 2025-26 | I66: =$C$8 -> 2026-27 | J66: =IFERROR((LEFT(I66,4)+1&IF(MID(I66,5,1)="","","-"&TEXT(MOD(MID(I66,6,2)+1,100),"00"))),"") -> 2027-28 | K66: =IFERROR((LEFT(J66,4)+1&IF(MID(J66,5,1)="","","-"&TEXT(MOD(MID(J66,6,2)+1,100),"00"))),"") -> 2028-29 | L66: =IFERROR((LEFT(K66,4)+1&IF(MID(K66,5,1)="","","-"&TEXT(MOD(MID(K66,6,2)+1,100),"00"))),"") -> 2029-30 | M66: =IFERROR((LEFT(L66,4)+1&IF(MID(L66,5,1)="","","-"&TEXT(MOD(MID(L66,6,2)+1,100),"00"))),"") -> 2030-31
B67: Vehicles - Real price growth | D67: =-D$30 -> 0 | E67: 0 | F67: 0 | G67: 0 | H67: 0 | I67: 0 | J67: 0 | K67: 0 | L67: 0 | M67: 0
B68: Cumulative Labour - Wage price growth index | D68: =1+D67 -> 1 | E68: =IFERROR(D68*(1+E67),"") -> 1 | F68: 1 | G68: 1 | H68: 1 | I68: 1 | J68: 1 | K68: 1 | L68: 1 | M68: 1
B69: ="Escalate from base year to " & C38 -> Escalate from base year to | I69: =I68/INDEX($D$66:$M$68,3,MATCH($C$9,$D$66:$M$66,0)) -> 1
D71: =IFERROR((LEFT(E71,4)-1&IF(MID(E71,5,1)="","","-"&TEXT(MOD(MID(E71,6,2)-1,100),"00"))),"") -> 2021-22 | E71: =IFERROR((LEFT(F71,4)-1&IF(MID(F71,5,1)="","","-"&TEXT(MOD(MID(F71,6,2)-1,100),"00"))),"") -> 2022-23 | F71: =IFERROR((LEFT(G71,4)-1&IF(MID(G71,5,1)="","","-"&TEXT(MOD(MID(G71,6,2)-1,100),"00"))),"") -> 2023-24 | G71: =IFERROR((LEFT(H71,4)-1&IF(MID(H71,5,1)="","","-"&TEXT(MOD(MID(H71,6,2)-1,100),"00"))),"") -> 2024-25 | H71: =IFERROR((LEFT(I71,4)-1&IF(MID(I71,5,1)="","","-"&TEXT(MOD(MID(I71,6,2)-1,100),"00"))),"") -> 2025-26 | I71: =$C$8 -> 2026-27 | J71: =IFERROR((LEFT(I71,4)+1&IF(MID(I71,5,1)="","","-"&TEXT(MOD(MID(I71,6,2)+1,100),"00"))),"") -> 2027-28 | K71: =IFERROR((LEFT(J71,4)+1&IF(MID(J71,5,1)="","","-"&TEXT(MOD(MID(J71,6,2)+1,100),"00"))),"") -> 2028-29 | L71: =IFERROR((LEFT(K71,4)+1&IF(MID(K71,5,1)="","","-"&TEXT(MOD(MID(K71,6,2)+1,100),"00"))),"") -> 2029-30 | M71: =IFERROR((LEFT(L71,4)+1&IF(MID(L71,5,1)="","","-"&TEXT(MOD(MID(L71,6,2)+1,100),"00"))),"") -> 2030-31
B72: Other - Real price growth | D72: =-D$31 -> 0 | E72: 0 | F72: 0 | G72: 0 | H72: 0 | I72: 0 | J72: 0 | K72: 0 | L72: 0 | M72: 0
B73: Cumulative Labour - Wage price growth index | D73: =1+D72 -> 1 | E73: =IFERROR(D73*(1+E72),"") -> 1 | F73: 1 | G73: 1 | H73: 1 | I73: 1 | J73: 1 | K73: 1 | L73: 1 | M73: 1
B74: ="Escalate from base year to " & C43 -> Escalate from base year to | I74: =I73/INDEX($D$71:$M$73,3,MATCH($C$9,$D$71:$M$71,0)) -> 1

Sheet Input|Indirect Cost Rates
B1: =IFERROR(Index!B1,"") -> Jemena Electricity Networks – Alternative Control Services Forecast model | C1: Key: | D1: Input | F1: Sheet Validation | G1: NA
B2: =IFERROR(MID(CELL("filename",A1),FIND("]",CELL("filename",A1))+1,255),"") -> Input|Indirect Cost Rates | D2: Formula
A5: 5.1 | B5: On costs
B7: On cost drivers | C7: Unit | D7: Administrative Officer (BH) | E7: Field Worker (BH) | F7: Technical Specialist (BH) | G7: Senior Engineer (BH) | H7: Engineer (BH) | I7: Field Worker (AH)
B8: Standard leave (annual leave, sick leave, public holidays) | C8: Per cent | D8: 0.1715 | E8: 0.1878 | F8: 0.1715 | G8: 0.1715 | H8: 0.1715 | I8: 0 | J8: Att 11-03M ACS Labour rate model
B9: Superannuation | C9: Per cent | D9: 0.12 | E9: 0.12 | F9: 0.12 | G9: 0.12 | H9: 0.12 | I9: 0.12 | J9: Att 11-03M ACS Labour rate model
B10: Workcover Insurance | C10: Per cent | D10: 0.00651 | E10: 0.00651 | F10: 0.00651 | G10: 0.00651 | H10: 0.00651 | I10: 0.00651 | J10: Att 11-03M ACS Labour rate model
B11: Payroll tax | C11: Per cent | D11: 0.0585 | E11: 0.0585 | F11: 0.0585 | G11: 0.0585 | H11: 0.0585 | I11: 0.0585 | J11: Att 11-03M ACS Labour rate model
B12: Annual leave loading | C12: Per cent | D12: 0.02 | E12: 0.02 | F12: 0.02 | G12: 0.02 | H12: 0.02 | I12: 0 | J12: Att 11-03M ACS Labour rate model
B13: Long Service leave allowance | C13: Per cent | D13: 0.025 | E13: 0.025 | F13: 0.025 | G13: 0.025 | H13: 0.025 | I13: 0 | J13: Att 11-03M ACS Labour rate model
B14: Non-chargeable time | C14: Per cent | D14: 0 | E14: 0 | F14: 0 | G14: 0 | H14: 0 | I14: 0 | J14: Att 11-03M ACS Labour rate model
B15: Other | C15: Per cent | D15: 0 | E15: 0 | F15: 0 | G15: 0 | H15: 0 | I15: 0 | J15: Att 11-03M ACS Labour rate model
B16: Allowances | C16: Per cent | D16: 0 | E16: 0.007 | F16: 0 | G16: 0 | H16: 0 | I16: 0 | J16: Att 11-03M ACS Labour rate model
B17: Training & Development | C17: Per cent | D17: 0 | E17: 0 | F17: 0.007571406072 | G17: 0.007571406072 | H17: 0.007571406072 | I17: 0 | J17: Att 11-03M ACS Labour rate model
B18: Safety Meetings/Toolbox Talks | C18: Per cent | D18: 0 | E18: 0 | F18: 0 | G18: 0 | H18: 0 | I18: 0
B19: Compounded on cost factor | C19: Per cent | D19: =PRODUCT(1+D8:D17)-1 -> 0.4614814561 | E19: =PRODUCT(1+E8:E17)-1 -> 0.4921889093 | F19: =PRODUCT(1+F8:F17)-1 -> 0.4725469257 | G19: =PRODUCT(1+G8:G17)-1 -> 0.4725469257 | H19: =PRODUCT(1+H8:H17)-1 -> 0.4725469257 | I19: =PRODUCT(1+I8:I17)-1 -> 0.1932377352
A22: 5.2 | B22: Overhead
B24: Type of Overhead | C24: Unit | D24: Input | E24: Type | F24: Notes
B25: Network Overhead | C25: Per cent | D25: 0.2093290404 | E25: Capex | F25: Att 11-03M ACS Labour rate model
B26: Network Overhead | C26: Per cent | D26: 0.2093290404 | E26: Opex | F26: Att 11-03M ACS Labour rate model
B27: Corporate Overhead | C27: Per cent | D27: 0.4009715377 | E27: Capex | F27: Att 11-03M ACS Labour rate model
B28: Corporate Overhead | C28: Per cent | D28: 0.4009715377 | E28: Opex | F28: Att 11-03M ACS Labour rate model
C29: Per cent
A32: 5.3 | B32: Margins
C34: Unit | D34: Input | F34: Notes
B35: Margin 1 | C35: Per cent | D35: 0.06
C36: Per cent
C37: Per cent
C38: Per cent
A41: 5.4 | B41: Tax recovery rate
C43: Unit | D43: Input | F43: Notes
B44: Tax rate 1 | C44: Per cent | D44: ='Input|Tax Recovery'!G28 -> 0.01872783643 | F44: Do we need to explore more than one tax rate, eg. One for metering, etc.
B45: Tax rate 2 | C45: Per cent | D45: ='Input|Tax Recovery'!G54 -> 0.01640531688
C46: Per cent
C47: Per cent

Sheet Input|Labour Rates
B1: =IFERROR(Index!B1,"") -> Jemena Electricity Networks – Alternative Control Services Forecast model | D1: Key: | E1: Input | G1: Sheet Validation | H1: ='Model Validation'!C13 -> 0
B2: =IFERROR(MID(CELL("filename",A1),FIND("]",CELL("filename",A1))+1,255),"") -> Input|Labour Rates | E2: Formula
B7: 6.1 Labour rates | E7: =IFERROR("Inputs, $'s ($"&Input_base_year&")","") ->  | F7: =IFERROR("Inputs, $'s ($"&Input_base_year&")","") ->  | G7: =IFERROR("Inputs, $'s ($"&Input_base_year&")","") ->  | H7: =IFERROR("Inputs, $'s ($"&Input_base_year&")","") ->  | K7: 6.2 Notes and sources for "Other costs"
B9: ='Input|Setup'!$B$30 -> Labour type | C9: ='Input|Setup'!$B$24 -> Hours | D9: ='Input|Setup'!$B$18 -> Used for quoted service? | E9: Base labour rate ($2024-25) | F9: ='Input|Indirect Cost Rates'!B5 & " (%)" -> On costs (%) | G9: ='Input|Indirect Cost Rates'!B22 & " (%)" -> Overhead (%) | H9: Vehicle ($2024-25) | I9: Other costs ($2024-25)
A10: 1 | B10: Administrative Officer | C10: Business hours | D10: Yes | E10: 45.42426261 | F10: ='Input|Indirect Cost Rates'!D19 -> 0.4614814561 | G10: =SUM('Input|Indirect Cost Rates'!$D$25,'Input|Indirect Cost Rates'!$D$27) -> 0.610300578 | H10: 0 | I10: 2.672564238 | J10: =IF(AND(ISTEXT(B10),OR(ISBLANK(C10),ISBLANK(D10),COUNTA(E10:I10)=0)),1,0) -> 0 | K10: Att 11-03M ACS Labour rate model | L10: =IF(AND(ISNUMBER(I10),ISBLANK(K10)),1,0) -> 0
A11: =A10+1 -> 2 | B11: Field Worker | C11: Business hours | D11: Yes | E11: 68.48996344 | F11: ='Input|Indirect Cost Rates'!E19 -> 0.4921889093 | G11: =SUM('Input|Indirect Cost Rates'!$D$25,'Input|Indirect Cost Rates'!$D$27) -> 0.610300578 | H11: 22.44023083 | I11: 4.114316521 | J11: 0 | K11: Att 11-03M ACS Labour rate model | L11: 0
A12: 3 | B12: Technical Specialist | C12: Business hours | D12: Yes | E12: 74.66528801 | F12: ='Input|Indirect Cost Rates'!F19 -> 0.4725469257 | G12: =SUM('Input|Indirect Cost Rates'!$D$25,'Input|Indirect Cost Rates'!$D$27) -> 0.610300578 | H12: 22.44023083 | I12: 4.426238847 | J12: 0 | K12: Att 11-03M ACS Labour rate model | L12: 0
A13: 4 | B13: Engineer | C13: Business hours | D13: Yes | E13: 100.9428058 | F13: ='Input|Indirect Cost Rates'!H19 -> 0.4725469257 | G13: =SUM('Input|Indirect Cost Rates'!$D$25,'Input|Indirect Cost Rates'!$D$27) -> 0.610300578 | H13: 0 | I13: 5.98399846 | J13: 0 | K13: Att 11-03M ACS Labour rate model | L13: 0
A14: 5 | B14: Senior Engineer | C14: Business hours | D14: Yes | E14: 121.131367 | F14: ='Input|Indirect Cost Rates'!G19 -> 0.4725469257 | G14: =SUM('Input|Indirect Cost Rates'!$D$25,'Input|Indirect Cost Rates'!$D$27) -> 0.610300578 | H14: 0 | I14: 7.180798151 | J14: 0 | K14: Att 11-03M ACS Labour rate model | L14: 0
A15: 6 | B15: Administrative Officer | C15: After Hours | D15: No | E15: 0 | F15: 0 | G15: =SUM('Input|Indirect Cost Rates'!$D$25,'Input|Indirect Cost Rates'!$D$27) -> 0.610300578 | H15: 0 | I15: 0 | J15: 0 | K15: Att 11-03M ACS Labour rate model | L15: 0
A16: 7 | B16: Field Worker | C16: After Hours | D16: Yes | E16: 158.8066793 | F16: ='Input|Indirect Cost Rates'!I19 -> 0.1932377352 | G16: =SUM('Input|Indirect Cost Rates'!$D$25,'Input|Indirect Cost Rates'!$D$27) -> 0.610300578 | H16: 22.44023083 | I16: 7.628562371 | J16: 0 | K16: Att 11-03M ACS Labour rate model | L16: 0
A17: 8 | B17: Technical Specialist | C17: After Hours | D17: No | E17: 0 | F17: 0 | G17: =SUM('Input|Indirect Cost Rates'!$D$25,'Input|Indirect Cost Rates'!$D$27) -> 0.610300578 | H17: 0 | I17: 0 | J17: 0 | K17: Att 11-03M ACS Labour rate model | L17: 0
A18: 9 | B18: Engineer | C18: After Hours | D18: No | E18: 0 | F18: 0 | G18: =SUM('Input|Indirect Cost Rates'!$D$25,'Input|Indirect Cost Rates'!$D$27) -> 0.610300578 | H18: 0 | I18: 0 | J18: 0 | K18: Att 11-03M ACS Labour rate model | L18: 0
A19: 10 | B19: Senior Engineer | C19: After Hours | D19: No | E19: 0 | F19: 0 | G19: =SUM('Input|Indirect Cost Rates'!$D$25,'Input|Indirect Cost Rates'!$D$27) -> 0.610300578 | H19: 0 | I19: 0 | J19: 0 | K19: Att 11-03M ACS Labour rate model | L19: 0
A20: 11 | J20: 0 | L20: 0
A21: 12 | J21: 0 | L21: 0
A22: 13 | J22: 0 | L22: 0
A23: 14 | J23: 0 | L23: 0
A24: 15 | J24: 0 | L24: 0
A25: 16 | J25: 0 | L25: 0
A26: 17 | J26: 0 | L26: 0
A27: 18 | J27: 0 | L27: 0
A28: 19 | J28: 0 | L28: 0
A29: 20 | J29: 0 | L29: 0
B32: =IFERROR("6.3 List of quoted services for "&'Input|Setup'!$E$11&" to "&'Input|Setup'!$E$15&" regulatory period","") -> 6.3 List of quoted services for 2026-27 to 2030-31 regulatory period
A34: 1 | B34: Supply abolishment (non-basic)
A35: =IFERROR(A34+1,"") -> 2 | B35: Temporary covering of low voltage mains and service lines (fitting of tiger tails)
A36: =IFERROR(A35+1,"") -> 3 | B36: Rearrangement of network assets at customer request, excluding alteration and relocation of public lighting assets
A37: 4 | B37: Elective undergrounding
A38: 5 | B38: Reserve feeder construction
A39: 6 | B39: Access permits, oversight and facilitation
A40: 7 | B40: Sale of approved materials or equipment
A41: 8 | B41: Notices of arrangement and completion notices
A42: 9 | B42: Network related property services
A43: 10 | B43: Network safety services
A44: 11 | B44: High load escorts
A45: 12 | B45: Fitting of possum guards and aerial markers
A46: 13 | B46: Site visit relating to location of underground cables/assets
A47: 14 | B47: Third party request for de-energising wires for safe approach
A48: 15 | B48: Provision of traffic control and safety observer services by the distributor where required
A49: 16 | B49: Planned interruption – customer requested
A50: 17 | B50: Customer requested supply interruption
A51: 18 | B51: Inspection and auditing services
A52: 19 | B52: Provision of training to third parties for network related access
A53: 20 | B53: Authorisation and approval of third party service providers
A54: 21 | B54: Replacement of security lights that are beyond repair
A55: 22 | B55: Provision of electricity network data to customers or third parties outside of legislative obligations
A56: 23 | B56: Third party requested network alterations or other improvements
A57: 24 | B57: Community network upgrades
A58: 25 | B58: Non-standard metering services (eg. initial setup of load and inventory table of non-contestable unmetered devices)
A59: 26 | B59: Connection management services
A60: 27 | B60: Temporary non-basic connections
A61: 28 | B61: Temporary disconnection of non-basic connections
A62: 29 | B62: Reconnection of non-basic connection after temporary disconnection
A63: 30 | B63: Protection and power quality assessment
A64: 31 | B64: Customer requested change requiring secondary and primary plant studies
A65: 32 | B65: Calculation of a site-specific distribution loss factor on request
A66: 33 | B66: Embedded network management
A67: 34 | B67: Connection application related services
A68: 35 | B68: Alteration and relocation of public lighting assets
A69: 36 | B69: New public lighting services including greenfield sites and new light types (distributor provided)
A70: 37 | B70: Provision, construction and maintenance of emerging public lighting technology
A71: 38
A72: 39
A73: 40
A74: 41
A75: 42
A76: 43
A77: 44
A78: 45
A79: 46
A80: 47
A81: 48
A82: 49
A83: 50
B85: =IFERROR("6.4 List of Service Codes for "&'Input|Setup'!$E$11&" to "&'Input|Setup'!$E$15&" regulatory period","") -> 6.4 List of Service Codes for 2026-27 to 2030-31 regulatory period
A87: 1 | B87: ND1P
A88: =IFERROR(A87+1,"") -> 2 | B88: ND3P
A89: =IFERROR(A88+1,"") -> 3 | B89: BTSO
A90: 4 | B90: BTSP
A91: 5 | B91: SUTK
A92: 6 | B92: RTK1
A93: 7 | B93: REEN
A94: 8 | B94: DEEN
A95: 9 | B95: DCTK
A96: 10 | B96: RCTK
A97: 11 | B97: SLOM
A98: 12 | B98: CUAC
A99: 13 | B99: RFOM
A100: 14 | B100: REENRM
A101: 15 | B101: DEENRM
A102: 16 | B102: MCTK
A103: 17 | B103: SPRDRM
A104: 18 | B104: MECFRM
A105: 19 | B105: SPRD
A106: 20 | B106: MTAL
A107: 21 | B107: MDCH
A108: 22 | B108: NCUM
A109: 23 | B109: WSVR
A110: 24 | B110: RTK3
A111: 25 | B111: 1PNOP
A112: 26 | B112: 1POP
A113: 27 | B113: 3DCL
A114: 28 | B114: 3CTL
A115: 29 | B115: AEXTSP
A116: 30 | B116: AEXTS2
A117: 31 | B117: AEXTTP
A118: 32 | B118: AEXTCT
A119: 33 | B119: NCI1
A120: 34 | B120: NCII
A121: 35
A122: 36
A123: 37
A124: 38
A125: 39
A126: 40
A127: 41
A128: 42
A129: 43
A130: 44
A131: 45
A132: 46
A133: 47
A134: 48
A135: 49
A136: 50

Sheet Input|Fee Based
B1: =IFERROR(Index!B1,"") -> Jemena Electricity Networks – Alternative Control Services Forecast model | D1: Key: | E1: Input | I1: Sheet Validation | J1: ='Model Validation'!C14 -> 0
B2: =IFERROR(MID(CELL("filename",A1),FIND("]",CELL("filename",A1))+1,255),"") -> Input|Fee Based | E2: Formula
B6: 7.1 Fee based services | F6: Mapping categories | I6: =IFERROR("7.2 Service cost build up - DIRECT COSTS, $'s ($"&'Input|Escalations'!$C$9&")","") -> 7.2 Service cost build up - DIRECT COSTS, $'s ($2024-25) | X6: 7.3 Service cost build - INDIRECT COSTS (per cent) | AF6: 7.4 Notes and sources for "Other costs"
I10: 7.2.1 Non-field based labour | M10: =IF(SUM(M12:M61)=0,0,1) -> 0 | N10: 7.2.2 Field based labour | S10: =IF(SUM(S12:S61)=0,0,1) -> 0 | T10: 7.2.3 Direct non-labour | X10: Indirect Costs
B11: Service code | C11: Service | D11: ='Input|Setup'!$B$24 -> Hours | E11: ='Input|Setup'!$H$30 -> Expense Type | F11: ='Input|Setup'!$E$30 -> Service category | G11: ='Input|Setup'!$H$40 -> Control Mechanism | I11: Labour category | J11: ='Input|Setup'!$B$24 -> Hours | K11: FTE | L11: Time on task (Minutes) | N11: Labour category | O11: ='Input|Setup'!$B$24 -> Hours | P11: FTE | Q11: Travel time (Minutes) | R11: Time on task (Minutes) | T11: ="Materials ($" & 'Input|Setup'!$E$7 & ")" -> Materials ($2024-25) | U11: ="Vehicles ($" & 'Input|Setup'!$E$7 & ")" -> Vehicles ($2024-25) | V11: ="Other ($" & 'Input|Setup'!$E$7 & ")" -> Other ($2024-25) | X11: Network Overhead (%) | Y11: Corporate Overhead (%) | Z11: Margin (%) | AA11: Tax recovery (%) | AF11: Notes and sources for "Other costs"
A12: 1 | B12: ND1P | C12: Basic connection, single-phase BH | D12: Business Hours | E12: Capex | F12: Basic connection services | G12: Fee Based | H12: =IF(AND(ISTEXT(C12),OR(ISBLANK(D12),ISBLANK(F12))),1,0) -> 0 | I12: =IF(INDIRECT("'"&$B12&"'!B10",TRUE)="","",INDIRECT("'"&$B12&"'!B10",TRUE)) -> Administrative Officer | J12: =IF(I12="","",$D$12) -> Business Hours | K12: =IF(I12="","",INDIRECT("'"&$B12&"'!D10",TRUE)) -> 1 | L12: =IF(I12="","",INDIRECT("'"&$B12&"'!F30",TRUE)) -> 60 | M12: =IF(OR( AND(ISTEXT(I12),ISBLANK(J12)), AND(ISTEXT(#REF!),ISBLANK(#REF!)), AND(ISTEXT(#REF!),ISBLANK(#REF!))),1,0) -> 0 | N12: =IF(INDIRECT("'"&$B12&"'!H10",TRUE)="","",INDIRECT("'"&$B12&"'!H10",TRUE)) -> Field Worker | O12: =IF(N12="","",D12) -> Business Hours | P12: =IF(N12="","",INDIRECT("'"&$B12&"'!J10",TRUE)) -> 2 | Q12: =IF(N12="","",INDIRECT("'"&$B12&"'!L10",TRUE)/P12) -> 30 | R12: =IF(N12="","",(INDIRECT("'"&$B12&"'!L30",TRUE)-($Q12*P12))/P12) -> 35 | S12: =IF(OR( AND(ISTEXT(N12),ISBLANK(O12)), AND(ISTEXT(#REF!),ISBLANK(#REF!)), AND(ISTEXT(#REF!),ISBLANK(#REF!)), AND(ISTEXT(#REF!),ISBLANK(#REF!)),),1,0) -> 0 | T12: =INDIRECT("'"&$B12&"'!F56",TRUE) -> 125.3640591 | U12: =INDIRECT("'"&$B12&"'!M56",TRUE) -> 57.74577116 | V12: =INDIRECT("'"&$B12&"'!q56",TRUE) -> 0 | X12: =SUMIF('Input|Indirect Cost Rates'!$E$25:$E$26,'Input|Fee Based'!$E12,'Input|Indirect Cost Rates'!$D$25:$D$26) -> 0.2093290404 | Y12: =SUMIF('Input|Indirect Cost Rates'!$E$27:$E$28,'Input|Fee Based'!$E12,'Input|Indirect Cost Rates'!$D$27:$D$28) -> 0.4009715377 | Z12: ='Input|Indirect Cost Rates'!$D$35 -> 0.06 | AA12: =IF(E12='Input|Setup'!$H$31,'Input|Indirect Cost Rates'!$D$44,0) -> 0.01872783643 | AB12: =IF(OR(ISBLANK(X12),_xlfn.ISFORMULA(X12)),0,1) -> 0 | AC12: =IF(OR(ISBLANK(Y12),_xlfn.ISFORMULA(Y12)),0,1) -> 0 | AD12: =IF(OR(ISBLANK(Z12),_xlfn.ISFORMULA(Z12)),0,1) -> 0 | AE12: =IF(OR(ISBLANK(AA12),_xlfn.ISFORMULA(AA12)),0,1) -> 0 | AG12: =IF(AND(OR(V12="",V12=0),AF12=""),0,IF(AND(V12<>"",V12<>0,AF12=""),1,0)) -> 0
A13: =IFERROR(A12+1,"") -> 2 | B13: ND1P | C13: Basic connection, single-phase AH | D13: After Hours | E13: Capex | F13: Basic connection services | G13: Fee Based | H13: 0 | I13: =IF(INDIRECT("'"&$B13&"'!B10",TRUE)="","",INDIRECT("'"&$B13&"'!B10",TRUE)) -> Administrative Officer | J13: =IF(I13="","",$D$12) -> Business Hours | K13: =IF(I13="","",INDIRECT("'"&$B13&"'!D10",TRUE)) -> 1 | L13: =IF(I13="","",INDIRECT("'"&$B13&"'!F30",TRUE)) -> 60 | M13: =IF(OR( AND(ISTEXT(I13),ISBLANK(J13)), AND(ISTEXT(#REF!),ISBLANK(#REF!)), AND(ISTEXT(#REF!),ISBLANK(#REF!))),1,0) -> 0 | N13: =IF(INDIRECT("'"&$B13&"'!H10",TRUE)="","",INDIRECT("'"&$B13&"'!H10",TRUE)) -> Field Worker | O13: =IF(N13="","",D13) -> After Hours | P13: =IF(N13="","",INDIRECT("'"&$B13&"'!J10",TRUE)) -> 2 | Q13: =IF(N13="","",INDIRECT("'"&$B13&"'!L10",TRUE)/P13) -> 30 | R13: =IF(N13="","",(INDIRECT("'"&$B13&"'!L30",TRUE)-($Q13*P13))/P13) -> 35 | S13: =IF(OR( AND(ISTEXT(N13),ISBLANK(O13)), AND(ISTEXT(#REF!),ISBLANK(#REF!)), AND(ISTEXT(#REF!),ISBLANK(#REF!)), AND(ISTEXT(#REF!),ISBLANK(#REF!)),),1,0) -> 0 | T13: =INDIRECT("'"&$B13&"'!F56",TRUE) -> 125.3640591 | U13: =INDIRECT("'"&$B13&"'!M56",TRUE) -> 57.74577116 | V13: =INDIRECT("'"&$B13&"'!q56",TRUE) -> 0 | X13: =SUMIF('Input|Indirect Cost Rates'!$E$25:$E$26,'Input|Fee Based'!$E13,'Input|Indirect Cost Rates'!$D$25:$D$26) -> 0.2093290404 | Y13: =SUMIF('Input|Indirect Cost Rates'!$E$27:$E$28,'Input|Fee Based'!$E13,'Input|Indirect Cost Rates'!$D$27:$D$28) -> 0.4009715377 | Z13: ='Input|Indirect Cost Rates'!$D$35 -> 0.06 | AA13: =IF(E13='Input|Setup'!$H$31,'Input|Indirect Cost Rates'!$D$44,0) -> 0.01872783643 | AB13: =IF(OR(ISBLANK(X13),_xlfn.ISFORMULA(X13)),0,1) -> 0 | AC13: =IF(OR(ISBLANK(Y13),_xlfn.ISFORMULA(Y13)),0,1) -> 0 | AD13: =IF(OR(ISBLANK(Z13),_xlfn.ISFORMULA(Z13)),0,1) -> 0 | AE13: =IF(OR(ISBLANK(AA13),_xlfn.ISFORMULA(AA13)),0,1) -> 0 | AG13: =IF(AND(OR(V13="",V13=0),AF13=""),0,IF(AND(V13<>"",V13<>0,AF13=""),1,0)) -> 0
A14: =IFERROR(A13+1,"") -> 3 | B14: ND3P | C14: Basic connection, three-phase BH | D14: Business Hours | E14: Capex | F14: Basic connection services | G14: Fee Based | H14: 0 | I14: =IF(INDIRECT("'"&$B14&"'!B10",TRUE)="","",INDIRECT("'"&$B14&"'!B10",TRUE)) -> Administrative Officer | J14: Business Hours | K14: =IF(I14="","",INDIRECT("'"&$B14&"'!D10",TRUE)) -> 1 | L14: =IF(I14="","",INDIRECT("'"&$B14&"'!F30",TRUE)) -> 60 | M14: =IF(OR( AND(ISTEXT(I14),ISBLANK(J14)), AND(ISTEXT(#REF!),ISBLANK(#REF!)), AND(ISTEXT(#REF!),ISBLANK(#REF!))),1,0) -> 0 | N14: =IF(INDIRECT("'"&$B14&"'!H10",TRUE)="","",INDIRECT("'"&$B14&"'!H10",TRUE)) -> Field Worker | O14: Business Hours | P14: =IF(N14="","",INDIRECT("'"&$B14&"'!J10",TRUE)) -> 2 | Q14: =IF(N14="","",INDIRECT("'"&$B14&"'!L10",TRUE)/P14) -> 30 | R14: =IF(N14="","",(INDIRECT("'"&$B14&"'!L30",TRUE)-($Q14*P14))/P14) -> 35 | S14: =IF(OR( AND(ISTEXT(N14),ISBLANK(O14)), AND(ISTEXT(#REF!),ISBLANK(#REF!)), AND(ISTEXT(#REF!),ISBLANK(#REF!)), AND(ISTEXT(#REF!),ISBLANK(#REF!)),),1,0) -> 0 | T14: =INDIRECT("'"&$B14&"'!F56",TRUE) -> 305.8727116 | U14: =INDIRECT("'"&$B14&"'!M56",TRUE) -> 57.74577116 | V14: =INDIRECT("'"&$B14&"'!q56",TRUE) -> 0 | X14: =SUMIF('Input|Indirect Cost Rates'!$E$25:$E$26,'Input|Fee Based'!$E14,'Input|Indirect Cost Rates'!$D$25:$D$26) -> 0.2093290404 | Y14: =SUMIF('Input|Indirect Cost Rates'!$E$27:$E$28,'Input|Fee Based'!$E14,'Input|Indirect Cost Rates'!$D$27:$D$28) -> 0.4009715377 | Z14: ='Input|Indirect Cost Rates'!$D$35 -> 0.06 | AA14: =IF(E14='Input|Setup'!$H$31,'Input|Indirect Cost Rates'!$D$44,0) -> 0.01872783643 | AB14: 0 | AC14: 0 | AD14: 0 | AE14: 0 | AG14: 0
A15: 4 | B15: ND3P | C15: Basic connection, three-phase AH | D15: After Hours | E15: Capex | F15: Basic connection services | G15: Fee Based | H15: 0 | I15: =IF(INDIRECT("'"&$B15&"'!B10",TRUE)="","",INDIRECT("'"&$B15&"'!B10",TRUE)) -> Administrative Officer | J15: Business Hours | K15: =IF(I15="","",INDIRECT("'"&$B15&"'!D10",TRUE)) -> 1 | L15: =IF(I15="","",INDIRECT("'"&$B15&"'!F30",TRUE)) -> 60 | M15: =IF(OR( AND(ISTEXT(I15),ISBLANK(J15)), AND(ISTEXT(#REF!),ISBLANK(#REF!)), AND(ISTEXT(#REF!),ISBLANK(#REF!))),1,0) -> 0 | N15: =IF(INDIRECT("'"&$B15&"'!H10",TRUE)="","",INDIRECT("'"&$B15&"'!H10",TRUE)) -> Field Worker | O15: After Hours | P15: =IF(N15="","",INDIRECT("'"&$B15&"'!J10",TRUE)) -> 2 | Q15: =IF(N15="","",INDIRECT("'"&$B15&"'!L10",TRUE)/P15) -> 30 | R15: =IF(N15="","",(INDIRECT("'"&$B15&"'!L30",TRUE)-($Q15*P15))/P15) -> 35 | S15: =IF(OR( AND(ISTEXT(N15),ISBLANK(O15)), AND(ISTEXT(#REF!),ISBLANK(#REF!)), AND(ISTEXT(#REF!),ISBLANK(#REF!)), AND(ISTEXT(#REF!),ISBLANK(#REF!)),),1,0) -> 0 | T15: =INDIRECT("'"&$B15&"'!F56",TRUE) -> 305.8727116 | U15: =INDIRECT("'"&$B15&"'!M56",TRUE) -> 57.74577116 | V15: =INDIRECT("'"&$B15&"'!q56",TRUE) -> 0 | X15: =SUMIF('Input|Indirect Cost Rates'!$E$25:$E$26,'Input|Fee Based'!$E15,'Input|Indirect Cost Rates'!$D$25:$D$26) -> 0.2093290404 | Y15: =SUMIF('Input|Indirect Cost Rates'!$E$27:$E$28,'Input|Fee Based'!$E15,'Input|Indirect Cost Rates'!$D$27:$D$28) -> 0.4009715377 | Z15: ='Input|Indirect Cost Rates'!$D$35 -> 0.06 | AA15: =IF(E15='Input|Setup'!$H$31,'Input|Indirect Cost Rates'!$D$44,0) -> 0.01872783643 | AB15: 0 | AC15: 0 | AD15: 0 | AE15: 0 | AG15: 0
A16: 5 | B16: BTSO | C16: Temporary connection, single-phase BH | D16: Business Hours | E16: Capex | F16: Connection service | G16: Fee Based | H16: 0 | I16: =IF(INDIRECT("'"&$B16&"'!B10",TRUE)="","",INDIRECT("'"&$B16&"'!B10",TRUE)) -> Administrative Officer | J16: Business Hours | K16: =IF(I16="","",INDIRECT("'"&$B16&"'!D10",TRUE)) -> 1 | L16: =IF(I16="","",INDIRECT("'"&$B16&"'!F30",TRUE)) -> 60 | M16: =IF(OR( AND(ISTEXT(I16),ISBLANK(J16)), AND(ISTEXT(#REF!),ISBLANK(#REF!)), AND(ISTEXT(#REF!),ISBLANK(#REF!))),1,0) -> 0 | N16: =IF(INDIRECT("'"&$B16&"'!H10",TRUE)="","",INDIRECT("'"&$B16&"'!H10",TRUE)) -> Field Worker | O16: Business Hours | P16: =IF(N16="","",INDIRECT("'"&$B16&"'!J10",TRUE)) -> 2 | Q16: =IF(N16="","",INDIRECT("'"&$B16&"'!L10",TRUE)/P16) -> 30 | R16: =IF(N16="","",(INDIRECT("'"&$B16&"'!L30",TRUE)-($Q16*P16))/P16) -> 35 | S16: =IF(OR( AND(ISTEXT(N16),ISBLANK(O16)), AND(ISTEXT(#REF!),ISBLANK(#REF!)), AND(ISTEXT(#REF!),ISBLANK(#REF!)), AND(ISTEXT(#REF!),ISBLANK(#REF!)),),1,0) -> 0 | T16: =INDIRECT("'"&$B16&"'!F56",TRUE) -> 125.3640591 | U16: =INDIRECT("'"&$B16&"'!M56",TRUE) -> 57.74577116 | V16: =INDIRECT("'"&$B16&"'!q56",TRUE) -> 0 | X16: =SUMIF('Input|Indirect Cost Rates'!$E$25:$E$26,'Input|Fee Based'!$E16,'Input|Indirect Cost Rates'!$D$25:$D$26) -> 0.2093290404 | Y16: =SUMIF('Input|Indirect Cost Rates'!$E$27:$E$28,'Input|Fee Based'!$E16,'Input|Indirect Cost Rates'!$D$27:$D$28) -> 0.4009715377 | Z16: ='Input|Indirect Cost Rates'!$D$35 -> 0.06 | AA16: =IF(E16='Input|Setup'!$H$31,'Input|Indirect Cost Rates'!$D$44,0) -> 0.01872783643 | AB16: 0 | AC16: 0 | AD16: 0 | AE16: 0 | AG16: 0
A17: 6 | B17: BTSO | C17: Temporary connection, single-phase AH | D17: After Hours | E17: Capex | F17: Connection service | G17: Fee Based | H17: 0 | I17: =IF(INDIRECT("'"&$B17&"'!B10",TRUE)="","",INDIRECT("'"&$B17&"'!B10",TRUE)) -> Administrative Officer | J17: Business Hours | K17: =IF(I17="","",INDIRECT("'"&$B17&"'!D10",TRUE)) -> 1 | L17: =IF(I17="","",INDIRECT("'"&$B17&"'!F30",TRUE)) -> 60 | M17: =IF(OR( AND(ISTEXT(I17),ISBLANK(J17)), AND(ISTEXT(#REF!),ISBLANK(#REF!)), AND(ISTEXT(#REF!),ISBLANK(#REF!))),1,0) -> 0 | N17: =IF(INDIRECT("'"&$B17&"'!H10",TRUE)="","",INDIRECT("'"&$B17&"'!H10",TRUE)) -> Field Worker | O17: After Hours | P17: =IF(N17="","",INDIRECT("'"&$B17&"'!J10",TRUE)) -> 2 | Q17: =IF(N17="","",INDIRECT("'"&$B17&"'!L10",TRUE)/P17) -> 30 | R17: =IF(N17="","",(INDIRECT("'"&$B17&"'!L30",TRUE)-($Q17*P17))/P17) -> 35 | S17: =IF(OR( AND(ISTEXT(N17),ISBLANK(O17)), AND(ISTEXT(#REF!),ISBLANK(#REF!)), AND(ISTEXT(#REF!),ISBLANK(#REF!)), AND(ISTEXT(#REF!),ISBLANK(#REF!)),),1,0) -> 0 | T17: =INDIRECT("'"&$B17&"'!F56",TRUE) -> 125.3640591 | U17: =INDIRECT("'"&$B17&"'!M56",TRUE) -> 57.74577116 | V17: =INDIRECT("'"&$B17&"'!q56",TRUE) -> 0 | X17: =SUMIF('Input|Indirect Cost Rates'!$E$25:$E$26,'Input|Fee Based'!$E17,'Input|Indirect Cost Rates'!$D$25:$D$26) -> 0.2093290404 | Y17: =SUMIF('Input|Indirect Cost Rates'!$E$27:$E$28,'Input|Fee Based'!$E17,'Input|Indirect Cost Rates'!$D$27:$D$28) -> 0.4009715377 | Z17: ='Input|Indirect Cost Rates'!$D$35 -> 0.06 | AA17: =IF(E17='Input|Setup'!$H$31,'Input|Indirect Cost Rates'!$D$44,0) -> 0.01872783643 | AB17: 0 | AC17: 0 | AD17: 0 | AE17: 0 | AG17: 0
A18: 7 | B18: BTSP | C18: Temporary connection, three-phase BH | D18: Business Hours | E18: Capex | F18: Connection service | G18: Fee Based | H18: 0 | I18: =IF(INDIRECT("'"&$B18&"'!B10",TRUE)="","",INDIRECT("'"&$B18&"'!B10",TRUE)) -> Administrative Officer | J18: Business Hours | K18: =IF(I18="","",INDIRECT("'"&$B18&"'!D10",TRUE)) -> 1 | L18: =IF(I18="","",INDIRECT("'"&$B18&"'!F30",TRUE)) -> 60 | M18: =IF(OR( AND(ISTEXT(I18),ISBLANK(J18)), AND(ISTEXT(#REF!),ISBLANK(#REF!)), AND(ISTEXT(#REF!),ISBLANK(#REF!))),1,0) -> 0 | N18: =IF(INDIRECT("'"&$B18&"'!H10",TRUE)="","",INDIRECT("'"&$B18&"'!H10",TRUE)) -> Field Worker | O18: Business Hours | P18: =IF(N18="","",INDIRECT("'"&$B18&"'!J10",TRUE)) -> 2 | Q18: =IF(N18="","",INDIRECT("'"&$B18&"'!L10",TRUE)/P18) -> 30 | R18: =IF(N18="","",(INDIRECT("'"&$B18&"'!L30",TRUE)-($Q18*P18))/P18) -> 35 | S18: =IF(OR( AND(ISTEXT(N18),ISBLANK(O18)), AND(ISTEXT(#REF!),ISBLANK(#REF!)), AND(ISTEXT(#REF!),ISBLANK(#REF!)), AND(ISTEXT(#REF!),ISBLANK(#REF!)),),1,0) -> 0 | T18: =INDIRECT("'"&$B18&"'!F56",TRUE) -> 305.8727116 | U18: =INDIRECT("'"&$B18&"'!M56",TRUE) -> 57.74577116 | V18: =INDIRECT("'"&$B18&"'!q56",TRUE) -> 0 | X18: =SUMIF('Input|Indirect Cost Rates'!$E$25:$E$26,'Input|Fee Based'!$E18,'Input|Indirect Cost Rates'!$D$25:$D$26) -> 0.2093290404 | Y18: =SUMIF('Input|Indirect Cost Rates'!$E$27:$E$28,'Input|Fee Based'!$E18,'Input|Indirect Cost Rates'!$D$27:$D$28) -> 0.4009715377 | Z18: ='Input|Indirect Cost Rates'!$D$35 -> 0.06 | AA18: =IF(E18='Input|Setup'!$H$31,'Input|Indirect Cost Rates'!$D$44,0) -> 0.01872783643 | AB18: 0 | AC18: 0 | AD18: 0 | AE18: 0 | AG18: 0
A19: 8 | B19: BTSP | C19: Temporary connection, three-phase AH | D19: After Hours | E19: Capex | F19: Connection service | G19: Fee Based | H19: 0 | I19: =IF(INDIRECT("'"&$B19&"'!B10",TRUE)="","",INDIRECT("'"&$B19&"'!B10",TRUE)) -> Administrative Officer | J19: Business Hours | K19: =IF(I19="","",INDIRECT("'"&$B19&"'!D10",TRUE)) -> 1 | L19: =IF(I19="","",INDIRECT("'"&$B19&"'!F30",TRUE)) -> 60 | M19: =IF(OR( AND(ISTEXT(I19),ISBLANK(J19)), AND(ISTEXT(#REF!),ISBLANK(#REF!)), AND(ISTEXT(#REF!),ISBLANK(#REF!))),1,0) -> 0 | N19: =IF(INDIRECT("'"&$B19&"'!H10",TRUE)="","",INDIRECT("'"&$B19&"'!H10",TRUE)) -> Field Worker | O19: After Hours | P19: =IF(N19="","",INDIRECT("'"&$B19&"'!J10",TRUE)) -> 2 | Q19: =IF(N19="","",INDIRECT("'"&$B19&"'!L10",TRUE)/P19) -> 30 | R19: =IF(N19="","",(INDIRECT("'"&$B19&"'!L30",TRUE)-($Q19*P19))/P19) -> 35 | S19: =IF(OR( AND(ISTEXT(N19),ISBLANK(O19)), AND(ISTEXT(#REF!),ISBLANK(#REF!)), AND(ISTEXT(#REF!),ISBLANK(#REF!)), AND(ISTEXT(#REF!),ISBLANK(#REF!)),),1,0) -> 0 | T19: =INDIRECT("'"&$B19&"'!F56",TRUE) -> 305.8727116 | U19: =INDIRECT("'"&$B19&"'!M56",TRUE) -> 57.74577116 | V19: =INDIRECT("'"&$B19&"'!q56",TRUE) -> 0 | X19: =SUMIF('Input|Indirect Cost Rates'!$E$25:$E$26,'Input|Fee Based'!$E19,'Input|Indirect Cost Rates'!$D$25:$D$26) -> 0.2093290404 | Y19: =SUMIF('Input|Indirect Cost Rates'!$E$27:$E$28,'Input|Fee Based'!$E19,'Input|Indirect Cost Rates'!$D$27:$D$28) -> 0.4009715377 | Z19: ='Input|Indirect Cost Rates'!$D$35 -> 0.06 | AA19: =IF(E19='Input|Setup'!$H$31,'Input|Indirect Cost Rates'!$D$44,0) -> 0.01872783643 | AB19: 0 | AC19: 0 | AD19: 0 | AE19: 0 | AG19: 0
A20: 9 | B20: SUTK | C20: Supply upgrade/enhancement (1ph to 3ph) BH | D20: Business Hours | E20: Capex | F20: Connection service | G20: Fee Based | H20: 0 | I20: =IF(INDIRECT("'"&$B20&"'!B10",TRUE)="","",INDIRECT("'"&$B20&"'!B10",TRUE)) -> Administrative Officer | J20: Business Hours | K20: =IF(I20="","",INDIRECT("'"&$B20&"'!D10",TRUE)) -> 1 | L20: =IF(I20="","",INDIRECT("'"&$B20&"'!F30",TRUE)) -> 60 | M20: =IF(OR( AND(ISTEXT(I20),ISBLANK(J20)), AND(ISTEXT(#REF!),ISBLANK(#REF!)), AND(ISTEXT(#REF!),ISBLANK(#REF!))),1,0) -> 0 | N20: =IF(INDIRECT("'"&$B20&"'!H10",TRUE)="","",INDIRECT("'"&$B20&"'!H10",TRUE)) -> Field Worker | O20: Business Hours | P20: =IF(N20="","",INDIRECT("'"&$B20&"'!J10",TRUE)) -> 2 | Q20: =IF(N20="","",INDIRECT("'"&$B20&"'!L10",TRUE)/P20) -> 30 | R20: =IF(N20="","",(INDIRECT("'"&$B20&"'!L30",TRUE)-($Q20*P20))/P20) -> 35 | S20: =IF(OR( AND(ISTEXT(N20),ISBLANK(O20)), AND(ISTEXT(#REF!),ISBLANK(#REF!)), AND(ISTEXT(#REF!),ISBLANK(#REF!)), AND(ISTEXT(#REF!),ISBLANK(#REF!)),),1,0) -> 0 | T20: =INDIRECT("'"&$B20&"'!F56",TRUE) -> 305.8727116 | U20: =INDIRECT("'"&$B20&"'!M56",TRUE) -> 57.74577116 | V20: =INDIRECT("'"&$B20&"'!q56",TRUE) -> 0 | X20: =SUMIF('Input|Indirect Cost Rates'!$E$25:$E$26,'Input|Fee Based'!$E20,'Input|Indirect Cost Rates'!$D$25:$D$26) -> 0.2093290404 | Y20: =SUMIF('Input|Indirect Cost Rates'!$E$27:$E$28,'Input|Fee Based'!$E20,'Input|Indirect Cost Rates'!$D$27:$D$28) -> 0.4009715377 | Z20: ='Input|Indirect Cost Rates'!$D$35 -> 0.06 | AA20: =IF(E20='Input|Setup'!$H$31,'Input|Indirect Cost Rates'!$D$44,0) -> 0.01872783643 | AB20: 0 | AC20: 0 | AD20: 0 | AE20: 0 | AG20: 0
A21: 10 | B21: SUTK | C21: Supply upgrade/enhancement (1ph to 3ph) AH | D21: After Hours | E21: Capex | F21: Connection service | G21: Fee Based | H21: 0 | I21: =IF(INDIRECT("'"&$B21&"'!B10",TRUE)="","",INDIRECT("'"&$B21&"'!B10",TRUE)) -> Administrative Officer | J21: Business Hours | K21: =IF(I21="","",INDIRECT("'"&$B21&"'!D10",TRUE)) -> 1 | L21: =IF(I21="","",INDIRECT("'"&$B21&"'!F30",TRUE)) -> 60 | M21: =IF(OR( AND(ISTEXT(I21),ISBLANK(J21)), AND(ISTEXT(#REF!),ISBLANK(#REF!)), AND(ISTEXT(#REF!),ISBLANK(#REF!))),1,0) -> 0 | N21: =IF(INDIRECT("'"&$B21&"'!H10",TRUE)="","",INDIRECT("'"&$B21&"'!H10",TRUE)) -> Field Worker | O21: After Hours | P21: =IF(N21="","",INDIRECT("'"&$B21&"'!J10",TRUE)) -> 2 | Q21: =IF(N21="","",INDIRECT("'"&$B21&"'!L10",TRUE)/P21) -> 30 | R21: =IF(N21="","",(INDIRECT("'"&$B21&"'!L30",TRUE)-($Q21*P21))/P21) -> 35 | S21: =IF(OR( AND(ISTEXT(N21),ISBLANK(O21)), AND(ISTEXT(#REF!),ISBLANK(#REF!)), AND(ISTEXT(#REF!),ISBLANK(#REF!)), AND(ISTEXT(#REF!),ISBLANK(#REF!)),),1,0) -> 0 | T21: =INDIRECT("'"&$B21&"'!F56",TRUE) -> 305.8727116 | U21: =INDIRECT("'"&$B21&"'!M56",TRUE) -> 57.74577116 | V21: =INDIRECT("'"&$B21&"'!q56",TRUE) -> 0 | X21: =SUMIF('Input|Indirect Cost Rates'!$E$25:$E$26,'Input|Fee Based'!$E21,'Input|Indirect Cost Rates'!$D$25:$D$26) -> 0.2093290404 | Y21: =SUMIF('Input|Indirect Cost Rates'!$E$27:$E$28,'Input|Fee Based'!$E21,'Input|Indirect Cost Rates'!$D$27:$D$28) -> 0.4009715377 | Z21: ='Input|Indirect Cost Rates'!$D$35 -> 0.06 | AA21: =IF(E21='Input|Setup'!$H$31,'Input|Indirect Cost Rates'!$D$44,0) -> 0.01872783643 | AB21: 0 | AC21: 0 | AD21: 0 | AE21: 0 | AG21: 0
A22: 11 | B22: RTK1 | C22: Replacement of 1-phase overhead service line BH | D22: Business Hours | E22: Capex | F22: Connection service | G22: Fee Based | H22: 0 | I22: =IF(INDIRECT("'"&$B22&"'!B10",TRUE)="","",INDIRECT("'"&$B22&"'!B10",TRUE)) -> Administrative Officer | J22: Business Hours | K22: =IF(I22="","",INDIRECT("'"&$B22&"'!D10",TRUE)) -> 1 | L22: =IF(I22="","",INDIRECT("'"&$B22&"'!F30",TRUE)) -> 60 | M22: =IF(OR( AND(ISTEXT(I22),ISBLANK(J22)), AND(ISTEXT(#REF!),ISBLANK(#REF!)), AND(ISTEXT(#REF!),ISBLANK(#REF!))),1,0) -> 0 | N22: =IF(INDIRECT("'"&$B22&"'!H10",TRUE)="","",INDIRECT("'"&$B22&"'!H10",TRUE)) -> Field Worker | O22: Business Hours | P22: =IF(N22="","",INDIRECT("'"&$B22&"'!J10",TRUE)) -> 2 | Q22: =IF(N22="","",INDIRECT("'"&$B22&"'!L10",TRUE)/P22) -> 30 | R22: =IF(N22="","",(INDIRECT("'"&$B22&"'!L30",TRUE)-($Q22*P22))/P22) -> 35 | S22: =IF(OR( AND(ISTEXT(N22),ISBLANK(O22)), AND(ISTEXT(#REF!),ISBLANK(#REF!)), AND(ISTEXT(#REF!),ISBLANK(#REF!)), AND(ISTEXT(#REF!),ISBLANK(#REF!)),),1,0) -> 0 | T22: =INDIRECT("'"&$B22&"'!F56",TRUE) -> 122.0274396 | U22: =INDIRECT("'"&$B22&"'!M56",TRUE) -> 81.15788799 | V22: =INDIRECT("'"&$B22&"'!q56",TRUE) -> 0 | X22: =SUMIF('Input|Indirect Cost Rates'!$E$25:$E$26,'Input|Fee Based'!$E22,'Input|Indirect Cost Rates'!$D$25:$D$26) -> 0.2093290404 | Y22: =SUMIF('Input|Indirect Cost Rates'!$E$27:$E$28,'Input|Fee Based'!$E22,'Input|Indirect Cost Rates'!$D$27:$D$28) -> 0.4009715377 | Z22: ='Input|Indirect Cost Rates'!$D$35 -> 0.06 | AA22: =IF(E22='Input|Setup'!$H$31,'Input|Indirect Cost Rates'!$D$44,0) -> 0.01872783643 | AB22: 0 | AC22: 0 | AD22: 0 | AE22: 0 | AG22: 0
A23: 12 | B23: RTK1 | C23: Replacement of 1-phase overhead service line AH | D23: After Hours | E23: Capex | F23: Connection service | G23: Fee Based | H23: 0 | I23: =IF(INDIRECT("'"&$B23&"'!B10",TRUE)="","",INDIRECT("'"&$B23&"'!B10",TRUE)) -> Administrative Officer | J23: Business Hours | K23: =IF(I23="","",INDIRECT("'"&$B23&"'!D10",TRUE)) -> 1 | L23: =IF(I23="","",INDIRECT("'"&$B23&"'!F30",TRUE)) -> 60 | M23: =IF(OR( AND(ISTEXT(I23),ISBLANK(J23)), AND(ISTEXT(#REF!),ISBLANK(#REF!)), AND(ISTEXT(#REF!),ISBLANK(#REF!))),1,0) -> 0 | N23: =IF(INDIRECT("'"&$B23&"'!H10",TRUE)="","",INDIRECT("'"&$B23&"'!H10",TRUE)) -> Field Worker | O23: After Hours | P23: =IF(N23="","",INDIRECT("'"&$B23&"'!J10",TRUE)) -> 2 | Q23: =IF(N23="","",INDIRECT("'"&$B23&"'!L10",TRUE)/P23) -> 30 | R23: =IF(N23="","",(INDIRECT("'"&$B23&"'!L30",TRUE)-($Q23*P23))/P23) -> 35 | S23: =IF(OR( AND(ISTEXT(N23),ISBLANK(O23)), AND(ISTEXT(#REF!),ISBLANK(#REF!)), AND(ISTEXT(#REF!),ISBLANK(#REF!)), AND(ISTEXT(#REF!),ISBLANK(#REF!)),),1,0) -> 0 | T23: =INDIRECT("'"&$B23&"'!F56",TRUE) -> 122.0274396 | U23: =INDIRECT("'"&$B23&"'!M56",TRUE) -> 81.15788799 | V23: =INDIRECT("'"&$B23&"'!q56",TRUE) -> 0 | X23: =SUMIF('Input|Indirect Cost Rates'!$E$25:$E$26,'Input|Fee Based'!$E23,'Input|Indirect Cost Rates'!$D$25:$D$26) -> 0.2093290404 | Y23: =SUMIF('Input|Indirect Cost Rates'!$E$27:$E$28,'Input|Fee Based'!$E23,'Input|Indirect Cost Rates'!$D$27:$D$28) -> 0.4009715377 | Z23: ='Input|Indirect Cost Rates'!$D$35 -> 0.06 | AA23: =IF(E23='Input|Setup'!$H$31,'Input|Indirect Cost Rates'!$D$44,0) -> 0.01872783643 | AB23: 0 | AC23: 0 | AD23: 0 | AE23: 0 | AG23: 0
A24: 13 | B24: REEN | C24: Field-based energisation BH | D24: Business Hours | E24: Opex | F24: Connection service | G24: Fee Based | H24: 0 | I24: =IF(INDIRECT("'"&$B24&"'!B10",TRUE)="","",INDIRECT("'"&$B24&"'!B10",TRUE)) -> Administrative Officer | J24: Business Hours | K24: =IF(I24="","",INDIRECT("'"&$B24&"'!D10",TRUE)) -> 1 | L24: =IF(I24="","",INDIRECT("'"&$B24&"'!F30",TRUE)) -> 12.7 | M24: =IF(OR( AND(ISTEXT(I24),ISBLANK(J24)), AND(ISTEXT(#REF!),ISBLANK(#REF!)), AND(ISTEXT(#REF!),ISBLANK(#REF!))),1,0) -> 0 | N24: =IF(INDIRECT("'"&$B24&"'!H10",TRUE)="","",INDIRECT("'"&$B24&"'!H10",TRUE)) -> Field Worker | O24: Business Hours | P24: =IF(N24="","",INDIRECT("'"&$B24&"'!J10",TRUE)) -> 1 | Q24: =IF(N24="","",INDIRECT("'"&$B24&"'!L10",TRUE)/P24) -> 20 | R24: =IF(N24="","",(INDIRECT("'"&$B24&"'!L30",TRUE)-($Q24*P24))/P24) -> 15 | S24: =IF(OR( AND(ISTEXT(N24),ISBLANK(O24)), AND(ISTEXT(#REF!),ISBLANK(#REF!)), AND(ISTEXT(#REF!),ISBLANK(#REF!)), AND(ISTEXT(#REF!),ISBLANK(#REF!)),),1,0) -> 0 | T24: =INDIRECT("'"&$B24&"'!F56",TRUE) -> 0 | U24: =INDIRECT("'"&$B24&"'!M56",TRUE) -> 31.09387678 | V24: =INDIRECT("'"&$B24&"'!q56",TRUE) -> 0 | X24: =SUMIF('Input|Indirect Cost Rates'!$E$25:$E$26,'Input|Fee Based'!$E24,'Input|Indirect Cost Rates'!$D$25:$D$26) -> 0.2093290404 | Y24: =SUMIF('Input|Indirect Cost Rates'!$E$27:$E$28,'Input|Fee Based'!$E24,'Input|Indirect Cost Rates'!$D$27:$D$28) -> 0.4009715377 | Z24: ='Input|Indirect Cost Rates'!$D$35 -> 0.06 | AA24: =IF(E24='Input|Setup'!$H$31,'Input|Indirect Cost Rates'!$D$44,0) -> 0 | AB24: 0 | AC24: 0 | AD24: 0 | AE24: 0 | AF24: 0 | AG24: 0
A25: 14 | B25: REEN | C25: Field-based energisation AH | D25: After Hours | E25: Opex | F25: Connection service | G25: Fee Based | H25: 0 | I25: =IF(INDIRECT("'"&$B25&"'!B10",TRUE)="","",INDIRECT("'"&$B25&"'!B10",TRUE)) -> Administrative Officer | J25: Business Hours | K25: =IF(I25="","",INDIRECT("'"&$B25&"'!D10",TRUE)) -> 1 | L25: =IF(I25="","",INDIRECT("'"&$B25&"'!F30",TRUE)) -> 12.7 | M25: =IF(OR( AND(ISTEXT(I25),ISBLANK(J25)), AND(ISTEXT(#REF!),ISBLANK(#REF!)), AND(ISTEXT(#REF!),ISBLANK(#REF!))),1,0) -> 0 | N25: =IF(INDIRECT("'"&$B25&"'!H10",TRUE)="","",INDIRECT("'"&$B25&"'!H10",TRUE)) -> Field Worker | O25: After Hours | P25: =IF(N25="","",INDIRECT("'"&$B25&"'!J10",TRUE)) -> 1 | Q25: =IF(N25="","",INDIRECT("'"&$B25&"'!L10",TRUE)/P25) -> 20 | R25: =IF(N25="","",(INDIRECT("'"&$B25&"'!L30",TRUE)-($Q25*P25))/P25) -> 15 | S25: =IF(OR( AND(ISTEXT(N25),ISBLANK(O25)), AND(ISTEXT(#REF!),ISBLANK(#REF!)), AND(ISTEXT(#REF!),ISBLANK(#REF!)), AND(ISTEXT(#REF!),ISBLANK(#REF!)),),1,0) -> 0 | T25: =INDIRECT("'"&$B25&"'!F56",TRUE) -> 0 | U25: =INDIRECT("'"&$B25&"'!M56",TRUE) -> 31.09387678 | V25: =INDIRECT("'"&$B25&"'!q56",TRUE) -> 0 | X25: =SUMIF('Input|Indirect Cost Rates'!$E$25:$E$26,'Input|Fee Based'!$E25,'Input|Indirect Cost Rates'!$D$25:$D$26) -> 0.2093290404 | Y25: =SUMIF('Input|Indirect Cost Rates'!$E$27:$E$28,'Input|Fee Based'!$E25,'Input|Indirect Cost Rates'!$D$27:$D$28) -> 0.4009715377 | Z25: ='Input|Indirect Cost Rates'!$D$35 -> 0.06 | AA25: =IF(E25='Input|Setup'!$H$31,'Input|Indirect Cost Rates'!$D$44,0) -> 0 | AB25: 0 | AC25: 0 | AD25: 0 | AE25: 0 | AF25: 0 | AG25: 0
A26: 15 | B26: DEEN | C26: Field-based de-energisation BH | D26: Business Hours | E26: Opex | F26: Connection service | G26: Fee Based | H26: 0 | I26: =IF(INDIRECT("'"&$B26&"'!B10",TRUE)="","",INDIRECT("'"&$B26&"'!B10",TRUE)) -> Administrative Officer | J26: Business Hours | K26: =IF(I26="","",INDIRECT("'"&$B26&"'!D10",TRUE)) -> 1 | L26: =IF(I26="","",INDIRECT("'"&$B26&"'!F30",TRUE)) -> 20.2 | M26: =IF(OR( AND(ISTEXT(I26),ISBLANK(J26)), AND(ISTEXT(#REF!),ISBLANK(#REF!)), AND(ISTEXT(#REF!),ISBLANK(#REF!))),1,0) -> 0 | N26: =IF(INDIRECT("'"&$B26&"'!H10",TRUE)="","",INDIRECT("'"&$B26&"'!H10",TRUE)) -> Field Worker | O26: Business Hours | P26: =IF(N26="","",INDIRECT("'"&$B26&"'!J10",TRUE)) -> 1 | Q26: =IF(N26="","",INDIRECT("'"&$B26&"'!L10",TRUE)/P26) -> 20 | R26: =IF(N26="","",(INDIRECT("'"&$B26&"'!L30",TRUE)-($Q26*P26))/P26) -> 15 | S26: =IF(OR( AND(ISTEXT(N26),ISBLANK(O26)), AND(ISTEXT(#REF!),ISBLANK(#REF!)), AND(ISTEXT(#REF!),ISBLANK(#REF!)), AND(ISTEXT(#REF!),ISBLANK(#REF!)),),1,0) -> 0 | T26: =INDIRECT("'"&$B26&"'!F56",TRUE) -> 0 | U26: =INDIRECT("'"&$B26&"'!M56",TRUE) -> 31.09387678 | V26: =INDIRECT("'"&$B26&"'!q56",TRUE) -> 0 | X26: =SUMIF('Input|Indirect Cost Rates'!$E$25:$E$26,'Input|Fee Based'!$E26,'Input|Indirect Cost Rates'!$D$25:$D$26) -> 0.2093290404 | Y26: =SUMIF('Input|Indirect Cost Rates'!$E$27:$E$28,'Input|Fee Based'!$E26,'Input|Indirect Cost Rates'!$D$27:$D$28) -> 0.4009715377 | Z26: ='Input|Indirect Cost Rates'!$D$35 -> 0.06 | AA26: =IF(E26='Input|Setup'!$H$31,'Input|Indirect Cost Rates'!$D$44,0) -> 0 | AB26: 0 | AC26: 0 | AD26: 0 | AE26: 0 | AF26: 0 | AG26: 0
A27: 16 | B27: DCTK | C27: Disconnection (temporary) BH | D27: Business Hours | E27: Opex | F27: Customer requested supply outage | G27: Fee Based | H27: 0 | I27: =IF(INDIRECT("'"&$B27&"'!B10",TRUE)="","",INDIRECT("'"&$B27&"'!B10",TRUE)) -> Administrative Officer | J27: Business Hours | K27: =IF(I27="","",INDIRECT("'"&$B27&"'!D10",TRUE)) -> 1 | L27: =IF(I27="","",INDIRECT("'"&$B27&"'!F30",TRUE)) -> 30 | M27: =IF(OR( AND(ISTEXT(I27),ISBLANK(J27)), AND(ISTEXT(#REF!),ISBLANK(#REF!)), AND(ISTEXT(#REF!),ISBLANK(#REF!))),1,0) -> 0 | N27: =IF(INDIRECT("'"&$B27&"'!H10",TRUE)="","",INDIRECT("'"&$B27&"'!H10",TRUE)) -> Field Worker | O27: Business Hours | P27: =IF(N27="","",INDIRECT("'"&$B27&"'!J10",TRUE)) -> 2 | Q27: =IF(N27="","",INDIRECT("'"&$B27&"'!L10",TRUE)/P27) -> 30 | R27: =IF(N27="","",(INDIRECT("'"&$B27&"'!L30",TRUE)-($Q27*P27))/P27) -> 25 | S27: =IF(OR( AND(ISTEXT(N27),ISBLANK(O27)), AND(ISTEXT(#REF!),ISBLANK(#REF!)), AND(ISTEXT(#REF!),ISBLANK(#REF!)), AND(ISTEXT(#REF!),ISBLANK(#REF!)),),1,0) -> 0 | T27: =INDIRECT("'"&$B27&"'!F56",TRUE) -> 0 | U27: =INDIRECT("'"&$B27&"'!M56",TRUE) -> 49.3026832 | V27: =INDIRECT("'"&$B27&"'!q56",TRUE) -> 0 | X27: =SUMIF('Input|Indirect Cost Rates'!$E$25:$E$26,'Input|Fee Based'!$E27,'Input|Indirect Cost Rates'!$D$25:$D$26) -> 0.2093290404 | Y27: =SUMIF('Input|Indirect Cost Rates'!$E$27:$E$28,'Input|Fee Based'!$E27,'Input|Indirect Cost Rates'!$D$27:$D$28) -> 0.4009715377 | Z27: ='Input|Indirect Cost Rates'!$D$35 -> 0.06 | AA27: =IF(E27='Input|Setup'!$H$31,'Input|Indirect Cost Rates'!$D$44,0) -> 0 | AB27: 0 | AC27: 0 | AD27: 0 | AE27: 0 | AG27: 0
A28: 17 | B28: DCTK | C28: Disconnection (temporary) AH | D28: After Hours | E28: Opex | F28: Customer requested supply outage | G28: Fee Based | H28: 0 | I28: =IF(INDIRECT("'"&$B28&"'!B10",TRUE)="","",INDIRECT("'"&$B28&"'!B10",TRUE)) -> Administrative Officer | J28: Business Hours | K28: =IF(I28="","",INDIRECT("'"&$B28&"'!D10",TRUE)) -> 1 | L28: =IF(I28="","",INDIRECT("'"&$B28&"'!F30",TRUE)) -> 30 | M28: =IF(OR( AND(ISTEXT(I28),ISBLANK(J28)), AND(ISTEXT(#REF!),ISBLANK(#REF!)), AND(ISTEXT(#REF!),ISBLANK(#REF!))),1,0) -> 0 | N28: =IF(INDIRECT("'"&$B28&"'!H10",TRUE)="","",INDIRECT("'"&$B28&"'!H10",TRUE)) -> Field Worker | O28: After Hours | P28: =IF(N28="","",INDIRECT("'"&$B28&"'!J10",TRUE)) -> 2 | Q28: =IF(N28="","",INDIRECT("'"&$B28&"'!L10",TRUE)/P28) -> 30 | R28: =IF(N28="","",(INDIRECT("'"&$B28&"'!L30",TRUE)-($Q28*P28))/P28) -> 25 | S28: =IF(OR( AND(ISTEXT(N28),ISBLANK(O28)), AND(ISTEXT(#REF!),ISBLANK(#REF!)), AND(ISTEXT(#REF!),ISBLANK(#REF!)), AND(ISTEXT(#REF!),ISBLANK(#REF!)),),1,0) -> 0 | T28: =INDIRECT("'"&$B28&"'!F56",TRUE) -> 0 | U28: =INDIRECT("'"&$B28&"'!M56",TRUE) -> 49.3026832 | V28: =INDIRECT("'"&$B28&"'!q56",TRUE) -> 0 | X28: =SUMIF('Input|Indirect Cost Rates'!$E$25:$E$26,'Input|Fee Based'!$E28,'Input|Indirect Cost Rates'!$D$25:$D$26) -> 0.2093290404 | Y28: =SUMIF('Input|Indirect Cost Rates'!$E$27:$E$28,'Input|Fee Based'!$E28,'Input|Indirect Cost Rates'!$D$27:$D$28) -> 0.4009715377 | Z28: ='Input|Indirect Cost Rates'!$D$35 -> 0.06 | AA28: =IF(E28='Input|Setup'!$H$31,'Input|Indirect Cost Rates'!$D$44,0) -> 0 | AB28: 0 | AC28: 0 | AD28: 0 | AE28: 0 | AG28: 0
A29: 18 | B29: RCTK | C29: Reconnection after temp discon BH | D29: Business Hours | E29: Opex | F29: Customer requested supply outage | G29: Fee Based | H29: 0 | I29: =IF(INDIRECT("'"&$B29&"'!B10",TRUE)="","",INDIRECT("'"&$B29&"'!B10",TRUE)) -> Administrative Officer | J29: Business Hours | K29: =IF(I29="","",INDIRECT("'"&$B29&"'!D10",TRUE)) -> 1 | L29: =IF(I29="","",INDIRECT("'"&$B29&"'!F30",TRUE)) -> 30 | M29: =IF(OR( AND(ISTEXT(I29),ISBLANK(J29)), AND(ISTEXT(#REF!),ISBLANK(#REF!)), AND(ISTEXT(#REF!),ISBLANK(#REF!))),1,0) -> 0 | N29: =IF(INDIRECT("'"&$B29&"'!H10",TRUE)="","",INDIRECT("'"&$B29&"'!H10",TRUE)) -> Field Worker | O29: Business Hours | P29: =IF(N29="","",INDIRECT("'"&$B29&"'!J10",TRUE)) -> 2 | Q29: =IF(N29="","",INDIRECT("'"&$B29&"'!L10",TRUE)/P29) -> 30 | R29: =IF(N29="","",(INDIRECT("'"&$B29&"'!L30",TRUE)-($Q29*P29))/P29) -> 35 | S29: =IF(OR( AND(ISTEXT(N29),ISBLANK(O29)), AND(ISTEXT(#REF!),ISBLANK(#REF!)), AND(ISTEXT(#REF!),ISBLANK(#REF!)), AND(ISTEXT(#REF!),ISBLANK(#REF!)),),1,0) -> 0 | T29: =INDIRECT("'"&$B29&"'!F56",TRUE) -> 0 | U29: =INDIRECT("'"&$B29&"'!M56",TRUE) -> 58.26680742 | V29: =INDIRECT("'"&$B29&"'!q56",TRUE) -> 0 | X29: =SUMIF('Input|Indirect Cost Rates'!$E$25:$E$26,'Input|Fee Based'!$E29,'Input|Indirect Cost Rates'!$D$25:$D$26) -> 0.2093290404 | Y29: =SUMIF('Input|Indirect Cost Rates'!$E$27:$E$28,'Input|Fee Based'!$E29,'Input|Indirect Cost Rates'!$D$27:$D$28) -> 0.4009715377 | Z29: ='Input|Indirect Cost Rates'!$D$35 -> 0.06 | AA29: =IF(E29='Input|Setup'!$H$31,'Input|Indirect Cost Rates'!$D$44,0) -> 0 | AB29: 0 | AC29: 0 | AD29: 0 | AE29: 0 | AG29: 0
A30: 19 | B30: RCTK | C30: Reconnection after temp discon AH | D30: After Hours | E30: Opex | F30: Customer requested supply outage | G30: Fee Based | H30: 0 | I30: =IF(INDIRECT("'"&$B30&"'!B10",TRUE)="","",INDIRECT("'"&$B30&"'!B10",TRUE)) -> Administrative Officer | J30: Business Hours | K30: =IF(I30="","",INDIRECT("'"&$B30&"'!D10",TRUE)) -> 1 | L30: =IF(I30="","",INDIRECT("'"&$B30&"'!F30",TRUE)) -> 30 | M30: =IF(OR( AND(ISTEXT(I30),ISBLANK(J30)), AND(ISTEXT(#REF!),ISBLANK(#REF!)), AND(ISTEXT(#REF!),ISBLANK(#REF!))),1,0) -> 0 | N30: =IF(INDIRECT("'"&$B30&"'!H10",TRUE)="","",INDIRECT("'"&$B30&"'!H10",TRUE)) -> Field Worker | O30: After Hours | P30: =IF(N30="","",INDIRECT("'"&$B30&"'!J10",TRUE)) -> 2 | Q30: =IF(N30="","",INDIRECT("'"&$B30&"'!L10",TRUE)/P30) -> 30 | R30: =IF(N30="","",(INDIRECT("'"&$B30&"'!L30",TRUE)-($Q30*P30))/P30) -> 35 | S30: =IF(OR( AND(ISTEXT(N30),ISBLANK(O30)), AND(ISTEXT(#REF!),ISBLANK(#REF!)), AND(ISTEXT(#REF!),ISBLANK(#REF!)), AND(ISTEXT(#REF!),ISBLANK(#REF!)),),1,0) -> 0 | T30: =INDIRECT("'"&$B30&"'!F56",TRUE) -> 0 | U30: =INDIRECT("'"&$B30&"'!M56",TRUE) -> 58.26680742 | V30: =INDIRECT("'"&$B30&"'!q56",TRUE) -> 0 | X30: =SUMIF('Input|Indirect Cost Rates'!$E$25:$E$26,'Input|Fee Based'!$E30,'Input|Indirect Cost Rates'!$D$25:$D$26) -> 0.2093290404 | Y30: =SUMIF('Input|Indirect Cost Rates'!$E$27:$E$28,'Input|Fee Based'!$E30,'Input|Indirect Cost Rates'!$D$27:$D$28) -> 0.4009715377 | Z30: ='Input|Indirect Cost Rates'!$D$35 -> 0.06 | AA30: =IF(E30='Input|Setup'!$H$31,'Input|Indirect Cost Rates'!$D$44,0) -> 0 | AB30: 0 | AC30: 0 | AD30: 0 | AE30: 0 | AG30: 0
A31: 20 | B31: SLOM | C31: Security Lighting - O&M | D31: Business Hours | E31: Capex | F31: Security lights | G31: Fee Based | H31: 0 | I31: =IF(INDIRECT("'"&$B31&"'!B10",TRUE)="","",INDIRECT("'"&$B31&"'!B10",TRUE)) ->  | K31: =IF(I31="","",INDIRECT("'"&$B31&"'!D10",TRUE)) ->  | L31: =IF(I31="","",INDIRECT("'"&$B31&"'!F30",TRUE)) ->  | M31: =IF(OR( AND(ISTEXT(I31),ISBLANK(J31)), AND(ISTEXT(#REF!),ISBLANK(#REF!)), AND(ISTEXT(#REF!),ISBLANK(#REF!))),1,0) -> 0 | N31: =IF(INDIRECT("'"&$B31&"'!H10",TRUE)="","",INDIRECT("'"&$B31&"'!H10",TRUE)) ->  | P31: =IF(N31="","",INDIRECT("'"&$B31&"'!J10",TRUE)) ->  | Q31: =IF(N31="","",INDIRECT("'"&$B31&"'!L10",TRUE)/P31) ->  | R31: =IF(N31="","",(INDIRECT("'"&$B31&"'!L30",TRUE)-($Q31*P31))/P31) ->  | S31: =IF(OR( AND(ISTEXT(N31),ISBLANK(O31)), AND(ISTEXT(#REF!),ISBLANK(#REF!)), AND(ISTEXT(#REF!),ISBLANK(#REF!)), AND(ISTEXT(#REF!),ISBLANK(#REF!)),),1,0) -> 0 | T31: =INDIRECT("'"&$B31&"'!F56",TRUE) -> 0 | U31: =INDIRECT("'"&$B31&"'!M56",TRUE) -> 0 | V31: =INDIRECT("'"&$B31&"'!q56",TRUE) -> 96.67721015 | X31: =SUMIF('Input|Indirect Cost Rates'!$E$25:$E$26,'Input|Fee Based'!$E31,'Input|Indirect Cost Rates'!$D$25:$D$26) -> 0.2093290404 | Y31: =SUMIF('Input|Indirect Cost Rates'!$E$27:$E$28,'Input|Fee Based'!$E31,'Input|Indirect Cost Rates'!$D$27:$D$28) -> 0.4009715377 | Z31: ='Input|Indirect Cost Rates'!$D$35 -> 0.06 | AA31: =IF(E31='Input|Setup'!$H$31,'Input|Indirect Cost Rates'!$D$44,0) -> 0.01872783643 | AB31: 0 | AC31: 0 | AD31: 0 | AE31: 0 | AF31: Refer to "Other Costs" table in 'SLOM' tab. | AG31: 0
A32: 21 | B32: RFOM | C32: Enhanced Connection Operation and Maintenance | D32: Business Hours | E32: Opex | F32: Enhanced connection services | G32: Fee Based | H32: 0 | I32: =IF(INDIRECT("'"&$B32&"'!B10",TRUE)="","",INDIRECT("'"&$B32&"'!B10",TRUE)) ->  | K32: =IF(I32="","",INDIRECT("'"&$B32&"'!D10",TRUE)) ->  | L32: =IF(I32="","",INDIRECT("'"&$B32&"'!F30",TRUE)) ->  | M32: =IF(OR( AND(ISTEXT(I32),ISBLANK(J32)), AND(ISTEXT(#REF!),ISBLANK(#REF!)), AND(ISTEXT(#REF!),ISBLANK(#REF!))),1,0) -> 0 | N32: =IF(INDIRECT("'"&$B32&"'!H10",TRUE)="","",INDIRECT("'"&$B32&"'!H10",TRUE)) ->  | P32: =IF(N32="","",INDIRECT("'"&$B32&"'!J10",TRUE)) ->  | Q32: =IF(N32="","",INDIRECT("'"&$B32&"'!L10",TRUE)/P32) ->  | R32: =IF(N32="","",(INDIRECT("'"&$B32&"'!L30",TRUE)-($Q32*P32))/P32) ->  | S32: =IF(OR( AND(ISTEXT(N32),ISBLANK(O32)), AND(ISTEXT(#REF!),ISBLANK(#REF!)), AND(ISTEXT(#REF!),ISBLANK(#REF!)), AND(ISTEXT(#REF!),ISBLANK(#REF!)),),1,0) -> 0 | T32: =INDIRECT("'"&$B32&"'!F56",TRUE) -> 0 | U32: =INDIRECT("'"&$B32&"'!M56",TRUE) -> 0 | V32: =INDIRECT("'"&$B32&"'!q56",TRUE) -> 9.207923533 | X32: =SUMIF('Input|Indirect Cost Rates'!$E$25:$E$26,'Input|Fee Based'!$E32,'Input|Indirect Cost Rates'!$D$25:$D$26) -> 0.2093290404 | Y32: =SUMIF('Input|Indirect Cost Rates'!$E$27:$E$28,'Input|Fee Based'!$E32,'Input|Indirect Cost Rates'!$D$27:$D$28) -> 0.4009715377 | Z32: ='Input|Indirect Cost Rates'!$D$35 -> 0.06 | AA32: =IF(E32='Input|Setup'!$H$31,'Input|Indirect Cost Rates'!$D$44,0) -> 0 | AB32: 0 | AC32: 0 | AD32: 0 | AE32: 0 | AF32: Estimation of operating and maintenance expenditure attributed to the high voltage network for deriving reserve feeder rate ($/kW) | AG32: 0
A33: 22 | B33: REENRM | C33: Remote energisation | D33: Business Hours | E33: Opex | F33: Auxiliary metering services | G33: Fee Based | H33: 0 | I33: =IF(INDIRECT("'"&$B33&"'!B10",TRUE)="","",INDIRECT("'"&$B33&"'!B10",TRUE)) ->  | K33: =IF(I33="","",INDIRECT("'"&$B33&"'!D10",TRUE)) ->  | L33: =IF(I33="","",INDIRECT("'"&$B33&"'!F30",TRUE)) ->  | M33: =IF(OR( AND(ISTEXT(I33),ISBLANK(J33)), AND(ISTEXT(#REF!),ISBLANK(#REF!)), AND(ISTEXT(#REF!),ISBLANK(#REF!))),1,0) -> 0 | N33: =IF(INDIRECT("'"&$B33&"'!H10",TRUE)="","",INDIRECT("'"&$B33&"'!H10",TRUE)) ->  | P33: =IF(N33="","",INDIRECT("'"&$B33&"'!J10",TRUE)) ->  | Q33: =IF(N33="","",INDIRECT("'"&$B33&"'!L10",TRUE)/P33) ->  | R33: =IF(N33="","",(INDIRECT("'"&$B33&"'!L30",TRUE)-($Q33*P33))/P33) ->  | S33: =IF(OR( AND(ISTEXT(N33),ISBLANK(O33)), AND(ISTEXT(#REF!),ISBLANK(#REF!)), AND(ISTEXT(#REF!),ISBLANK(#REF!)), AND(ISTEXT(#REF!),ISBLANK(#REF!)),),1,0) -> 0 | T33: =INDIRECT("'"&$B33&"'!F56",TRUE) -> 0 | U33: =INDIRECT("'"&$B33&"'!M56",TRUE) -> 0 | V33: =INDIRECT("'"&$B33&"'!q56",TRUE) -> 0 | X33: =SUMIF('Input|Indirect Cost Rates'!$E$25:$E$26,'Input|Fee Based'!$E33,'Input|Indirect Cost Rates'!$D$25:$D$26) -> 0.2093290404 | Y33: =SUMIF('Input|Indirect Cost Rates'!$E$27:$E$28,'Input|Fee Based'!$E33,'Input|Indirect Cost Rates'!$D$27:$D$28) -> 0.4009715377 | Z33: ='Input|Indirect Cost Rates'!$D$35 -> 0.06 | AA33: =IF(E33='Input|Setup'!$H$31,'Input|Indirect Cost Rates'!$D$44,0) -> 0 | AB33: 0 | AC33: 0 | AD33: 0 | AE33: 0 | AG33: 0
A34: 23 | B34: DEENRM | C34: Remote de-energisation | D34: Business Hours | E34: Opex | F34: Auxiliary metering services | G34: Fee Based | H34: 0 | I34: =IF(INDIRECT("'"&$B34&"'!B10",TRUE)="","",INDIRECT("'"&$B34&"'!B10",TRUE)) ->  | K34: =IF(I34="","",INDIRECT("'"&$B34&"'!D10",TRUE)) ->  | L34: =IF(I34="","",INDIRECT("'"&$B34&"'!F30",TRUE)) ->  | M34: =IF(OR( AND(ISTEXT(I34),ISBLANK(J34)), AND(ISTEXT(#REF!),ISBLANK(#REF!)), AND(ISTEXT(#REF!),ISBLANK(#REF!))),1,0) -> 0 | N34: =IF(INDIRECT("'"&$B34&"'!H10",TRUE)="","",INDIRECT("'"&$B34&"'!H10",TRUE)) ->  | P34: =IF(N34="","",INDIRECT("'"&$B34&"'!J10",TRUE)) ->  | Q34: =IF(N34="","",INDIRECT("'"&$B34&"'!L10",TRUE)/P34) ->  | R34: =IF(N34="","",(INDIRECT("'"&$B34&"'!L30",TRUE)-($Q34*P34))/P34) ->  | S34: =IF(OR( AND(ISTEXT(N34),ISBLANK(O34)), AND(ISTEXT(#REF!),ISBLANK(#REF!)), AND(ISTEXT(#REF!),ISBLANK(#REF!)), AND(ISTEXT(#REF!),ISBLANK(#REF!)),),1,0) -> 0 | T34: =INDIRECT("'"&$B34&"'!F56",TRUE) -> 0 | U34: =INDIRECT("'"&$B34&"'!M56",TRUE) -> 0 | V34: =INDIRECT("'"&$B34&"'!q56",TRUE) -> 0 | X34: =SUMIF('Input|Indirect Cost Rates'!$E$25:$E$26,'Input|Fee Based'!$E34,'Input|Indirect Cost Rates'!$D$25:$D$26) -> 0.2093290404 | Y34: =SUMIF('Input|Indirect Cost Rates'!$E$27:$E$28,'Input|Fee Based'!$E34,'Input|Indirect Cost Rates'!$D$27:$D$28) -> 0.4009715377 | Z34: ='Input|Indirect Cost Rates'!$D$35 -> 0.06 | AA34: =IF(E34='Input|Setup'!$H$31,'Input|Indirect Cost Rates'!$D$44,0) -> 0 | AB34: 0 | AC34: 0 | AD34: 0 | AE34: 0 | AG34: 0
A35: 24 | B35: MCTK | C35: Meter Alteration BH | D35: Business Hours | E35: Opex | F35: Auxiliary metering services | G35: Fee Based | H35: 0 | I35: =IF(INDIRECT("'"&$B35&"'!B10",TRUE)="","",INDIRECT("'"&$B35&"'!B10",TRUE)) -> Administrative Officer | J35: Business Hours | K35: =IF(I35="","",INDIRECT("'"&$B35&"'!D10",TRUE)) -> 1 | L35: =IF(I35="","",INDIRECT("'"&$B35&"'!F30",TRUE)) -> 60 | M35: =IF(OR( AND(ISTEXT(I35),ISBLANK(J35)), AND(ISTEXT(#REF!),ISBLANK(#REF!)), AND(ISTEXT(#REF!),ISBLANK(#REF!))),1,0) -> 0 | N35: =IF(INDIRECT("'"&$B35&"'!H10",TRUE)="","",INDIRECT("'"&$B35&"'!H10",TRUE)) -> Field Worker | O35: Business Hours | P35: =IF(N35="","",INDIRECT("'"&$B35&"'!J10",TRUE)) -> 2 | Q35: =IF(N35="","",INDIRECT("'"&$B35&"'!L10",TRUE)/P35) -> 30 | R35: =IF(N35="","",(INDIRECT("'"&$B35&"'!L30",TRUE)-($Q35*P35))/P35) -> 35 | S35: =IF(OR( AND(ISTEXT(N35),ISBLANK(O35)), AND(ISTEXT(#REF!),ISBLANK(#REF!)), AND(ISTEXT(#REF!),ISBLANK(#REF!)), AND(ISTEXT(#REF!),ISBLANK(#REF!)),),1,0) -> 0 | T35: =INDIRECT("'"&$B35&"'!F56",TRUE) -> 0 | U35: =INDIRECT("'"&$B35&"'!M56",TRUE) -> 58.26680742 | V35: =INDIRECT("'"&$B35&"'!q56",TRUE) -> 0 | X35: =SUMIF('Input|Indirect Cost Rates'!$E$25:$E$26,'Input|Fee Based'!$E35,'Input|Indirect Cost Rates'!$D$25:$D$26) -> 0.2093290404 | Y35: =SUMIF('Input|Indirect Cost Rates'!$E$27:$E$28,'Input|Fee Based'!$E35,'Input|Indirect Cost Rates'!$D$27:$D$28) -> 0.4009715377 | Z35: ='Input|Indirect Cost Rates'!$D$35 -> 0.06 | AA35: =IF(E35='Input|Setup'!$H$31,'Input|Indirect Cost Rates'!$D$44,0) -> 0 | AB35: 0 | AC35: 0 | AD35: 0 | AE35: 0 | AG35: 0
A36: 25 | B36: MCTK | C36: Meter Alteration AH | D36: After Hours | E36: Opex | F36: Auxiliary metering services | G36: Fee Based | H36: 0 | I36: =IF(INDIRECT("'"&$B36&"'!B10",TRUE)="","",INDIRECT("'"&$B36&"'!B10",TRUE)) -> Administrative Officer | J36: Business Hours | K36: =IF(I36="","",INDIRECT("'"&$B36&"'!D10",TRUE)) -> 1 | L36: =IF(I36="","",INDIRECT("'"&$B36&"'!F30",TRUE)) -> 60 | M36: =IF(OR( AND(ISTEXT(I36),ISBLANK(J36)), AND(ISTEXT(#REF!),ISBLANK(#REF!)), AND(ISTEXT(#REF!),ISBLANK(#REF!))),1,0) -> 0 | N36: =IF(INDIRECT("'"&$B36&"'!H10",TRUE)="","",INDIRECT("'"&$B36&"'!H10",TRUE)) -> Field Worker | O36: After Hours | P36: =IF(N36="","",INDIRECT("'"&$B36&"'!J10",TRUE)) -> 2 | Q36: =IF(N36="","",INDIRECT("'"&$B36&"'!L10",TRUE)/P36) -> 30 | R36: =IF(N36="","",(INDIRECT("'"&$B36&"'!L30",TRUE)-($Q36*P36))/P36) -> 35 | S36: =IF(OR( AND(ISTEXT(N36),ISBLANK(O36)), AND(ISTEXT(#REF!),ISBLANK(#REF!)), AND(ISTEXT(#REF!),ISBLANK(#REF!)), AND(ISTEXT(#REF!),ISBLANK(#REF!)),),1,0) -> 0 | T36: =INDIRECT("'"&$B36&"'!F56",TRUE) -> 0 | U36: =INDIRECT("'"&$B36&"'!M56",TRUE) -> 58.26680742 | V36: =INDIRECT("'"&$B36&"'!q56",TRUE) -> 0 | X36: =SUMIF('Input|Indirect Cost Rates'!$E$25:$E$26,'Input|Fee Based'!$E36,'Input|Indirect Cost Rates'!$D$25:$D$26) -> 0.2093290404 | Y36: =SUMIF('Input|Indirect Cost Rates'!$E$27:$E$28,'Input|Fee Based'!$E36,'Input|Indirect Cost Rates'!$D$27:$D$28) -> 0.4009715377 | Z36: ='Input|Indirect Cost Rates'!$D$35 -> 0.06 | AA36: =IF(E36='Input|Setup'!$H$31,'Input|Indirect Cost Rates'!$D$44,0) -> 0 | AB36: 0 | AC36: 0 | AD36: 0 | AE36: 0 | AG36: 0
A37: 26 | B37: SPRDRM | C37: Remote special meter read | D37: Business Hours | E37: Opex | F37: Auxiliary metering services | G37: Fee Based | H37: 0 | I37: =IF(INDIRECT("'"&$B37&"'!B10",TRUE)="","",INDIRECT("'"&$B37&"'!B10",TRUE)) ->  | K37: =IF(I37="","",INDIRECT("'"&$B37&"'!D10",TRUE)) ->  | L37: =IF(I37="","",INDIRECT("'"&$B37&"'!F30",TRUE)) ->  | M37: =IF(OR( AND(ISTEXT(I37),ISBLANK(J37)), AND(ISTEXT(#REF!),ISBLANK(#REF!)), AND(ISTEXT(#REF!),ISBLANK(#REF!))),1,0) -> 0 | N37: =IF(INDIRECT("'"&$B37&"'!H10",TRUE)="","",INDIRECT("'"&$B37&"'!H10",TRUE)) ->  | P37: =IF(N37="","",INDIRECT("'"&$B37&"'!J10",TRUE)) ->  | Q37: =IF(N37="","",INDIRECT("'"&$B37&"'!L10",TRUE)/P37) ->  | R37: =IF(N37="","",(INDIRECT("'"&$B37&"'!L30",TRUE)-($Q37*P37))/P37) ->  | S37: =IF(OR( AND(ISTEXT(N37),ISBLANK(O37)), AND(ISTEXT(#REF!),ISBLANK(#REF!)), AND(ISTEXT(#REF!),ISBLANK(#REF!)), AND(ISTEXT(#REF!),ISBLANK(#REF!)),),1,0) -> 0 | T37: =INDIRECT("'"&$B37&"'!F56",TRUE) -> 0 | U37: =INDIRECT("'"&$B37&"'!M56",TRUE) -> 0 | V37: =INDIRECT("'"&$B37&"'!q56",TRUE) -> 0 | X37: =SUMIF('Input|Indirect Cost Rates'!$E$25:$E$26,'Input|Fee Based'!$E37,'Input|Indirect Cost Rates'!$D$25:$D$26) -> 0.2093290404 | Y37: =SUMIF('Input|Indirect Cost Rates'!$E$27:$E$28,'Input|Fee Based'!$E37,'Input|Indirect Cost Rates'!$D$27:$D$28) -> 0.4009715377 | Z37: ='Input|Indirect Cost Rates'!$D$35 -> 0.06 | AA37: =IF(E37='Input|Setup'!$H$31,'Input|Indirect Cost Rates'!$D$44,0) -> 0 | AB37: 0 | AC37: 0 | AD37: 0 | AE37: 0 | AG37: 0
A38: 27 | B38: MECFRM | C38: Remote meter reconfiguration | D38: Business Hours | E38: Opex | F38: Auxiliary metering services | G38: Fee Based | H38: 0 | I38: =IF(INDIRECT("'"&$B38&"'!B10",TRUE)="","",INDIRECT("'"&$B38&"'!B10",TRUE)) -> Administrative Officer | J38: Business Hours | K38: =IF(I38="","",INDIRECT("'"&$B38&"'!D10",TRUE)) -> 1 | L38: =IF(I38="","",INDIRECT("'"&$B38&"'!F30",TRUE)) -> 32 | M38: =IF(OR( AND(ISTEXT(I38),ISBLANK(J38)), AND(ISTEXT(#REF!),ISBLANK(#REF!)), AND(ISTEXT(#REF!),ISBLANK(#REF!))),1,0) -> 0 | N38: =IF(INDIRECT("'"&$B38&"'!H10",TRUE)="","",INDIRECT("'"&$B38&"'!H10",TRUE)) ->  | P38: =IF(N38="","",INDIRECT("'"&$B38&"'!J10",TRUE)) ->  | Q38: =IF(N38="","",INDIRECT("'"&$B38&"'!L10",TRUE)/P38) ->  | R38: =IF(N38="","",(INDIRECT("'"&$B38&"'!L30",TRUE)-($Q38*P38))/P38) ->  | S38: =IF(OR( AND(ISTEXT(N38),ISBLANK(O38)), AND(ISTEXT(#REF!),ISBLANK(#REF!)), AND(ISTEXT(#REF!),ISBLANK(#REF!)), AND(ISTEXT(#REF!),ISBLANK(#REF!)),),1,0) -> 0 | T38: =INDIRECT("'"&$B38&"'!F56",TRUE) -> 0 | U38: =INDIRECT("'"&$B38&"'!M56",TRUE) -> 0 | V38: =INDIRECT("'"&$B38&"'!q56",TRUE) -> 0 | X38: =SUMIF('Input|Indirect Cost Rates'!$E$25:$E$26,'Input|Fee Based'!$E38,'Input|Indirect Cost Rates'!$D$25:$D$26) -> 0.2093290404 | Y38: =SUMIF('Input|Indirect Cost Rates'!$E$27:$E$28,'Input|Fee Based'!$E38,'Input|Indirect Cost Rates'!$D$27:$D$28) -> 0.4009715377 | Z38: ='Input|Indirect Cost Rates'!$D$35 -> 0.06 | AA38: =IF(E38='Input|Setup'!$H$31,'Input|Indirect Cost Rates'!$D$44,0) -> 0 | AB38: 0 | AC38: 0 | AD38: 0 | AE38: 0 | AG38: 0
A39: 28 | B39: SPRD | C39: Field-based special meter reads | D39: Business Hours | E39: Opex | F39: Auxiliary metering services | G39: Fee Based | H39: 0 | I39: =IF(INDIRECT("'"&$B39&"'!B10",TRUE)="","",INDIRECT("'"&$B39&"'!B10",TRUE)) -> Administrative Officer | J39: Business Hours | K39: =IF(I39="","",INDIRECT("'"&$B39&"'!D10",TRUE)) -> 1 | L39: =IF(I39="","",INDIRECT("'"&$B39&"'!F30",TRUE)) -> 12.7 | M39: =IF(OR( AND(ISTEXT(I39),ISBLANK(J39)), AND(ISTEXT(#REF!),ISBLANK(#REF!)), AND(ISTEXT(#REF!),ISBLANK(#REF!))),1,0) -> 0 | N39: =IF(INDIRECT("'"&$B39&"'!H10",TRUE)="","",INDIRECT("'"&$B39&"'!H10",TRUE)) -> Field Worker | O39: Business Hours | P39: =IF(N39="","",INDIRECT("'"&$B39&"'!J10",TRUE)) -> 1 | Q39: =IF(N39="","",INDIRECT("'"&$B39&"'!L10",TRUE)/P39) -> 30 | R39: =IF(N39="","",(INDIRECT("'"&$B39&"'!L30",TRUE)-($Q39*P39))/P39) -> 10 | S39: =IF(OR( AND(ISTEXT(N39),ISBLANK(O39)), AND(ISTEXT(#REF!),ISBLANK(#REF!)), AND(ISTEXT(#REF!),ISBLANK(#REF!)), AND(ISTEXT(#REF!),ISBLANK(#REF!)),),1,0) -> 0 | T39: =INDIRECT("'"&$B39&"'!F56",TRUE) -> 0 | U39: =INDIRECT("'"&$B39&"'!M56",TRUE) -> 35.85649688 | V39: =INDIRECT("'"&$B39&"'!q56",TRUE) -> 0 | X39: =SUMIF('Input|Indirect Cost Rates'!$E$25:$E$26,'Input|Fee Based'!$E39,'Input|Indirect Cost Rates'!$D$25:$D$26) -> 0.2093290404 | Y39: =SUMIF('Input|Indirect Cost Rates'!$E$27:$E$28,'Input|Fee Based'!$E39,'Input|Indirect Cost Rates'!$D$27:$D$28) -> 0.4009715377 | Z39: ='Input|Indirect Cost Rates'!$D$35 -> 0.06 | AA39: =IF(E39='Input|Setup'!$H$31,'Input|Indirect Cost Rates'!$D$44,0) -> 0 | AB39: 0 | AC39: 0 | AD39: 0 | AE39: 0 | AG39: 0
A40: 29 | B40: MTAL | C40: Meter test of types 5, 6 and AMI smart metering installations BH | D40: Business Hours | E40: Opex | F40: Auxiliary metering services | G40: Fee Based | H40: 0 | I40: =IF(INDIRECT("'"&$B40&"'!B10",TRUE)="","",INDIRECT("'"&$B40&"'!B10",TRUE)) -> Administrative Officer | J40: Business Hours | K40: =IF(I40="","",INDIRECT("'"&$B40&"'!D10",TRUE)) -> 1 | L40: =IF(I40="","",INDIRECT("'"&$B40&"'!F30",TRUE)) -> 35 | M40: =IF(OR( AND(ISTEXT(I40),ISBLANK(J40)), AND(ISTEXT(#REF!),ISBLANK(#REF!)), AND(ISTEXT(#REF!),ISBLANK(#REF!))),1,0) -> 0 | N40: =IF(INDIRECT("'"&$B40&"'!H10",TRUE)="","",INDIRECT("'"&$B40&"'!H10",TRUE)) -> Field Worker | O40: Business Hours | P40: =IF(N40="","",INDIRECT("'"&$B40&"'!J10",TRUE)) -> 2 | Q40: =IF(N40="","",INDIRECT("'"&$B40&"'!L10",TRUE)/P40) -> 30 | R40: =IF(N40="","",(INDIRECT("'"&$B40&"'!L30",TRUE)-($Q40*P40))/P40) -> 120 | S40: =IF(OR( AND(ISTEXT(N40),ISBLANK(O40)), AND(ISTEXT(#REF!),ISBLANK(#REF!)), AND(ISTEXT(#REF!),ISBLANK(#REF!)), AND(ISTEXT(#REF!),ISBLANK(#REF!)),),1,0) -> 0 | T40: =INDIRECT("'"&$B40&"'!F56",TRUE) -> 0 | U40: =INDIRECT("'"&$B40&"'!M56",TRUE) -> 179.2824844 | V40: =INDIRECT("'"&$B40&"'!q56",TRUE) -> 0 | X40: =SUMIF('Input|Indirect Cost Rates'!$E$25:$E$26,'Input|Fee Based'!$E40,'Input|Indirect Cost Rates'!$D$25:$D$26) -> 0.2093290404 | Y40: =SUMIF('Input|Indirect Cost Rates'!$E$27:$E$28,'Input|Fee Based'!$E40,'Input|Indirect Cost Rates'!$D$27:$D$28) -> 0.4009715377 | Z40: ='Input|Indirect Cost Rates'!$D$35 -> 0.06 | AA40: =IF(E40='Input|Setup'!$H$31,'Input|Indirect Cost Rates'!$D$44,0) -> 0 | AB40: 0 | AC40: 0 | AD40: 0 | AE40: 0 | AG40: 0
A41: 30 | B41: MTAL | C41: Meter test of types 5, 6 and AMI smart metering installations AH | D41: After Hours | E41: Opex | F41: Auxiliary metering services | G41: Fee Based | H41: 0 | I41: =IF(INDIRECT("'"&$B41&"'!B10",TRUE)="","",INDIRECT("'"&$B41&"'!B10",TRUE)) -> Administrative Officer | J41: Business Hours | K41: =IF(I41="","",INDIRECT("'"&$B41&"'!D10",TRUE)) -> 1 | L41: =IF(I41="","",INDIRECT("'"&$B41&"'!F30",TRUE)) -> 35 | M41: =IF(OR( AND(ISTEXT(I41),ISBLANK(J41)), AND(ISTEXT(#REF!),ISBLANK(#REF!)), AND(ISTEXT(#REF!),ISBLANK(#REF!))),1,0) -> 0 | N41: =IF(INDIRECT("'"&$B41&"'!H10",TRUE)="","",INDIRECT("'"&$B41&"'!H10",TRUE)) -> Field Worker | O41: After Hours | P41: =IF(N41="","",INDIRECT("'"&$B41&"'!J10",TRUE)) -> 2 | Q41: =IF(N41="","",INDIRECT("'"&$B41&"'!L10",TRUE)/P41) -> 30 | R41: =IF(N41="","",(INDIRECT("'"&$B41&"'!L30",TRUE)-($Q41*P41))/P41) -> 120 | S41: =IF(OR( AND(ISTEXT(N41),ISBLANK(O41)), AND(ISTEXT(#REF!),ISBLANK(#REF!)), AND(ISTEXT(#REF!),ISBLANK(#REF!)), AND(ISTEXT(#REF!),ISBLANK(#REF!)),),1,0) -> 0 | T41: =INDIRECT("'"&$B41&"'!F56",TRUE) -> 0 | U41: =INDIRECT("'"&$B41&"'!M56",TRUE) -> 179.2824844 | V41: =INDIRECT("'"&$B41&"'!q56",TRUE) -> 0 | X41: =SUMIF('Input|Indirect Cost Rates'!$E$25:$E$26,'Input|Fee Based'!$E41,'Input|Indirect Cost Rates'!$D$25:$D$26) -> 0.2093290404 | Y41: =SUMIF('Input|Indirect Cost Rates'!$E$27:$E$28,'Input|Fee Based'!$E41,'Input|Indirect Cost Rates'!$D$27:$D$28) -> 0.4009715377 | Z41: ='Input|Indirect Cost Rates'!$D$35 -> 0.06 | AA41: =IF(E41='Input|Setup'!$H$31,'Input|Indirect Cost Rates'!$D$44,0) -> 0 | AB41: 0 | AC41: 0 | AD41: 0 | AE41: 0 | AG41: 0
A42: 31 | B42: MDCH | C42: Type 7 metering | D42: Business Hours | E42: Opex | F42: Type 7 metering services | G42: Fee Based | H42: 0 | I42: =IF(INDIRECT("'"&$B42&"'!B10",TRUE)="","",INDIRECT("'"&$B42&"'!B10",TRUE)) ->  | K42: =IF(I42="","",INDIRECT("'"&$B42&"'!D10",TRUE)) ->  | L42: =IF(I42="","",INDIRECT("'"&$B42&"'!F30",TRUE)) ->  | M42: =IF(OR( AND(ISTEXT(I42),ISBLANK(J42)), AND(ISTEXT(#REF!),ISBLANK(#REF!)), AND(ISTEXT(#REF!),ISBLANK(#REF!))),1,0) -> 0 | N42: =IF(INDIRECT("'"&$B42&"'!H10",TRUE)="","",INDIRECT("'"&$B42&"'!H10",TRUE)) ->  | P42: =IF(N42="","",INDIRECT("'"&$B42&"'!J10",TRUE)) ->  | Q42: =IF(N42="","",INDIRECT("'"&$B42&"'!L10",TRUE)/P42) ->  | R42: =IF(N42="","",(INDIRECT("'"&$B42&"'!L30",TRUE)-($Q42*P42))/P42) ->  | S42: =IF(OR( AND(ISTEXT(N42),ISBLANK(O42)), AND(ISTEXT(#REF!),ISBLANK(#REF!)), AND(ISTEXT(#REF!),ISBLANK(#REF!)), AND(ISTEXT(#REF!),ISBLANK(#REF!)),),1,0) -> 0 | T42: =INDIRECT("'"&$B42&"'!F56",TRUE) -> 0 | U42: =INDIRECT("'"&$B42&"'!M56",TRUE) -> 0 | V42: =INDIRECT("'"&$B42&"'!q56",TRUE) -> 0 | X42: =SUMIF('Input|Indirect Cost Rates'!$E$25:$E$26,'Input|Fee Based'!$E42,'Input|Indirect Cost Rates'!$D$25:$D$26) -> 0.2093290404 | Y42: =SUMIF('Input|Indirect Cost Rates'!$E$27:$E$28,'Input|Fee Based'!$E42,'Input|Indirect Cost Rates'!$D$27:$D$28) -> 0.4009715377 | Z42: ='Input|Indirect Cost Rates'!$D$35 -> 0.06 | AA42: =IF(E42='Input|Setup'!$H$31,'Input|Indirect Cost Rates'!$D$44,0) -> 0 | AB42: 0 | AC42: 0 | AD42: 0 | AE42: 0 | AG42: 0
A43: 32 | B43: NCUM | C43: Non-contestable unmetered loads | D43: Business Hours | E43: Capex | F43: Auxiliary metering services | G43: Fee Based | H43: 0 | I43: =IF(INDIRECT("'"&$B43&"'!B10",TRUE)="","",INDIRECT("'"&$B43&"'!B10",TRUE)) ->  | K43: =IF(I43="","",INDIRECT("'"&$B43&"'!D10",TRUE)) ->  | L43: =IF(I43="","",INDIRECT("'"&$B43&"'!F30",TRUE)) ->  | M43: =IF(OR( AND(ISTEXT(I43),ISBLANK(J43)), AND(ISTEXT(#REF!),ISBLANK(#REF!)), AND(ISTEXT(#REF!),ISBLANK(#REF!))),1,0) -> 0 | N43: =IF(INDIRECT("'"&$B43&"'!H10",TRUE)="","",INDIRECT("'"&$B43&"'!H10",TRUE)) ->  | P43: =IF(N43="","",INDIRECT("'"&$B43&"'!J10",TRUE)) ->  | Q43: =IF(N43="","",INDIRECT("'"&$B43&"'!L10",TRUE)/P43) ->  | R43: =IF(N43="","",(INDIRECT("'"&$B43&"'!L30",TRUE)-($Q43*P43))/P43) ->  | S43: =IF(OR( AND(ISTEXT(N43),ISBLANK(O43)), AND(ISTEXT(#REF!),ISBLANK(#REF!)), AND(ISTEXT(#REF!),ISBLANK(#REF!)), AND(ISTEXT(#REF!),ISBLANK(#REF!)),),1,0) -> 0 | T43: =INDIRECT("'"&$B43&"'!F56",TRUE) -> 0 | U43: =INDIRECT("'"&$B43&"'!M56",TRUE) -> 0 | V43: =INDIRECT("'"&$B43&"'!q56",TRUE) -> 0 | X43: =SUMIF('Input|Indirect Cost Rates'!$E$25:$E$26,'Input|Fee Based'!$E43,'Input|Indirect Cost Rates'!$D$25:$D$26) -> 0.2093290404 | Y43: =SUMIF('Input|Indirect Cost Rates'!$E$27:$E$28,'Input|Fee Based'!$E43,'Input|Indirect Cost Rates'!$D$27:$D$28) -> 0.4009715377 | Z43: ='Input|Indirect Cost Rates'!$D$35 -> 0.06 | AA43: =IF(E43='Input|Setup'!$H$31,'Input|Indirect Cost Rates'!$D$44,0) -> 0.01872783643 | AB43: 0 | AC43: 0 | AD43: 0 | AE43: 0 | AG43: 0
A44: 33 | B44: WSVR | C44: Wasted site attendance BH | D44: Business Hours | E44: Opex | F44: Connection service | G44: Fee Based | H44: 0 | I44: =IF(INDIRECT("'"&$B44&"'!B10",TRUE)="","",INDIRECT("'"&$B44&"'!B10",TRUE)) -> Administrative Officer | J44: Business Hours | K44: =IF(I44="","",INDIRECT("'"&$B44&"'!D10",TRUE)) -> 1 | L44: =IF(I44="","",INDIRECT("'"&$B44&"'!F30",TRUE)) -> 60 | M44: =IF(OR( AND(ISTEXT(I44),ISBLANK(J44)), AND(ISTEXT(#REF!),ISBLANK(#REF!)), AND(ISTEXT(#REF!),ISBLANK(#REF!))),1,0) -> 0 | N44: =IF(INDIRECT("'"&$B44&"'!H10",TRUE)="","",INDIRECT("'"&$B44&"'!H10",TRUE)) -> Field Worker | O44: Business Hours | P44: =IF(N44="","",INDIRECT("'"&$B44&"'!J10",TRUE)) -> 2 | Q44: =IF(N44="","",INDIRECT("'"&$B44&"'!L10",TRUE)/P44) -> 30 | R44: =IF(N44="","",(INDIRECT("'"&$B44&"'!L30",TRUE)-($Q44*P44))/P44) -> 35 | S44: =IF(OR( AND(ISTEXT(N44),ISBLANK(O44)), AND(ISTEXT(#REF!),ISBLANK(#REF!)), AND(ISTEXT(#REF!),ISBLANK(#REF!)), AND(ISTEXT(#REF!),ISBLANK(#REF!)),),1,0) -> 0 | T44: =INDIRECT("'"&$B44&"'!F56",TRUE) -> 0 | U44: =INDIRECT("'"&$B44&"'!M56",TRUE) -> 58.26680742 | V44: =INDIRECT("'"&$B44&"'!q56",TRUE) -> 0 | X44: =SUMIF('Input|Indirect Cost Rates'!$E$25:$E$26,'Input|Fee Based'!$E44,'Input|Indirect Cost Rates'!$D$25:$D$26) -> 0.2093290404 | Y44: =SUMIF('Input|Indirect Cost Rates'!$E$27:$E$28,'Input|Fee Based'!$E44,'Input|Indirect Cost Rates'!$D$27:$D$28) -> 0.4009715377 | Z44: ='Input|Indirect Cost Rates'!$D$35 -> 0.06 | AA44: =IF(E44='Input|Setup'!$H$31,'Input|Indirect Cost Rates'!$D$44,0) -> 0 | AB44: 0 | AC44: 0 | AD44: 0 | AE44: 0 | AG44: 0
A45: 34 | B45: WSVR | C45: Wasted site attendance AH | D45: After Hours | E45: Opex | F45: Connection service | G45: Fee Based | H45: 0 | I45: =IF(INDIRECT("'"&$B45&"'!B10",TRUE)="","",INDIRECT("'"&$B45&"'!B10",TRUE)) -> Administrative Officer | J45: Business Hours | K45: =IF(I45="","",INDIRECT("'"&$B45&"'!D10",TRUE)) -> 1 | L45: =IF(I45="","",INDIRECT("'"&$B45&"'!F30",TRUE)) -> 60 | M45: =IF(OR( AND(ISTEXT(I45),ISBLANK(J45)), AND(ISTEXT(#REF!),ISBLANK(#REF!)), AND(ISTEXT(#REF!),ISBLANK(#REF!))),1,0) -> 0 | N45: =IF(INDIRECT("'"&$B45&"'!H10",TRUE)="","",INDIRECT("'"&$B45&"'!H10",TRUE)) -> Field Worker | O45: After Hours | P45: =IF(N45="","",INDIRECT("'"&$B45&"'!J10",TRUE)) -> 2 | Q45: =IF(N45="","",INDIRECT("'"&$B45&"'!L10",TRUE)/P45) -> 30 | R45: =IF(N45="","",(INDIRECT("'"&$B45&"'!L30",TRUE)-($Q45*P45))/P45) -> 35 | S45: =IF(OR( AND(ISTEXT(N45),ISBLANK(O45)), AND(ISTEXT(#REF!),ISBLANK(#REF!)), AND(ISTEXT(#REF!),ISBLANK(#REF!)), AND(ISTEXT(#REF!),ISBLANK(#REF!)),),1,0) -> 0 | T45: =INDIRECT("'"&$B45&"'!F56",TRUE) -> 0 | U45: =INDIRECT("'"&$B45&"'!M56",TRUE) -> 58.26680742 | V45: =INDIRECT("'"&$B45&"'!q56",TRUE) -> 0 | X45: =SUMIF('Input|Indirect Cost Rates'!$E$25:$E$26,'Input|Fee Based'!$E45,'Input|Indirect Cost Rates'!$D$25:$D$26) -> 0.2093290404 | Y45: =SUMIF('Input|Indirect Cost Rates'!$E$27:$E$28,'Input|Fee Based'!$E45,'Input|Indirect Cost Rates'!$D$27:$D$28) -> 0.4009715377 | Z45: ='Input|Indirect Cost Rates'!$D$35 -> 0.06 | AA45: =IF(E45='Input|Setup'!$H$31,'Input|Indirect Cost Rates'!$D$44,0) -> 0 | AB45: 0 | AC45: 0 | AD45: 0 | AE45: 0 | AG45: 0
A46: 35 | B46: RTK3 | C46: Replacement of 3-phase overhead service line BH | D46: Business Hours | E46: Capex | F46: Connection service | G46: Fee Based | H46: 0 | I46: =IF(INDIRECT("'"&$B46&"'!B10",TRUE)="","",INDIRECT("'"&$B46&"'!B10",TRUE)) -> Administrative Officer | J46: Business Hours | K46: =IF(I46="","",INDIRECT("'"&$B46&"'!D10",TRUE)) -> 1 | L46: =IF(I46="","",INDIRECT("'"&$B46&"'!F30",TRUE)) -> 60 | M46: =IF(OR( AND(ISTEXT(I46),ISBLANK(J46)), AND(ISTEXT(#REF!),ISBLANK(#REF!)), AND(ISTEXT(#REF!),ISBLANK(#REF!))),1,0) -> 0 | N46: =IF(INDIRECT("'"&$B46&"'!H10",TRUE)="","",INDIRECT("'"&$B46&"'!H10",TRUE)) -> Field Worker | O46: Business Hours | P46: =IF(N46="","",INDIRECT("'"&$B46&"'!J10",TRUE)) -> 2 | Q46: =IF(N46="","",INDIRECT("'"&$B46&"'!L10",TRUE)/P46) -> 30 | R46: =IF(N46="","",(INDIRECT("'"&$B46&"'!L30",TRUE)-($Q46*P46))/P46) -> 35 | S46: =IF(OR( AND(ISTEXT(N46),ISBLANK(O46)), AND(ISTEXT(#REF!),ISBLANK(#REF!)), AND(ISTEXT(#REF!),ISBLANK(#REF!)), AND(ISTEXT(#REF!),ISBLANK(#REF!)),),1,0) -> 0 | T46: =INDIRECT("'"&$B46&"'!F56",TRUE) -> 179.9127116 | U46: =INDIRECT("'"&$B46&"'!M56",TRUE) -> 58.26680742 | V46: =INDIRECT("'"&$B46&"'!q56",TRUE) -> 0 | X46: =SUMIF('Input|Indirect Cost Rates'!$E$25:$E$26,'Input|Fee Based'!$E46,'Input|Indirect Cost Rates'!$D$25:$D$26) -> 0.2093290404 | Y46: =SUMIF('Input|Indirect Cost Rates'!$E$27:$E$28,'Input|Fee Based'!$E46,'Input|Indirect Cost Rates'!$D$27:$D$28) -> 0.4009715377 | Z46: ='Input|Indirect Cost Rates'!$D$35 -> 0.06 | AA46: =IF(E46='Input|Setup'!$H$31,'Input|Indirect Cost Rates'!$D$44,0) -> 0.01872783643 | AB46: 0 | AC46: 0 | AD46: 0 | AE46: 0 | AG46: 0
A47: 36 | B47: RTK3 | C47: Replacement of 3-phase overhead service line AH | D47: After Hours | E47: Capex | F47: Connection service | G47: Fee Based | H47: 0 | I47: =IF(INDIRECT("'"&$B47&"'!B10",TRUE)="","",INDIRECT("'"&$B47&"'!B10",TRUE)) -> Administrative Officer | J47: Business Hours | K47: =IF(I47="","",INDIRECT("'"&$B47&"'!D10",TRUE)) -> 1 | L47: =IF(I47="","",INDIRECT("'"&$B47&"'!F30",TRUE)) -> 60 | M47: =IF(OR( AND(ISTEXT(I47),ISBLANK(J47)), AND(ISTEXT(#REF!),ISBLANK(#REF!)), AND(ISTEXT(#REF!),ISBLANK(#REF!))),1,0) -> 0 | N47: =IF(INDIRECT("'"&$B47&"'!H10",TRUE)="","",INDIRECT("'"&$B47&"'!H10",TRUE)) -> Field Worker | O47: After Hours | P47: =IF(N47="","",INDIRECT("'"&$B47&"'!J10",TRUE)) -> 2 | Q47: =IF(N47="","",INDIRECT("'"&$B47&"'!L10",TRUE)/P47) -> 30 | R47: =IF(N47="","",(INDIRECT("'"&$B47&"'!L30",TRUE)-($Q47*P47))/P47) -> 35 | S47: =IF(OR( AND(ISTEXT(N47),ISBLANK(O47)), AND(ISTEXT(#REF!),ISBLANK(#REF!)), AND(ISTEXT(#REF!),ISBLANK(#REF!)), AND(ISTEXT(#REF!),ISBLANK(#REF!)),),1,0) -> 0 | T47: =INDIRECT("'"&$B47&"'!F56",TRUE) -> 179.9127116 | U47: =INDIRECT("'"&$B47&"'!M56",TRUE) -> 58.26680742 | V47: =INDIRECT("'"&$B47&"'!q56",TRUE) -> 0 | X47: =SUMIF('Input|Indirect Cost Rates'!$E$25:$E$26,'Input|Fee Based'!$E47,'Input|Indirect Cost Rates'!$D$25:$D$26) -> 0.2093290404 | Y47: =SUMIF('Input|Indirect Cost Rates'!$E$27:$E$28,'Input|Fee Based'!$E47,'Input|Indirect Cost Rates'!$D$27:$D$28) -> 0.4009715377 | Z47: ='Input|Indirect Cost Rates'!$D$35 -> 0.06 | AA47: =IF(E47='Input|Setup'!$H$31,'Input|Indirect Cost Rates'!$D$44,0) -> 0.01872783643 | AB47: 0 | AC47: 0 | AD47: 0 | AE47: 0 | AG47: 0
A48: 37 | H48: 0 | M48: =IF(OR( AND(ISTEXT(I48),ISBLANK(J48)), AND(ISTEXT(#REF!),ISBLANK(#REF!)), AND(ISTEXT(#REF!),ISBLANK(#REF!))),1,0) -> 0 | S48: =IF(OR( AND(ISTEXT(N48),ISBLANK(O48)), AND(ISTEXT(#REF!),ISBLANK(#REF!)), AND(ISTEXT(#REF!),ISBLANK(#REF!)), AND(ISTEXT(#REF!),ISBLANK(#REF!)),),1,0) -> 0 | AB48: =IF(OR(ISBLANK(X48),_xlfn.ISFORMULA(X48)),0,1) -> 0 | AC48: 0 | AD48: 0 | AE48: 0 | AG48: =IF(AND(OR(V48="",V48=0),AF48=""),0,IF(AND(V48<>"",V48<>0,AF48=""),1,0)) -> 0
A49: 38 | H49: 0 | M49: =IF(OR( AND(ISTEXT(I49),ISBLANK(J49)), AND(ISTEXT(#REF!),ISBLANK(#REF!)), AND(ISTEXT(#REF!),ISBLANK(#REF!))),1,0) -> 0 | S49: =IF(OR( AND(ISTEXT(N49),ISBLANK(O49)), AND(ISTEXT(#REF!),ISBLANK(#REF!)), AND(ISTEXT(#REF!),ISBLANK(#REF!)), AND(ISTEXT(#REF!),ISBLANK(#REF!)),),1,0) -> 0 | AB49: 0 | AC49: 0 | AD49: 0 | AE49: 0 | AG49: 0
A50: 39 | H50: 0 | M50: =IF(OR( AND(ISTEXT(I50),ISBLANK(J50)), AND(ISTEXT(#REF!),ISBLANK(#REF!)), AND(ISTEXT(#REF!),ISBLANK(#REF!))),1,0) -> 0 | S50: =IF(OR( AND(ISTEXT(N50),ISBLANK(O50)), AND(ISTEXT(#REF!),ISBLANK(#REF!)), AND(ISTEXT(#REF!),ISBLANK(#REF!)), AND(ISTEXT(#REF!),ISBLANK(#REF!)),),1,0) -> 0 | AB50: 0 | AC50: 0 | AD50: 0 | AE50: 0 | AG50: 0
A51: 40 | H51: 0 | M51: =IF(OR( AND(ISTEXT(I51),ISBLANK(J51)), AND(ISTEXT(#REF!),ISBLANK(#REF!)), AND(ISTEXT(#REF!),ISBLANK(#REF!))),1,0) -> 0 | S51: =IF(OR( AND(ISTEXT(N51),ISBLANK(O51)), AND(ISTEXT(#REF!),ISBLANK(#REF!)), AND(ISTEXT(#REF!),ISBLANK(#REF!)), AND(ISTEXT(#REF!),ISBLANK(#REF!)),),1,0) -> 0 | AB51: =IF(OR(ISBLANK(X51),_xlfn.ISFORMULA(X51)),0,1) -> 0 | AC51: 0 | AD51: 0 | AE51: 0 | AG51: 0
A52: 41 | H52: 0 | M52: =IF(OR( AND(ISTEXT(I52),ISBLANK(J52)), AND(ISTEXT(#REF!),ISBLANK(#REF!)), AND(ISTEXT(#REF!),ISBLANK(#REF!))),1,0) -> 0 | S52: =IF(OR( AND(ISTEXT(N52),ISBLANK(O52)), AND(ISTEXT(#REF!),ISBLANK(#REF!)), AND(ISTEXT(#REF!),ISBLANK(#REF!)), AND(ISTEXT(#REF!),ISBLANK(#REF!)),),1,0) -> 0 | AB52: 0 | AC52: 0 | AD52: 0 | AE52: 0 | AG52: 0
A53: 42 | H53: 0 | M53: =IF(OR( AND(ISTEXT(I53),ISBLANK(J53)), AND(ISTEXT(#REF!),ISBLANK(#REF!)), AND(ISTEXT(#REF!),ISBLANK(#REF!))),1,0) -> 0 | S53: =IF(OR( AND(ISTEXT(N53),ISBLANK(O53)), AND(ISTEXT(#REF!),ISBLANK(#REF!)), AND(ISTEXT(#REF!),ISBLANK(#REF!)), AND(ISTEXT(#REF!),ISBLANK(#REF!)),),1,0) -> 0 | AB53: 0 | AC53: 0 | AD53: 0 | AE53: 0 | AG53: 0
A54: 43 | H54: 0 | M54: =IF(OR( AND(ISTEXT(I54),ISBLANK(J54)), AND(ISTEXT(#REF!),ISBLANK(#REF!)), AND(ISTEXT(#REF!),ISBLANK(#REF!))),1,0) -> 0 | S54: =IF(OR( AND(ISTEXT(N54),ISBLANK(O54)), AND(ISTEXT(#REF!),ISBLANK(#REF!)), AND(ISTEXT(#REF!),ISBLANK(#REF!)), AND(ISTEXT(#REF!),ISBLANK(#REF!)),),1,0) -> 0 | AB54: 0 | AC54: 0 | AD54: 0 | AE54: 0 | AG54: 0
A55: 44 | H55: 0 | M55: =IF(OR( AND(ISTEXT(I55),ISBLANK(J55)), AND(ISTEXT(#REF!),ISBLANK(#REF!)), AND(ISTEXT(#REF!),ISBLANK(#REF!))),1,0) -> 0 | S55: =IF(OR( AND(ISTEXT(N55),ISBLANK(O55)), AND(ISTEXT(#REF!),ISBLANK(#REF!)), AND(ISTEXT(#REF!),ISBLANK(#REF!)), AND(ISTEXT(#REF!),ISBLANK(#REF!)),),1,0) -> 0 | AB55: 0 | AC55: 0 | AD55: 0 | AE55: 0 | AG55: 0
A56: 45 | H56: 0 | M56: =IF(OR( AND(ISTEXT(I56),ISBLANK(J56)), AND(ISTEXT(#REF!),ISBLANK(#REF!)), AND(ISTEXT(#REF!),ISBLANK(#REF!))),1,0) -> 0 | S56: =IF(OR( AND(ISTEXT(N56),ISBLANK(O56)), AND(ISTEXT(#REF!),ISBLANK(#REF!)), AND(ISTEXT(#REF!),ISBLANK(#REF!)), AND(ISTEXT(#REF!),ISBLANK(#REF!)),),1,0) -> 0 | AB56: 0 | AC56: 0 | AD56: 0 | AE56: 0 | AG56: 0
A57: 46 | H57: 0 | M57: =IF(OR( AND(ISTEXT(I57),ISBLANK(J57)), AND(ISTEXT(#REF!),ISBLANK(#REF!)), AND(ISTEXT(#REF!),ISBLANK(#REF!))),1,0) -> 0 | S57: =IF(OR( AND(ISTEXT(N57),ISBLANK(O57)), AND(ISTEXT(#REF!),ISBLANK(#REF!)), AND(ISTEXT(#REF!),ISBLANK(#REF!)), AND(ISTEXT(#REF!),ISBLANK(#REF!)),),1,0) -> 0 | AB57: 0 | AC57: 0 | AD57: 0 | AE57: 0 | AG57: 0
A58: 47 | H58: 0 | M58: =IF(OR( AND(ISTEXT(I58),ISBLANK(J58)), AND(ISTEXT(#REF!),ISBLANK(#REF!)), AND(ISTEXT(#REF!),ISBLANK(#REF!))),1,0) -> 0 | S58: =IF(OR( AND(ISTEXT(N58),ISBLANK(O58)), AND(ISTEXT(#REF!),ISBLANK(#REF!)), AND(ISTEXT(#REF!),ISBLANK(#REF!)), AND(ISTEXT(#REF!),ISBLANK(#REF!)),),1,0) -> 0 | AB58: 0 | AC58: 0 | AD58: 0 | AE58: 0 | AG58: 0
A59: 48 | H59: 0 | M59: =IF(OR( AND(ISTEXT(I59),ISBLANK(J59)), AND(ISTEXT(#REF!),ISBLANK(#REF!)), AND(ISTEXT(#REF!),ISBLANK(#REF!))),1,0) -> 0 | S59: =IF(OR( AND(ISTEXT(N59),ISBLANK(O59)), AND(ISTEXT(#REF!),ISBLANK(#REF!)), AND(ISTEXT(#REF!),ISBLANK(#REF!)), AND(ISTEXT(#REF!),ISBLANK(#REF!)),),1,0) -> 0 | AB59: 0 | AC59: 0 | AD59: 0 | AE59: 0 | AG59: 0
A60: 49 | H60: 0 | M60: =IF(OR( AND(ISTEXT(I60),ISBLANK(J60)), AND(ISTEXT(#REF!),ISBLANK(#REF!)), AND(ISTEXT(#REF!),ISBLANK(#REF!))),1,0) -> 0 | S60: =IF(OR( AND(ISTEXT(N60),ISBLANK(O60)), AND(ISTEXT(#REF!),ISBLANK(#REF!)), AND(ISTEXT(#REF!),ISBLANK(#REF!)), AND(ISTEXT(#REF!),ISBLANK(#REF!)),),1,0) -> 0 | AB60: 0 | AC60: 0 | AD60: 0 | AE60: 0 | AG60: 0
A61: 50 | H61: 0 | M61: =IF(OR( AND(ISTEXT(I61),ISBLANK(J61)), AND(ISTEXT(#REF!),ISBLANK(#REF!)), AND(ISTEXT(#REF!),ISBLANK(#REF!))),1,0) -> 0 | S61: =IF(OR( AND(ISTEXT(N61),ISBLANK(O61)), AND(ISTEXT(#REF!),ISBLANK(#REF!)), AND(ISTEXT(#REF!),ISBLANK(#REF!)), AND(ISTEXT(#REF!),ISBLANK(#REF!)),),1,0) -> 0 | AB61: 0 | AC61: 0 | AD61: 0 | AE61: 0 | AG61: 0
A62: 51 | H62: 0 | M62: =IF(OR( AND(ISTEXT(I62),ISBLANK(J62)), AND(ISTEXT(#REF!),ISBLANK(#REF!)), AND(ISTEXT(#REF!),ISBLANK(#REF!))),1,0) -> 0 | S62: =IF(OR( AND(ISTEXT(N62),ISBLANK(O62)), AND(ISTEXT(#REF!),ISBLANK(#REF!)), AND(ISTEXT(#REF!),ISBLANK(#REF!)), AND(ISTEXT(#REF!),ISBLANK(#REF!)),),1,0) -> 0 | AB62: 0 | AC62: 0 | AD62: 0 | AE62: 0 | AG62: 0
A63: 52 | H63: 0 | M63: =IF(OR( AND(ISTEXT(I63),ISBLANK(J63)), AND(ISTEXT(#REF!),ISBLANK(#REF!)), AND(ISTEXT(#REF!),ISBLANK(#REF!))),1,0) -> 0 | S63: =IF(OR( AND(ISTEXT(N63),ISBLANK(O63)), AND(ISTEXT(#REF!),ISBLANK(#REF!)), AND(ISTEXT(#REF!),ISBLANK(#REF!)), AND(ISTEXT(#REF!),ISBLANK(#REF!)),),1,0) -> 0 | AB63: 0 | AC63: 0 | AD63: 0 | AE63: 0 | AG63: 0
A64: 53 | H64: 0 | M64: =IF(OR( AND(ISTEXT(I64),ISBLANK(J64)), AND(ISTEXT(#REF!),ISBLANK(#REF!)), AND(ISTEXT(#REF!),ISBLANK(#REF!))),1,0) -> 0 | S64: =IF(OR( AND(ISTEXT(N64),ISBLANK(O64)), AND(ISTEXT(#REF!),ISBLANK(#REF!)), AND(ISTEXT(#REF!),ISBLANK(#REF!)), AND(ISTEXT(#REF!),ISBLANK(#REF!)),),1,0) -> 0 | AB64: 0 | AC64: 0 | AD64: 0 | AE64: 0 | AG64: 0
A65: 54 | H65: 0 | M65: =IF(OR( AND(ISTEXT(I65),ISBLANK(J65)), AND(ISTEXT(#REF!),ISBLANK(#REF!)), AND(ISTEXT(#REF!),ISBLANK(#REF!))),1,0) -> 0 | S65: =IF(OR( AND(ISTEXT(N65),ISBLANK(O65)), AND(ISTEXT(#REF!),ISBLANK(#REF!)), AND(ISTEXT(#REF!),ISBLANK(#REF!)), AND(ISTEXT(#REF!),ISBLANK(#REF!)),),1,0) -> 0 | AB65: 0 | AC65: 0 | AD65: 0 | AE65: 0 | AG65: 0
A66: 55 | H66: 0 | M66: =IF(OR( AND(ISTEXT(I66),ISBLANK(J66)), AND(ISTEXT(#REF!),ISBLANK(#REF!)), AND(ISTEXT(#REF!),ISBLANK(#REF!))),1,0) -> 0 | S66: =IF(OR( AND(ISTEXT(N66),ISBLANK(O66)), AND(ISTEXT(#REF!),ISBLANK(#REF!)), AND(ISTEXT(#REF!),ISBLANK(#REF!)), AND(ISTEXT(#REF!),ISBLANK(#REF!)),),1,0) -> 0 | AB66: 0 | AC66: 0 | AD66: 0 | AE66: 0 | AG66: 0
A67: 56 | H67: 0 | M67: =IF(OR( AND(ISTEXT(I67),ISBLANK(J67)), AND(ISTEXT(#REF!),ISBLANK(#REF!)), AND(ISTEXT(#REF!),ISBLANK(#REF!))),1,0) -> 0 | S67: =IF(OR( AND(ISTEXT(N67),ISBLANK(O67)), AND(ISTEXT(#REF!),ISBLANK(#REF!)), AND(ISTEXT(#REF!),ISBLANK(#REF!)), AND(ISTEXT(#REF!),ISBLANK(#REF!)),),1,0) -> 0 | AB67: =IF(OR(ISBLANK(X67),_xlfn.ISFORMULA(X67)),0,1) -> 0 | AC67: 0 | AD67: 0 | AE67: 0 | AG67: 0
A68: 57 | H68: 0 | M68: =IF(OR( AND(ISTEXT(I68),ISBLANK(J68)), AND(ISTEXT(#REF!),ISBLANK(#REF!)), AND(ISTEXT(#REF!),ISBLANK(#REF!))),1,0) -> 0 | S68: =IF(OR( AND(ISTEXT(N68),ISBLANK(O68)), AND(ISTEXT(#REF!),ISBLANK(#REF!)), AND(ISTEXT(#REF!),ISBLANK(#REF!)), AND(ISTEXT(#REF!),ISBLANK(#REF!)),),1,0) -> 0 | AB68: 0 | AC68: 0 | AD68: 0 | AE68: 0 | AG68: 0
A69: 58 | H69: 0 | M69: =IF(OR( AND(ISTEXT(I69),ISBLANK(J69)), AND(ISTEXT(#REF!),ISBLANK(#REF!)), AND(ISTEXT(#REF!),ISBLANK(#REF!))),1,0) -> 0 | S69: =IF(OR( AND(ISTEXT(N69),ISBLANK(O69)), AND(ISTEXT(#REF!),ISBLANK(#REF!)), AND(ISTEXT(#REF!),ISBLANK(#REF!)), AND(ISTEXT(#REF!),ISBLANK(#REF!)),),1,0) -> 0 | AB69: 0 | AC69: 0 | AD69: 0 | AE69: 0 | AG69: 0
A70: 59 | H70: 0 | M70: =IF(OR( AND(ISTEXT(I70),ISBLANK(J70)), AND(ISTEXT(#REF!),ISBLANK(#REF!)), AND(ISTEXT(#REF!),ISBLANK(#REF!))),1,0) -> 0 | S70: =IF(OR( AND(ISTEXT(N70),ISBLANK(O70)), AND(ISTEXT(#REF!),ISBLANK(#REF!)), AND(ISTEXT(#REF!),ISBLANK(#REF!)), AND(ISTEXT(#REF!),ISBLANK(#REF!)),),1,0) -> 0 | AB70: 0 | AC70: 0 | AD70: 0 | AE70: 0 | AG70: 0
A71: 60 | H71: 0 | M71: =IF(OR( AND(ISTEXT(I71),ISBLANK(J71)), AND(ISTEXT(#REF!),ISBLANK(#REF!)), AND(ISTEXT(#REF!),ISBLANK(#REF!))),1,0) -> 0 | S71: =IF(OR( AND(ISTEXT(N71),ISBLANK(O71)), AND(ISTEXT(#REF!),ISBLANK(#REF!)), AND(ISTEXT(#REF!),ISBLANK(#REF!)), AND(ISTEXT(#REF!),ISBLANK(#REF!)),),1,0) -> 0 | AB71: 0 | AC71: 0 | AD71: 0 | AE71: 0 | AG71: 0

Sheet Input|Fee Based Mapping
B1: =IFERROR(Index!B1,"") -> Jemena Electricity Networks – Alternative Control Services Forecast model | D1: Key: | E1: Input | G1: Sheet Validation | H1: ='Model Validation'!C15 -> 0
B2: =IFERROR(MID(CELL("filename",A1),FIND("]",CELL("filename",A1))+1,255),"") -> Input|Fee Based Mapping | E2: Formula
O3: For AER input
B4: (1) Jemena will apply a Wasted Site Attendance fee in circumstances where on arrival at the site, it is found the customer’s premises are not ready for | N4: =G11 -> 2021-22 | O4: =H11 -> 2022-23 | P4: =I11 -> 2023-24 | Q4: =J11 -> 2024-25 | R4: =K11 -> 2025-26 | X4: * Estimate | Y4: =IFERROR('Input|Setup'!$E$6,"") -> 2026-27 | Z4: =IFERROR((LEFT(Y4,4)+1&IF(MID(Y4,5,1)="","","-"&TEXT(MOD(MID(Y4,6,2)+1,100),"00"))),"") -> 2027-28 | AA4: =IFERROR((LEFT(Z4,4)+1&IF(MID(Z4,5,1)="","","-"&TEXT(MOD(MID(Z4,6,2)+1,100),"00"))),"") -> 2028-29 | AB4: =IFERROR((LEFT(AA4,4)+1&IF(MID(AA4,5,1)="","","-"&TEXT(MOD(MID(AA4,6,2)+1,100),"00"))),"") -> 2029-30 | AC4: =IFERROR((LEFT(AB4,4)+1&IF(MID(AB4,5,1)="","","-"&TEXT(MOD(MID(AB4,6,2)+1,100),"00"))),"") -> 2030-31
B5: the scheduled work, or if the site is not safe to undertake the work or access to the site is limited. | N5: CPI | O5: ='Input|Escalations'!E16 -> 0.03498293515 | P5: ='Input|Escalations'!F16 -> 0.07831821929 | Q5: ='Input|Escalations'!G16 -> 0.04051987768 | R5: ='Input|Escalations'!H16 -> 0.026 | Y5: CPI | Z5: ='Input|Escalations'!J16 -> 0.025 | AA5: ='Input|Escalations'!K16 -> 0.025 | AB5: ='Input|Escalations'!L16 -> 0.025 | AC5: ='Input|Escalations'!M16 -> 0.025
B6: (2) For services marked (*), the Wasted Site Attendance fee applies. For all other services, the Wasted Site Attendance fee is the service fee shown | N6: X factors | O6: ='Input|Escalations'!E27 -> 0.04374835876 | P6: ='Input|Escalations'!F27 -> 0.01509360982 | Q6: ='Input|Escalations'!G27 -> -0.006536312907 | R6: ='Input|Escalations'!H27 -> -0.007201031134 | Y6: X factors | Z6: ='Input|Escalations'!J27 -> -0.008358355629 | AA6: ='Input|Escalations'!K27 -> -0.01025499053 | AB6: ='Input|Escalations'!L27 -> -0.01224018808 | AC6: ='Input|Escalations'!M27 -> -0.01148235304
B7: applicable to the service
B9: 8.1 Current regulatory period - Fee based services | D9: Mapping categories | G9: =IFERROR("Approved price, $ ($nominal)","") -> Approved price, $ ($nominal) | M9: AER final decision ($ nominal) | U9: 8.2 Forecast regulatory period - Fee based services | Y9: =IFERROR("Price of service, $ ($,nominal)","") -> Price of service, $ ($,nominal)
N10: =IF(SUM(N12:N61)=0,0,1) -> 0 | O10: =IF(SUM(O12:O61)=0,0,1) -> 0 | P10: =IF(SUM(P12:P61)=0,0,1) -> 0 | Q10: =IF(SUM(Q12:Q61)=0,0,1) -> 0 | R10: =IF(SUM(R12:R61)=0,0,1) -> 0
B11: Service code | C11: Fee based service | D11: Hours (List) | E11: Product Code (List) | F11: Unit Cost | G11: ='Input|Setup'!B11 -> 2021-22 | H11: ='Input|Setup'!B12 -> 2022-23 | I11: ='Input|Setup'!B13 -> 2023-24 | J11: ='Input|Setup'!B14 -> 2024-25 | K11: ='Input|Setup'!B15 -> 2025-26 | M11: =G11 -> 2021-22 | N11: =G11 -> 2021-22 | O11: =H11 -> 2022-23 | P11: =I11 -> 2023-24 | Q11: =J11 -> 2024-25 | R11: =K11 -> 2025-26 | V11: Fee based service | W11: ='Input|Setup'!$B$24 -> Hours | X11: ='Input|Setup'!E30 -> Service category | Y11: ='Input|Setup'!E11 -> 2026-27 | Z11: =LEFT(Y11,4)+1&"-"&RIGHT(Y11,2)+1 -> 2027-28 | AA11: =LEFT(Z11,4)+1&"-"&RIGHT(Z11,2)+1 -> 2028-29 | AB11: =LEFT(AA11,4)+1&"-"&RIGHT(AA11,2)+1 -> 2029-30 | AC11: =LEFT(AB11,4)+1&"-"&RIGHT(AB11,2)+1 -> 2030-31
A12: 1 | B12: ND1P | C12: Basic connection, single-phase BH * | D12: Business Hours | E12: ND1PBH | F12: Per connection | G12: 563.99 | H12: 587.59 | I12: 637.47 | J12: 668.16 | K12: =J12*(1+$R$5)*(1-$R$6) -> 690.4686984 | M12: =G12 -> 563.99 | N12: =IF(G12<=M12,0,1) -> 0 | O12: =IF(M12=0,(IF(G12<=M12,0,1)),IF(H12<=$M12*(1+O$5)*(1-O$6),1,0)) -> 0 | P12: =IF(M12=0,(IF(G12<=M12,0,1)),IF(I12<=$M12*(1+P$5)*(1-P$6),1,0)) -> 0 | Q12: =IF(M12=0,(IF(G12<=M12,0,1)),IF(J12<=$M12*(1+Q$5)*(1-Q$6),1,0)) -> 0 | R12: =IF(M12=0,(IF(G12<=M12,0,1)),IF(K12<=$M12*(1+R$5)*(1-R$6),1,0)) -> 0 | T12: 1 | U12: ='Calc|Fee Based'!B12 -> ND1P | V12: ='Calc|Fee Based'!C12 -> Basic connection, single-phase BH | W12: ='Calc|Fee Based'!E12 -> Business Hours | X12: ='Calc|Fee Based'!F12 -> Capex | Y12: ='Calc|Fee Based'!H12 -> 872.3325042 | Z12: =Y12*(1+Z$5)*(1-Z$6) -> 901.6143637 | AA12: =Z12*(1+AA$5)*(1-AA$6) -> 933.6319208 | AB12: 968.6862448 | AC12: 1004.304268
A13: =IFERROR(A12+1,"") -> 2 | B13: ND1P | C13: Basic connection, single-phase AH * | D13: After Hours | E13: ND1PAH | F13: Per connection | G13: 746.97 | H13: 778.22 | I13: 844.28 | J13: 884.93 | K13: =J13*(1+$R$5)*(1-$R$6) -> 914.4762711 | M13: =G13 -> 746.97 | N13: =IF(G13<=M13,0,1) -> 0 | O13: =IF(M13=0,(IF(G13<=M13,0,1)),IF(H13<=$M13*(1+O$5)*(1-O$6),1,0)) -> 0 | P13: =IF(M13=0,(IF(G13<=M13,0,1)),IF(I13<=$M13*(1+P$5)*(1-P$6),1,0)) -> 0 | Q13: =IF(M13=0,(IF(G13<=M13,0,1)),IF(J13<=$M13*(1+Q$5)*(1-Q$6),1,0)) -> 0 | R13: =IF(M13=0,(IF(G13<=M13,0,1)),IF(K13<=$M13*(1+R$5)*(1-R$6),1,0)) -> 0 | T13: =IFERROR(T12+1,"") -> 2 | U13: ='Calc|Fee Based'!B13 -> ND1P | V13: ='Calc|Fee Based'!C13 -> Basic connection, single-phase AH | W13: ='Calc|Fee Based'!E13 -> After Hours | X13: ='Calc|Fee Based'!F13 -> Capex | Y13: ='Calc|Fee Based'!H13 -> 1230.251239 | Z13: 1271.54747 | AA13: 1316.701856 | AB13: 1366.138998 | AC13: 1416.371126
A14: =IFERROR(A13+1,"") -> 3 | B14: ND3P | C14: Basic connection, three-phase BH * | D14: Business Hours | E14: ND3PBH | F14: Per connection | G14: 693.87 | H14: 722.9 | I14: 784.26 | J14: 822.02 | K14: 849.4658158 | M14: 693.87 | N14: 0 | O14: 0 | P14: 0 | Q14: 0 | R14: 0 | T14: =IFERROR(T13+1,"") -> 3 | U14: ='Calc|Fee Based'!B14 -> ND3P | V14: ='Calc|Fee Based'!C14 -> Basic connection, three-phase BH | W14: ='Calc|Fee Based'!E14 -> Business Hours | X14: ='Calc|Fee Based'!F14 -> Capex | Y14: ='Calc|Fee Based'!H14 -> 1195.347032 | Z14: 1235.471621 | AA14: 1279.344905 | AB14: 1327.379436 | AC14: 1376.186397
A15: 4 | B15: ND3P | C15: Basic connection, three-phase AH * | D15: After Hours | E15: ND3PAH | F15: Per connection | G15: 876.85 | H15: 913.54 | I15: 991.09 | J15: 1038.81 | K15: 1073.494056 | M15: 876.85 | N15: 0 | O15: 0 | P15: 0 | Q15: 0 | R15: 0 | T15: =IFERROR(T14+1,"") -> 4 | U15: ='Calc|Fee Based'!B15 -> ND3P | V15: ='Calc|Fee Based'!C15 -> Basic connection, three-phase AH | W15: ='Calc|Fee Based'!E15 -> After Hours | X15: ='Calc|Fee Based'!F15 -> Capex | Y15: ='Calc|Fee Based'!H15 -> 1553.265767 | Z15: 1605.404727 | AA15: 1662.414841 | AB15: 1724.832189 | AC15: 1788.253254
A16: 5 | B16: BTSO | C16: Temporary connection, single-phase BH * | D16: Business Hours | E16: BTSOBH | F16: Per connection | G16: 563.99 | H16: 587.59 | I16: 637.47 | J16: 668.16 | K16: 690.4686984 | M16: 563.99 | N16: 0 | O16: 0 | P16: 0 | Q16: 0 | R16: 0 | T16: 5 | U16: ='Calc|Fee Based'!B16 -> BTSO | V16: ='Calc|Fee Based'!C16 -> Temporary connection, single-phase BH | W16: ='Calc|Fee Based'!E16 -> Business Hours | X16: ='Calc|Fee Based'!F16 -> Capex | Y16: ='Calc|Fee Based'!H16 -> 872.3325042 | Z16: 901.6143637 | AA16: 933.6319208 | AB16: 968.6862448 | AC16: 1004.304268
A17: 6 | B17: BTSO | C17: Temporary connection, single-phase AH * | D17: After Hours | E17: BTSOAH | F17: Per connection | G17: 746.97 | H17: 778.22 | I17: 844.28 | J17: 884.93 | K17: 914.4762711 | M17: 746.97 | N17: 0 | O17: 0 | P17: 0 | Q17: 0 | R17: 0 | T17: 6 | U17: ='Calc|Fee Based'!B17 -> BTSO | V17: ='Calc|Fee Based'!C17 -> Temporary connection, single-phase AH | W17: ='Calc|Fee Based'!E17 -> After Hours | X17: ='Calc|Fee Based'!F17 -> Capex | Y17: ='Calc|Fee Based'!H17 -> 1230.251239 | Z17: 1271.54747 | AA17: 1316.701856 | AB17: 1366.138998 | AC17: 1416.371126
A18: 7 | B18: BTSP | C18: Temporary connection, three-phase BH * | D18: Business Hours | E18: BTSPBH | F18: Per connection | G18: 693.87 | H18: 722.9 | I18: 784.26 | J18: 822.02 | K18: 849.4658158 | M18: 693.87 | N18: 0 | O18: 0 | P18: 0 | Q18: 0 | R18: 0 | T18: 7 | U18: ='Calc|Fee Based'!B18 -> BTSP | V18: ='Calc|Fee Based'!C18 -> Temporary connection, three-phase BH | W18: ='Calc|Fee Based'!E18 -> Business Hours | X18: ='Calc|Fee Based'!F18 -> Capex | Y18: ='Calc|Fee Based'!H18 -> 1195.347032 | Z18: 1235.471621 | AA18: 1279.344905 | AB18: 1327.379436 | AC18: 1376.186397
A19: 8 | B19: BTSP | C19: Temporary connection, three-phase AH * | D19: After Hours | E19: BTSPAH | F19: Per connection | G19: 876.85 | H19: 913.54 | I19: 991.09 | J19: 1038.81 | K19: 1073.494056 | M19: 876.85 | N19: 0 | O19: 0 | P19: 0 | Q19: 0 | R19: 0 | T19: 8 | U19: ='Calc|Fee Based'!B19 -> BTSP | V19: ='Calc|Fee Based'!C19 -> Temporary connection, three-phase AH | W19: ='Calc|Fee Based'!E19 -> After Hours | X19: ='Calc|Fee Based'!F19 -> Capex | Y19: ='Calc|Fee Based'!H19 -> 1553.265767 | Z19: 1605.404727 | AA19: 1662.414841 | AB19: 1724.832189 | AC19: 1788.253254
A20: 9 | B20: SUTK | C20: Supply upgrade/enhancement (1ph to 3ph) BH * | D20: Business Hours | E20: SUTKBH | F20: Per connection | G20: 693.87 | H20: 722.9 | I20: 784.26 | J20: 822.02 | K20: 849.4658158 | M20: 693.87 | N20: 0 | O20: 0 | P20: 0 | Q20: 0 | R20: 0 | T20: 9 | U20: ='Calc|Fee Based'!B20 -> SUTK | V20: ='Calc|Fee Based'!C20 -> Supply upgrade/enhancement (1ph to 3ph) BH | W20: ='Calc|Fee Based'!E20 -> Business Hours | X20: ='Calc|Fee Based'!F20 -> Capex | Y20: ='Calc|Fee Based'!H20 -> 1195.347032 | Z20: 1235.471621 | AA20: 1279.344905 | AB20: 1327.379436 | AC20: 1376.186397
A21: 10 | B21: SUTK | C21: Supply upgrade/enhancement (1ph to 3ph) AH * | D21: After Hours | E21: SUTKAH | F21: Per connection | G21: 876.85 | H21: 913.54 | I21: 991.09 | J21: 1038.81 | K21: 1073.494056 | M21: 876.85 | N21: 0 | O21: 0 | P21: 0 | Q21: 0 | R21: 0 | T21: 10 | U21: ='Calc|Fee Based'!B21 -> SUTK | V21: ='Calc|Fee Based'!C21 -> Supply upgrade/enhancement (1ph to 3ph) AH | W21: ='Calc|Fee Based'!E21 -> After Hours | X21: ='Calc|Fee Based'!F21 -> Capex | Y21: ='Calc|Fee Based'!H21 -> 1553.265767 | Z21: 1605.404727 | AA21: 1662.414841 | AB21: 1724.832189 | AC21: 1788.253254
A22: 11 | B22: RTK1 | C22: Replacement of 1-phase overhead service line BH * | D22: Business Hours | E22: RTK1BH | F22: Per connection | G22: 676.4 | H22: 704.7 | I22: 764.52 | J22: 801.33 | K22: 828.0850127 | M22: 676.4 | N22: 0 | O22: 0 | P22: 0 | Q22: 0 | R22: 0 | T22: 11 | U22: ='Calc|Fee Based'!B22 -> RTK1 | V22: ='Calc|Fee Based'!C22 -> Replacement of 1-phase overhead service line BH | W22: ='Calc|Fee Based'!E22 -> Business Hours | X22: ='Calc|Fee Based'!F22 -> Capex | Y22: ='Calc|Fee Based'!H22 -> 908.2569719 | Z22: 938.7447194 | AA22: 972.080826 | AB22: 1008.57876 | AC22: 1045.663608
A23: 12 | B23: RTK1 | C23: Replacement of 1-phase overhead service line AH * | D23: After Hours | E23: RTK1AH | F23: Per connection | G23: 859.38 | H23: 895.34 | I23: 971.34 | J23: 1018.1 | K23: 1052.092585 | M23: 859.38 | N23: 0 | O23: 0 | P23: 0 | Q23: 0 | R23: 0 | T23: 12 | U23: ='Calc|Fee Based'!B23 -> RTK1 | V23: ='Calc|Fee Based'!C23 -> Replacement of 1-phase overhead service line AH | W23: ='Calc|Fee Based'!E23 -> After Hours | X23: ='Calc|Fee Based'!F23 -> Capex | Y23: ='Calc|Fee Based'!H23 -> 1266.175707 | Z23: 1308.677825 | AA23: 1355.150762 | AB23: 1406.031513 | AC23: 1457.730465
A24: 13 | B24: REEN | C24: Field-based energisation BH | D24: Business Hours | E24: REENBH | F24: Per connection | G24: 49.5 | H24: 51.57 | I24: 55.95 | J24: 58.64 | K24: 60.59788745 | M24: 49.5 | N24: 0 | O24: 0 | P24: 0 | Q24: 0 | R24: 0 | T24: 13 | U24: ='Calc|Fee Based'!B24 -> REEN | V24: ='Calc|Fee Based'!C24 -> Field-based energisation BH | W24: ='Calc|Fee Based'!E24 -> Business Hours | X24: ='Calc|Fee Based'!F24 -> Opex | Y24: ='Calc|Fee Based'!H24 -> 159.823337 | Z24: 165.1881773 | AA24: 171.054235 | AB24: 177.4766703 | AC24: 184.002383
A25: 14 | B25: REEN | C25: Field-based energisation AH | D25: After Hours | E25: REENAH | F25: Per connection | G25: 86.4 | H25: 90.02 | I25: 97.66 | J25: 102.36 | K25: 105.7776221 | M25: 86.4 | N25: 0 | O25: 0 | P25: 0 | Q25: 0 | R25: 0 | T25: 14 | U25: ='Calc|Fee Based'!B25 -> REEN | V25: ='Calc|Fee Based'!C25 -> Field-based energisation AH | W25: ='Calc|Fee Based'!E25 -> After Hours | X25: ='Calc|Fee Based'!F25 -> Opex | Y25: ='Calc|Fee Based'!H25 -> 227.3885135 | Z25: 235.0213352 | AA25: 243.3672637 | AB25: 252.5047779 | AC25: 261.7892301
A26: 15 | B26: DEEN | C26: Field-based de-energisation BH | D26: Business Hours | E26: DEENBH | F26: Per connection | G26: 70.98 | H26: 73.95 | I26: 80.23 | J26: 84.09 | K26: 86.89761861 | M26: 70.98 | N26: 0 | O26: 0 | P26: 0 | Q26: 0 | R26: 0 | T26: 15 | U26: ='Calc|Fee Based'!B26 -> DEEN | V26: ='Calc|Fee Based'!C26 -> Field-based de-energisation BH | W26: ='Calc|Fee Based'!E26 -> Business Hours | X26: ='Calc|Fee Based'!F26 -> Opex | Y26: ='Calc|Fee Based'!H26 -> 175.2382182 | Z26: 181.1204946 | AA26: 187.5523307 | AB26: 194.5942066 | AC26: 201.7493212
A27: 16 | B27: DCTK | C27: Disconnection (temporary) BH | D27: Business Hours | E27: DCTKBH | F27: Per connection | G27: 367.05 | H27: 382.41 | I27: 414.87 | J27: 434.84 | K27: 449.3585501 | M27: 367.05 | N27: 0 | O27: 0 | P27: 0 | Q27: 0 | R27: 0 | T27: 16 | U27: ='Calc|Fee Based'!B27 -> DCTK | V27: ='Calc|Fee Based'!C27 -> Disconnection (temporary) BH | W27: ='Calc|Fee Based'!E27 -> Business Hours | X27: ='Calc|Fee Based'!F27 -> Opex | Y27: ='Calc|Fee Based'!H27 -> 496.3128273 | Z27: 512.9727161 | AA27: 531.1890776 | AB27: 551.1332051 | AC27: 571.3980489
A28: 17 | B28: DCTK | C28: Disconnection (temporary) AH | D28: After Hours | E28: DCTKAH | F28: Per connection | G28: 519.55 | H28: 541.29 | I28: 587.24 | J28: 615.51 | K28: 636.0608066 | M28: 519.55 | N28: 0 | O28: 0 | P28: 0 | Q28: 0 | R28: 0 | T28: 17 | U28: ='Calc|Fee Based'!B28 -> DCTK | V28: ='Calc|Fee Based'!C28 -> Disconnection (temporary) AH | W28: ='Calc|Fee Based'!E28 -> After Hours | X28: ='Calc|Fee Based'!F28 -> Opex | Y28: ='Calc|Fee Based'!H28 -> 793.5996035 | Z28: 820.238611 | AA28: 849.3664039 | AB28: 881.2568787 | AC28: 913.6601758
A29: 18 | B29: RCTK | C29: Reconnection after temp discon BH | D29: Business Hours | E29: RCTKBH | F29: Per connection | G29: 425.28 | H29: 443.07 | I29: 480.68 | J29: 503.82 | K29: 520.6416721 | M29: 425.28 | N29: 0 | O29: 0 | P29: 0 | Q29: 0 | R29: 0 | T29: 18 | U29: ='Calc|Fee Based'!B29 -> RCTK | V29: ='Calc|Fee Based'!C29 -> Reconnection after temp discon BH | W29: ='Calc|Fee Based'!E29 -> Business Hours | X29: ='Calc|Fee Based'!F29 -> Opex | Y29: ='Calc|Fee Based'!H29 -> 575.3407005 | Z29: 594.6533427 | AA29: 615.7702948 | AB29: 638.890125 | AC29: 662.3817391
A30: 19 | B30: RCTK | C30: Reconnection after temp discon AH | D30: After Hours | E30: RCTKAH | F30: Per connection | G30: 605.51 | H30: 630.85 | I30: 684.4 | J30: 717.35 | K30: 741.3010668 | M30: 605.51 | N30: 0 | O30: 0 | P30: 0 | Q30: 0 | R30: 0 | T30: 19 | U30: ='Calc|Fee Based'!B30 -> RCTK | V30: ='Calc|Fee Based'!C30 -> Reconnection after temp discon AH | W30: ='Calc|Fee Based'!E30 -> After Hours | X30: ='Calc|Fee Based'!F30 -> Opex | Y30: ='Calc|Fee Based'!H30 -> 926.6796178 | Z30: 957.785764 | AA30: 991.7980441 | AB30: 1029.036285 | AC30: 1066.873344
A31: 20 | B31: SLOM | C31: Security Lighting - O&M | D31: Business Hours | E31: SLOM | F31: $/light/annum | G31: 136.31 | H31: 142.01 | I31: 154.06 | J31: 161.48 | K31: 166.8715359 | M31: 136.31 | N31: 0 | O31: 0 | P31: 0 | Q31: 0 | R31: 0 | T31: 20 | U31: ='Calc|Fee Based'!B31 -> SLOM | V31: ='Calc|Fee Based'!C31 -> Security Lighting - O&M | W31: ='Calc|Fee Based'!E31 -> Business Hours | X31: ='Calc|Fee Based'!F31 -> Capex | Y31: ='Calc|Fee Based'!H31 -> 173.0008115 | Z31: 178.8079841 | AA31: 185.1576998 | AB31: 192.1096664 | AC31: 199.1734259
A32: 21 | B32: RFOM | C32: Enhanced Connection Operation and Maintenance | D32: Business Hours | E32: RFOM | F32: $/kVA/annum | G32: 12.98 | H32: 13.52 | I32: 14.67 | J32: 15.38 | K32: 15.89351141 | M32: 12.98 | N32: 0 | O32: 0 | P32: 0 | Q32: 0 | R32: 0 | T32: 21 | U32: ='Calc|Fee Based'!B32 -> RFOM | V32: ='Calc|Fee Based'!C32 -> Enhanced Connection Operation and Maintenance | W32: ='Calc|Fee Based'!E32 -> Business Hours | X32: ='Calc|Fee Based'!F32 -> Opex | Y32: ='Calc|Fee Based'!H32 -> 16.174377 | Z32: =Y32*(1+Z$5)*(1-Z$6) -> 16.7173074 | AA32: =Z32*(1+AA$5)*(1-AA$6) -> 17.31096181 | AB32: =AA32*(1+AB$5)*(1-AB$6) -> 17.96092252 | AC32: =AB32*(1+AC$5)*(1-AC$6) -> 18.62133508
A33: 22 | B33: REENRM | C33: Remote energisation | D33: Business Hours | E33: REENRM | F33: Per connection | G33: 0 | H33: 0 | I33: 0 | J33: =I33*(1+$Q$5)*(1-$Q$6) -> 0 | K33: 0 | M33: 0 | N33: 0 | O33: 0 | P33: 0 | Q33: 0 | R33: 0 | T33: 22 | U33: ='Calc|Fee Based'!B33 -> REENRM | V33: ='Calc|Fee Based'!C33 -> Remote energisation | W33: ='Calc|Fee Based'!E33 -> Business Hours | X33: ='Calc|Fee Based'!F33 -> Opex | Y33: ='Calc|Fee Based'!H33 -> 0 | Z33: =Y33*(1+Z$5)*(1-Z$6) -> 0 | AA33: =Z33*(1+AA$5)*(1-AA$6) -> 0 | AB33: =AA33*(1+AB$5)*(1-AB$6) -> 0 | AC33: =AB33*(1+AC$5)*(1-AC$6) -> 0
A34: 23 | B34: DEENRM | C34: Remote de-energisation | D34: Business Hours | E34: DEENRM | F34: Per connection | G34: 0 | H34: 0 | I34: 0 | J34: =I34*(1+$Q$5)*(1-$Q$6) -> 0 | K34: 0 | M34: 0 | N34: 0 | O34: 0 | P34: 0 | Q34: 0 | R34: 0 | T34: 23 | U34: ='Calc|Fee Based'!B34 -> DEENRM | V34: ='Calc|Fee Based'!C34 -> Remote de-energisation | W34: ='Calc|Fee Based'!E34 -> Business Hours | X34: ='Calc|Fee Based'!F34 -> Opex | Y34: ='Calc|Fee Based'!H34 -> 0 | Z34: 0 | AA34: 0 | AB34: 0 | AC34: 0
A35: 24 | B35: MCTK | C35: Meter Alteration BH | D35: Business Hours | E35: MCTKBH | F35: Per connection | G35: 472.07 | H35: 491.82 | I35: 533.57 | J35: 559.26 | K35: 577.9327171 | M35: 472.07 | N35: 0 | O35: 0 | P35: 0 | Q35: 0 | R35: 0 | T35: 24 | U35: ='Calc|Fee Based'!B35 -> MCTK | V35: ='Calc|Fee Based'!C35 -> Meter Alteration BH | W35: ='Calc|Fee Based'!E35 -> Business Hours | X35: ='Calc|Fee Based'!F35 -> Opex | Y35: ='Calc|Fee Based'!H35 -> 637.0002252 | Z35: 658.3826122 | AA35: 681.7626776 | AB35: 707.3602705 | AC35: 733.3694917
A36: 25 | B36: MCTK | C36: Meter Alteration AH | D36: After Hours | E36: MCTKAH | F36: Per connection | G36: 652.3 | H36: 679.59 | I36: 737.28 | J36: 772.78 | K36: 798.581778 | M36: 652.3 | N36: 0 | O36: 0 | P36: 0 | Q36: 0 | R36: 0 | T36: 25 | U36: ='Calc|Fee Based'!B36 -> MCTK | V36: ='Calc|Fee Based'!C36 -> Meter Alteration AH | W36: ='Calc|Fee Based'!E36 -> After Hours | X36: ='Calc|Fee Based'!F36 -> Opex | Y36: ='Calc|Fee Based'!H36 -> 988.3391426 | Z36: 1021.515033 | AA36: 1057.790427 | AB36: 1097.50643 | AC36: 1137.861096
A37: 26 | B37: SPRDRM | C37: Remote special meter read | D37: Business Hours | E37: SPRDRM | F37: Per connection | G37: =SUMIF('Calc|Fee Based'!$B$12:$B$71,B37,'Calc|Fee Based'!$H$12:$H$71) -> 0 | H37: 0 | I37: 0 | J37: =I37*(1+$Q$5)*(1-$Q$6) -> 0 | K37: 0 | M37: 0 | N37: 0 | O37: 0 | P37: 0 | Q37: 0 | R37: 0 | T37: 26 | U37: ='Calc|Fee Based'!B37 -> SPRDRM | V37: ='Calc|Fee Based'!C37 -> Remote special meter read | W37: ='Calc|Fee Based'!E37 -> Business Hours | X37: ='Calc|Fee Based'!F37 -> Opex | Y37: ='Calc|Fee Based'!H37 -> 0 | Z37: 0 | AA37: 0 | AB37: 0 | AC37: 0
A38: 27 | B38: MECFRM | C38: Remote meter reconfiguration | D38: Business Hours | E38: MECFRM | F38: Per connection | G38: 49.91 | H38: 52 | I38: 56.41 | J38: 59.13 | K38: 61.10424769 | M38: 49.91 | N38: 0 | O38: 0 | P38: 0 | Q38: 0 | R38: 0 | T38: 27 | U38: ='Calc|Fee Based'!B38 -> MECFRM | V38: ='Calc|Fee Based'!C38 -> Remote meter reconfiguration | W38: ='Calc|Fee Based'!E38 -> Business Hours | X38: ='Calc|Fee Based'!F38 -> Opex | Y38: ='Calc|Fee Based'!H38 -> 65.77015975 | Z38: 67.97788739 | AA38: 70.39187498 | AB38: 73.03482189 | AC38: 75.72026934
A39: 28 | B39: SPRD | C39: Field-based special meter reads | D39: Business Hours | E39: SPRDBH | F39: Per connection | G39: 47.69 | H39: 49.69 | I39: 53.91 | J39: 56.51 | K39: 58.39677046 | M39: 47.69 | N39: 0 | O39: 0 | P39: 0 | Q39: 0 | R39: 0 | T39: 28 | U39: ='Calc|Fee Based'!B39 -> SPRD | V39: ='Calc|Fee Based'!C39 -> Field-based special meter reads | W39: ='Calc|Fee Based'!E39 -> Business Hours | X39: ='Calc|Fee Based'!F39 -> Opex | Y39: ='Calc|Fee Based'!H39 -> 199.8300938 | Z39: 206.5378534 | AA39: 213.8722946 | AB39: 221.902385 | AC39: 230.0616052
A40: 29 | B40: MTAL | C40: Meter test of types 5, 6 and AMI smart metering installations BH | D40: Business Hours | E40: MTALBH | F40: Per connection | G40: 514.17 | H40: 535.68 | I40: 581.15 | J40: 609.13 | K40: 629.4677896 | M40: 514.17 | N40: 0 | O40: 0 | P40: 0 | Q40: 0 | R40: 0 | T40: 29 | U40: ='Calc|Fee Based'!B40 -> MTAL | V40: ='Calc|Fee Based'!C40 -> Meter test of types 5, 6 and AMI smart metering installations BH | W40: ='Calc|Fee Based'!E40 -> Business Hours | X40: ='Calc|Fee Based'!F40 -> Opex | Y40: ='Calc|Fee Based'!H40 -> 1336.08484 | Z40: 1380.93362 | AA40: 1429.972459 | AB40: 1483.66248 | AC40: 1538.215877
A41: 30 | B41: MTAL | C41: Meter test of types 5, 6 and AMI smart metering installations AH | D41: After Hours | E41: MTALAH | F41: Per connection | G41: 698.04 | H41: 727.25 | I41: 788.98 | J41: 826.97 | K41: 854.5810877 | M41: 698.04 | N41: 0 | O41: 0 | P41: 0 | Q41: 0 | R41: 0 | T41: 30 | U41: ='Calc|Fee Based'!B41 -> MTAL | V41: ='Calc|Fee Based'!C41 -> Meter test of types 5, 6 and AMI smart metering installations AH | W41: ='Calc|Fee Based'!E41 -> After Hours | X41: ='Calc|Fee Based'!F41 -> Opex | Y41: ='Calc|Fee Based'!H41 -> 2146.866957 | Z41: 2218.931516 | AA41: 2297.728803 | AB41: 2383.999772 | AC41: 2471.658041
A42: 31 | B42: MDCH | C42: Type 7 metering | D42: Business Hours | E42: MDCH | F42: Per connection | G42: 1.44 | H42: 1.5 | I42: 1.63 | J42: 1.71 | K42: 1.767093921 | M42: 1.44 | N42: 0 | O42: 0 | P42: 0 | Q42: 0 | R42: 0 | T42: 31 | U42: ='Calc|Fee Based'!B42 -> MDCH | V42: ='Calc|Fee Based'!C42 -> Type 7 metering | W42: ='Calc|Fee Based'!E42 -> Business Hours | X42: ='Calc|Fee Based'!F42 -> Opex | Y42: ='Calc|Fee Based'!H42 -> 0 | Z42: 0 | AA42: 0 | AB42: 0 | AC42: 0
A43: 32 | B43: NCUM | C43: Non-contestable unmetered loads | D43: Business Hours | E43: NCUM | F43: $/unmetered install/annum | G43: 16.58 | H43: 17.27 | I43: 18.74 | J43: 19.64 | K43: 20.29574539 | M43: 16.58 | N43: 0 | O43: 0 | P43: 0 | Q43: 0 | R43: 0 | T43: 32 | U43: ='Calc|Fee Based'!B43 -> NCUM | V43: ='Calc|Fee Based'!C43 -> Non-contestable unmetered loads | W43: ='Calc|Fee Based'!E43 -> Business Hours | X43: ='Calc|Fee Based'!F43 -> Capex | Y43: ='Calc|Fee Based'!H43 -> 0 | Z43: 0 | AA43: 0 | AB43: 0 | AC43: 0
A44: 33 | B44: WSVR | C44: Wasted site attendance BH (1),(2) | D44: Business Hours | E44: WSVRBH | F44: Per connection | G44: 472.07 | H44: 491.82 | I44: 533.57 | J44: 559.26 | K44: 577.9327171 | M44: 472.07 | N44: 0 | O44: 0 | P44: 0 | Q44: 0 | R44: 0 | T44: 33 | U44: ='Calc|Fee Based'!B44 -> WSVR | V44: ='Calc|Fee Based'!C44 -> Wasted site attendance BH | W44: ='Calc|Fee Based'!E44 -> Business Hours | X44: ='Calc|Fee Based'!F44 -> Opex | Y44: ='Calc|Fee Based'!H44 -> 637.0002252 | Z44: 658.3826122 | AA44: 681.7626776 | AB44: 707.3602705 | AC44: 733.3694917
A45: 34 | B45: WSVR | C45: Wasted site attendance AH (1),(2) | D45: After Hours | E45: WSVRAH | F45: Per connection | G45: 652.3 | H45: 679.59 | I45: 737.28 | J45: 772.78 | K45: 798.581778 | M45: =G45 -> 652.3 | N45: 0 | O45: 0 | P45: 0 | Q45: 0 | R45: 0 | T45: 34 | U45: ='Calc|Fee Based'!B45 -> WSVR | V45: ='Calc|Fee Based'!C45 -> Wasted site attendance AH | W45: ='Calc|Fee Based'!E45 -> After Hours | X45: ='Calc|Fee Based'!F45 -> Opex | Y45: ='Calc|Fee Based'!H45 -> 988.3391426 | Z45: 1021.515033 | AA45: 1057.790427 | AB45: 1097.50643 | AC45: 1137.861096
A46: 35 | B46: RTK3 | C46: Replacement of 3-phase overhead service line BH * | D46: Business Hours | E46: RTK3BH | F46: Per connection | G46: 750.72 | H46: 782.13 | I46: 848.52 | J46: 889.37 | K46: 919.064515 | M46: =G46 -> 750.72 | N46: 0 | O46: 0 | P46: 0 | Q46: 0 | R46: 0 | T46: 35 | U46: ='Calc|Fee Based'!B46 -> RTK3 | V46: ='Calc|Fee Based'!C46 -> Replacement of 3-phase overhead service line BH | W46: ='Calc|Fee Based'!E46 -> Business Hours | X46: ='Calc|Fee Based'!F46 -> Capex | Y46: ='Calc|Fee Based'!H46 -> 970.8779713 | Z46: 1003.467738 | AA46: 1039.102247 | AB46: 1078.11658 | AC46: 1117.758293
A47: 36 | B47: RTK3 | C47: Replacement of 3-phase overhead service line AH * | D47: After Hours | E47: RTK3AH | F47: Per connection | G47: 933.7 | H47: 972.77 | I47: 1055.35 | J47: 1106.16 | K47: 1143.092755 | M47: =G47 -> 933.7 | N47: 0 | O47: 0 | P47: 0 | Q47: 0 | R47: 0 | T47: 36 | U47: ='Calc|Fee Based'!B47 -> RTK3 | V47: ='Calc|Fee Based'!C47 -> Replacement of 3-phase overhead service line AH | W47: ='Calc|Fee Based'!E47 -> After Hours | X47: ='Calc|Fee Based'!F47 -> Capex | Y47: ='Calc|Fee Based'!H47 -> 1328.796706 | Z47: 1373.400843 | AA47: 1422.172182 | AB47: 1475.569333 | AC47: 1529.82515
A48: 37 | N48: 0 | O48: 0 | P48: 0 | Q48: 0 | R48: 0 | T48: 37 | U48: ='Calc|Fee Based'!B48 ->  | V48: ='Calc|Fee Based'!C48 ->  | W48: ='Calc|Fee Based'!E48 ->  | X48: ='Calc|Fee Based'!F48 ->  | Y48: ='Calc|Fee Based'!H48 -> 0 | Z48: 0 | AA48: 0 | AB48: 0 | AC48: 0
A49: 38 | N49: 0 | O49: 0 | P49: 0 | Q49: 0 | R49: 0 | T49: 38 | U49: ='Calc|Fee Based'!B49 ->  | V49: ='Calc|Fee Based'!C49 ->  | W49: ='Calc|Fee Based'!E49 ->  | X49: ='Calc|Fee Based'!F49 ->  | Y49: ='Calc|Fee Based'!H49 -> 0 | Z49: 0 | AA49: 0 | AB49: 0 | AC49: 0
A50: 39 | N50: 0 | O50: 0 | P50: 0 | Q50: 0 | R50: 0 | T50: 39 | U50: ='Calc|Fee Based'!B50 ->  | V50: ='Calc|Fee Based'!C50 ->  | W50: ='Calc|Fee Based'!E50 ->  | X50: ='Calc|Fee Based'!F50 ->  | Y50: ='Calc|Fee Based'!H50 -> 0 | Z50: 0 | AA50: 0 | AB50: 0 | AC50: 0
A51: 40 | N51: 0 | O51: 0 | P51: 0 | Q51: 0 | R51: 0 | T51: 40 | U51: ='Calc|Fee Based'!B51 ->  | V51: ='Calc|Fee Based'!C51 ->  | W51: ='Calc|Fee Based'!E51 ->  | X51: ='Calc|Fee Based'!F51 ->  | Y51: ='Calc|Fee Based'!H51 -> 0 | Z51: 0 | AA51: 0 | AB51: 0 | AC51: 0
A52: 41 | N52: 0 | O52: 0 | P52: 0 | Q52: 0 | R52: 0 | T52: 41 | U52: ='Calc|Fee Based'!B52 ->  | V52: ='Calc|Fee Based'!C52 ->  | W52: ='Calc|Fee Based'!E52 ->  | X52: ='Calc|Fee Based'!F52 ->  | Y52: ='Calc|Fee Based'!H52 -> 0 | Z52: 0 | AA52: 0 | AB52: 0 | AC52: 0
A53: 42 | N53: 0 | O53: 0 | P53: 0 | Q53: 0 | R53: 0 | T53: 42 | U53: ='Calc|Fee Based'!B53 ->  | V53: ='Calc|Fee Based'!C53 ->  | W53: ='Calc|Fee Based'!E53 ->  | X53: ='Calc|Fee Based'!F53 ->  | Y53: ='Calc|Fee Based'!H53 -> 0 | Z53: 0 | AA53: 0 | AB53: 0 | AC53: 0
A54: 43 | N54: 0 | O54: 0 | P54: 0 | Q54: 0 | R54: 0 | T54: 43 | U54: ='Calc|Fee Based'!B54 ->  | V54: ='Calc|Fee Based'!C54 ->  | W54: ='Calc|Fee Based'!E54 ->  | X54: ='Calc|Fee Based'!F54 ->  | Y54: ='Calc|Fee Based'!H54 -> 0 | Z54: 0 | AA54: 0 | AB54: 0 | AC54: 0
A55: 44 | N55: 0 | O55: 0 | P55: 0 | Q55: 0 | R55: 0 | T55: 44 | U55: ='Calc|Fee Based'!B55 ->  | V55: ='Calc|Fee Based'!C55 ->  | W55: ='Calc|Fee Based'!E55 ->  | X55: ='Calc|Fee Based'!F55 ->  | Y55: ='Calc|Fee Based'!H55 -> 0 | Z55: 0 | AA55: 0 | AB55: 0 | AC55: 0
A56: 45 | N56: 0 | O56: 0 | P56: 0 | Q56: 0 | R56: 0 | T56: 45 | U56: ='Calc|Fee Based'!B56 ->  | V56: ='Calc|Fee Based'!C56 ->  | W56: ='Calc|Fee Based'!E56 ->  | X56: ='Calc|Fee Based'!F56 ->  | Y56: ='Calc|Fee Based'!H56 -> 0 | Z56: 0 | AA56: 0 | AB56: 0 | AC56: 0
A57: 46 | N57: 0 | O57: 0 | P57: 0 | Q57: 0 | R57: 0 | T57: 46 | U57: ='Calc|Fee Based'!B57 ->  | V57: ='Calc|Fee Based'!C57 ->  | W57: ='Calc|Fee Based'!E57 ->  | X57: ='Calc|Fee Based'!F57 ->  | Y57: ='Calc|Fee Based'!H57 -> 0 | Z57: 0 | AA57: 0 | AB57: 0 | AC57: 0
A58: 47 | N58: 0 | O58: 0 | P58: 0 | Q58: 0 | R58: 0 | T58: 47 | U58: ='Calc|Fee Based'!B58 ->  | V58: ='Calc|Fee Based'!C58 ->  | W58: ='Calc|Fee Based'!E58 ->  | X58: ='Calc|Fee Based'!F58 ->  | Y58: ='Calc|Fee Based'!H58 -> 0 | Z58: 0 | AA58: 0 | AB58: 0 | AC58: 0
A59: 48 | N59: 0 | O59: 0 | P59: 0 | Q59: 0 | R59: 0 | T59: 48 | U59: ='Calc|Fee Based'!B59 ->  | V59: ='Calc|Fee Based'!C59 ->  | W59: ='Calc|Fee Based'!E59 ->  | X59: ='Calc|Fee Based'!F59 ->  | Y59: ='Calc|Fee Based'!H59 -> 0 | Z59: 0 | AA59: 0 | AB59: 0 | AC59: 0
A60: 49 | N60: 0 | O60: 0 | P60: 0 | Q60: 0 | R60: 0 | T60: 49 | U60: ='Calc|Fee Based'!B60 ->  | V60: ='Calc|Fee Based'!C60 ->  | W60: ='Calc|Fee Based'!E60 ->  | X60: ='Calc|Fee Based'!F60 ->  | Y60: ='Calc|Fee Based'!H60 -> 0 | Z60: 0 | AA60: 0 | AB60: 0 | AC60: 0
A61: 50 | N61: 0 | O61: 0 | P61: 0 | Q61: 0 | R61: 0 | T61: 50 | U61: ='Calc|Fee Based'!B61 ->  | V61: ='Calc|Fee Based'!C61 ->  | W61: ='Calc|Fee Based'!E61 ->  | X61: ='Calc|Fee Based'!F61 ->  | Y61: ='Calc|Fee Based'!H61 -> 0 | Z61: 0 | AA61: 0 | AB61: 0 | AC61: 0
A62: 51 | N62: 0 | O62: 0 | P62: 0 | Q62: 0 | R62: 0 | T62: 51 | U62: ='Calc|Fee Based'!B62 ->  | V62: ='Calc|Fee Based'!C62 ->  | W62: ='Calc|Fee Based'!E62 ->  | X62: ='Calc|Fee Based'!F62 ->  | Y62: ='Calc|Fee Based'!H62 -> 0 | Z62: 0 | AA62: 0 | AB62: 0 | AC62: 0
A63: 52 | N63: 0 | O63: 0 | P63: 0 | Q63: 0 | R63: 0 | T63: 52 | U63: ='Calc|Fee Based'!B63 ->  | V63: ='Calc|Fee Based'!C63 ->  | W63: ='Calc|Fee Based'!E63 ->  | X63: ='Calc|Fee Based'!F63 ->  | Y63: ='Calc|Fee Based'!H63 -> 0 | Z63: 0 | AA63: 0 | AB63: 0 | AC63: 0
A64: 53 | N64: 0 | O64: 0 | P64: 0 | Q64: 0 | R64: 0 | T64: 53 | U64: ='Calc|Fee Based'!B64 ->  | V64: ='Calc|Fee Based'!C64 ->  | W64: ='Calc|Fee Based'!E64 ->  | X64: ='Calc|Fee Based'!F64 ->  | Y64: ='Calc|Fee Based'!H64 -> 0 | Z64: 0 | AA64: 0 | AB64: 0 | AC64: 0
A65: 54 | N65: 0 | O65: 0 | P65: 0 | Q65: 0 | R65: 0 | T65: 54 | U65: ='Calc|Fee Based'!B65 ->  | V65: ='Calc|Fee Based'!C65 ->  | W65: ='Calc|Fee Based'!E65 ->  | X65: ='Calc|Fee Based'!F65 ->  | Y65: ='Calc|Fee Based'!H65 -> 0 | Z65: 0 | AA65: 0 | AB65: 0 | AC65: 0
A66: 55 | N66: 0 | O66: 0 | P66: 0 | Q66: 0 | R66: 0 | T66: 55 | U66: ='Calc|Fee Based'!B66 ->  | V66: ='Calc|Fee Based'!C66 ->  | W66: ='Calc|Fee Based'!E66 ->  | X66: ='Calc|Fee Based'!F66 ->  | Y66: ='Calc|Fee Based'!H66 -> 0 | Z66: 0 | AA66: 0 | AB66: 0 | AC66: 0
A67: 56 | N67: 0 | O67: 0 | P67: 0 | Q67: 0 | R67: 0 | T67: 56 | U67: ='Calc|Fee Based'!B67 ->  | V67: ='Calc|Fee Based'!C67 ->  | W67: ='Calc|Fee Based'!E67 ->  | X67: ='Calc|Fee Based'!F67 ->  | Y67: ='Calc|Fee Based'!H67 -> 0 | Z67: 0 | AA67: 0 | AB67: 0 | AC67: 0
A68: 57 | N68: 0 | O68: 0 | P68: 0 | Q68: 0 | R68: 0 | T68: 57 | U68: ='Calc|Fee Based'!B68 ->  | V68: ='Calc|Fee Based'!C68 ->  | W68: ='Calc|Fee Based'!E68 ->  | X68: ='Calc|Fee Based'!F68 ->  | Y68: ='Calc|Fee Based'!H68 -> 0 | Z68: 0 | AA68: 0 | AB68: 0 | AC68: 0
A69: 58 | N69: 0 | O69: 0 | P69: 0 | Q69: 0 | R69: 0 | T69: 58 | U69: ='Calc|Fee Based'!B69 ->  | V69: ='Calc|Fee Based'!C69 ->  | W69: ='Calc|Fee Based'!E69 ->  | X69: ='Calc|Fee Based'!F69 ->  | Y69: ='Calc|Fee Based'!H69 -> 0 | Z69: 0 | AA69: 0 | AB69: 0 | AC69: 0
A70: 59 | N70: 0 | O70: 0 | P70: 0 | Q70: 0 | R70: 0 | T70: 59 | U70: ='Calc|Fee Based'!B70 ->  | V70: ='Calc|Fee Based'!C70 ->  | W70: ='Calc|Fee Based'!E70 ->  | X70: ='Calc|Fee Based'!F70 ->  | Y70: ='Calc|Fee Based'!H70 -> 0 | Z70: 0 | AA70: 0 | AB70: 0 | AC70: 0
A71: 60 | N71: 0 | O71: 0 | P71: 0 | Q71: 0 | R71: 0 | T71: 60 | U71: ='Calc|Fee Based'!B71 ->  | V71: ='Calc|Fee Based'!C71 ->  | W71: ='Calc|Fee Based'!E71 ->  | X71: ='Calc|Fee Based'!F71 ->  | Y71: ='Calc|Fee Based'!H71 -> 0 | Z71: 0 | AA71: 0 | AB71: 0 | AC71: 0

Sheet Input|Volume, Revenue, Cost
B1: Jemena Electricity Networks – Alternative Control Services Forecast model | D1: Key: | E1: Input | H1: Sheet Validation | I1: 0
B2: =IFERROR(MID(CELL("filename",A1),FIND("]",CELL("filename",A1))+1,255),"") -> Input|Volume, Revenue, Cost | E2: Formula
B4: Customer numnber growth
D6: 2024-25 | E6: 2025-26 | F6: 2026-27 | G6: 2027-28 | H6: 2028-29 | I6: 2029-30 | J6: 2030-31
B7: Customer number growth | D7: 0.0139 | E7: 0.0138 | F7: 0.01724246434 | G7: 0.01803882268 | H7: 0.01765359963 | I7: 0.01732438065 | J7: 0.01703848633
B10: Fee-Based Alternative Control Services - Forecast volumes and revenue | H10: Volumes Forecast | Q10: =IFERROR("Price Forecast, $ ($nominal)","") -> Price Forecast, $ ($nominal) | Y10: =IFERROR("Revenue Forecast, $ ($nominal)","") -> Revenue Forecast, $ ($nominal) | AG10: Revenue Forecast, $ ($2025-26) | AO10: Cost Breakdown | AU10: Operating Expenditure, $ ($2025-26) | BC10: Capital Expenditure, $ ($2025-26) | BK10: Network Overheads rate, $ ($2025-26) | BS10: Network Overheads Capex, $ ($2025-26) | CA10: Network Overheads Opex, $ ($2025-26) | CI10: Corproate Overheads rate, $ ($2025-26) | CQ10: Corproate Overheads Opex, $ ($2025-26)
B12: Service code | C12: Fee based service | D12: Hours (List) | E12: Product Code (List) | F12: Unit Cost | H12: 2023-24 | I12: =D6 -> 2024-25 | J12: =E6 -> 2025-26 | K12: 2026-27 | L12: 2027-28 | M12: 2028-29 | N12: 2029-30 | O12: 2030-31 | Q12: =I12 -> 2024-25 | R12: =J12 -> 2025-26 | S12: 2026-27 | T12: 2027-28 | U12: 2028-29 | V12: 2029-30 | W12: 2030-31 | Y12: =I12 -> 2024-25 | Z12: 2025-26 | AA12: 2026-27 | AB12: 2027-28 | AC12: 2028-29 | AD12: 2029-30 | AE12: 2030-31 | AG12: =Y12 -> 2024-25 | AH12: 2025-26 | AI12: 2026-27 | AJ12: 2027-28 | AK12: 2028-29 | AL12: 2029-30 | AM12: 2030-31 | AO12: Operating | AP12: Capital | AR12: Operating | AS12: Capital | AU12: =AG12 -> 2024-25 | AV12: =AH12 -> 2025-26 | AW12: 2026-27 | AX12: 2027-28 | AY12: 2028-29 | AZ12: 2029-30 | BA12: 2030-31 | BC12: =AU12 -> 2024-25 | BD12: =AV12 -> 2025-26 | BE12: 2026-27 | BF12: 2027-28 | BG12: 2028-29 | BH12: 2029-30 | BI12: 2030-31 | BK12: =BC12 -> 2024-25 | BL12: =BD12 -> 2025-26 | BM12: 2026-27 | BN12: 2027-28 | BO12: 2028-29 | BP12: 2029-30 | BQ12: 2030-31 | BS12: =BK12 -> 2024-25 | BT12: =BL12 -> 2025-26 | BU12: 2026-27 | BV12: 2027-28 | BW12: 2028-29 | BX12: 2029-30 | BY12: 2030-31 | CA12: =BS12 -> 2024-25 | CB12: =BT12 -> 2025-26 | CC12: 2026-27 | CD12: 2027-28 | CE12: 2028-29 | CF12: 2029-30 | CG12: 2030-31 | CI12: =CA12 -> 2024-25 | CJ12: =CB12 -> 2025-26 | CK12: 2026-27 | CL12: 2027-28 | CM12: 2028-29 | CN12: 2029-30 | CO12: 2030-31 | CQ12: =CI12 -> 2024-25 | CR12: =CJ12 -> 2025-26 | CS12: 2026-27 | CT12: 2027-28 | CU12: 2028-29 | CV12: 2029-30 | CW12: 2030-31
A13: 1 | B13: ND1P | C13: Basic connection, single-phase BH * | D13: Business Hours | E13: ND1PBH | F13: Per connection | H13: 4764 | I13: =H13*(1+D$7) -> 4830.2196 | J13: 4896.87663 | K13: 4981.310851 | L13: 5071.167834 | M13: 5160.692201 | N13: 5250.097997 | O13: 5339.55172 | Q13: 668.16 | R13: 690.4686984 | S13: 872.3325042 | T13: 901.6143637 | U13: 933.6319208 | V13: 968.6862448 | W13: 1004.304268 | Y13: =I13*Q13 -> 3227359.528 | Z13: =J13*R13 -> 3381140.033 | AA13: 4345359.369 | AB13: 4572237.76 | AC13: 4818186.972 | AD13: 5085697.714 | AE13: 5362534.584 | AG13: 3311270.876 | AH13: 3381140.033 | AI13: 4239374.994 | AJ13: 4351921.723 | AK13: 4474165.584 | AL13: 4607391.123 | AM13: 4739699.184 | AO13: 740.4933914 | AP13: 131.8391128 | AQ13: =SUM(AO13:AP13)-S13 -> 0 | AR13: =IFERROR(AO13/SUM($AO13:$AP13),0) -> 0.8488659861 | AS13: =IFERROR(AP13/SUM($AO13:$AP13),0) -> 0.1511340139 | AU13: =AG13*$AR13 -> 2810825.217 | AV13: =AH13*$AR13 -> 2870134.769 | AW13: 3598661.235 | AX13: 3694198.325 | AY13: 3797966.981 | AZ13: 3911057.609 | BA13: 4023369.422 | BC13: =AG13*$AS13 -> 500445.6584 | BD13: =AH13*$AS13 -> 511005.2646 | BE13: 640713.7591 | BF13: 657723.398 | BG13: 676198.6033 | BH13: 696333.5138 | BI13: 716329.7621 | BJ13: =SUM(AG13:AM13)-SUM(AU13:BA13,BC13:BI13) -> 0 | BM13: 104.6971519 | BN13: 105.5722479 | BO13: 106.6548903 | BP13: 107.9603662 | BQ13: 109.2000053 | BU13: =BM13*K13*$AS13 -> 78820.77999 | BV13: =BN13*L13*$AS13 -> 80913.31037 | BW13: 83186.13513 | BX13: 85663.13727 | BY13: 88123.08115 | CC13: =BM13*K13*$AR13 -> 442708.2788 | CD13: =BN13*L13*$AR13 -> 454461.2774 | CE13: 467226.9255 | CF13: 481139.3653 | CG13: 494955.9948 | CK13: 200.5482751 | CL13: 202.2245289 | CM13: 204.2983396 | CN13: 206.7989897 | CO13: 209.1735287 | CS13: =CK13*K13 -> 998993.299 | CT13: =CL13*L13 -> 1025514.526 | CU13: 1054320.848 | CV13: 1085714.961 | CW13: 1116892.875
A14: =IFERROR(A13+1,"") -> 2 | B14: ND1P | C14: Basic connection, single-phase AH * | D14: After Hours | E14: ND1PAH | F14: Per connection | H14: 4 | I14: 4.0556 | J14: 4.11156728 | K14: 4.182460832 | L14: 4.257907502 | M14: 4.333074896 | N14: 4.408142735 | O14: 4.483250814 | Q14: 884.93 | R14: 914.4762711 | S14: 1230.251239 | T14: 1271.54747 | U14: 1316.701856 | V14: 1366.138998 | W14: 1416.371126 | Y14: 3588.922108 | Z14: 3759.930715 | AA14: 5145.477622 | AB14: 5414.131509 | AC14: 5705.367759 | AD14: 6022.135699 | AE14: 6349.947002 | AG14: 3682.234083 | AH14: 3759.930715 | AI14: 5019.978168 | AJ14: 5153.248313 | AK14: 5298.00114 | AL14: 5455.757719 | AM14: 5612.427884 | AO14: 1098.412127 | AP14: 131.8391128 | AQ14: =SUM(AO14:AP14)-S14 -> 0 | AR14: =IFERROR(AO14/SUM($AO14:$AP14),0) -> 0.8928356188 | AS14: 0.1071643812 | AU14: =AG14*$AR14 -> 3287.629746 | AV14: 3357.000066 | AW14: 4482.015314 | AX14: 4601.003647 | AY14: 4730.244126 | AZ14: 4871.094819 | BA14: 5010.975523 | BC14: 394.6043369 | BD14: 402.9306484 | BE14: 537.962854 | BF14: 552.2446667 | BG14: 567.7570137 | BH14: 584.6628999 | BI14: 601.4523612 | BJ14: =SUM(AG14:AM14)-SUM(AU14:BA14,BC14:BI14) -> 0 | BM14: 147.6544784 | BN14: 148.888627 | BO14: 150.4154785 | BP14: 152.2565922 | BQ14: 154.0048561 | BU14: =BM14*K14*$AS14 -> 66.18033585 | BV14: 67.93728831 | BW14: 69.84562144 | BX14: 71.92538813 | BY14: 73.9908322 | CC14: =BM14*K14*$AR14 -> 551.3787366 | CD14: 566.0167135 | CE14: 581.9159122 | CF14: 599.2434026 | CG14: 616.4515645 | CK14: 282.8333953 | CL14: 285.1974174 | CM14: 288.1221142 | CN14: 291.6487831 | CO14: 294.9975974 | CS14: =CK14*K14 -> 1182.939598 | CT14: 1214.344223 | CU14: 1248.4547 | CV14: 1285.629464 | CW14: 1322.548219
A15: =IFERROR(A14+1,"") -> 3 | B15: ND3P | C15: Basic connection, three-phase BH * | D15: Business Hours | E15: ND3PBH | F15: Per connection | H15: 2318 | I15: 2350.2202 | J15: 2382.653239 | K15: 2423.736052 | L15: 2467.457397 | M15: 2511.016902 | N15: 2554.518715 | O15: 2598.043847 | Q15: 822.02 | R15: 849.4658158 | S15: 1195.347032 | T15: 1235.471621 | U15: 1279.344905 | V15: 1327.379436 | W15: 1376.186397 | Y15: 1931928.009 | Z15: 2023982.477 | AA15: 2897205.695 | AB15: 3048473.591 | AC15: 3212456.681 | AD15: 3390815.611 | AE15: 3575392.601 | AG15: 1982158.137 | AH15: 2023982.477 | AI15: 2826542.142 | AJ15: 2901581.05 | AK15: 2983085.382 | AL15: 3071911.589 | AM15: 3160126.08 | AO15: 873.6759945 | AP15: 321.6710371 | AQ15: 0 | AR15: 0.730897364 | AS15: 0.269102636 | AU15: 1448754.157 | AV15: 1479323.457 | AW15: 2065912.201 | AX15: 2120757.941 | AY15: 2180329.242 | AZ15: 2245252.083 | BA15: 2309727.822 | BC15: 533403.9796 | BD15: 544659.0198 | BE15: 760629.9411 | BF15: 780823.1092 | BG15: 802756.1396 | BH15: 826659.506 | BI15: 850398.2583 | BJ15: 0 | BM15: 143.4652832 | BN15: 144.664417 | BO15: 146.1479492 | BP15: 147.9368276 | BQ15: 149.6354905 | BU15: 93572.90115 | BV15: 96057.07015 | BW15: 98755.27748 | BX15: 101695.8761 | BY15: 104616.2238 | CC15: 254149.0779 | CD15: 260896.2157 | CE15: 268224.6933 | CF15: 276211.5187 | CG15: 284143.3416 | CK15: 274.8089567 | CL15: 277.1059077 | CM15: 279.9476261 | CN15: 283.3742377 | CO15: 286.6280408 | CS15: 666064.3758 | CT15: 683747.0217 | CU15: 702953.2209 | CV15: 723884.7935 | CW15: 744672.2177
A16: 4 | B16: ND3P | C16: Basic connection, three-phase AH * | D16: After Hours | E16: ND3PAH | F16: Per connection | H16: 10 | I16: 10.139 | J16: 10.2789182 | K16: 10.45615208 | L16: 10.64476875 | M16: 10.83268724 | N16: 11.02035684 | O16: 11.20812704 | Q16: 1038.81 | R16: 1073.494056 | S16: 1553.265767 | T16: 1605.404727 | U16: 1662.414841 | V16: 1724.832189 | W16: 1788.253254 | Y16: 10532.49459 | Z16: 11034.35759 | AA16: 16241.18308 | AB16: 17089.16208 | AC16: 18008.42003 | AD16: 19008.26621 | AE16: 20042.96965 | AG16: 10806.33945 | AH16: 11034.35759 | AI16: 15845.05666 | AJ16: 16265.71048 | AK16: 16722.60824 | AL16: 17220.55103 | AM16: 17715.06466 | AO16: 1231.59473 | AP16: 321.6710371 | AQ16: 0 | AR16: 0.7929066332 | AS16: 0.2070933668 | AU16: 8568.41823 | AV16: 8749.215328 | AW16: 12563.65053 | AX16: 12897.18974 | AY16: 13259.46699 | AZ16: 13654.28914 | BA16: 14046.39228 | BC16: 2237.921219 | BD16: 2285.142264 | BE16: 3281.406131 | BF16: 3368.520747 | BG16: 3463.141241 | BH16: 3566.26189 | BI16: 3668.672383 | BJ16: 0 | BM16: 186.4226096 | BN16: 187.9807961 | BO16: 189.9085374 | BP16: 192.2330536 | BQ16: 194.4403414 | BU16: 403.67947 | BV16: 414.3963337 | BW16: 426.0365724 | BX16: 438.7225025 | BY16: 451.3210691 | CC16: 1545.583687 | CD16: 1586.615771 | CE16: 1631.183217 | CF16: 1679.754344 | CG16: 1727.990978 | CK16: 357.0940769 | CL16: 360.0787962 | CM16: 363.7714008 | CN16: 368.2240312 | CO16: 372.4521095 | CS16: 3733.829975 | CT16: 3832.955518 | CU16: 3940.621812 | CV16: 4057.960219 | CW16: 4174.490558
A17: 5 | B17: BTSO | C17: Temporary connection, single-phase BH * | D17: Business Hours | E17: BTSOBH | F17: Per connection | H17: 554 | I17: 561.7006 | J17: 569.4520683 | K17: 579.2708253 | L17: 589.720189 | M17: 600.1308731 | N17: 610.5277688 | O17: 620.9302378 | Q17: 668.16 | R17: 690.4686984 | S17: 872.3325042 | T17: 901.6143637 | U17: 933.6319208 | V17: 968.6862448 | W17: 1004.304268 | Y17: 375305.8729 | Z17: 393188.8284 | AA17: 505316.7696 | AB17: 531700.193 | AC17: 560301.3397 | AD17: 591409.8517 | AE17: 623602.8882 | AG17: 385063.8256 | AH17: 393188.8284 | AI17: 492991.9704 | AJ17: 506079.8981 | AK17: 520295.494 | AL17: 535788.1365 | AM17: 551174.0865 | AO17: 740.4933914 | AP17: 131.8391128 | AQ17: 0 | AR17: 0.8488659861 | AS17: 0.1511340139 | AU17: 326867.584 | AV17: 333764.6226 | AW17: 418484.1151 | AX17: 429594.0118 | AY17: 441661.1476 | AZ17: 454812.3248 | BA17: 467872.9345 | BC17: 58196.24155 | BD17: 59424.20584 | BE17: 74507.85528 | BF17: 76485.88633 | BG17: 78634.3464 | BH17: 80975.81164 | BI17: 83301.15202 | BJ17: 0 | BM17: 104.6971519 | BN17: 105.5722479 | BO17: 106.6548903 | BP17: 107.9603662 | BQ17: 109.2000053 | BU17: 9165.976515 | BV17: 9409.31443 | BW17: 9673.618569 | BX17: 9961.666257 | BY17: 10247.73026 | CC17: 51482.02906 | CD17: 52848.77156 | CE17: 54333.27387 | CF17: 55951.13525 | CG17: 57557.85498 | CK17: 200.5482751 | CL17: 202.2245289 | CM17: 204.2983396 | CN17: 206.7989897 | CO17: 209.1735287 | CS17: 116171.7648 | CT17: 119255.8874 | CU17: 122605.7409 | CV17: 126256.5257 | CW17: 129882.1689
A18: 6 | B18: BTSO | C18: Temporary connection, single-phase AH * | D18: After Hours | E18: BTSOAH | F18: Per connection | H18: 1 | I18: 1.0139 | J18: 1.02789182 | K18: 1.045615208 | L18: 1.064476875 | M18: 1.083268724 | N18: 1.102035684 | O18: 1.120812704 | Q18: 884.93 | R18: 914.4762711 | S18: 1230.251239 | T18: 1271.54747 | U18: 1316.701856 | V18: 1366.138998 | W18: 1416.371126 | Y18: 897.230527 | Z18: 939.9826786 | AA18: 1286.369406 | AB18: 1353.532877 | AC18: 1426.34194 | AD18: 1505.533925 | AE18: 1587.48675 | AG18: 920.5585207 | AH18: 939.9826786 | AI18: 1254.994542 | AJ18: 1288.312078 | AK18: 1324.500285 | AL18: 1363.93943 | AM18: 1403.106971 | AO18: 1098.412127 | AP18: 131.8391128 | AQ18: 0 | AR18: 0.8928356188 | AS18: 0.1071643812 | AU18: 821.9074365 | AV18: 839.2500166 | AW18: 1120.503829 | AX18: 1150.250912 | AY18: 1182.561032 | AZ18: 1217.773705 | BA18: 1252.743881 | BC18: 98.65108422 | BD18: 100.7326621 | BE18: 134.4907135 | BF18: 138.0611667 | BG18: 141.9392534 | BH18: 146.165725 | BI18: 150.3630903 | BJ18: 0 | BM18: 147.6544784 | BN18: 148.888627 | BO18: 150.4154785 | BP18: 152.2565922 | BQ18: 154.0048561 | BU18: 16.54508396 | BV18: 16.98432208 | BW18: 17.46140536 | BX18: 17.98134703 | BY18: 18.49770805 | CC18: 137.8446841 | CD18: 141.5041784 | CE18: 145.478978 | CF18: 149.8108506 | CG18: 154.1128911 | CK18: 282.8333953 | CL18: 285.1974174 | CM18: 288.1221142 | CN18: 291.6487831 | CO18: 294.9975974 | CS18: 295.7348995 | CT18: 303.5860558 | CU18: 312.113675 | CV18: 321.4073661 | CW18: 330.6370547
A19: 7 | B19: BTSP | C19: Temporary connection, three-phase BH * | D19: Business Hours | E19: BTSPBH | F19: Per connection | H19: 12 | I19: 12.1668 | J19: 12.33470184 | K19: 12.5473825 | L19: 12.7737225 | M19: 12.99922469 | N19: 13.2244282 | O19: 13.44975244 | Q19: 822.02 | R19: 849.4658158 | S19: 1195.347032 | T19: 1235.471621 | U19: 1279.344905 | V19: 1327.379436 | W19: 1376.186397 | Y19: 10001.35294 | Z19: 10477.90756 | AA19: 14998.47642 | AB19: 15781.57165 | AC19: 16630.49188 | AD19: 17553.83405 | AE19: 18509.36636 | AG19: 10261.38811 | AH19: 10477.90756 | AI19: 14632.65992 | AJ19: 15021.12709 | AK19: 15443.06496 | AL19: 15902.90728 | AM19: 16359.58282 | AO19: 873.6759945 | AP19: 321.6710371 | AQ19: 0 | AR19: 0.730897364 | AS19: 0.269102636 | AU19: 7500.021523 | AV19: 7658.275017 | AW19: 10694.97257 | AX19: 10978.9022 | AY19: 11287.29547 | AZ19: 11623.39301 | BA19: 11957.17596 | BC19: 2761.36659 | BD19: 2819.632544 | BE19: 3937.687357 | BF19: 4042.224897 | BG19: 4155.769489 | BH19: 4279.514268 | BI19: 4402.406859 | BJ19: 0 | BM19: 143.4652832 | BN19: 144.664417 | BO19: 146.1479492 | BP19: 147.9368276 | BQ19: 149.6354905 | BU19: 484.415364 | BV19: 497.2756004 | BW19: 511.2438869 | BX19: 526.4670031 | BY19: 541.5852829 | CC19: 1315.698419 | CD19: 1350.627519 | CE19: 1388.566143 | CF19: 1429.912953 | CG19: 1470.975021 | CK19: 274.8089567 | CL19: 277.1059077 | CM19: 279.9476261 | CN19: 283.3742377 | CO19: 286.6280408 | CS19: 3448.133093 | CT19: 3539.673969 | CU19: 3639.102093 | CV19: 3747.462262 | CW19: 3855.076192
A20: 8 | B20: BTSP | C20: Temporary connection, three-phase AH * | D20: After Hours | E20: BTSPAH | F20: Per connection | H20: 0 | I20: 0 | J20: 0 | K20: 0 | L20: 0 | M20: 0 | N20: 0 | O20: 0 | Q20: 1038.81 | R20: 1073.494056 | S20: 1553.265767 | T20: 1605.404727 | U20: 1662.414841 | V20: 1724.832189 | W20: 1788.253254 | Y20: 0 | Z20: 0 | AA20: 0 | AB20: 0 | AC20: 0 | AD20: 0 | AE20: 0 | AG20: 0 | AH20: 0 | AI20: 0 | AJ20: 0 | AK20: 0 | AL20: 0 | AM20: 0 | AO20: 1231.59473 | AP20: 321.6710371 | AQ20: 0 | AR20: 0.7929066332 | AS20: 0.2070933668 | AU20: 0 | AV20: 0 | AW20: 0 | AX20: 0 | AY20: 0 | AZ20: 0 | BA20: 0 | BC20: 0 | BD20: 0 | BE20: 0 | BF20: 0 | BG20: 0 | BH20: 0 | BI20: 0 | BJ20: 0 | BM20: 186.4226096 | BN20: 187.9807961 | BO20: 189.9085374 | BP20: 192.2330536 | BQ20: 194.4403414 | BU20: 0 | BV20: 0 | BW20: 0 | BX20: 0 | BY20: 0 | CC20: 0 | CD20: 0 | CE20: 0 | CF20: 0 | CG20: 0 | CK20: 357.0940769 | CL20: 360.0787962 | CM20: 363.7714008 | CN20: 368.2240312 | CO20: 372.4521095 | CS20: 0 | CT20: 0 | CU20: 0 | CV20: 0 | CW20: 0
A21: 9 | B21: SUTK | C21: Supply upgrade/enhancement (1ph to 3ph) BH * | D21: Business Hours | E21: SUTKBH | F21: Per connection | H21: 657 | I21: 666.1323 | J21: 675.3249257 | K21: 686.9691917 | L21: 699.3613071 | M21: 711.7075516 | N21: 724.0374442 | O21: 736.3739463 | Q21: 822.02 | R21: 849.4658158 | S21: 1195.347032 | T21: 1235.471621 | U21: 1279.344905 | V21: 1327.379436 | W21: 1376.186397 | Y21: 547574.0732 | Z21: 573665.439 | AA21: 821166.5841 | AB21: 864041.048 | AC21: 910519.4303 | AD21: 961072.4142 | AE21: 1013387.808 | AG21: 561810.9992 | AH21: 573665.439 | AI21: 801138.1308 | AJ21: 822406.7084 | AK21: 845507.8067 | AL21: 870684.1734 | AM21: 895687.1591 | AO21: 873.6759945 | AP21: 321.6710371 | AQ21: 0 | AR21: 0.730897364 | AS21: 0.269102636 | AU21: 410626.1784 | AV21: 419290.5572 | AW21: 585549.748 | AX21: 601094.8953 | AY21: 617979.4271 | AZ21: 636380.7672 | BA21: 654655.3836 | BC21: 151184.8208 | BD21: 154374.8818 | BE21: 215588.3828 | BF21: 221311.8131 | BG21: 227528.3795 | BH21: 234303.4062 | BI21: 241031.7755 | BJ21: 0 | BM21: 143.4652832 | BN21: 144.664417 | BO21: 146.1479492 | BP21: 147.9368276 | BQ21: 149.6354905 | BU21: 26521.74118 | BV21: 27225.83912 | BW21: 27990.60281 | BX21: 28824.06842 | BY21: 29651.79424 | CC21: 72034.48843 | CD21: 73946.85666 | CE21: 76023.99633 | CF21: 78287.73416 | CG21: 80535.88241 | CK21: 274.8089567 | CL21: 277.1059077 | CM21: 279.9476261 | CN21: 283.3742377 | CO21: 286.6280408 | CS21: 188785.2868 | CT21: 193797.1498 | CU21: 199240.8396 | CV21: 205173.5588 | CW21: 211065.4215
A22: 10 | B22: SUTK | C22: Supply upgrade/enhancement (1ph to 3ph) AH * | D22: After Hours | E22: SUTKAH | F22: Per connection | H22: 6 | I22: 6.0834 | J22: 6.16735092 | K22: 6.273691248 | L22: 6.386861252 | M22: 6.499612344 | N22: 6.612214102 | O22: 6.724876222 | Q22: 1038.81 | R22: 1073.494056 | S22: 1553.265767 | T22: 1605.404727 | U22: 1662.414841 | V22: 1724.832189 | W22: 1788.253254 | Y22: 6319.496754 | Z22: 6620.614555 | AA22: 9744.709847 | AB22: 10253.49725 | AC22: 10805.05202 | AD22: 11404.95972 | AE22: 12025.78179 | AG22: 6483.80367 | AH22: 6620.614555 | AI22: 9507.033997 | AJ22: 9759.426291 | AK22: 10033.56494 | AL22: 10332.33062 | AM22: 10629.03879 | AO22: 1231.59473 | AP22: 321.6710371 | AQ22: 0 | AR22: 0.7929066332 | AS22: 0.2070933668 | AU22: 5141.050938 | AV22: 5249.529197 | AW22: 7538.190319 | AX22: 7738.313842 | AY22: 7955.680197 | AZ22: 8192.573482 | BA22: 8427.835365 | BC22: 1342.752731 | BD22: 1371.085358 | BE22: 1968.843678 | BF22: 2021.112448 | BG22: 2077.884744 | BH22: 2139.757134 | BI22: 2201.20343 | BJ22: 0 | BM22: 186.4226096 | BN22: 187.9807961 | BO22: 189.9085374 | BP22: 192.2330536 | BQ22: 194.4403414 | BU22: 242.207682 | BV22: 248.6378002 | BW22: 255.6219434 | BX22: 263.2335015 | BY22: 270.7926415 | CC22: 927.3502125 | CD22: 951.9694625 | CE22: 978.7099303 | CF22: 1007.852606 | CG22: 1036.794587 | CK22: 357.0940769 | CL22: 360.0787962 | CM22: 363.7714008 | CN22: 368.2240312 | CO22: 372.4521095 | CS22: 2240.297985 | CT22: 2299.773311 | CU22: 2364.373087 | CV22: 2434.776132 | CW22: 2504.694335
A23: 11 | B23: RTK1 | C23: Replacement of 1-phase overhead service line BH * | D23: Business Hours | E23: RTK1BH | F23: Per connection | H23: 51 | I23: 51.7089 | J23: 52.42248282 | K23: 53.32637561 | L23: 54.28832064 | M23: 55.24670492 | N23: 56.20381987 | O23: 57.16144788 | Q23: 801.33 | R23: 828.0850127 | S23: 908.2569719 | T23: 938.7447194 | U23: 972.080826 | V23: 1008.57876 | W23: 1045.663608 | Y23: 41435.89284 | Z23: 43410.27235 | AA23: 48434.05244 | AB23: 50962.87433 | AC23: 53704.26256 | AD23: 56685.97896 | AE23: 59771.64583 | AG23: 42513.22605 | AH23: 43410.27235 | AI23: 47252.73409 | AJ23: 48507.19746 | AK23: 49869.74657 | AL23: 51354.69919 | AM23: 52829.42545 | AO23: 779.9268151 | AP23: 128.3301568 | AQ23: 0 | AR23: 0.8587072153 | AS23: 0.1412927847 | AU23: 36506.41395 | AV23: 37276.71409 | AW23: 40576.2637 | AX23: 41653.48045 | AY23: 42823.51121 | AZ23: 44098.65073 | BA23: 45365.00881 | BC23: 6006.812096 | BD23: 6133.558267 | BE23: 6676.470385 | BF23: 6853.717008 | BG23: 7046.235367 | BH23: 7256.048457 | BI23: 7464.416637 | BJ23: 0 | BM23: 109.0087985 | BN23: 109.9199328 | BO23: 111.0471606 | BP23: 112.4063988 | BQ23: 113.6970887 | BU23: 821.3411931 | BV23: 843.1461207 | BW23: 866.8297813 | BX23: 892.6410443 | BY23: 918.2745542 | CC23: 4991.702939 | CD23: 5124.222435 | CE23: 5268.159935 | CF23: 5425.027944 | CG23: 5580.815657 | CK23: 208.8072704 | CL23: 210.5525558 | CM23: 212.7117703 | CN23: 215.3154024 | CO23: 217.7877298 | CS23: 11134.93493 | CT23: 11430.54466 | CU23: 11751.62441 | CV23: 12101.54809 | CW23: 12449.06197
A24: 12 | B24: RTK1 | C24: Replacement of 1-phase overhead service line AH * | D24: After Hours | E24: RTK1AH | F24: Per connection | H24: 2 | I24: 2.0278 | J24: 2.05578364 | K24: 2.091230416 | L24: 2.128953751 | M24: 2.166537448 | N24: 2.204071367 | O24: 2.241625407 | Q24: 1018.1 | R24: 1052.092585 | S24: 1266.175707 | T24: 1308.677825 | U24: 1355.150762 | V24: 1406.031513 | W24: 1457.730465 | Y24: 2064.50318 | Z24: 2162.874725 | AA24: 2647.865151 | AB24: 2786.114565 | AC24: 2935.984872 | AD24: 3098.9938 | AE24: 3267.685647 | AG24: 2118.180263 | AH24: 2162.874725 | AI24: 2583.283074 | AJ24: 2651.863952 | AK24: 2726.353823 | AL24: 2807.535431 | AM24: 2888.15797 | AO24: 1137.84555 | AP24: 128.3301568 | AQ24: 0 | AR24: 0.8986474341 | AS24: 0.1013525659 | AU24: 1903.497258 | AV24: 1943.661822 | AW24: 2321.460706 | AX24: 2383.090736 | AY24: 2450.030867 | AZ24: 2522.984512 | BA24: 2595.435749 | BC24: 214.6830047 | BD24: 219.2129031 | BE24: 261.822368 | BF24: 268.773216 | BG24: 276.3229556 | BH24: 284.5509199 | BI24: 292.722221 | BJ24: 0 | BM24: 151.9661249 | BN24: 153.2363118 | BO24: 154.8077488 | BP24: 156.7026247 | BQ24: 158.5019396 | BU24: 32.20945855 | BV24: 33.06455375 | BW24: 33.99332476 | BX24: 35.00553115 | BY24: 36.01076683 | CC24: 285.5867241 | CD24: 293.1684671 | CE24: 301.4034602 | CF24: 310.3782372 | CG24: 319.2912081 | CK24: 291.0923906 | CL24: 293.5254443 | CM24: 296.535545 | CN24: 300.1651958 | CO24: 303.6117986 | CS24: 608.7412611 | CT24: 624.9020956 | CU24: 642.4553628 | CV24: 661.5855136 | CW24: 680.5839216
A25: 13 | B25: REEN | C25: Field-based energisation BH | D25: Business Hours | E25: REENBH | F25: Per connection | H25: 1775 | I25: 1799.6725 | J25: 1824.507981 | K25: 1855.966994 | L25: 1889.446454 | M25: 1922.801985 | N25: 1956.113339 | O25: 1989.442549 | Q25: 58.64 | R25: 60.59788745 | S25: 159.823337 | T25: 165.1881773 | U25: 171.054235 | V25: 177.4766703 | W25: 184.002383 | Y25: 105532.7954 | Z25: 110561.3292 | AA25: 296626.8385 | AB25: 312114.2158 | AC25: 328903.4226 | AD25: 347164.482 | AE25: 366062.1699 | AG25: 108276.6481 | AH25: 110561.3292 | AI25: 289392.0375 | AJ25: 297074.8038 | AK25: 305419.5244 | AL25: 314513.8863 | AM25: 323545.6184 | AO25: 159.823337 | AP25: 0 | AQ25: 0 | AR25: 1 | AS25: 0 | AU25: 108276.6481 | AV25: 110561.3292 | AW25: 289392.0375 | AX25: 297074.8038 | AY25: 305419.5244 | AZ25: 314513.8863 | BA25: 323545.6184 | BC25: 0 | BD25: 0 | BE25: 0 | BF25: 0 | BG25: 0 | BH25: 0 | BI25: 0 | BJ25: 0 | BM25: 19.54119777 | BN25: 19.70453005 | BO25: 19.90659982 | BP25: 20.15026034 | BQ25: 20.38163275 | BU25: 0 | BV25: 0 | BW25: 0 | BX25: 0 | BY25: 0 | CC25: 36267.81809 | CD25: 37230.65442 | CE25: 38276.44964 | CF25: 39416.19303 | CG25: 40548.0874 | CK25: 37.4313287 | CL25: 37.74419305 | CM25: 38.1312594 | CN25: 38.59799318 | CO25: 39.04118897 | CS25: 69471.31062 | CT25: 71315.63172 | CU25: 73318.86126 | CV25: 75502.04931 | CW25: 77670.20249
A26: 14 | B26: REEN | C26: Field-based energisation AH | D26: After Hours | E26: REENAH | F26: Per connection | H26: 926 | I26: 938.8714 | J26: 951.8278253 | K26: 968.2396827 | L26: 985.7055866 | M26: 1003.106838 | N26: 1020.485043 | O26: 1037.872564 | Q26: 102.36 | R26: 105.7776221 | S26: 227.3885135 | T26: 235.0213352 | U26: 243.3672637 | V26: 252.5047779 | W26: 261.7892301 | Y26: 96102.8765 | Z26: 100682.084 | AA26: 220166.5821 | AB26: 231661.8431 | AC26: 244123.3665 | AD26: 257677.3492 | AE26: 271703.8593 | AG26: 98601.55129 | AH26: 100682.084 | AI26: 214796.6655 | AJ26: 220499.0773 | AK26: 226692.8143 | AL26: 233442.9606 | AM26: 240146.621 | AO26: 227.3885135 | AP26: 0 | AQ26: 0 | AR26: 1 | AS26: 0 | AU26: 98601.55129 | AV26: 100682.084 | AW26: 214796.6655 | AX26: 220499.0773 | AY26: 226692.8143 | AZ26: 233442.9606 | BA26: 240146.621 | BC26: 0 | BD26: 0 | BE26: 0 | BF26: 0 | BG26: 0 | BH26: 0 | BI26: 0 | BJ26: 0 | BM26: 27.80222209 | BN26: 28.03460295 | BO26: 28.32209754 | BP26: 28.66876534 | BQ26: 28.99795022 | BU26: 0 | BV26: 0 | BW26: 0 | BX26: 0 | BY26: 0 | CC26: 26919.21469 | CD26: 27633.86474 | CE26: 28410.08972 | CF26: 29256.04623 | CG26: 30096.17693 | CK26: 53.25539027 | CL26: 53.70051776 | CM26: 54.25121607 | CN26: 54.91526115 | CO26: 55.54581757 | CS26: 51563.98218 | CT26: 52932.90036 | CU26: 54419.76583 | CV26: 56040.20265 | CW26: 57649.48008
A27: 15 | B27: DEEN | C27: Field-based de-energisation BH | D27: Business Hours | E27: DEENBH | F27: Per connection | H27: 616 | I27: 624.5624 | J27: 633.1813611 | K27: 644.0989682 | L27: 655.7177552 | M27: 667.293534 | N27: 678.8539811 | O27: 690.4206254 | Q27: 84.09 | R27: 86.89761861 | S27: 175.2382182 | T27: 181.1204946 | U27: 187.5523307 | V27: 194.5942066 | W27: 201.7493212 | Y27: 52519.45222 | Z27: 55021.95243 | AA27: 112870.7556 | AB27: 118763.9242 | AC27: 125152.4575 | AD27: 132101.0519 | AE27: 139291.8925 | AG27: 53884.95797 | AH27: 55021.95243 | AI27: 110117.8103 | AJ27: 113041.2128 | AK27: 116216.4983 | AL27: 119677.0331 | AM27: 123113.7364 | AO27: 175.2382182 | AP27: 0 | AQ27: 0 | AR27: 1 | AS27: 0 | AU27: 53884.95797 | AV27: 55021.95243 | AW27: 110117.8103 | AX27: 113041.2128 | AY27: 116216.4983 | AZ27: 119677.0331 | BA27: 123113.7364 | BC27: 0 | BD27: 0 | BE27: 0 | BF27: 0 | BG27: 0 | BH27: 0 | BI27: 0 | BJ27: 0 | BM27: 21.42593655 | BN27: 21.60502215 | BO27: 21.82658145 | BP27: 22.09374291 | BQ27: 22.34743106 | BU27: 0 | BV27: 0 | BW27: 0 | BX27: 0 | BY27: 0 | CC27: 13800.42362 | CD27: 14166.79663 | CE27: 14564.73667 | CF27: 14998.42533 | CG27: 15429.12733 | CK27: 41.04156169 | CL27: 41.38460166 | CM27: 41.80900036 | CN27: 42.32075039 | CO27: 42.80669218 | CS27: 26434.82754 | CT27: 27136.6181 | CU27: 27898.8756 | CV27: 28729.60989 | CW27: 29554.62319
A28: 16 | B28: DCTK | C28: Disconnection (temporary) BH | D28: Business Hours | E28: DCTKBH | F28: Per connection | H28: 899 | I28: 911.4961 | J28: 924.0747462 | K28: 940.008072 | L28: 956.964711 | M28: 973.8585828 | N28: 990.7300796 | O28: 1007.610621 | Q28: 434.84 | R28: 449.3585501 | S28: 496.3128273 | T28: 512.9727161 | U28: 531.1890776 | V28: 551.1332051 | W28: 571.3980489 | Y28: 396354.9641 | Z28: 415240.8881 | AA28: 466538.0639 | AB28: 490896.787 | AC28: 517303.0423 | AD28: 546024.2442 | AE28: 575746.7426 | AG28: 406660.1932 | AH28: 415240.8881 | AI28: 455159.0867 | AJ28: 467242.6289 | AK28: 480367.3003 | AL28: 494671.0161 | AM28: 508876.227 | AO28: 496.3128273 | AP28: 0 | AQ28: 0 | AR28: 1 | AS28: 0 | AU28: 406660.1932 | AV28: 415240.8881 | AW28: 455159.0867 | AX28: 467242.6289 | AY28: 480367.3003 | AZ28: 494671.0161 | BA28: 508876.227 | BC28: 0 | BD28: 0 | BE28: 0 | BF28: 0 | BG28: 0 | BH28: 0 | BI28: 0 | BJ28: 0 | BM28: 60.6829221 | BN28: 61.19013155 | BO28: 61.81763577 | BP28: 62.57429526 | BQ28: 63.2927954 | BU28: 0 | BV28: 0 | BW28: 0 | BX28: 0 | BY28: 0 | CC28: 57042.43661 | CD28: 58556.79655 | CE28: 60201.63516 | CF28: 61994.23652 | CG28: 63774.49285 | CK28: 116.2386477 | CL28: 117.2102117 | CM28: 118.4122013 | CN28: 119.8615889 | CO28: 121.237882 | CS28: 109265.2672 | CT28: 112166.0364 | CU28: 115316.7386 | CV28: 118750.4815 | CW28: 122160.5775
A29: 17 | B29: DCTK | C29: Disconnection (temporary) AH | D29: After Hours | E29: DCTKAH | F29: Per connection | H29: 49 | I29: =H29*(1+D$7) -> 49.6811 | J29: 50.36669918 | K29: 51.23514519 | L29: 52.15936689 | M29: 53.08016747 | N29: 53.9997485 | O29: 54.91982248 | Q29: 615.51 | R29: 636.0608066 | S29: 793.5996035 | T29: 820.238611 | U29: 849.3664039 | V29: 881.2568787 | W29: 913.6601758 | Y29: 30579.21386 | Z29: 32036.28331 | AA29: 40660.19091 | AB29: 42783.12665 | AC29: 45084.51097 | AD29: 47587.64981 | AE29: 50178.05466 | AG29: 31374.27342 | AH29: 32036.28331 | AI29: 39668.47894 | AJ29: 40721.59586 | AK29: 41865.45033 | AL29: 43112.06203 | AM29: 44350.08875 | AO29: 793.5996035 | AP29: 0 | AQ29: 0 | AR29: 1 | AS29: 0 | AU29: 31374.27342 | AV29: 32036.28331 | AW29: 39668.47894 | AX29: 40721.59586 | AY29: 41865.45033 | AZ29: 43112.06203 | BA29: 44350.08875 | BC29: 0 | BD29: 0 | BE29: 0 | BF29: 0 | BG29: 0 | BH29: 0 | BI29: 0 | BJ29: 0 | BM29: 97.03142911 | BN29: 97.84245231 | BO29: 98.84582573 | BP29: 100.0557172 | BQ29: 101.2045923 | BU29: 0 | BV29: 0 | BW29: 0 | BX29: 0 | BY29: 0 | CC29: 4971.419359 | CD29: 5103.400368 | CE29: 5246.752984 | CF29: 5402.983566 | CG29: 5558.138243 | CK29: 185.8645187 | CL29: 187.4180404 | CM29: 189.3400106 | CN29: 191.657568 | CO29: 193.8582478 | CS29: 9522.795601 | CT29: 9775.606333 | CU29: 10050.19947 | CV29: 10349.46047 | CW29: 10646.66056
A30: 18 | B30: RCTK | C30: Reconnection after temp discon BH | D30: Business Hours | E30: RCTKBH | F30: Per connection | H30: 964 | I30: 977.3996 | J30: 990.8877145 | K30: 1007.973061 | L30: 1026.155708 | M30: 1044.27105 | N30: 1062.362399 | O30: 1080.463446 | Q30: 503.82 | R30: 520.6416721 | S30: 575.3407005 | T30: 594.6533427 | U30: 615.7702948 | V30: 638.890125 | W30: 662.3817391 | Y30: 492433.4665 | Z30: 515897.4365 | AA30: 579927.9267 | AB30: 610206.9218 | AC30: 643031.0922 | AD30: 678732.8459 | AE30: 715679.2566 | AG30: 505236.7366 | AH30: 515897.4365 | AI30: 565783.3431 | AJ30: 580803.7329 | AK30: 597118.2935 | AL30: 614898.4594 | AM30: 632556.1795 | AO30: 575.3407005 | AP30: 0 | AQ30: 0 | AR30: 1 | AS30: 0 | AU30: 505236.7366 | AV30: 515897.4365 | AW30: 565783.3431 | AX30: 580803.7329 | AY30: 597118.2935 | AZ30: 614898.4594 | BA30: 632556.1795 | BC30: 0 | BD30: 0 | BE30: 0 | BF30: 0 | BG30: 0 | BH30: 0 | BI30: 0 | BJ30: 0 | BM30: 70.34546155 | BN30: 70.93343394 | BO30: 71.66085563 | BP30: 72.53799798 | BQ30: 73.37090488 | BU30: 0 | BV30: 0 | BW30: 0 | BX30: 0 | BY30: 0 | CC30: 70906.33018 | CD30: 72788.74811 | CE30: 74833.35694 | CF30: 77061.64156 | CG30: 79274.58075 | CK30: 134.7473233 | CL30: 135.8735894 | CM30: 137.2669717 | CN30: 138.9471453 | CO30: 140.5425855 | CS30: 135821.6719 | CT30: 139427.4593 | CU30: 143343.9247 | CV30: 147612.2226 | CW30: 151851.1263
A31: 19 | B31: RCTK | C31: Reconnection after temp discon AH | D31: After Hours | E31: RCTKAH | F31: Per connection | H31: 390 | I31: 395.421 | J31: 400.8778098 | K31: 407.7899311 | L31: 415.1459814 | M31: 422.4748023 | N31: 429.7939166 | O31: 437.1169544 | Q31: 717.35 | R31: 741.3010668 | S31: 926.6796178 | T31: 957.785764 | U31: 991.7980441 | V31: 1029.036285 | W31: 1066.873344 | Y31: 283655.2544 | Z31: 297171.1481 | AA31: 377890.6175 | AB31: 397620.911 | AC31: 419009.6827 | AD31: 442273.5352 | AE31: 466348.4267 | AG31: 291030.291 | AH31: 297171.1481 | AI31: 368673.7732 | AJ31: 378461.3073 | AK31: 389092.1445 | AL31: 400677.9944 | AM31: 412184.0565 | AO31: 926.6796178 | AP31: 0 | AQ31: 0 | AR31: 1 | AS31: 0 | AU31: 291030.291 | AV31: 297171.1481 | AW31: 368673.7732 | AX31: 378461.3073 | AY31: 389092.1445 | AZ31: 400677.9944 | BA31: 412184.0565 | BC31: 0 | BD31: 0 | BE31: 0 | BF31: 0 | BG31: 0 | BH31: 0 | BI31: 0 | BJ31: 0 | BM31: 113.302788 | BN31: 114.249813 | BO31: 115.4214438 | BP31: 116.8342239 | BQ31: 118.1757558 | BU31: 0 | BV31: 0 | BW31: 0 | BX31: 0 | BY31: 0 | CC31: 46203.73612 | CD31: 47430.35075 | CE31: 48762.65164 | CF31: 50214.63871 | CG31: 51656.62644 | CK31: 217.0324435 | CL31: 218.8464779 | CM31: 221.0907464 | CN31: 223.7969387 | CO31: 226.3666542 | CS31: 88503.6452 | CT31: 90853.23583 | CU31: 93405.2694 | CV31: 96186.56283 | CW31: 98948.70247
A32: 20 | B32: SLOM | C32: Security Lighting - O&M | D32: Business Hours | E32: SLOM | F32: $/light/annum | H32: 232 | I32: 235.2248 | J32: 238.4709022 | K32: 242.5827283 | L32: 246.9586351 | M32: 251.318344 | N32: 255.6722786 | O32: 260.0285472 | Q32: 161.48 | R32: 166.8715359 | S32: 173.0008115 | T32: 178.8079841 | U32: 185.1576998 | V32: 192.1096664 | W32: 199.1734259 | Y32: 37984.1007 | Z32: 39794.00572 | AA32: 41967.00884 | AB32: 44158.1757 | AC32: 46533.52647 | AD32: 49117.11616 | AE32: 51790.77658 | AG32: 38971.68732 | AH32: 39794.00572 | AI32: 40943.42326 | AJ32: 42030.38734 | AK32: 43211.00527 | AL32: 44497.68306 | AM32: 45775.49994 | AO32: 173.0008115 | AP32: 0 | AQ32: 0 | AR32: 1 | AS32: 0 | AU32: 38971.68732 | AV32: 39794.00572 | AW32: 40943.42326 | AX32: 42030.38734 | AY32: 43211.00527 | AZ32: 44497.68306 | BA32: 45775.49994 | BC32: 0 | BD32: 0 | BE32: 0 | BF32: 0 | BG32: 0 | BH32: 0 | BI32: 0 | BJ32: 0 | BM32: 20.76351867 | BN32: 20.93706754 | BO32: 21.15177697 | BP32: 21.4106787 | BQ32: 21.65652367 | BU32: 0 | BV32: 0 | BW32: 0 | BX32: 0 | BY32: 0 | CC32: 5036.871006 | CD32: 5170.589622 | CE32: 5315.829559 | CF32: 5474.117009 | CG32: 5631.314388 | CK32: 39.77269466 | CL32: 40.10512899 | CM32: 40.5164067 | CN32: 41.01233514 | CO32: 41.48325325 | CS32: 9648.168781 | CT32: 9904.307915 | CU32: 10182.51624 | CV32: 10485.71718 | CW32: 10786.83008
A33: 21 | B33: RFOM | C33: Enhanced Connection Operation and Maintenance | D33: Business Hours | E33: RFOM | F33: $/kVA/annum | H33: 60697.225 | I33: 61540.91643 | J33: 62390.18107 | K33: 63465.94155 | L33: 64610.79241 | M33: 65751.40547 | N33: 66890.50785 | O33: 68030.22085 | Q33: 15.38 | R33: 15.89351141 | S33: 16.174377 | T33: 16.7173074 | U33: 17.31096181 | V33: 17.96092252 | W33: 18.62133508 | Y33: 946499.2947 | Z33: 991599.0546 | AA33: 1026522.065 | AB33: 1080118.478 | AC33: 1138220.069 | AD33: 1201415.229 | AE33: 1266813.538 | AG33: 971108.2763 | AH33: 991599.0546 | AI33: 1001484.942 | AJ33: 1028072.317 | AK33: 1056950.486 | AL33: 1088422.901 | AM33: 1119678.577 | AO33: 16.174377 | AP33: 0 | AQ33: 0 | AR33: 1 | AS33: 0 | AU33: 971108.2763 | AV33: 991599.0546 | AW33: 1001484.942 | AX33: 1028072.317 | AY33: 1056950.486 | AZ33: 1088422.901 | BA33: 1119678.577 | BC33: 0 | BD33: 0 | BE33: 0 | BF33: 0 | BG33: 0 | BH33: 0 | BI33: 0 | BJ33: 0 | BM33: 1.977600428 | BN33: 1.994129915 | BO33: 2.014579699 | BP33: 2.039238533 | BQ33: 2.06265379 | BU33: 0 | BV33: 0 | BW33: 0 | BX33: 0 | BY33: 0 | CC33: 125510.2732 | CD33: 128842.314 | CE33: 132461.4466 | CF33: 136405.7011 | CG33: 140322.7929 | CK33: 3.788110254 | CL33: 3.819772627 | CM33: 3.858944359 | CN33: 3.906178564 | CO33: 3.951030685 | CS33: 240415.984 | CT33: 246798.5363 | CU33: 253731.0153 | CV33: 261286.2679 | CW33: 268789.4901
A34: 22 | B34: REENRM | C34: Remote energisation | D34: Business Hours | E34: REENRM | F34: Per connection | H34: 0 | I34: 0 | J34: 0 | K34: 0 | L34: 0 | M34: 0 | N34: 0 | O34: 0 | Q34: 0 | R34: 0 | S34: 0 | T34: 0 | U34: 0 | V34: 0 | W34: 0 | Y34: 0 | Z34: 0 | AA34: 0 | AB34: 0 | AC34: 0 | AD34: 0 | AE34: 0 | AG34: 0 | AH34: 0 | AI34: 0 | AJ34: 0 | AK34: 0 | AL34: 0 | AM34: 0 | AO34: 0 | AP34: 0 | AQ34: 0 | AR34: 0 | AS34: 0 | AU34: 0 | AV34: 0 | AW34: 0 | AX34: 0 | AY34: 0 | AZ34: 0 | BA34: 0 | BC34: 0 | BD34: 0 | BE34: 0 | BF34: 0 | BG34: 0 | BH34: 0 | BI34: 0 | BJ34: 0 | BM34: 0 | BN34: 0 | BO34: 0 | BP34: 0 | BQ34: 0 | BU34: 0 | BV34: 0 | BW34: 0 | BX34: 0 | BY34: 0 | CC34: 0 | CD34: 0 | CE34: 0 | CF34: 0 | CG34: 0 | CK34: 0 | CL34: 0 | CM34: 0 | CN34: 0 | CO34: 0 | CS34: 0 | CT34: 0 | CU34: 0 | CV34: 0 | CW34: 0
A35: 23 | B35: DEENRM | C35: Remote de-energisation | D35: Business Hours | E35: DEENRM | F35: Per connection | H35: 0 | I35: 0 | J35: 0 | K35: 0 | L35: 0 | M35: 0 | N35: 0 | O35: 0 | Q35: 0 | R35: 0 | S35: 0 | T35: 0 | U35: 0 | V35: 0 | W35: 0 | Y35: 0 | Z35: 0 | AA35: 0 | AB35: 0 | AC35: 0 | AD35: 0 | AE35: 0 | AG35: 0 | AH35: 0 | AI35: 0 | AJ35: 0 | AK35: 0 | AL35: 0 | AM35: 0 | AO35: 0 | AP35: 0 | AQ35: 0 | AR35: 0 | AS35: 0 | AU35: 0 | AV35: 0 | AW35: 0 | AX35: 0 | AY35: 0 | AZ35: 0 | BA35: 0 | BC35: 0 | BD35: 0 | BE35: 0 | BF35: 0 | BG35: 0 | BH35: 0 | BI35: 0 | BJ35: 0 | BM35: 0 | BN35: 0 | BO35: 0 | BP35: 0 | BQ35: 0 | BU35: 0 | BV35: 0 | BW35: 0 | BX35: 0 | BY35: 0 | CC35: 0 | CD35: 0 | CE35: 0 | CF35: 0 | CG35: 0 | CK35: 0 | CL35: 0 | CM35: 0 | CN35: 0 | CO35: 0 | CS35: 0 | CT35: 0 | CU35: 0 | CV35: 0 | CW35: 0
A36: 24 | B36: MCTK | C36: Meter Alteration BH | D36: Business Hours | E36: MCTKBH | F36: Per connection | H36: 949 | I36: 962.1911 | J36: 975.4693372 | K36: 992.2888324 | L36: 1010.188555 | M36: 1028.022019 | N36: 1045.831864 | O36: 1063.651256 | Q36: 559.26 | R36: 577.9327171 | S36: 637.0002252 | T36: 658.3826122 | U36: 681.7626776 | V36: 707.3602705 | W36: 733.3694917 | Y36: 538114.9946 | Z36: 563755.6445 | AA36: 632088.2098 | AB36: 665090.5794 | AC36: 700867.0443 | AD36: 739779.9101 | AE36: 780049.3807 | AG36: 552105.9844 | AH36: 563755.6445 | AI36: 616671.4242 | AJ36: 633042.7883 | AK36: 650824.7245 | AL36: 670204.0866 | AM36: 689449.9897 | AO36: 637.0002252 | AP36: 0 | AQ36: 0 | AR36: 1 | AS36: 0 | AU36: 552105.9844 | AV36: 563755.6445 | AW36: 616671.4242 | AX36: 633042.7883 | AY36: 650824.7245 | AZ36: 670204.0866 | BA36: 689449.9897 | BC36: 0 | BD36: 0 | BE36: 0 | BF36: 0 | BG36: 0 | BH36: 0 | BI36: 0 | BJ36: 0 | BM36: 77.88441669 | BN36: 78.53540234 | BO36: 79.34078215 | BP36: 80.31192824 | BQ36: 81.23409816 | BU36: 0 | BV36: 0 | BW36: 0 | BX36: 0 | BY36: 0 | CC36: 77283.8369 | CD36: 79335.56459 | CE36: 81564.07106 | CF36: 83992.7736 | CG36: 86404.75051 | CK36: 149.1882553 | CL36: 150.4352238 | CM36: 151.9779356 | CN36: 153.8381741 | CO36: 155.6045983 | CS36: 148037.8397 | CT36: 151967.9413 | CU36: 156236.6642 | CV36: 160888.8644 | CW36: 165509.0264
A37: 25 | B37: MCTK | C37: Meter Alteration AH | D37: After Hours | E37: MCTKAH | F37: Per connection | H37: 15 | I37: 15.2085 | J37: 15.4183773 | K37: 15.68422812 | L37: 15.96715313 | M37: 16.24903086 | N37: 16.53053526 | O37: 16.81219055 | Q37: 772.78 | R37: 798.581778 | S37: 988.3391426 | T37: 1021.515033 | U37: 1057.790427 | V37: 1097.50643 | W37: 1137.861096 | Y37: 11752.82463 | Z37: 12312.83516 | AA37: 15501.33657 | AB37: 16310.68696 | AC37: 17188.06929 | AD37: 18142.36874 | AE37: 19129.93757 | AG37: 12058.39807 | AH37: 12312.83516 | AI37: 15123.25519 | AJ37: 15524.74666 | AK37: 15960.83102 | AL37: 16436.09066 | AM37: 16908.07735 | AO37: 988.3391426 | AP37: 0 | AQ37: 0 | AR37: 1 | AS37: 0 | AU37: 12058.39807 | AV37: 12312.83516 | AW37: 15123.25519 | AX37: 15524.74666 | AY37: 15960.83102 | AZ37: 16436.09066 | BA37: 16908.07735 | BC37: 0 | BD37: 0 | BE37: 0 | BF37: 0 | BG37: 0 | BH37: 0 | BI37: 0 | BJ37: 0 | BM37: 120.8417432 | BN37: 121.8517814 | BO37: 123.1013703 | BP37: 124.6081542 | BQ37: 126.038949 | BU37: 0 | BV37: 0 | BW37: 0 | BX37: 0 | BY37: 0 | CC37: 1895.309466 | CD37: 1945.626053 | CE37: 2000.277965 | CF37: 2059.839486 | CG37: 2118.990828 | CK37: 231.4733755 | CL37: 233.4081123 | CM37: 235.8017103 | CN37: 238.6879676 | CO37: 241.4286671 | CS37: 3630.481225 | CT37: 3726.863071 | CU37: 3831.549267 | CV37: 3945.639863 | CW37: 4058.944756
A38: 26 | B38: SPRDRM | C38: Remote special meter read | D38: Business Hours | E38: SPRDRM | F38: Per connection | H38: 0 | I38: 0 | J38: 0 | K38: 0 | L38: 0 | M38: 0 | N38: 0 | O38: 0 | Q38: 0 | R38: 0 | S38: 0 | T38: 0 | U38: 0 | V38: 0 | W38: 0 | Y38: 0 | Z38: 0 | AA38: 0 | AB38: 0 | AC38: 0 | AD38: 0 | AE38: 0 | AG38: 0 | AH38: 0 | AI38: 0 | AJ38: 0 | AK38: 0 | AL38: 0 | AM38: 0 | AO38: 0 | AP38: 0 | AQ38: 0 | AR38: 0 | AS38: 0 | AU38: 0 | AV38: 0 | AW38: 0 | AX38: 0 | AY38: 0 | AZ38: 0 | BA38: 0 | BC38: 0 | BD38: 0 | BE38: 0 | BF38: 0 | BG38: 0 | BH38: 0 | BI38: 0 | BJ38: 0 | BM38: 0 | BN38: 0 | BO38: 0 | BP38: 0 | BQ38: 0 | BU38: 0 | BV38: 0 | BW38: 0 | BX38: 0 | BY38: 0 | CC38: 0 | CD38: 0 | CE38: 0 | CF38: 0 | CG38: 0 | CK38: 0 | CL38: 0 | CM38: 0 | CN38: 0 | CO38: 0 | CS38: 0 | CT38: 0 | CU38: 0 | CV38: 0 | CW38: 0
A39: 27 | B39: MECFRM | C39: Remote meter reconfiguration | D39: Business Hours | E39: MECFRM | F39: Per connection | H39: 5973 | I39: 6056.0247 | J39: 6139.597841 | K39: 6245.459638 | L39: 6358.120377 | M39: 6470.364088 | N39: 6582.459139 | O39: 6694.614279 | Q39: 59.13 | R39: 61.10424769 | S39: 65.77015975 | T39: 67.97788739 | U39: 70.39187498 | V39: 73.03482189 | W39: 75.72026934 | Y39: 358092.7405 | Z39: 375155.5072 | AA39: 410764.8781 | AB39: 432211.591 | AC39: 455461.06 | AD39: 480748.7308 | AE39: 506917.9963 | AG39: 367403.1518 | AH39: 375155.5072 | AI39: 400746.2226 | AJ39: 411385.2145 | AK39: 422940.872 | AL39: 435534.6227 | AM39: 448041.6445 | AO39: 65.77015975 | AP39: 0 | AQ39: 0 | AR39: 1 | AS39: 0 | AU39: 367403.1518 | AV39: 375155.5072 | AW39: 400746.2226 | AX39: 411385.2145 | AY39: 422940.872 | AZ39: 435534.6227 | BA39: 448041.6445 | BC39: 0 | BD39: 0 | BE39: 0 | BF39: 0 | BG39: 0 | BH39: 0 | BI39: 0 | BJ39: 0 | BM39: 8.041552145 | BN39: 8.108766298 | BO39: 8.19192162 | BP39: 8.292192281 | BQ39: 8.38740616 | BU39: 0 | BV39: 0 | BW39: 0 | BX39: 0 | BY39: 0 | CC39: 50223.18935 | CD39: 51556.51223 | CE39: 53004.71546 | CF39: 54583.01686 | CG39: 56150.44904 | CK39: 15.40366078 | CL39: 15.53241005 | CM39: 15.69169477 | CN39: 15.88376407 | CO39: 16.06614705 | CS39: 96202.94166 | CT39: 98756.93285 | CU39: 101530.9783 | CV39: 104554.2279 | CW39: 107556.6575
A40: 28 | B40: SPRD | C40: Field-based special meter reads | D40: Business Hours | E40: SPRDBH | F40: Per connection | H40: 329 | I40: 333.5731 | J40: 338.1764088 | K40: 344.0074035 | L40: 350.212892 | M40: 356.3954102 | N40: 362.5697399 | O40: 368.7473795 | Q40: 56.51 | R40: 58.39677046 | S40: 199.8300938 | T40: 206.5378534 | U40: 213.8722946 | V40: 221.902385 | W40: 230.0616052 | Y40: 18850.21588 | Z40: 19748.41012 | AA40: 68743.03171 | AB40: 72332.21896 | AC40: 76223.10416 | AD40: 80455.09002 | AE40: 84834.61404 | AG40: 19340.32149 | AH40: 19748.41012 | AI40: 67066.3724 | AJ40: 68846.84732 | AK40: 70780.72962 | AL40: 72888.34068 | AM40: 74981.43736 | AO40: 199.8300938 | AP40: 0 | AQ40: 0 | AR40: 1 | AS40: 0 | AU40: 19340.32149 | AV40: 19748.41012 | AW40: 67066.3724 | AX40: 68846.84732 | AY40: 70780.72962 | AZ40: 72888.34068 | BA40: 74981.43736 | BC40: 0 | BD40: 0 | BE40: 0 | BF40: 0 | BG40: 0 | BH40: 0 | BI40: 0 | BJ40: 0 | BM40: 24.43272338 | BN40: 24.63694077 | BO40: 24.88959236 | BP40: 25.19424566 | BQ40: 25.48353488 | BU40: 0 | BV40: 0 | BW40: 0 | BX40: 0 | BY40: 0 | CC40: 8405.037728 | CD40: 8628.174277 | CE40: 8870.53648 | CF40: 9134.671095 | CG40: 9396.986706 | CK40: 46.80108715 | CL40: 47.19226728 | CM40: 47.67622354 | CN40: 48.25978948 | CO40: 48.81392542 | CS40: 16099.92047 | CT40: 16527.3404 | CU40: 16991.58724 | CV40: 17497.53932 | CW40: 18000.00708
A41: 29 | B41: MTAL | C41: Meter test of types 5, 6 and AMI smart metering installations BH | D41: Business Hours | E41: MTALBH | F41: Per connection | H41: 87 | I41: 88.2093 | J41: 89.42658834 | K41: 90.9685231 | L41: 92.60948816 | M41: 94.24437898 | N41: 95.87710448 | O41: 97.51070521 | Q41: 609.13 | R41: 629.4677896 | S41: 1336.08484 | T41: 1380.93362 | U41: 1429.972459 | V41: 1483.66248 | W41: 1538.215877 | Y41: 53730.93091 | Z41: 56291.15689 | AA41: 121541.6647 | AB41: 127887.5558 | AC41: 134766.8663 | AD41: 142249.2626 | AE41: 149992.5149 | AG41: 55127.93511 | AH41: 56291.15689 | AI41: 118577.2338 | AJ41: 121725.2167 | AK41: 125144.4327 | AL41: 128870.8112 | AM41: 132571.5274 | AO41: 1336.08484 | AP41: 0 | AQ41: 0 | AR41: 1 | AS41: 0 | AU41: 55127.93511 | AV41: 56291.15689 | AW41: 118577.2338 | AX41: 121725.2167 | AY41: 125144.4327 | AZ41: 128870.8112 | BA41: 132571.5274 | BC41: 0 | BD41: 0 | BE41: 0 | BF41: 0 | BG41: 0 | BH41: 0 | BI41: 0 | BJ41: 0 | BM41: 163.3597357 | BN41: 164.7251545 | BO41: 166.4144094 | BP41: 168.451353 | BQ41: 170.3855709 | BU41: 0 | BV41: 0 | BW41: 0 | BX41: 0 | BY41: 0 | CC41: 14860.59389 | CD41: 15255.11224 | CE41: 15683.62266 | CF41: 16150.62797 | CG41: 16614.41718 | CK41: 312.9169478 | CL41: 315.532419 | CM41: 318.7682009 | CN41: 322.6699837 | CO41: 326.3749943 | CS41: 28465.5926 | CT41: 29221.29582 | CU41: 30042.11114 | CV41: 30936.66374 | CW41: 31825.05586
A42: 30 | B42: MTAL | C42: Meter test of types 5, 6 and AMI smart metering installations AH | D42: After Hours | E42: MTALAH | F42: Per connection | H42: 0 | I42: 0 | J42: 0 | K42: 0 | L42: 0 | M42: 0 | N42: 0 | O42: 0 | Q42: 826.97 | R42: 854.5810877 | S42: 2146.866957 | T42: 2218.931516 | U42: 2297.728803 | V42: 2383.999772 | W42: 2471.658041 | Y42: 0 | Z42: 0 | AA42: 0 | AB42: 0 | AC42: 0 | AD42: 0 | AE42: 0 | AG42: 0 | AH42: 0 | AI42: 0 | AJ42: 0 | AK42: 0 | AL42: 0 | AM42: 0 | AO42: 2146.866957 | AP42: 0 | AQ42: 0 | AR42: 1 | AS42: 0 | AU42: 0 | AV42: 0 | AW42: 0 | AX42: 0 | AY42: 0 | AZ42: 0 | BA42: 0 | BC42: 0 | BD42: 0 | BE42: 0 | BF42: 0 | BG42: 0 | BH42: 0 | BI42: 0 | BJ42: 0 | BM42: 262.4920275 | BN42: 264.6860293 | BO42: 267.400382 | BP42: 270.6734129 | BQ42: 273.7813806 | BU42: 0 | BV42: 0 | BW42: 0 | BX42: 0 | BY42: 0 | CC42: 0 | CD42: 0 | CE42: 0 | CF42: 0 | CG42: 0 | CK42: 502.8056867 | CL42: 507.0083155 | CM42: 512.207681 | CN42: 518.4771993 | CO42: 524.4305376 | CS42: 0 | CT42: 0 | CU42: 0 | CV42: 0 | CW42: 0
A43: 31 | B43: MDCH | C43: Type 7 metering | D43: Business Hours | E43: MDCH | F43: Per connection | H43: 0 | I43: 0 | J43: 0 | K43: 0 | L43: 0 | M43: 0 | N43: 0 | O43: 0 | Q43: 1.71 | R43: 1.767093921 | S43: 0 | T43: 0 | U43: 0 | V43: 0 | W43: 0 | Y43: 0 | Z43: 0 | AA43: 0 | AB43: 0 | AC43: 0 | AD43: 0 | AE43: 0 | AG43: 0 | AH43: 0 | AI43: 0 | AJ43: 0 | AK43: 0 | AL43: 0 | AM43: 0 | AO43: 0 | AP43: 0 | AQ43: 0 | AR43: 0 | AS43: 0 | AU43: 0 | AV43: 0 | AW43: 0 | AX43: 0 | AY43: 0 | AZ43: 0 | BA43: 0 | BC43: 0 | BD43: 0 | BE43: 0 | BF43: 0 | BG43: 0 | BH43: 0 | BI43: 0 | BJ43: 0 | BM43: 0 | BN43: 0 | BO43: 0 | BP43: 0 | BQ43: 0 | BU43: 0 | BV43: 0 | BW43: 0 | BX43: 0 | BY43: 0 | CC43: 0 | CD43: 0 | CE43: 0 | CF43: 0 | CG43: 0 | CK43: 0 | CL43: 0 | CM43: 0 | CN43: 0 | CO43: 0 | CS43: 0 | CT43: 0 | CU43: 0 | CV43: 0 | CW43: 0
A44: 32 | B44: NCUM | C44: Non-contestable unmetered loads | D44: Business Hours | E44: NCUM | F44: $/unmetered install/annum | H44: 0 | I44: 0 | J44: 0 | K44: 0 | L44: 0 | M44: 0 | N44: 0 | O44: 0 | Q44: 19.64 | R44: 20.29574539 | S44: 0 | T44: 0 | U44: 0 | V44: 0 | W44: 0 | Y44: 0 | Z44: 0 | AA44: 0 | AB44: 0 | AC44: 0 | AD44: 0 | AE44: 0 | AG44: 0 | AH44: 0 | AI44: 0 | AJ44: 0 | AK44: 0 | AL44: 0 | AM44: 0 | AO44: 0 | AP44: 0 | AQ44: 0 | AR44: 0 | AS44: 0 | AU44: 0 | AV44: 0 | AW44: 0 | AX44: 0 | AY44: 0 | AZ44: 0 | BA44: 0 | BC44: 0 | BD44: 0 | BE44: 0 | BF44: 0 | BG44: 0 | BH44: 0 | BI44: 0 | BJ44: 0 | BM44: 0 | BN44: 0 | BO44: 0 | BP44: 0 | BQ44: 0 | BU44: 0 | BV44: 0 | BW44: 0 | BX44: 0 | BY44: 0 | CC44: 0 | CD44: 0 | CE44: 0 | CF44: 0 | CG44: 0 | CK44: 0 | CL44: 0 | CM44: 0 | CN44: 0 | CO44: 0 | CS44: 0 | CT44: 0 | CU44: 0 | CV44: 0 | CW44: 0
A45: 33 | B45: WSVR | C45: Wasted site attendance BH (1),(2) | D45: Business Hours | E45: WSVRBH | F45: Per connection | H45: 1073 | I45: 1087.9147 | J45: 1102.927923 | K45: 1121.945118 | L45: 1142.183687 | M45: 1162.347341 | N45: 1182.484289 | O45: 1202.632031 | Q45: 559.26 | R45: 577.9327171 | S45: 637.0002252 | T45: 658.3826122 | U45: 681.7626776 | V45: 707.3602705 | W45: 733.3694917 | Y45: =I45*Q45 -> 608427.1751 | Z45: 637418.1313 | AA45: 714679.293 | AB45: 751993.8796 | AC45: 792445.0354 | AD45: 836442.4063 | AE45: 881973.6412 | AG45: 624246.2817 | AH45: 637418.1313 | AI45: 697248.0908 | AJ45: 715758.6005 | AK45: 735863.993 | AL45: 757775.5373 | AM45: 779536.1843 | AO45: 637.0002252 | AP45: 0 | AQ45: 0 | AR45: 1 | AS45: 0 | AU45: 624246.2817 | AV45: 637418.1313 | AW45: 697248.0908 | AX45: 715758.6005 | AY45: 735863.993 | AZ45: 757775.5373 | BA45: 779536.1843 | BC45: =AG45*$AS45 -> 0 | BD45: 0 | BE45: 0 | BF45: 0 | BG45: 0 | BH45: 0 | BI45: 0 | BJ45: 0 | BM45: 77.88441669 | BN45: 78.53540234 | BO45: 79.34078215 | BP45: 80.31192824 | BQ45: 81.23409816 | BU45: 0 | BV45: 0 | BW45: 0 | BX45: 0 | BY45: 0 | CC45: 87382.04109 | CD45: 89701.85543 | CE45: 92221.54715 | CF45: 94967.59334 | CG45: 97694.72845 | CK45: 149.1882553 | CL45: 150.4352238 | CM45: 151.9779356 | CN45: 153.8381741 | CO45: 155.6045983 | CS45: 167381.0347 | CT45: 171824.6586 | CU45: 176651.1493 | CV45: 181911.2239 | CW45: 187135.0741
A46: 34 | B46: WSVR | C46: Wasted site attendance AH (1),(2) | D46: After Hours | E46: WSVRAH | F46: Per connection | H46: 0 | I46: 0 | J46: 0 | K46: 0 | L46: 0 | M46: 0 | N46: 0 | O46: 0 | Q46: 772.78 | R46: 798.581778 | S46: 988.3391426 | T46: 1021.515033 | U46: 1057.790427 | V46: 1097.50643 | W46: 1137.861096 | Y46: 0 | Z46: 0 | AA46: 0 | AB46: 0 | AC46: 0 | AD46: 0 | AE46: 0 | AG46: 0 | AH46: 0 | AI46: 0 | AJ46: 0 | AK46: 0 | AL46: 0 | AM46: 0 | AO46: 988.3391426 | AP46: 0 | AQ46: 0 | AR46: 1 | AS46: 0 | AU46: 0 | AV46: 0 | AW46: 0 | AX46: 0 | AY46: 0 | AZ46: 0 | BA46: 0 | BC46: 0 | BD46: 0 | BE46: 0 | BF46: 0 | BG46: 0 | BH46: 0 | BI46: 0 | BJ46: 0 | BM46: 120.8417432 | BN46: 121.8517814 | BO46: 123.1013703 | BP46: 124.6081542 | BQ46: 126.038949 | BU46: 0 | BV46: 0 | BW46: 0 | BX46: 0 | BY46: 0 | CC46: 0 | CD46: 0 | CE46: 0 | CF46: 0 | CG46: 0 | CK46: 231.4733755 | CL46: 233.4081123 | CM46: 235.8017103 | CN46: 238.6879676 | CO46: 241.4286671 | CS46: 0 | CT46: 0 | CU46: 0 | CV46: 0 | CW46: 0
A47: 35 | B47: RTK3 | C47: Replacement of 3-phase overhead service line BH * | D47: Business Hours | E47: RTK3BH | F47: Per connection | H47: 101 | I47: 102.4039 | J47: 103.8170738 | K47: 105.607136 | L47: 107.5121644 | M47: 109.4101411 | N47: 111.3056041 | O47: 113.2020831 | Q47: 889.37 | R47: 919.064515 | S47: 970.8779713 | T47: 1003.467738 | U47: 1039.102247 | V47: 1078.11658 | W47: 1117.758293 | Y47: 91074.95654 | Z47: 95414.5886 | AA47: 102531.642 | AB47: 107884.9884 | AC47: 113688.3235 | AD47: 120000.4172 | AE47: 126532.5671 | AG47: 93442.90541 | AH47: 95414.5886 | AI47: 100030.8702 | AJ47: 102686.4851 | AK47: 105570.9102 | AL47: 108714.4553 | AM47: 111836.352 | AO47: 781.6727682 | AP47: 189.2052031 | AQ47: 0 | AR47: 0.8051194808 | AS47: 0.1948805192 | AU47: 75232.70349 | AV47: 76820.14403 | AW47: 80536.80229 | AX47: 82674.88955 | AY47: 84997.19641 | AZ47: 87528.12584 | BA47: 90041.62562 | BC47: 18210.20192 | BD47: 18594.44456 | BE47: 19494.06792 | BF47: 20011.59552 | BG47: 20573.71379 | BH47: 21186.3295 | BI47: 21794.72633 | BJ47: 0 | BM47: 116.5245568 | BN47: 117.4985105 | BO47: 118.7034566 | BP47: 120.1564092 | BQ47: 121.5360875 | BU47: 2398.16551 | BV47: 2461.831896 | BW47: 2530.983837 | BX47: 2606.347987 | BY47: 2681.19313 | CC47: 9907.659208 | CD47: 10170.68728 | CE47: 10456.3781 | CF47: 10767.73372 | CG47: 11076.94515 | CK47: 223.2037687 | CL47: 225.0693852 | CM47: 227.3774696 | CN47: 230.1606126 | CO47: 232.803398 | CS47: 23571.91076 | CT47: 24197.69674 | CU47: 24877.40103 | CV47: 25618.16601 | CW47: 26353.8296
A48: 36 | B48: RTK3 | C48: Replacement of 3-phase overhead service line AH * | D48: After Hours | E48: RTK3AH | F48: Per connection | H48: 0 | I48: 0 | J48: 0 | K48: 0 | L48: 0 | M48: 0 | N48: 0 | O48: 0 | Q48: 1106.16 | R48: 1143.092755 | S48: 1328.796706 | T48: 1373.400843 | U48: 1422.172182 | V48: 1475.569333 | W48: 1529.82515 | Y48: 0 | Z48: 0 | AA48: 0 | AB48: 0 | AC48: 0 | AD48: 0 | AE48: 0 | AG48: 0 | AH48: 0 | AI48: 0 | AJ48: 0 | AK48: 0 | AL48: 0 | AM48: 0 | AO48: 1139.591503 | AP48: 189.2052031 | AQ48: 0 | AR48: 0.8576116255 | AS48: 0.1423883745 | AU48: 0 | AV48: 0 | AW48: 0 | AX48: 0 | AY48: 0 | AZ48: 0 | BA48: 0 | BC48: 0 | BD48: 0 | BE48: 0 | BF48: 0 | BG48: 0 | BH48: 0 | BI48: 0 | BJ48: 0 | BM48: 159.4818833 | BN48: 160.8148896 | BO48: 162.4640447 | BP48: 164.4526352 | BQ48: 166.3409384 | BU48: 0 | BV48: 0 | BW48: 0 | BX48: 0 | BY48: 0 | CC48: 0 | CD48: 0 | CE48: 0 | CF48: 0 | CG48: 0 | CK48: 305.4888889 | CL48: 308.0422737 | CM48: 311.2012443 | CN48: 315.010406 | CO48: 318.6274667 | CS48: 0 | CT48: 0 | CU48: 0 | CV48: 0 | CW48: 0
A49: 37 | I49: 0 | J49: 0 | K49: 0 | L49: 0 | M49: 0 | N49: 0 | O49: 0 | Q49: 0 | R49: 0 | S49: 0 | T49: 0 | U49: 0 | V49: 0 | W49: 0 | Y49: 0 | Z49: 0 | AA49: 0 | AB49: 0 | AC49: 0 | AD49: 0 | AE49: 0 | AG49: 0 | AH49: 0 | AI49: 0 | AJ49: 0 | AK49: 0 | AL49: 0 | AM49: 0 | AO49: 0 | AP49: 0 | AQ49: 0 | AR49: 0 | AS49: 0 | AU49: 0 | AV49: 0 | AW49: 0 | AX49: 0 | AY49: 0 | AZ49: 0 | BA49: 0 | BC49: 0 | BD49: 0 | BE49: 0 | BF49: 0 | BG49: 0 | BH49: 0 | BI49: 0 | BJ49: 0
A50: 38 | I50: 0 | J50: 0 | K50: 0 | L50: 0 | M50: 0 | N50: 0 | O50: 0 | Q50: 0 | R50: 0 | S50: 0 | T50: 0 | U50: 0 | V50: 0 | W50: 0 | Y50: 0 | Z50: 0 | AA50: 0 | AB50: 0 | AC50: 0 | AD50: 0 | AE50: 0 | AG50: 0 | AH50: 0 | AI50: 0 | AJ50: 0 | AK50: 0 | AL50: 0 | AM50: 0 | AO50: 0 | AP50: 0 | AQ50: 0 | AR50: 0 | AS50: 0 | AU50: 0 | AV50: 0 | AW50: 0 | AX50: 0 | AY50: 0 | AZ50: 0 | BA50: 0 | BC50: 0 | BD50: 0 | BE50: 0 | BF50: 0 | BG50: 0 | BH50: 0 | BI50: 0 | BJ50: 0
A51: 39 | I51: 0 | J51: 0 | K51: 0 | L51: 0 | M51: 0 | N51: 0 | O51: 0 | Q51: 0 | R51: 0 | S51: 0 | T51: 0 | U51: 0 | V51: 0 | W51: 0 | Y51: 0 | Z51: 0 | AA51: 0 | AB51: 0 | AC51: 0 | AD51: 0 | AE51: 0 | AG51: 0 | AH51: 0 | AI51: 0 | AJ51: 0 | AK51: 0 | AL51: 0 | AM51: 0 | AO51: 0 | AP51: 0 | AQ51: 0 | AR51: 0 | AS51: 0 | AU51: 0 | AV51: 0 | AW51: 0 | AX51: 0 | AY51: 0 | AZ51: 0 | BA51: 0 | BC51: 0 | BD51: 0 | BE51: 0 | BF51: 0 | BG51: 0 | BH51: 0 | BI51: 0 | BJ51: 0
A52: 40 | I52: 0 | J52: 0 | K52: 0 | L52: 0 | M52: 0 | N52: 0 | O52: 0 | Q52: 0 | R52: 0 | S52: 0 | T52: 0 | U52: 0 | V52: 0 | W52: 0 | Y52: 0 | Z52: 0 | AA52: 0 | AB52: 0 | AC52: 0 | AD52: 0 | AE52: 0 | AG52: 0 | AH52: 0 | AI52: 0 | AJ52: 0 | AK52: 0 | AL52: 0 | AM52: 0 | AO52: 0 | AP52: 0 | AQ52: 0 | AR52: 0 | AS52: 0 | AU52: 0 | AV52: 0 | AW52: 0 | AX52: 0 | AY52: 0 | AZ52: 0 | BA52: 0 | BC52: 0 | BD52: 0 | BE52: 0 | BF52: 0 | BG52: 0 | BH52: 0 | BI52: 0 | BJ52: 0
A53: 41 | I53: 0 | J53: 0 | K53: 0 | L53: 0 | M53: 0 | N53: 0 | O53: 0 | Q53: 0 | R53: 0 | S53: 0 | T53: 0 | U53: 0 | V53: 0 | W53: 0 | Y53: 0 | Z53: 0 | AA53: 0 | AB53: 0 | AC53: 0 | AD53: 0 | AE53: 0 | AG53: 0 | AH53: 0 | AI53: 0 | AJ53: 0 | AK53: 0 | AL53: 0 | AM53: 0 | AO53: 0 | AP53: 0 | AQ53: 0 | AR53: 0 | AS53: 0 | AU53: 0 | AV53: 0 | AW53: 0 | AX53: 0 | AY53: 0 | AZ53: 0 | BA53: 0 | BC53: 0 | BD53: 0 | BE53: 0 | BF53: 0 | BG53: 0 | BH53: 0 | BI53: 0 | BJ53: 0
A54: 42 | I54: 0 | J54: 0 | K54: 0 | L54: 0 | M54: 0 | N54: 0 | O54: 0 | Q54: 0 | R54: 0 | S54: 0 | T54: 0 | U54: 0 | V54: 0 | W54: 0 | Y54: 0 | Z54: 0 | AA54: 0 | AB54: 0 | AC54: 0 | AD54: 0 | AE54: 0 | AG54: 0 | AH54: 0 | AI54: 0 | AJ54: 0 | AK54: 0 | AL54: 0 | AM54: 0 | AO54: 0 | AP54: 0 | AQ54: 0 | AR54: 0 | AS54: 0 | AU54: 0 | AV54: 0 | AW54: 0 | AX54: 0 | AY54: 0 | AZ54: 0 | BA54: 0 | BC54: 0 | BD54: 0 | BE54: 0 | BF54: 0 | BG54: 0 | BH54: 0 | BI54: 0 | BJ54: 0
A55: 43 | I55: 0 | J55: 0 | K55: 0 | L55: 0 | M55: 0 | N55: 0 | O55: 0 | Q55: 0 | R55: 0 | S55: 0 | T55: 0 | U55: 0 | V55: 0 | W55: 0 | Y55: 0 | Z55: 0 | AA55: 0 | AB55: 0 | AC55: =M55*U55 -> 0 | AD55: =N55*V55 -> 0 | AE55: =O55*W55 -> 0 | AG55: 0 | AH55: 0 | AI55: 0 | AJ55: 0 | AK55: 0 | AL55: 0 | AM55: 0 | AO55: 0 | AP55: 0 | AQ55: 0 | AR55: 0 | AS55: 0 | AU55: 0 | AV55: 0 | AW55: 0 | AX55: 0 | AY55: 0 | AZ55: 0 | BA55: 0 | BC55: 0 | BD55: 0 | BE55: 0 | BF55: 0 | BG55: =AK55*$AS55 -> 0 | BH55: =AL55*$AS55 -> 0 | BI55: =AM55*$AS55 -> 0 | BJ55: 0
A56: 44 | I56: 0 | J56: 0 | K56: 0 | L56: 0 | M56: 0 | N56: 0 | O56: 0 | Q56: 0 | R56: 0 | S56: 0 | T56: 0 | U56: 0 | V56: 0 | W56: 0 | Y56: 0 | Z56: =J56*R56 -> 0 | AA56: =K56*S56 -> 0 | AB56: =L56*T56 -> 0 | AC56: 0 | AD56: 0 | AE56: 0 | AG56: 0 | AH56: 0 | AI56: 0 | AJ56: 0 | AK56: 0 | AL56: 0 | AM56: 0 | AO56: 0 | AP56: 0 | AQ56: 0 | AR56: 0 | AS56: 0 | AU56: 0 | AV56: 0 | AW56: 0 | AX56: 0 | AY56: 0 | AZ56: 0 | BA56: 0 | BC56: 0 | BD56: =AH56*$AS56 -> 0 | BE56: =AI56*$AS56 -> 0 | BF56: =AJ56*$AS56 -> 0 | BG56: 0 | BH56: 0 | BI56: 0 | BJ56: 0
A57: 45 | I57: 0 | J57: 0 | K57: 0 | L57: 0 | M57: 0 | N57: 0 | O57: 0 | Q57: 0 | R57: 0 | S57: 0 | T57: 0 | U57: 0 | V57: 0 | W57: 0 | Y57: 0 | Z57: 0 | AA57: 0 | AB57: 0 | AC57: 0 | AD57: 0 | AE57: 0 | AG57: 0 | AH57: 0 | AI57: 0 | AJ57: 0 | AK57: 0 | AL57: 0 | AM57: 0 | AO57: 0 | AP57: 0 | AQ57: 0 | AR57: 0 | AS57: 0 | AU57: 0 | AV57: 0 | AW57: 0 | AX57: 0 | AY57: 0 | AZ57: 0 | BA57: 0 | BC57: 0 | BD57: 0 | BE57: 0 | BF57: 0 | BG57: 0 | BH57: 0 | BI57: 0 | BJ57: 0
A58: 46 | I58: 0 | J58: 0 | K58: 0 | L58: 0 | M58: 0 | N58: 0 | O58: 0 | Q58: 0 | R58: 0 | S58: 0 | T58: 0 | U58: 0 | V58: 0 | W58: 0 | Y58: 0 | Z58: 0 | AA58: 0 | AB58: 0 | AC58: 0 | AD58: 0 | AE58: 0 | AG58: 0 | AH58: 0 | AI58: 0 | AJ58: 0 | AK58: 0 | AL58: 0 | AM58: 0 | AO58: 0 | AP58: 0 | AQ58: 0 | AR58: 0 | AS58: 0 | AU58: 0 | AV58: 0 | AW58: 0 | AX58: 0 | AY58: 0 | AZ58: 0 | BA58: 0 | BC58: 0 | BD58: 0 | BE58: 0 | BF58: 0 | BG58: 0 | BH58: 0 | BI58: 0 | BJ58: 0
A59: 47 | I59: 0 | J59: 0 | K59: 0 | L59: 0 | M59: 0 | N59: 0 | O59: 0 | Q59: 0 | R59: 0 | S59: 0 | T59: 0 | U59: 0 | V59: 0 | W59: 0 | Y59: 0 | Z59: 0 | AA59: 0 | AB59: 0 | AC59: 0 | AD59: 0 | AE59: 0 | AG59: 0 | AH59: 0 | AI59: 0 | AJ59: 0 | AK59: 0 | AL59: 0 | AM59: 0 | AO59: 0 | AP59: 0 | AQ59: 0 | AR59: 0 | AS59: 0 | AU59: 0 | AV59: 0 | AW59: 0 | AX59: 0 | AY59: 0 | AZ59: 0 | BA59: 0 | BC59: 0 | BD59: 0 | BE59: 0 | BF59: 0 | BG59: 0 | BH59: 0 | BI59: 0 | BJ59: 0
A60: 48 | I60: 0 | J60: 0 | K60: 0 | L60: 0 | M60: 0 | N60: 0 | O60: 0 | Q60: 0 | R60: 0 | S60: 0 | T60: 0 | U60: 0 | V60: 0 | W60: 0 | Y60: 0 | Z60: 0 | AA60: 0 | AB60: 0 | AC60: 0 | AD60: 0 | AE60: 0 | AG60: 0 | AH60: 0 | AI60: 0 | AJ60: 0 | AK60: 0 | AL60: 0 | AM60: 0 | AO60: 0 | AP60: 0 | AQ60: 0 | AR60: 0 | AS60: 0 | AU60: 0 | AV60: 0 | AW60: 0 | AX60: 0 | AY60: 0 | AZ60: 0 | BA60: 0 | BC60: 0 | BD60: 0 | BE60: 0 | BF60: 0 | BG60: 0 | BH60: 0 | BI60: 0 | BJ60: 0
A61: 49 | I61: 0 | J61: 0 | K61: 0 | L61: 0 | M61: 0 | N61: 0 | O61: 0 | Q61: 0 | R61: 0 | S61: 0 | T61: 0 | U61: 0 | V61: 0 | W61: 0 | Y61: 0 | Z61: 0 | AA61: 0 | AB61: 0 | AC61: 0 | AD61: 0 | AE61: 0 | AG61: 0 | AH61: 0 | AI61: 0 | AJ61: 0 | AK61: 0 | AL61: 0 | AM61: 0 | AO61: 0 | AP61: 0 | AQ61: 0 | AR61: 0 | AS61: 0 | AU61: 0 | AV61: 0 | AW61: 0 | AX61: 0 | AY61: 0 | AZ61: 0 | BA61: 0 | BC61: 0 | BD61: 0 | BE61: 0 | BF61: 0 | BG61: 0 | BH61: 0 | BI61: 0 | BJ61: 0
A62: 50 | I62: 0 | J62: 0 | K62: 0 | L62: 0 | M62: 0 | N62: 0 | O62: 0 | Q62: 0 | R62: 0 | S62: 0 | T62: 0 | U62: 0 | V62: 0 | W62: 0 | Y62: 0 | Z62: 0 | AA62: 0 | AB62: 0 | AC62: 0 | AD62: 0 | AE62: 0 | AG62: 0 | AH62: 0 | AI62: 0 | AJ62: 0 | AK62: 0 | AL62: 0 | AM62: 0 | AO62: 0 | AP62: 0 | AQ62: 0 | AR62: 0 | AS62: 0 | AU62: 0 | AV62: 0 | AW62: 0 | AX62: 0 | AY62: 0 | AZ62: 0 | BA62: 0 | BC62: 0 | BD62: 0 | BE62: 0 | BF62: 0 | BG62: 0 | BH62: 0 | BI62: 0 | BJ62: 0
A63: 51 | I63: 0 | J63: 0 | K63: 0 | L63: 0 | M63: 0 | N63: 0 | O63: 0 | Q63: 0 | R63: 0 | S63: 0 | T63: 0 | U63: 0 | V63: 0 | W63: 0 | Y63: 0 | Z63: 0 | AA63: 0 | AB63: 0 | AC63: 0 | AD63: 0 | AE63: 0 | AG63: 0 | AH63: 0 | AI63: 0 | AJ63: 0 | AK63: 0 | AL63: 0 | AM63: 0 | AO63: 0 | AP63: 0 | AQ63: 0 | AR63: 0 | AS63: 0 | AU63: 0 | AV63: 0 | AW63: =AI63*$AR63 -> 0 | AX63: =AJ63*$AR63 -> 0 | AY63: =AK63*$AR63 -> 0 | AZ63: =AL63*$AR63 -> 0 | BA63: =AM63*$AR63 -> 0 | BC63: 0 | BD63: 0 | BE63: 0 | BF63: 0 | BG63: 0 | BH63: 0 | BI63: 0 | BJ63: 0
A64: 52 | I64: 0 | J64: 0 | K64: 0 | L64: 0 | M64: 0 | N64: 0 | O64: 0 | Q64: 0 | R64: 0 | S64: 0 | T64: 0 | U64: 0 | V64: 0 | W64: 0 | Y64: 0 | Z64: 0 | AA64: 0 | AB64: 0 | AC64: 0 | AD64: 0 | AE64: 0 | AG64: 0 | AH64: 0 | AI64: 0 | AJ64: 0 | AK64: 0 | AL64: 0 | AM64: 0 | AO64: 0 | AP64: 0 | AQ64: 0 | AR64: 0 | AS64: 0 | AU64: =AG64*$AR64 -> 0 | AV64: =AH64*$AR64 -> 0 | AW64: 0 | AX64: 0 | AY64: 0 | AZ64: 0 | BA64: 0 | BC64: 0 | BD64: 0 | BE64: 0 | BF64: 0 | BG64: 0 | BH64: 0 | BI64: 0 | BJ64: 0
A65: 53 | I65: 0 | J65: 0 | K65: 0 | L65: =K65*(1+G$7) -> 0 | M65: 0 | N65: 0 | O65: 0 | Q65: 0 | R65: 0 | S65: 0 | T65: 0 | U65: 0 | V65: 0 | W65: 0 | Y65: 0 | Z65: 0 | AA65: 0 | AB65: 0 | AC65: 0 | AD65: 0 | AE65: 0 | AG65: 0 | AH65: 0 | AI65: 0 | AJ65: 0 | AK65: 0 | AL65: 0 | AM65: 0 | AO65: 0 | AP65: 0 | AQ65: 0 | AR65: 0 | AS65: 0 | AU65: 0 | AV65: 0 | AW65: 0 | AX65: 0 | AY65: 0 | AZ65: 0 | BA65: 0 | BC65: 0 | BD65: 0 | BE65: 0 | BF65: 0 | BG65: 0 | BH65: 0 | BI65: 0 | BJ65: 0
A66: 54 | I66: =H66*(1+D$7) -> 0 | J66: 0 | K66: 0 | L66: 0 | M66: 0 | N66: 0 | O66: 0 | Q66: 0 | R66: 0 | S66: 0 | T66: 0 | U66: 0 | V66: 0 | W66: 0 | Y66: 0 | Z66: 0 | AA66: 0 | AB66: 0 | AC66: 0 | AD66: 0 | AE66: 0 | AG66: 0 | AH66: 0 | AI66: 0 | AJ66: 0 | AK66: 0 | AL66: 0 | AM66: 0 | AO66: 0 | AP66: 0 | AQ66: 0 | AR66: 0 | AS66: 0 | AU66: 0 | AV66: 0 | AW66: 0 | AX66: 0 | AY66: 0 | AZ66: 0 | BA66: 0 | BC66: 0 | BD66: 0 | BE66: 0 | BF66: 0 | BG66: 0 | BH66: 0 | BI66: 0 | BJ66: 0
A67: 55 | I67: 0 | J67: 0 | K67: 0 | L67: 0 | M67: 0 | N67: 0 | O67: 0 | Q67: 0 | R67: 0 | S67: 0 | T67: 0 | U67: 0 | V67: 0 | W67: 0 | Y67: 0 | Z67: 0 | AA67: 0 | AB67: 0 | AC67: 0 | AD67: 0 | AE67: 0 | AG67: 0 | AH67: 0 | AI67: 0 | AJ67: 0 | AK67: 0 | AL67: 0 | AM67: 0 | AO67: 0 | AP67: 0 | AQ67: 0 | AR67: 0 | AS67: 0 | AU67: 0 | AV67: 0 | AW67: 0 | AX67: 0 | AY67: 0 | AZ67: 0 | BA67: 0 | BC67: 0 | BD67: 0 | BE67: 0 | BF67: 0 | BG67: 0 | BH67: 0 | BI67: 0 | BJ67: 0
A68: 56 | I68: 0 | J68: 0 | K68: 0 | L68: 0 | M68: 0 | N68: 0 | O68: 0 | Q68: 0 | R68: 0 | S68: 0 | T68: 0 | U68: 0 | V68: 0 | W68: 0 | Y68: 0 | Z68: 0 | AA68: 0 | AB68: 0 | AC68: 0 | AD68: 0 | AE68: 0 | AG68: 0 | AH68: 0 | AI68: 0 | AJ68: 0 | AK68: 0 | AL68: 0 | AM68: 0 | AO68: 0 | AP68: 0 | AQ68: 0 | AR68: 0 | AS68: 0 | AU68: 0 | AV68: 0 | AW68: 0 | AX68: 0 | AY68: 0 | AZ68: 0 | BA68: 0 | BC68: 0 | BD68: 0 | BE68: 0 | BF68: 0 | BG68: 0 | BH68: 0 | BI68: 0 | BJ68: 0
A69: 57 | I69: 0 | J69: 0 | K69: 0 | L69: 0 | M69: 0 | N69: 0 | O69: 0 | Q69: 0 | R69: 0 | S69: 0 | T69: 0 | U69: 0 | V69: 0 | W69: 0 | Y69: 0 | Z69: 0 | AA69: 0 | AB69: 0 | AC69: 0 | AD69: 0 | AE69: 0 | AG69: 0 | AH69: 0 | AI69: 0 | AJ69: 0 | AK69: 0 | AL69: 0 | AM69: 0 | AO69: 0 | AP69: 0 | AQ69: 0 | AR69: 0 | AS69: 0 | AU69: 0 | AV69: 0 | AW69: 0 | AX69: 0 | AY69: 0 | AZ69: 0 | BA69: 0 | BC69: 0 | BD69: 0 | BE69: 0 | BF69: 0 | BG69: 0 | BH69: 0 | BI69: 0 | BJ69: 0
A70: 58 | I70: 0 | J70: 0 | K70: 0 | L70: 0 | M70: 0 | N70: 0 | O70: 0 | Q70: 0 | R70: 0 | S70: 0 | T70: 0 | U70: 0 | V70: 0 | W70: 0 | Y70: 0 | Z70: 0 | AA70: 0 | AB70: 0 | AC70: 0 | AD70: 0 | AE70: 0 | AG70: 0 | AH70: 0 | AI70: 0 | AJ70: 0 | AK70: 0 | AL70: 0 | AM70: 0 | AO70: 0 | AP70: 0 | AQ70: 0 | AR70: 0 | AS70: 0 | AU70: 0 | AV70: 0 | AW70: 0 | AX70: 0 | AY70: 0 | AZ70: 0 | BA70: 0 | BC70: 0 | BD70: 0 | BE70: 0 | BF70: 0 | BG70: 0 | BH70: 0 | BI70: 0 | BJ70: 0
A71: 59 | I71: 0 | J71: 0 | K71: 0 | L71: 0 | M71: 0 | N71: 0 | O71: 0 | Q71: 0 | R71: 0 | S71: 0 | T71: 0 | U71: 0 | V71: 0 | W71: 0 | Y71: 0 | Z71: 0 | AA71: 0 | AB71: 0 | AC71: 0 | AD71: 0 | AE71: 0 | AG71: 0 | AH71: 0 | AI71: 0 | AJ71: 0 | AK71: 0 | AL71: 0 | AM71: 0 | AO71: 0 | AP71: 0 | AQ71: 0 | AR71: 0 | AS71: 0 | AU71: 0 | AV71: 0 | AW71: 0 | AX71: 0 | AY71: 0 | AZ71: 0 | BA71: 0 | BC71: 0 | BD71: 0 | BE71: 0 | BF71: 0 | BG71: 0 | BH71: 0 | BI71: 0 | BJ71: 0
A72: 60 | I72: 0 | J72: 0 | K72: 0 | L72: 0 | M72: 0 | N72: 0 | O72: 0 | Q72: 0 | R72: 0 | S72: 0 | T72: 0 | U72: 0 | V72: 0 | W72: 0 | Y72: 0 | Z72: 0 | AA72: 0 | AB72: 0 | AC72: 0 | AD72: 0 | AE72: 0 | AG72: 0 | AH72: 0 | AI72: 0 | AJ72: 0 | AK72: 0 | AL72: 0 | AM72: 0 | AO72: 0 | AP72: 0 | AQ72: 0 | AR72: 0 | AS72: 0 | AU72: 0 | AV72: 0 | AW72: 0 | AX72: 0 | AY72: 0 | AZ72: 0 | BA72: 0 | BC72: 0 | BD72: 0 | BE72: 0 | BF72: 0 | BG72: 0 | BH72: 0 | BI72: 0 | BJ72: 0
Y74: =SUM(Y13:Y72) -> 10278712.63 | Z74: 10768483.17 | AA74: 13896566.66 | AB74: 14622129.36 | AC74: 15408681.02 | AD74: 16264186.98 | AE74: 17149518.13 | AG74: 10545959.16 | AH74: 10768483.17 | AI74: 13557626.01 | AJ74: 13917553.23 | AK74: 14308492.12 | AL74: 14734550.68 | AM74: 15157675.13 | AU74: =SUM(AU13:AU72) -> 9271461.467 | AV74: 9467093.063 | AW74: 11829893.32 | AX74: 12143952.77 | AY74: 12485071.88 | AZ74: 12856835.15 | BA74: 13226038.22 | BC74: =SUM(BC13:BC72) -> 1274497.693 | BD74: 1301390.111 | BE74: 1727732.69 | BF74: 1773600.456 | BG74: 1823420.233 | BH74: 1877715.528 | BI74: 1931636.911 | BJ74: 0 | BS74: =SUM(BS13:BS72) -> 0 | BT74: 0 | BU74: 212546.1429 | BV74: 218188.808 | BW74: 224317.6504 | BX74: 230997.0723 | BY74: 237630.4954 | CA74: =SUM(CA13:CA72) -> 0 | CB74: 0 | CC74: 1466745.21 | CD74: 1505684.293 | CE74: 1547978.404 | CF74: 1594071.973 | CG74: 1639848.111 | CQ74: =SUM(CQ13:CQ72) -> 0 | CR74: 0 | CS74: 3216696.712 | CT74: 3302093.426 | CU74: 3394848.001 | CV74: 3495935.108 | CW74: 3596326.063

Sheet Input|Tax Recovery
B1: =IFERROR(Index!B1,"") -> Jemena Electricity Networks – Alternative Control Services Forecast model | D1: Key: | E1: Input | I1: Sheet Validation | J1: ='Model Validation'!C11 -> 0
B2: =IFERROR(MID(CELL("filename",A1),FIND("]",CELL("filename",A1))+1,255),"") -> Input|Tax Recovery | E2: Formula
B4: Input - Tax Recovery Rate 1
B6: Item - New Connection Services | C6: Source | D6: Unit | E6: Basis | F6: Timing | G6: Input | I6: Note
B7: Nominal vanilla WACC | C7: Metering PTRM | D7: Percent | E7: n.m. | F7: N/A | G7: 0.06
B8: Asset life | C8: AER | D8: Years | E8: n.m. | F8: N/A | G8: 15
B9: Standard cost (example) | C9: JEN | D9: Dollars | E9: n.m. | F9: End year | G9: 100
B10: Corporate tax rate | C10: Metering PTRM | D10: Percent | E10: n.m. | F10: N/A | G10: 0.3
B11: Depreciation rate (diminishing value) | C11: AER | D11: Percent | E11: n.m. | F11: N/A | G11: 0.375
B12: Gamma | C12: Metering PTRM | D12: Percent | E12: n.m. | F12: N/A | G12: 0.57
B14: Calc - Tax Recovery Rate 1
B16: Workings | C16: Source | D16: Unit | E16: Basis | F16: Timing | G16: 1 | H16: =G16+1 -> 2 | I16: =H16+1 -> 3 | J16: 4 | K16: 5 | L16: 6 | M16: 7 | N16: 8 | O16: 9 | P16: 10 | Q16: 11 | R16: 12 | S16: 13 | T16: 14 | U16: 15 | V16: 16 | W16: 17 | X16: 18 | Y16: 19 | Z16: 20 | AA16: 21 | AB16: 22 | AC16: 23 | AD16: 24 | AE16: 25
B17: Additional taxable income | C17: Above | D17: $dollars | E17: Real 2019 | F17: End year | G17: =IF(G$42=1,$G$9,0) -> 100 | H17: 0 | I17: 0 | J17: 0 | K17: 0 | L17: 0 | M17: 0 | N17: 0 | O17: 0 | P17: 0 | Q17: 0 | R17: 0 | S17: 0 | T17: 0 | U17: 0 | V17: 0 | W17: 0 | X17: 0 | Y17: 0 | Z17: 0 | AA17: 0 | AB17: 0 | AC17: 0 | AD17: 0 | AE17: 0
B18: Additional tax depreciation | C18: Calculated | D18: $dollars | E18: Real 2019 | F18: End year | G18: =G9*G11/2 -> 18.75 | H18: =(H16<=$G$8)*IF(H16=$G$8,$G$9-SUM($G$18:G18),$G$11*($G$9-SUM($G$18:G18))) -> 30.46875 | I18: =(I16<=$G$8)*IF(I16=$G$8,$G$9-SUM($G$18:H18),$G$11*($G$9-SUM($G$18:H18))) -> 19.04296875 | J18: =(J16<=$G$8)*IF(J16=$G$8,$G$9-SUM($G$18:I18),$G$11*($G$9-SUM($G$18:I18))) -> 11.90185547 | K18: =(K16<=$G$8)*IF(K16=$G$8,$G$9-SUM($G$18:J18),$G$11*($G$9-SUM($G$18:J18))) -> 7.438659668 | L18: =(L16<=$G$8)*IF(L16=$G$8,$G$9-SUM($G$18:K18),$G$11*($G$9-SUM($G$18:K18))) -> 4.649162292 | M18: =(M16<=$G$8)*IF(M16=$G$8,$G$9-SUM($G$18:L18),$G$11*($G$9-SUM($G$18:L18))) -> 2.905726433 | N18: =(N16<=$G$8)*IF(N16=$G$8,$G$9-SUM($G$18:M18),$G$11*($G$9-SUM($G$18:M18))) -> 1.816079021 | O18: =(O16<=$G$8)*IF(O16=$G$8,$G$9-SUM($G$18:N18),$G$11*($G$9-SUM($G$18:N18))) -> 1.135049388 | P18: =(P16<=$G$8)*IF(P16=$G$8,$G$9-SUM($G$18:O18),$G$11*($G$9-SUM($G$18:O18))) -> 0.7094058674 | Q18: =(Q16<=$G$8)*IF(Q16=$G$8,$G$9-SUM($G$18:P18),$G$11*($G$9-SUM($G$18:P18))) -> 0.4433786671 | R18: =(R16<=$G$8)*IF(R16=$G$8,$G$9-SUM($G$18:Q18),$G$11*($G$9-SUM($G$18:Q18))) -> 0.2771116669 | S18: =(S16<=$G$8)*IF(S16=$G$8,$G$9-SUM($G$18:R18),$G$11*($G$9-SUM($G$18:R18))) -> 0.1731947918 | T18: =(T16<=$G$8)*IF(T16=$G$8,$G$9-SUM($G$18:S18),$G$11*($G$9-SUM($G$18:S18))) -> 0.1082467449 | U18: =(U16<=$G$8)*IF(U16=$G$8,$G$9-SUM($G$18:T18),$G$11*($G$9-SUM($G$18:T18))) -> 0.1804112415 | V18: =(V16<=$G$8)*IF(V16=$G$8,$G$9-SUM($G$18:U18),$G$11*($G$9-SUM($G$18:U18))) -> 0 | W18: =(W16<=$G$8)*IF(W16=$G$8,$G$9-SUM($G$18:V18),$G$11*($G$9-SUM($G$18:V18))) -> 0 | X18: =(X16<=$G$8)*IF(X16=$G$8,$G$9-SUM($G$18:W18),$G$11*($G$9-SUM($G$18:W18))) -> 0 | Y18: =(Y16<=$G$8)*IF(Y16=$G$8,$G$9-SUM($G$18:X18),$G$11*($G$9-SUM($G$18:X18))) -> 0 | Z18: =(Z16<=$G$8)*IF(Z16=$G$8,$G$9-SUM($G$18:Y18),$G$11*($G$9-SUM($G$18:Y18))) -> 0 | AA18: =(AA16<=$G$8)*IF(AA16=$G$8,$G$9-SUM($G$18:Z18),$G$11*($G$9-SUM($G$18:Z18))) -> 0 | AB18: =(AB16<=$G$8)*IF(AB16=$G$8,$G$9-SUM($G$18:AA18),$G$11*($G$9-SUM($G$18:AA18))) -> 0 | AC18: =(AC16<=$G$8)*IF(AC16=$G$8,$G$9-SUM($G$18:AB18),$G$11*($G$9-SUM($G$18:AB18))) -> 0 | AD18: =(AD16<=$G$8)*IF(AD16=$G$8,$G$9-SUM($G$18:AC18),$G$11*($G$9-SUM($G$18:AC18))) -> 0 | AE18: =(AE16<=$G$8)*IF(AE16=$G$8,$G$9-SUM($G$18:AD18),$G$11*($G$9-SUM($G$18:AD18))) -> 0
B19: Additional taxable income | C19: Calculated | D19: $dollars | E19: Real 2019 | F19: End year | G19: =G17-G18 -> 81.25 | H19: =H17-H18 -> -30.46875 | I19: =I17-I18 -> -19.04296875 | J19: -11.90185547 | K19: -7.438659668 | L19: -4.649162292 | M19: -2.905726433 | N19: -1.816079021 | O19: -1.135049388 | P19: -0.7094058674 | Q19: -0.4433786671 | R19: -0.2771116669 | S19: -0.1731947918 | T19: -0.1082467449 | U19: -0.1804112415 | V19: 0 | W19: 0 | X19: 0 | Y19: 0 | Z19: 0 | AA19: 0 | AB19: 0 | AC19: 0 | AD19: 0 | AE19: 0
B20: Additional taxation | C20: Calculated | D20: $dollars | E20: Real 2019 | F20: End year | G20: =G19*$G$10 -> 24.375 | H20: =H19*$G$10 -> -9.140625 | I20: =I19*$G$10 -> -5.712890625 | J20: -3.570556641 | K20: -2.2315979 | L20: -1.394748688 | M20: -0.8717179298 | N20: -0.5448237062 | O20: -0.3405148163 | P20: -0.2128217602 | Q20: -0.1330136001 | R20: -0.08313350008 | S20: -0.05195843755 | T20: -0.03247402347 | U20: -0.05412337245 | V20: 0 | W20: 0 | X20: 0 | Y20: 0 | Z20: 0 | AA20: 0 | AB20: 0 | AC20: 0 | AD20: 0 | AE20: 0
B21: Discount factor | C21: Calculated | D21: factor | E21: n.m. | F21: End year | G21: =1/((1+$G$7)^(G16-0.5)) -> 0.9712858624 | H21: =1/((1+$G$7)^(H16-0.5)) -> 0.9163074173 | I21: =1/((1+$G$7)^(I16-0.5)) -> 0.8644409597 | J21: 0.8155103394 | K21: 0.7693493768 | L21: 0.7258012988 | M21: 0.6847182064 | N21: 0.6459605721 | O21: 0.6093967662 | P21: 0.5749026096 | Q21: 0.5423609524 | R21: 0.5116612759 | S21: 0.4826993169 | T21: 0.455376714 | U21: 0.4296006736 | V21: 0.4052836543 | W21: 0.3823430701 | X21: 0.3607010096 | Y21: 0.3402839713 | Z21: 0.3210226144 | AA21: 0.302851523 | AB21: 0.285708984 | AC21: 0.2695367774 | AD21: 0.2542799786 | AE21: 0.2398867723
B23: Tax Recovery on capex | C23: Source | D23: Unit | E23: Basis | F23: Timing | G23: Value
B24: Post tax dollar margin required | C24: Calculated | D24: $dollars | E24: Real 2019 | F24: End year | G24: =SUMPRODUCT(G20:AE20,G21:AE21)*(1-G12) -> 1.403316017
B25: Tax on margin | C25: Calculated | D25: $dollars | E25: Real 2019 | F25: End year | G25: =G24*G10/(1-G10*(1-G12)) -> 0.483346504
B26: Tax on margin - discounted by half a year | C26: Calculated | D26: $dollars | E26: Real 2019 | F26: End year | G26: =G25/(1+$G$7)^0.5 -> 0.469467626
B27: Pre tax mark-up required | C27: Calculated | D27: $dollars | E27: Real 2019 | F27: End year | G27: =G24+G26 -> 1.872783643
B28: Tax recovery rate | C28: Calculated | D28: Per cent | E28: N/A | F28: N/A | G28: =G27/$G$9 -> 0.01872783643
B30: Input - Tax Recovery Rate 2
B32: Item - New Connection Services | C32: Source | D32: Unit | E32: Basis | F32: Timing | G32: Input | I32: Note
B33: Nominal vanilla WACC | C33: Metering PTRM | D33: Percent | E33: n.m. | F33: N/A | G33: 0.0513
B34: Asset life | C34: AER | D34: Years | E34: n.m. | F34: N/A | G34: 15
B35: Standard cost (example) | C35: JEN | D35: Dollars | E35: n.m. | F35: End year | G35: 100
B36: Corporate tax rate | C36: Metering PTRM | D36: Percent | E36: n.m. | F36: N/A | G36: 0.3
B37: Depreciation rate (diminishing value) | C37: AER | D37: Percent | E37: n.m. | F37: N/A | G37: 0.375
B38: Gamma | C38: Metering PTRM | D38: Percent | E38: n.m. | F38: N/A | G38: 0.57
B40: Calc - Tax Recovery Rate 2
B42: Workings | C42: Source | D42: Unit | E42: Basis | F42: Timing | G42: 1 | H42: =G42+1 -> 2 | I42: =H42+1 -> 3 | J42: 4 | K42: 5 | L42: 6 | M42: 7 | N42: 8 | O42: 9 | P42: 10 | Q42: 11 | R42: 12 | S42: 13 | T42: 14 | U42: 15 | V42: 16 | W42: 17 | X42: 18 | Y42: 19 | Z42: 20 | AA42: 21 | AB42: 22 | AC42: 23 | AD42: 24 | AE42: 25
B43: Additional taxable income | C43: Above | D43: $dollars | E43: Real 2019 | F43: End year | G43: =IF(G$42=1,$G$35,0) -> 100 | H43: =IF(H$42=1,$G$35,0) -> 0 | I43: =IF(I$42=1,$G$35,0) -> 0 | J43: 0 | K43: 0 | L43: 0 | M43: 0 | N43: 0 | O43: 0 | P43: 0 | Q43: 0 | R43: 0 | S43: 0 | T43: 0 | U43: 0 | V43: 0 | W43: 0 | X43: 0 | Y43: 0 | Z43: 0 | AA43: 0 | AB43: 0 | AC43: 0 | AD43: 0 | AE43: 0
B44: Additional tax depreciation | C44: Calculated | D44: $dollars | E44: Real 2019 | F44: End year | G44: =G35*G37/2 -> 18.75 | H44: =(H42<=$G$34)*IF(H42=$G$34,$G$35-SUM($G$44:G44),$G$37*($G$35-SUM($G$44:G44))) -> 30.46875 | I44: =(I42<=$G$34)*IF(I42=$G$34,$G$35-SUM($G$44:H44),$G$37*($G$35-SUM($G$44:H44))) -> 19.04296875 | J44: =(J42<=$G$34)*IF(J42=$G$34,$G$35-SUM($G$44:I44),$G$37*($G$35-SUM($G$44:I44))) -> 11.90185547 | K44: =(K42<=$G$34)*IF(K42=$G$34,$G$35-SUM($G$44:J44),$G$37*($G$35-SUM($G$44:J44))) -> 7.438659668 | L44: =(L42<=$G$34)*IF(L42=$G$34,$G$35-SUM($G$44:K44),$G$37*($G$35-SUM($G$44:K44))) -> 4.649162292 | M44: =(M42<=$G$34)*IF(M42=$G$34,$G$35-SUM($G$44:L44),$G$37*($G$35-SUM($G$44:L44))) -> 2.905726433 | N44: =(N42<=$G$34)*IF(N42=$G$34,$G$35-SUM($G$44:M44),$G$37*($G$35-SUM($G$44:M44))) -> 1.816079021 | O44: =(O42<=$G$34)*IF(O42=$G$34,$G$35-SUM($G$44:N44),$G$37*($G$35-SUM($G$44:N44))) -> 1.135049388 | P44: =(P42<=$G$34)*IF(P42=$G$34,$G$35-SUM($G$44:O44),$G$37*($G$35-SUM($G$44:O44))) -> 0.7094058674 | Q44: =(Q42<=$G$34)*IF(Q42=$G$34,$G$35-SUM($G$44:P44),$G$37*($G$35-SUM($G$44:P44))) -> 0.4433786671 | R44: =(R42<=$G$34)*IF(R42=$G$34,$G$35-SUM($G$44:Q44),$G$37*($G$35-SUM($G$44:Q44))) -> 0.2771116669 | S44: =(S42<=$G$34)*IF(S42=$G$34,$G$35-SUM($G$44:R44),$G$37*($G$35-SUM($G$44:R44))) -> 0.1731947918 | T44: =(T42<=$G$34)*IF(T42=$G$34,$G$35-SUM($G$44:S44),$G$37*($G$35-SUM($G$44:S44))) -> 0.1082467449 | U44: =(U42<=$G$34)*IF(U42=$G$34,$G$35-SUM($G$44:T44),$G$37*($G$35-SUM($G$44:T44))) -> 0.1804112415 | V44: =(V42<=$G$34)*IF(V42=$G$34,$G$35-SUM($G$44:U44),$G$37*($G$35-SUM($G$44:U44))) -> 0 | W44: =(W42<=$G$34)*IF(W42=$G$34,$G$35-SUM($G$44:V44),$G$37*($G$35-SUM($G$44:V44))) -> 0 | X44: =(X42<=$G$34)*IF(X42=$G$34,$G$35-SUM($G$44:W44),$G$37*($G$35-SUM($G$44:W44))) -> 0 | Y44: =(Y42<=$G$34)*IF(Y42=$G$34,$G$35-SUM($G$44:X44),$G$37*($G$35-SUM($G$44:X44))) -> 0 | Z44: =(Z42<=$G$34)*IF(Z42=$G$34,$G$35-SUM($G$44:Y44),$G$37*($G$35-SUM($G$44:Y44))) -> 0 | AA44: =(AA42<=$G$34)*IF(AA42=$G$34,$G$35-SUM($G$44:Z44),$G$37*($G$35-SUM($G$44:Z44))) -> 0 | AB44: =(AB42<=$G$34)*IF(AB42=$G$34,$G$35-SUM($G$44:AA44),$G$37*($G$35-SUM($G$44:AA44))) -> 0 | AC44: =(AC42<=$G$34)*IF(AC42=$G$34,$G$35-SUM($G$44:AB44),$G$37*($G$35-SUM($G$44:AB44))) -> 0 | AD44: =(AD42<=$G$34)*IF(AD42=$G$34,$G$35-SUM($G$44:AC44),$G$37*($G$35-SUM($G$44:AC44))) -> 0 | AE44: =(AE42<=$G$34)*IF(AE42=$G$34,$G$35-SUM($G$44:AD44),$G$37*($G$35-SUM($G$44:AD44))) -> 0
B45: Additional taxable income | C45: Calculated | D45: $dollars | E45: Real 2019 | F45: End year | G45: =G43-G44 -> 81.25 | H45: =H43-H44 -> -30.46875 | I45: =I43-I44 -> -19.04296875 | J45: =J43-J44 -> -11.90185547 | K45: =K43-K44 -> -7.438659668 | L45: =L43-L44 -> -4.649162292 | M45: -2.905726433 | N45: -1.816079021 | O45: -1.135049388 | P45: -0.7094058674 | Q45: -0.4433786671 | R45: -0.2771116669 | S45: -0.1731947918 | T45: -0.1082467449 | U45: -0.1804112415 | V45: 0 | W45: 0 | X45: 0 | Y45: 0 | Z45: 0 | AA45: 0 | AB45: 0 | AC45: 0 | AD45: 0 | AE45: 0
B46: Additional taxation | C46: Calculated | D46: $dollars | E46: Real 2019 | F46: End year | G46: =G45*$G$36 -> 24.375 | H46: =H45*$G$36 -> -9.140625 | I46: =I45*$G$36 -> -5.712890625 | J46: =J45*$G$36 -> -3.570556641 | K46: =K45*$G$36 -> -2.2315979 | L46: =L45*$G$36 -> -1.394748688 | M46: -0.8717179298 | N46: -0.5448237062 | O46: -0.3405148163 | P46: -0.2128217602 | Q46: -0.1330136001 | R46: -0.08313350008 | S46: -0.05195843755 | T46: -0.03247402347 | U46: -0.05412337245 | V46: 0 | W46: 0 | X46: 0 | Y46: 0 | Z46: 0 | AA46: 0 | AB46: 0 | AC46: 0 | AD46: 0 | AE46: 0
B47: Discount factor | C47: Calculated | D47: factor | E47: n.m. | F47: End year | G47: =1/((1+$G$33)^(G42-0.5)) -> 0.9752965047 | H47: =1/((1+$G$33)^(H42-0.5)) -> 0.9277052266 | I47: =1/((1+$G$33)^(I42-0.5)) -> 0.8824362471 | J47: =1/((1+$G$33)^(J42-0.5)) -> 0.8393762457 | K47: =1/((1+$G$33)^(K42-0.5)) -> 0.7984174315 | L47: =1/((1+$G$33)^(L42-0.5)) -> 0.7594572734 | M47: 0.7223982435 | N47: 0.687147573 | O47: 0.6536170199 | P47: 0.621722648 | Q47: 0.5913846172 | R47: 0.5625269829 | S47: 0.5350775068 | T47: 0.5089674753 | U47: 0.484131528 | V47: 0.4605074935 | W47: 0.4380362347 | X47: 0.4166614998 | Y47: 0.396329782 | Z47: 0.3769901854 | AA47: 0.358594298 | AB47: 0.3410960696 | AC47: 0.3244516975 | AD47: 0.3086195163 | AE47: 0.2935598938
B49: Tax Recovery on capex | C49: Source | D49: Unit | E49: Basis | F49: Timing | G49: Value
B50: Post tax dollar margin required | C50: Calculated | D50: $dollars | E50: Real 2019 | F50: End year | G50: =SUMPRODUCT(G46:AE46,G47:AE47)*(1-G38) -> 1.229284761
B51: Tax on margin | C51: Calculated | D51: $dollars | E51: Real 2019 | F51: End year | G51: =G50*G36/(1-G36*(1-G38)) -> 0.4234046251
B52: Tax on margin - discounted by half a year | C52: Calculated | D52: $dollars | E52: Real 2019 | F52: End year | G52: =G51/(1+$G$7)^0.5 -> 0.4112469264
B53: Pre tax mark-up required | C53: Calculated | D53: $dollars | E53: Real 2019 | F53: End year | G53: =G50+G52 -> 1.640531688
B54: Tax recovery rate | C54: Calculated | D54: Per cent | E54: N/A | F54: N/A | G54: =G53/$G$9 -> 0.01640531688

Sheet Input|Materials
B1: Jemena Electricity Networks – Alternative Control Services Forecast model | D1: Key: | E1: Input | H1: Sheet Validation | I1: 0
B2: =IFERROR(MID(CELL("filename",A1),FIND("]",CELL("filename",A1))+1,255),"") -> Input|Materials | E2: Formula
B4: Fee-Based Alternative Control Services - Forecast volumes and revenue
B6: Contract Number / Latest PO | C6: Material Code | D6: Material Name | E6: Unit Cost ($)
A7: 1 | B7: 4600011080 | C7: 11000787
A8: =IFERROR(A7+1,"") -> 2 | B8: 4600011081 | C8: 11000852
A9: =IFERROR(A8+1,"") -> 3 | B9: 4600006124 | C9: 11000852
A10: 4 | B10: 4600011080 | C10: 11000860
A11: 5 | B11: 4600011081 | C11: 11001736
A12: 6 | B12: 4100394127 | C12: 11000862
A13: 7 | B13: 4600008366 | C13: 11000870
A14: 8 | B14: 4100435482 | C14: 11000908
A15: 9 | B15: 4600011141 | C15: 11001521
A16: 10 | B16: 4100416042 | C16: 11005059
A17: 11 | B17: 4600011141 | C17: 11011038
A18: 12
A19: 13
A20: 14
A21: 15
A22: 16
A23: 17
A24: 18
A25: 19
A26: 20
A27: 21
A28: 22
A29: 23
A30: 24
A31: 25
A32: 26
A33: 27
A34: 28
A35: 29
A36: 30
A37: 31
A38: 32
A39: 33
A40: 34
A41: 35
A42: 36
A43: 37
A44: 38
A45: 39
A46: 40
A47: 41
A48: 42
A49: 43
A50: 44
A51: 45
A52: 46
A53: 47
A54: 48
A55: 49
A56: 50

Sheet Calc|Labour Rates
B1: =IFERROR(Index!B1,"") -> Jemena Electricity Networks – Alternative Control Services Forecast model | D1: Key: | E1: Input
B2: =IFERROR(MID(CELL("filename",A1),FIND("]",CELL("filename",A1))+1,255),"") -> Calc|Labour Rates | E2: Formula
B7: 9.1 Year 1 labour rates | F7: =IFERROR("Year 1 labour rates, $'s ($"&Output_first_year&")","") ->  | H7: =IFERROR("9.2 Year 1 labour rates build up, $'s ($"&'Input|Setup'!$E$8&")","") -> 9.2 Year 1 labour rates build up, $'s ($2026-27)
B9: ='Input|Labour Rates'!B9 -> Labour type | C9: ='Input|Labour Rates'!C9 -> Hours | D9: ='Input|Labour Rates'!D9 -> Used for quoted service? | E9: ='Input|Labour Rates'!E9&" (incl. On Costs & Overheads)" -> Base labour rate ($2024-25) (incl. On Costs & Overheads) | F9: TOTAL LABOUR RATE (incl. On Costs & Overheads) | H9: BASE LABOUR RATE | I9: On costs | J9: STANDARD LABOUR RATE (EXCL OVERHEADS) | K9: Overhead | L9: Wage Measure Stickiness | M9: Vehicle and Other costs
A10: 1 | B10: =IF(ISBLANK('Input|Labour Rates'!B10),"",'Input|Labour Rates'!B10) -> Administrative Officer | C10: =IF(ISBLANK('Input|Labour Rates'!C10),"",'Input|Labour Rates'!C10) -> Business hours | D10: =IF(ISBLANK('Input|Labour Rates'!D10),"",'Input|Labour Rates'!D10) -> Yes | E10: =SUM(J10,L10) -> 73.83045373 | F10: =SUM(J10:M10)+J10*'Input|Indirect Cost Rates'!$D$35 -> 121.4038624 | H10: ='Input|Labour Rates'!$E10*CPI_Escalator_to_Y1*RealLabour_Escalator_to_Y1 -> 48.56253694 | I10: =H10*'Input|Labour Rates'!F10 -> 22.41071026 | J10: =SUM(H10:I10) -> 70.9732472 | K10: =J10*'Input|Labour Rates'!G10 -> 43.31501379 | L10: ='Input|Labour Rates'!I10*CPI_Escalator_to_Y1*RealLabour_Escalator_to_Y1 -> 2.857206525 | M10: ='Input|Labour Rates'!H10*CPI_Escalator_to_Y1*RealLabour_Escalator_to_Y1 -> 0
A11: =A10+1 -> 2 | B11: =IF(ISBLANK('Input|Labour Rates'!B11),"",'Input|Labour Rates'!B11) -> Field Worker | C11: =IF(ISBLANK('Input|Labour Rates'!C11),"",'Input|Labour Rates'!C11) -> Business hours | D11: =IF(ISBLANK('Input|Labour Rates'!D11),"",'Input|Labour Rates'!D11) -> Yes | E11: =SUM(J11,L11) -> 113.6593281 | F11: =SUM(J11:M11)+J11*'Input|Indirect Cost Rates'!$D$35 -> 210.8874625 | H11: ='Input|Labour Rates'!$E11*CPI_Escalator_to_Y1*RealLabour_Escalator_to_Y1 -> 73.22180237 | I11: =H11*'Input|Labour Rates'!F11 -> 36.03895905 | J11: =SUM(H11:I11) -> 109.2607614 | K11: =J11*'Input|Labour Rates'!G11 -> 66.68190584 | L11: ='Input|Labour Rates'!I11*CPI_Escalator_to_Y1*RealLabour_Escalator_to_Y1 -> 4.398566681 | M11: ='Input|Labour Rates'!H11*CPI_Escalator_to_Y1*RealLabour_Escalator_to_Y1 -> 23.99058292
A12: 3 | B12: =IF(ISBLANK('Input|Labour Rates'!B12),"",'Input|Labour Rates'!B12) -> Technical Specialist | C12: =IF(ISBLANK('Input|Labour Rates'!C12),"",'Input|Labour Rates'!C12) -> Business hours | D12: =IF(ISBLANK('Input|Labour Rates'!D12),"",'Input|Labour Rates'!D12) -> Yes | E12: 122.2762835 | F12: =SUM(J12:M12)+J12*'Input|Indirect Cost Rates'!$D$35 -> 225.0568414 | H12: ='Input|Labour Rates'!$E12*CPI_Escalator_to_Y1*RealLabour_Escalator_to_Y1 -> 79.82376815 | I12: =H12*'Input|Labour Rates'!F12 -> 37.72047624 | J12: 117.5442444 | K12: =J12*'Input|Labour Rates'!G12 -> 71.73732029 | L12: ='Input|Labour Rates'!I12*CPI_Escalator_to_Y1*RealLabour_Escalator_to_Y1 -> 4.732039117 | M12: ='Input|Labour Rates'!H12*CPI_Escalator_to_Y1*RealLabour_Escalator_to_Y1 -> 23.99058292
A13: 4 | B13: =IF(ISBLANK('Input|Labour Rates'!B13),"",'Input|Labour Rates'!B13) -> Engineer | C13: =IF(ISBLANK('Input|Labour Rates'!C13),"",'Input|Labour Rates'!C13) -> Business hours | D13: =IF(ISBLANK('Input|Labour Rates'!D13),"",'Input|Labour Rates'!D13) -> Yes | E13: 165.3098979 | F13: =SUM(J13:M13)+J13*'Input|Indirect Cost Rates'!$D$35 -> 271.8290229 | H13: ='Input|Labour Rates'!$E13*CPI_Escalator_to_Y1*RealLabour_Escalator_to_Y1 -> 107.9167488 | I13: =H13*'Input|Labour Rates'!F13 -> 50.99572786 | J13: 158.9124766 | K13: =J13*'Input|Labour Rates'!G13 -> 96.98437634 | L13: ='Input|Labour Rates'!I13*CPI_Escalator_to_Y1*RealLabour_Escalator_to_Y1 -> 6.397421324 | M13: ='Input|Labour Rates'!H13*CPI_Escalator_to_Y1*RealLabour_Escalator_to_Y1 -> 0
A14: 5 | B14: =IF(ISBLANK('Input|Labour Rates'!B14),"",'Input|Labour Rates'!B14) -> Senior Engineer | C14: =IF(ISBLANK('Input|Labour Rates'!C14),"",'Input|Labour Rates'!C14) -> Business hours | D14: =IF(ISBLANK('Input|Labour Rates'!D14),"",'Input|Labour Rates'!D14) -> Yes | E14: 198.3718775 | F14: =SUM(J14:M14)+J14*'Input|Indirect Cost Rates'!$D$35 -> 326.1948275 | H14: ='Input|Labour Rates'!$E14*CPI_Escalator_to_Y1*RealLabour_Escalator_to_Y1 -> 129.5000985 | I14: =H14*'Input|Labour Rates'!F14 -> 61.19487343 | J14: 190.6949719 | K14: =J14*'Input|Labour Rates'!G14 -> 116.3812516 | L14: ='Input|Labour Rates'!I14*CPI_Escalator_to_Y1*RealLabour_Escalator_to_Y1 -> 7.676905589 | M14: ='Input|Labour Rates'!H14*CPI_Escalator_to_Y1*RealLabour_Escalator_to_Y1 -> 0
A15: 6 | B15: =IF(ISBLANK('Input|Labour Rates'!B15),"",'Input|Labour Rates'!B15) -> Administrative Officer | C15: =IF(ISBLANK('Input|Labour Rates'!C15),"",'Input|Labour Rates'!C15) -> After Hours | D15: =IF(ISBLANK('Input|Labour Rates'!D15),"",'Input|Labour Rates'!D15) -> No | E15: 0 | F15: =SUM(J15:M15)+J15*'Input|Indirect Cost Rates'!$D$35 -> 0 | H15: ='Input|Labour Rates'!$E15*CPI_Escalator_to_Y1*RealLabour_Escalator_to_Y1 -> 0 | I15: =H15*'Input|Labour Rates'!F15 -> 0 | J15: 0 | K15: =J15*'Input|Labour Rates'!G15 -> 0 | L15: ='Input|Labour Rates'!I15*CPI_Escalator_to_Y1*RealLabour_Escalator_to_Y1 -> 0 | M15: ='Input|Labour Rates'!H15*CPI_Escalator_to_Y1*RealLabour_Escalator_to_Y1 -> 0
A16: 7 | B16: =IF(ISBLANK('Input|Labour Rates'!B16),"",'Input|Labour Rates'!B16) -> Field Worker | C16: =IF(ISBLANK('Input|Labour Rates'!C16),"",'Input|Labour Rates'!C16) -> After Hours | D16: =IF(ISBLANK('Input|Labour Rates'!D16),"",'Input|Labour Rates'!D16) -> Yes | E16: 210.7415093 | F16: =SUM(J16:M16)+J16*'Input|Indirect Cost Rates'!$D$35 -> 370.525541 | H16: ='Input|Labour Rates'!$E16*CPI_Escalator_to_Y1*RealLabour_Escalator_to_Y1 -> 169.7783253 | I16: =H16*'Input|Labour Rates'!F16 -> 32.80757906 | J16: 202.5859043 | K16: =J16*'Input|Labour Rates'!G16 -> 123.6382945 | L16: ='Input|Labour Rates'!I16*CPI_Escalator_to_Y1*RealLabour_Escalator_to_Y1 -> 8.155604971 | M16: ='Input|Labour Rates'!H16*CPI_Escalator_to_Y1*RealLabour_Escalator_to_Y1 -> 23.99058292
A17: 8 | B17: =IF(ISBLANK('Input|Labour Rates'!B17),"",'Input|Labour Rates'!B17) -> Technical Specialist | C17: =IF(ISBLANK('Input|Labour Rates'!C17),"",'Input|Labour Rates'!C17) -> After Hours | D17: =IF(ISBLANK('Input|Labour Rates'!D17),"",'Input|Labour Rates'!D17) -> No | E17: 0 | F17: =SUM(J17:M17)+J17*'Input|Indirect Cost Rates'!$D$35 -> 0 | H17: ='Input|Labour Rates'!$E17*CPI_Escalator_to_Y1*RealLabour_Escalator_to_Y1 -> 0 | I17: =H17*'Input|Labour Rates'!F17 -> 0 | J17: 0 | K17: =J17*'Input|Labour Rates'!G17 -> 0 | L17: ='Input|Labour Rates'!I17*CPI_Escalator_to_Y1*RealLabour_Escalator_to_Y1 -> 0 | M17: ='Input|Labour Rates'!H17*CPI_Escalator_to_Y1*RealLabour_Escalator_to_Y1 -> 0
A18: 9 | B18: =IF(ISBLANK('Input|Labour Rates'!B18),"",'Input|Labour Rates'!B18) -> Engineer | C18: =IF(ISBLANK('Input|Labour Rates'!C18),"",'Input|Labour Rates'!C18) -> After Hours | D18: =IF(ISBLANK('Input|Labour Rates'!D18),"",'Input|Labour Rates'!D18) -> No | E18: 0 | F18: =SUM(J18:M18)+J18*'Input|Indirect Cost Rates'!$D$35 -> 0 | H18: ='Input|Labour Rates'!$E18*CPI_Escalator_to_Y1*RealLabour_Escalator_to_Y1 -> 0 | I18: =H18*'Input|Labour Rates'!F18 -> 0 | J18: 0 | K18: =J18*'Input|Labour Rates'!G18 -> 0 | L18: ='Input|Labour Rates'!I18*CPI_Escalator_to_Y1*RealLabour_Escalator_to_Y1 -> 0 | M18: ='Input|Labour Rates'!H18*CPI_Escalator_to_Y1*RealLabour_Escalator_to_Y1 -> 0
A19: 10 | B19: =IF(ISBLANK('Input|Labour Rates'!B19),"",'Input|Labour Rates'!B19) -> Senior Engineer | C19: =IF(ISBLANK('Input|Labour Rates'!C19),"",'Input|Labour Rates'!C19) -> After Hours | D19: =IF(ISBLANK('Input|Labour Rates'!D19),"",'Input|Labour Rates'!D19) -> No | E19: 0 | F19: =SUM(J19:M19)+J19*'Input|Indirect Cost Rates'!$D$35 -> 0 | H19: ='Input|Labour Rates'!$E19*CPI_Escalator_to_Y1*RealLabour_Escalator_to_Y1 -> 0 | I19: =H19*'Input|Labour Rates'!F19 -> 0 | J19: 0 | K19: =J19*'Input|Labour Rates'!G19 -> 0 | L19: ='Input|Labour Rates'!I19*CPI_Escalator_to_Y1*RealLabour_Escalator_to_Y1 -> 0 | M19: ='Input|Labour Rates'!H19*CPI_Escalator_to_Y1*RealLabour_Escalator_to_Y1 -> 0
A20: 11 | B20: =IF(ISBLANK('Input|Labour Rates'!B20),"",'Input|Labour Rates'!B20) ->  | C20: =IF(ISBLANK('Input|Labour Rates'!C20),"",'Input|Labour Rates'!C20) ->  | D20: =IF(ISBLANK('Input|Labour Rates'!D20),"",'Input|Labour Rates'!D20) ->  | E20: 0 | F20: =SUM(J20:M20)+J20*'Input|Indirect Cost Rates'!$D$35 -> 0 | H20: ='Input|Labour Rates'!$E20*CPI_Escalator_to_Y1*RealLabour_Escalator_to_Y1 -> 0 | I20: =H20*'Input|Labour Rates'!F20 -> 0 | J20: 0 | K20: =J20*'Input|Labour Rates'!G20 -> 0 | L20: ='Input|Labour Rates'!I20*CPI_Escalator_to_Y1*RealLabour_Escalator_to_Y1 -> 0 | M20: ='Input|Labour Rates'!H20*CPI_Escalator_to_Y1*RealLabour_Escalator_to_Y1 -> 0
A21: 12 | B21: =IF(ISBLANK('Input|Labour Rates'!B21),"",'Input|Labour Rates'!B21) ->  | C21: =IF(ISBLANK('Input|Labour Rates'!C21),"",'Input|Labour Rates'!C21) ->  | D21: =IF(ISBLANK('Input|Labour Rates'!D21),"",'Input|Labour Rates'!D21) ->  | E21: 0 | F21: =SUM(J21:M21)+J21*'Input|Indirect Cost Rates'!$D$35 -> 0 | H21: ='Input|Labour Rates'!$E21*CPI_Escalator_to_Y1*RealLabour_Escalator_to_Y1 -> 0 | I21: =H21*'Input|Labour Rates'!F21 -> 0 | J21: 0 | K21: =J21*'Input|Labour Rates'!G21 -> 0 | L21: ='Input|Labour Rates'!I21*CPI_Escalator_to_Y1*RealLabour_Escalator_to_Y1 -> 0 | M21: ='Input|Labour Rates'!H21*CPI_Escalator_to_Y1*RealLabour_Escalator_to_Y1 -> 0
A22: 13 | B22: =IF(ISBLANK('Input|Labour Rates'!B22),"",'Input|Labour Rates'!B22) ->  | C22: =IF(ISBLANK('Input|Labour Rates'!C22),"",'Input|Labour Rates'!C22) ->  | D22: =IF(ISBLANK('Input|Labour Rates'!D22),"",'Input|Labour Rates'!D22) ->  | E22: 0 | F22: =SUM(J22:M22)+J22*'Input|Indirect Cost Rates'!$D$35 -> 0 | H22: ='Input|Labour Rates'!$E22*CPI_Escalator_to_Y1*RealLabour_Escalator_to_Y1 -> 0 | I22: =H22*'Input|Labour Rates'!F22 -> 0 | J22: 0 | K22: =J22*'Input|Labour Rates'!G22 -> 0 | L22: ='Input|Labour Rates'!I22*CPI_Escalator_to_Y1*RealLabour_Escalator_to_Y1 -> 0 | M22: ='Input|Labour Rates'!H22*CPI_Escalator_to_Y1*RealLabour_Escalator_to_Y1 -> 0
A23: 14 | B23: =IF(ISBLANK('Input|Labour Rates'!B23),"",'Input|Labour Rates'!B23) ->  | C23: =IF(ISBLANK('Input|Labour Rates'!C23),"",'Input|Labour Rates'!C23) ->  | D23: =IF(ISBLANK('Input|Labour Rates'!D23),"",'Input|Labour Rates'!D23) ->  | E23: 0 | F23: =SUM(J23:M23)+J23*'Input|Indirect Cost Rates'!$D$35 -> 0 | H23: ='Input|Labour Rates'!$E23*CPI_Escalator_to_Y1*RealLabour_Escalator_to_Y1 -> 0 | I23: =H23*'Input|Labour Rates'!F23 -> 0 | J23: 0 | K23: =J23*'Input|Labour Rates'!G23 -> 0 | L23: ='Input|Labour Rates'!I23*CPI_Escalator_to_Y1*RealLabour_Escalator_to_Y1 -> 0 | M23: ='Input|Labour Rates'!H23*CPI_Escalator_to_Y1*RealLabour_Escalator_to_Y1 -> 0
A24: 15 | B24: =IF(ISBLANK('Input|Labour Rates'!B24),"",'Input|Labour Rates'!B24) ->  | C24: =IF(ISBLANK('Input|Labour Rates'!C24),"",'Input|Labour Rates'!C24) ->  | D24: =IF(ISBLANK('Input|Labour Rates'!D24),"",'Input|Labour Rates'!D24) ->  | E24: 0 | F24: =SUM(J24:M24)+J24*'Input|Indirect Cost Rates'!$D$35 -> 0 | H24: ='Input|Labour Rates'!$E24*CPI_Escalator_to_Y1*RealLabour_Escalator_to_Y1 -> 0 | I24: =H24*'Input|Labour Rates'!F24 -> 0 | J24: 0 | K24: =J24*'Input|Labour Rates'!G24 -> 0 | L24: ='Input|Labour Rates'!I24*CPI_Escalator_to_Y1*RealLabour_Escalator_to_Y1 -> 0 | M24: ='Input|Labour Rates'!H24*CPI_Escalator_to_Y1*RealLabour_Escalator_to_Y1 -> 0
A25: 16 | B25: =IF(ISBLANK('Input|Labour Rates'!B25),"",'Input|Labour Rates'!B25) ->  | C25: =IF(ISBLANK('Input|Labour Rates'!C25),"",'Input|Labour Rates'!C25) ->  | D25: =IF(ISBLANK('Input|Labour Rates'!D25),"",'Input|Labour Rates'!D25) ->  | E25: 0 | F25: =SUM(J25:M25)+J25*'Input|Indirect Cost Rates'!$D$35 -> 0 | H25: ='Input|Labour Rates'!$E25*CPI_Escalator_to_Y1*RealLabour_Escalator_to_Y1 -> 0 | I25: =H25*'Input|Labour Rates'!F25 -> 0 | J25: 0 | K25: =J25*'Input|Labour Rates'!G25 -> 0 | L25: ='Input|Labour Rates'!I25*CPI_Escalator_to_Y1*RealLabour_Escalator_to_Y1 -> 0 | M25: ='Input|Labour Rates'!H25*CPI_Escalator_to_Y1*RealLabour_Escalator_to_Y1 -> 0
A26: 17 | B26: =IF(ISBLANK('Input|Labour Rates'!B26),"",'Input|Labour Rates'!B26) ->  | C26: =IF(ISBLANK('Input|Labour Rates'!C26),"",'Input|Labour Rates'!C26) ->  | D26: =IF(ISBLANK('Input|Labour Rates'!D26),"",'Input|Labour Rates'!D26) ->  | E26: 0 | F26: =SUM(J26:M26)+J26*'Input|Indirect Cost Rates'!$D$35 -> 0 | H26: ='Input|Labour Rates'!$E26*CPI_Escalator_to_Y1*RealLabour_Escalator_to_Y1 -> 0 | I26: =H26*'Input|Labour Rates'!F26 -> 0 | J26: 0 | K26: =J26*'Input|Labour Rates'!G26 -> 0 | L26: ='Input|Labour Rates'!I26*CPI_Escalator_to_Y1*RealLabour_Escalator_to_Y1 -> 0 | M26: ='Input|Labour Rates'!H26*CPI_Escalator_to_Y1*RealLabour_Escalator_to_Y1 -> 0
A27: 18 | B27: =IF(ISBLANK('Input|Labour Rates'!B27),"",'Input|Labour Rates'!B27) ->  | C27: =IF(ISBLANK('Input|Labour Rates'!C27),"",'Input|Labour Rates'!C27) ->  | D27: =IF(ISBLANK('Input|Labour Rates'!D27),"",'Input|Labour Rates'!D27) ->  | E27: 0 | F27: =SUM(J27:M27)+J27*'Input|Indirect Cost Rates'!$D$35 -> 0 | H27: ='Input|Labour Rates'!$E27*CPI_Escalator_to_Y1*RealLabour_Escalator_to_Y1 -> 0 | I27: =H27*'Input|Labour Rates'!F27 -> 0 | J27: 0 | K27: =J27*'Input|Labour Rates'!G27 -> 0 | L27: ='Input|Labour Rates'!I27*CPI_Escalator_to_Y1*RealLabour_Escalator_to_Y1 -> 0 | M27: ='Input|Labour Rates'!H27*CPI_Escalator_to_Y1*RealLabour_Escalator_to_Y1 -> 0
A28: 19 | B28: =IF(ISBLANK('Input|Labour Rates'!B28),"",'Input|Labour Rates'!B28) ->  | C28: =IF(ISBLANK('Input|Labour Rates'!C28),"",'Input|Labour Rates'!C28) ->  | D28: =IF(ISBLANK('Input|Labour Rates'!D28),"",'Input|Labour Rates'!D28) ->  | E28: 0 | F28: =SUM(J28:M28)+J28*'Input|Indirect Cost Rates'!$D$35 -> 0 | H28: ='Input|Labour Rates'!$E28*CPI_Escalator_to_Y1*RealLabour_Escalator_to_Y1 -> 0 | I28: =H28*'Input|Labour Rates'!F28 -> 0 | J28: 0 | K28: =J28*'Input|Labour Rates'!G28 -> 0 | L28: ='Input|Labour Rates'!I28*CPI_Escalator_to_Y1*RealLabour_Escalator_to_Y1 -> 0 | M28: ='Input|Labour Rates'!H28*CPI_Escalator_to_Y1*RealLabour_Escalator_to_Y1 -> 0
A29: 20 | B29: =IF(ISBLANK('Input|Labour Rates'!B29),"",'Input|Labour Rates'!B29) ->  | C29: =IF(ISBLANK('Input|Labour Rates'!C29),"",'Input|Labour Rates'!C29) ->  | D29: =IF(ISBLANK('Input|Labour Rates'!D29),"",'Input|Labour Rates'!D29) ->  | E29: 0 | F29: =SUM(J29:M29)+J29*'Input|Indirect Cost Rates'!$D$35 -> 0 | H29: ='Input|Labour Rates'!$E29*CPI_Escalator_to_Y1*RealLabour_Escalator_to_Y1 -> 0 | I29: =H29*'Input|Labour Rates'!F29 -> 0 | J29: 0 | K29: =J29*'Input|Labour Rates'!G29 -> 0 | L29: ='Input|Labour Rates'!I29*CPI_Escalator_to_Y1*RealLabour_Escalator_to_Y1 -> 0 | M29: ='Input|Labour Rates'!H29*CPI_Escalator_to_Y1*RealLabour_Escalator_to_Y1 -> 0

Sheet Calc|Fee Based
B1: =IFERROR(Index!B1,"") -> Jemena Electricity Networks – Alternative Control Services Forecast model | E1: Input | G1: Sheet Validation | H1: ='Model Validation'!C17 -> 0
B2: =IFERROR(MID(CELL("filename",A1),FIND("]",CELL("filename",A1))+1,255),"") -> Calc|Fee Based | E2: Formula
B6: 10.1 Fee based services | H6: =IFERROR("Year 1 PRICE, $'s ($"&'Input|Setup'!$E$8&")","") -> Year 1 PRICE, $'s ($2026-27) | J6: =IFERROR("10.2 Year 1 service cost build up - DIRECT COSTS, $'s ($"&'Input|Setup'!$E$8&")","") -> 10.2 Year 1 service cost build up - DIRECT COSTS, $'s ($2026-27) | AB6: =IFERROR("10.3 Year 1 Service cost build up - INDIRECT COSTS, $'s ($"&'Input|Setup'!$E$8&")","") -> 10.3 Year 1 Service cost build up - INDIRECT COSTS, $'s ($2026-27)
J10: Non-field based labour | N10: =IF(SUM(N12:N61)=0,0,1) -> 0 | O10: Field based labour | U10: =IF(SUM(U12:U61)=0,0,1) -> 0 | V10: Materials | W10: Vehicles | X10: Other | Z10: Total Direct Cost | AB10: Indirect Costs
B11: ='Input|Fee Based'!B11 -> Service code | C11: ='Input|Fee Based'!C11 -> Service | D11: ='Input|Fee Based'!F11 -> Service category | E11: ='Input|Fee Based'!D11 -> Hours | F11: ='Input|Fee Based'!E11 -> Expense Type | G11: ='Input|Fee Based'!G11 -> Control Mechanism | H11: Total | J11: Labour category | K11: Applied Labour Rate | L11: =J$11 & " Total cost" -> Labour category Total cost | M11: TOTAL NON-FIELD LABOUR | N11: =IF(SUM(N13:N62)=0,0,1) -> 0 | O11: Labour category | P11: Applied Labour Rate | Q11: Travel cost | R11: Task cost | S11: =O11 & " Total cost" -> Labour category Total cost | T11: TOTAL FIELD LABOUR | V11: Total | W11: Total | X11: Total | Z11: Total | AB11: Network Overhead | AC11: Corporate Overhead | AD11: Margin | AE11: Tax recovery
